Workbook

Sheet Introduction

Sheet 1) ID Fortified foods
A1: Identification of Fortified Foods / Supplements
A2: Step 0: Define specific population(s) and nutrient(s) of concern for Option 1 or Option 2
C3: Menu of Key Foods (Option 1)
H4: Management of MAM
I5: IYCF Nutrition Calc (Option 2)
A6: 0.1 | B6: Place a checkmark below the target population(s) for this FBD | C6: Adult - Men | D6: Adult - Women | E6: Adult - PLW | F6: Teens (14–18 years) | G6: Children (5–8 years) | H6: Children (2–5 years) | I6: Children (6–24 months) | J6: Other (insert below)
A8: 0.2 | B8: In addition to protein, and in order of priority of nutrients of concern, please select the top 1-3 nutrients of concern | C8: Protein & | D8: Select #1 Micronutrient of Concern | E8: Select #2 Micronutrient of Concern | F8: Select #3 Micronutrient of Concern
C9: Protein (g) | J9: x
C10: TRUE | D10: TRUE | E10: TRUE | F10: TRUE
M11: *Note: What proportion of the population has access to this fortified food? This can be a subjective assessment based on secondary data.
A12: Step 1: Identify which fortified foods or supplements exist in your context
A13: # | B13: Food Name / Brand Name | C13: Target population | D13: Type of fortified food /supplement | E13: Form | F13: Accessibility | G13: Quarters of the Year | K13: Sustainability Considerations | M13: Coverage of fortified food or supplement | O13: Additional Comments/Observations for Selecting Key Foods
G14: Jan–Mar | H14: Apr–Jun | I14: Jul–Sep | J14: Oct–Dec | K14: Desirability | L14: Government supported / promoted? | M14: Population Coverage* | N14: Data source for coverage
A15: 1 | B15: Multiple micronutrient powder | F15: Availability
F16: Affordability
F17: Origin
A18: 2 | B18: [insert fortified food/supplement name] | F18: Availability
F19: Affordability
F20: Origin
A21: 3 | B21: [insert fortified food/supplement name] | F21: Availability
F22: Affordability
F23: Origin
A24: 4 | B24: [insert fortified food/supplement name] | F24: Availability
F25: Affordability
F26: Origin
A27: 5 | B27: [insert fortified food/supplement name] | F27: Availability
F28: Affordability
F29: Origin
A30: 6 | B30: [insert fortified food/supplement name] | F30: Availability
F31: Affordability
F32: Origin
A33: 7 | B33: [insert fortified food/supplement name] | F33: Availability
F34: Affordability
F35: Origin

Sheet 2) Key Foods ID List
C1: Key Food Identification List
C2: Step 2: Create a diverse key food list, across food groups, with your multidisciplinary team. | S2: *Foods that meet the diverse tastes and needs of the population, based on their taste preferences and cultural identity. | T2: *Foods that are adaptable to the changing climatic conditions (e.g. drought) within the specific context. | U2: *Ease of turning raw food into ready to use ingredients. | V2: *Requires few agricultural inputs, such as fertilizers, water, pesticides, etc. | W2: *The impact that producing more of this food would have on the increased workload of women. | X2: *Food safety in the context of preparing foods at the household post-harvest processing (e.g. aflatoxins), household food preparation (household level), and complementary blends.
C3: Are you seeking to create a menu of key foods (simplified process), or create a food based recommendation with the nutrition calculator? | G3: Menu of Key Foods (Option 1) | K3: Nutrition Calculator (Option 2) | Y3: MENU OF KEY FOODS SELECTIONS (3A) | AD3: NUTR CALC SELECTIONS (3B)
A4: # | B4: Food Name | C4: Variety/ Local Name | D4: Food Group | E4: Form of Food | F4: Origin of Food | G4: Months of the Year | S4: Sustainability Considerations *(descriptions in row 2) | Y4: Enter food composition of protein, and the top 3 nutrients of concern for key foods, per 100 grams (Step 3A) | AC4: Average serving size for selected food group (grams) | AD4: Shortlist top 10 foods for Nutrition Calculator Only (Step 3B) | AE4: Additional Comments/Observations for Selecting Key Foods
G5: Jan–Mar | J5: Apr–Jun | M5: Jul–Sept | P5: Oct–Dec | S5: Desirability/ cultural appropriateness | T5: Climate resilience | U5: Ease of production/ processing | V5: Low Agriculture Input Requirement | W5: Women's workload | X5: Food Safety | Y5: Protein (g) | Z5: =IFERROR(__xludf.DUMMYFUNCTION("FILTER('1) ID Fortified foods'!D9:F9,'1) ID Fortified foods'!D10:F10=true)"),"Folate (mcg)") -> Folate (mcg) | AA5: =IFERROR(__xludf.DUMMYFUNCTION("""COMPUTED_VALUE"""),"Calcium (mg)") -> Calcium (mg) | AB5: =IFERROR(__xludf.DUMMYFUNCTION("""COMPUTED_VALUE"""),"Iron (mg)") -> Iron (mg)
C6: 1. Grains, white roots, tubers, plantains (MDD-W)
A7: 1
A10: 2
A13: 3
A16: 4
C19: 2. Pulses (beans, peas, lentils) MDD-W
A20: 5
A23: 6
A26: 7
A29: 8
C32: 3. Nuts and seeds (MDD-W)
A33: 9
A36: 10
A39: 11
C42: 4.1 Milk
A43: 12
A46: 13
C49: 4.2 Powdered milk
A50: 14
C53: 4.3 Yogurt
A54: 15
C57: 5. Meat, poultry, fish (MDD-W)
A58: 16
A61: 17
A64: 18
C67: 6. Eggs (MDD-W)
A68: 19
C71: 7.1 (FRESH) Dark leafy vegetables (MDD-W)
A72: 20
A75: 21
C78: 7.2 (DRIED Dark leafy vegetables
A79: 22
A82: 23
C85: 8.1 Vitamin A-rich fruits (MDD-W)
A86: 24
A89: 25
C92: 8.2 Vitamin A-rich vegetables (MDD-W)
A93: 26
A96: 27
C99: 9. Other vegetables (MDD-W)
A100: 28
A103: 29
C106: 10. Other fruits (MDD-W)
A107: 30
A110: 31
AD114: Yes
AD115: No

Sheet 3A) Menu of Key Foods
A1: Menu of Key Foods (Option 1)
G2: Step 3A: Review the Menu of Key foods, which is organized by your top three nutrients of concern, by serving size.
A3: Top 3 Nutrients of Concern | I3: =IFERROR(__xludf.DUMMYFUNCTION("join("", "",FILTER('1) ID Fortified foods'!D9:F9,'1) ID Fortified foods'!D10:F10=true))"),"Folate (mcg), Calcium (mg), Iron (mg)") -> Folate (mcg), Calcium (mg), Iron (mg)
H5: Nutrients per serve | R5: Nutrients per serve | V5: Choose 3-4 food groups (e.g. vegetables, fruits, starchy staples, protein foods) per meal to improve nutrient adequacy. We suggest integrating these diverse food groups into meals regularly throughout the week (e.g. 2-4 times per week). | AG5: Nutrients per serve
B6: Vegetables | C6: Protein (g) | D6: =IFERROR(__xludf.DUMMYFUNCTION("FILTER('1) ID Fortified foods'!D9:F9,'1) ID Fortified foods'!D10:F10=true)"),"Folate (mcg)") -> Folate (mcg) | E6: =IFERROR(__xludf.DUMMYFUNCTION("""COMPUTED_VALUE"""),"Calcium (mg)") -> Calcium (mg) | F6: =IFERROR(__xludf.DUMMYFUNCTION("""COMPUTED_VALUE"""),"Iron (mg)") -> Iron (mg) | G6: Vegetables | H6: Protein (g) | I6: =IFERROR(__xludf.DUMMYFUNCTION("FILTER('1) ID Fortified foods'!D9:F9,'1) ID Fortified foods'!D10:F10=true)"),"Folate (mcg)") -> Folate (mcg) | J6: =IFERROR(__xludf.DUMMYFUNCTION("""COMPUTED_VALUE"""),"Calcium (mg)") -> Calcium (mg) | K6: =IFERROR(__xludf.DUMMYFUNCTION("""COMPUTED_VALUE"""),"Iron (mg)") -> Iron (mg) | L6: Dark Green Leafy Vegetables | M6: Protein (g) | N6: =IFERROR(__xludf.DUMMYFUNCTION("FILTER('1) ID Fortified foods'!D9:F9,'1) ID Fortified foods'!D10:F10=true)"),"Folate (mcg)") -> Folate (mcg) | O6: =IFERROR(__xludf.DUMMYFUNCTION("""COMPUTED_VALUE"""),"Calcium (mg)") -> Calcium (mg) | P6: =IFERROR(__xludf.DUMMYFUNCTION("""COMPUTED_VALUE"""),"Iron (mg)") -> Iron (mg) | Q6: Dark Green Leafy Vegetables | R6: Protein (g) | S6: =IFERROR(__xludf.DUMMYFUNCTION("FILTER('1) ID Fortified foods'!D9:F9,'1) ID Fortified foods'!D10:F10=true)"),"Folate (mcg)") -> Folate (mcg) | T6: =IFERROR(__xludf.DUMMYFUNCTION("""COMPUTED_VALUE"""),"Calcium (mg)") -> Calcium (mg) | U6: =IFERROR(__xludf.DUMMYFUNCTION("""COMPUTED_VALUE"""),"Iron (mg)") -> Iron (mg) | AA6: Grains, white roots, tubers, plantains | AB6: Protein (g) | AC6: =IFERROR(__xludf.DUMMYFUNCTION("FILTER('1) ID Fortified foods'!D9:F9,'1) ID Fortified foods'!D10:F10=true)"),"Folate (mcg)") -> Folate (mcg) | AD6: =IFERROR(__xludf.DUMMYFUNCTION("""COMPUTED_VALUE"""),"Calcium (mg)") -> Calcium (mg) | AE6: =IFERROR(__xludf.DUMMYFUNCTION("""COMPUTED_VALUE"""),"Iron (mg)") -> Iron (mg) | AF6: Grains, white roots, tubers, plantains | AG6: Protein (g) | AH6: =IFERROR(__xludf.DUMMYFUNCTION("FILTER('1) ID Fortified foods'!D9:F9,'1) ID Fortified foods'!D10:F10=true)"),"Folate (mcg)") -> Folate (mcg) | AI6: =IFERROR(__xludf.DUMMYFUNCTION("""COMPUTED_VALUE"""),"Calcium (mg)") -> Calcium (mg) | AJ6: =IFERROR(__xludf.DUMMYFUNCTION("""COMPUTED_VALUE"""),"Iron (mg)") -> Iron (mg)
B7: ='2) Key Foods ID List'!B100 -> 0 | C7: =('2) Key Foods ID List'!Y100/100)*'2) Key Foods ID List'!$AC$100 -> 0 | D7: =('2) Key Foods ID List'!Z100/100)*'2) Key Foods ID List'!$AC$100 -> 0 | E7: =('2) Key Foods ID List'!AA100/100)*'2) Key Foods ID List'!$AC$100 -> 0 | F7: =('2) Key Foods ID List'!AB100/100)*'2) Key Foods ID List'!$AC$100 -> 0 | G7: =_xlfn.SORTBY(B7:F10,D7:D10,-1,E7:E10,-1,F7:F10,-1) ->  | L7: ='2) Key Foods ID List'!B72 -> 0 | M7: =('2) Key Foods ID List'!Y72/100)*'2) Key Foods ID List'!$AC$72 -> 0 | N7: =('2) Key Foods ID List'!Z72/100)*'2) Key Foods ID List'!$AC$72 -> 0 | O7: =('2) Key Foods ID List'!AA72/100)*'2) Key Foods ID List'!$AC$72 -> 0 | P7: =('2) Key Foods ID List'!AB72/100)*'2) Key Foods ID List'!$AC$72 -> 0 | Q7: =_xlfn.SORTBY(L7:P10,N7:N10,-1,O7:O10,-1,P7:P10,-1) ->  | AA7: ='2) Key Foods ID List'!B7 ->  | AB7: =('2) Key Foods ID List'!Y7/100)*'2) Key Foods ID List'!$AC$7 -> 0 | AC7: =('2) Key Foods ID List'!Z7/100)*'2) Key Foods ID List'!$AC$7 -> 0 | AD7: =('2) Key Foods ID List'!AA7/100)*'2) Key Foods ID List'!$AC$7 -> 0 | AE7: =('2) Key Foods ID List'!AB7/100)*'2) Key Foods ID List'!$AC$7 -> 0 | AF7: =_xlfn.SORTBY(AA7:AE10,AC7:AC10,-1,AD7:AD10,-1,AE7:AE10,-1) -> 
B8: ='2) Key Foods ID List'!B103 -> 0 | C8: =('2) Key Foods ID List'!Y103/100)*'2) Key Foods ID List'!$AC$103 -> 0 | D8: =('2) Key Foods ID List'!Z103/100)*'2) Key Foods ID List'!$AC$103 -> 0 | E8: =('2) Key Foods ID List'!AA103/100)*'2) Key Foods ID List'!$AC$103 -> 0 | F8: =('2) Key Foods ID List'!AB103/100)*'2) Key Foods ID List'!$AC$103 -> 0 | L8: ='2) Key Foods ID List'!B75 -> 0 | M8: =('2) Key Foods ID List'!Y75/100)*'2) Key Foods ID List'!$AC$75 -> 0 | N8: =('2) Key Foods ID List'!Z75/100)*'2) Key Foods ID List'!$AC$75 -> 0 | O8: =('2) Key Foods ID List'!AA75/100)*'2) Key Foods ID List'!$AC$75 -> 0 | P8: =('2) Key Foods ID List'!AB75/100)*'2) Key Foods ID List'!$AC$75 -> 0 | AA8: ='2) Key Foods ID List'!B10 -> 0 | AB8: =('2) Key Foods ID List'!Y10/100)*'2) Key Foods ID List'!$AC$10 -> 0 | AC8: =('2) Key Foods ID List'!Z10/100)*'2) Key Foods ID List'!$AC$10 -> 0 | AD8: =('2) Key Foods ID List'!AA10/100)*'2) Key Foods ID List'!$AC$10 -> 0 | AE8: =('2) Key Foods ID List'!AB10/100)*'2) Key Foods ID List'!$AC$10 -> 0
B9: ='2) Key Foods ID List'!B93 -> 0 | C9: =('2) Key Foods ID List'!Y93/100)*'2) Key Foods ID List'!$AC$93 -> 0 | D9: =('2) Key Foods ID List'!Z93/100)*'2) Key Foods ID List'!$AC$93 -> 0 | E9: =('2) Key Foods ID List'!AA93/100)*'2) Key Foods ID List'!$AC$93 -> 0 | F9: =('2) Key Foods ID List'!AB93/100)*'2) Key Foods ID List'!$AC$93 -> 0 | L9: ='2) Key Foods ID List'!B79 -> 0 | M9: =('2) Key Foods ID List'!Y79/100)*'2) Key Foods ID List'!$AC$79 -> 0 | N9: =('2) Key Foods ID List'!Z79/100)*'2) Key Foods ID List'!$AC$79 -> 0 | O9: =('2) Key Foods ID List'!AA79/100)*'2) Key Foods ID List'!$AC$79 -> 0 | P9: =('2) Key Foods ID List'!AB79/100)*'2) Key Foods ID List'!$AC$79 -> 0 | AA9: ='2) Key Foods ID List'!B13 -> 0 | AB9: =('2) Key Foods ID List'!Y13/100)*'2) Key Foods ID List'!$AC$13 -> 0 | AC9: =('2) Key Foods ID List'!Z13/100)*'2) Key Foods ID List'!$AC$13 -> 0 | AD9: =('2) Key Foods ID List'!AA13/100)*'2) Key Foods ID List'!$AC$13 -> 0 | AE9: =('2) Key Foods ID List'!AB13/100)*'2) Key Foods ID List'!$AC$13 -> 0
B10: ='2) Key Foods ID List'!B96 -> 0 | C10: =('2) Key Foods ID List'!Y96/100)*'2) Key Foods ID List'!$AC$96 -> 0 | D10: =('2) Key Foods ID List'!Z96/100)*'2) Key Foods ID List'!$AC$96 -> 0 | E10: =('2) Key Foods ID List'!AA96/100)*'2) Key Foods ID List'!$AC$96 -> 0 | F10: =('2) Key Foods ID List'!AB96/100)*'2) Key Foods ID List'!$AC$96 -> 0 | L10: ='2) Key Foods ID List'!B82 -> 0 | M10: =('2) Key Foods ID List'!Y82/100)*'2) Key Foods ID List'!$AC$82 -> 0 | N10: =('2) Key Foods ID List'!Z82/100)*'2) Key Foods ID List'!$AC$82 -> 0 | O10: =('2) Key Foods ID List'!AA82/100)*'2) Key Foods ID List'!$AC$82 -> 0 | P10: =('2) Key Foods ID List'!AB82/100)*'2) Key Foods ID List'!$AC$82 -> 0 | AA10: ='2) Key Foods ID List'!B16 -> 0 | AB10: =('2) Key Foods ID List'!Y16/100)*'2) Key Foods ID List'!$AC$16 -> 0 | AC10: =('2) Key Foods ID List'!Z16/100)*'2) Key Foods ID List'!$AC$16 -> 0 | AD10: =('2) Key Foods ID List'!AA16/100)*'2) Key Foods ID List'!$AC$16 -> 0 | AE10: =('2) Key Foods ID List'!AB16/100)*'2) Key Foods ID List'!$AC$16 -> 0
G12: Average serving size per meal in grams (g) | H12: CU2 | I12: CU5 | J12: Adults | K12: PLW | Q12: Average serving size per meal in grams (g) | R12: CU2 | S12: CU5 | T12: Adults | U12: PLW | AF12: Average serving size per meal in grams (g) | AG12: CU2 | AH12: CU5 | AI12: Adults | AJ12: PLW
H13: 40 | I13: 55 | J13: 75 | K13: 100 | R13: 10 | S13: 15 | T13: 30 | U13: 50 | AG13: 60 | AH13: 80 | AI13: 150 | AJ13: 175
R15: Nutrients per serve | AG15: Nutrients per serve | AQ15: Nutrients per serve | BA15: Nutrients per serve
L16: Fruits | M16: Protein (g) | N16: =IFERROR(__xludf.DUMMYFUNCTION("FILTER('1) ID Fortified foods'!D9:F9,'1) ID Fortified foods'!D10:F10=true)"),"Folate (mcg)") -> Folate (mcg) | O16: =IFERROR(__xludf.DUMMYFUNCTION("""COMPUTED_VALUE"""),"Calcium (mg)") -> Calcium (mg) | P16: =IFERROR(__xludf.DUMMYFUNCTION("""COMPUTED_VALUE"""),"Iron (mg)") -> Iron (mg) | Q16: Fruits | R16: Protein (g) | S16: =IFERROR(__xludf.DUMMYFUNCTION("FILTER('1) ID Fortified foods'!D9:F9,'1) ID Fortified foods'!D10:F10=true)"),"Folate (mcg)") -> Folate (mcg) | T16: =IFERROR(__xludf.DUMMYFUNCTION("""COMPUTED_VALUE"""),"Calcium (mg)") -> Calcium (mg) | U16: =IFERROR(__xludf.DUMMYFUNCTION("""COMPUTED_VALUE"""),"Iron (mg)") -> Iron (mg) | AA16: Pulses (beans, peas, lentils) | AB16: Protein (g) | AC16: =IFERROR(__xludf.DUMMYFUNCTION("FILTER('1) ID Fortified foods'!D9:F9,'1) ID Fortified foods'!D10:F10=true)"),"Folate (mcg)") -> Folate (mcg) | AD16: =IFERROR(__xludf.DUMMYFUNCTION("""COMPUTED_VALUE"""),"Calcium (mg)") -> Calcium (mg) | AE16: =IFERROR(__xludf.DUMMYFUNCTION("""COMPUTED_VALUE"""),"Iron (mg)") -> Iron (mg) | AF16: Pulses (beans, peas, lentils) | AG16: Protein (g) | AH16: =IFERROR(__xludf.DUMMYFUNCTION("FILTER('1) ID Fortified foods'!D9:F9,'1) ID Fortified foods'!D10:F10=true)"),"Folate (mcg)") -> Folate (mcg) | AI16: =IFERROR(__xludf.DUMMYFUNCTION("""COMPUTED_VALUE"""),"Calcium (mg)") -> Calcium (mg) | AJ16: =IFERROR(__xludf.DUMMYFUNCTION("""COMPUTED_VALUE"""),"Iron (mg)") -> Iron (mg) | AK16: Nuts and Seeds | AL16: Protein (g) | AM16: =IFERROR(__xludf.DUMMYFUNCTION("FILTER('1) ID Fortified foods'!D9:F9,'1) ID Fortified foods'!D10:F10=true)"),"Folate (mcg)") -> Folate (mcg) | AN16: =IFERROR(__xludf.DUMMYFUNCTION("""COMPUTED_VALUE"""),"Calcium (mg)") -> Calcium (mg) | AO16: =IFERROR(__xludf.DUMMYFUNCTION("""COMPUTED_VALUE"""),"Iron (mg)") -> Iron (mg) | AP16: Nuts and Seeds | AQ16: Protein (g) | AR16: =IFERROR(__xludf.DUMMYFUNCTION("FILTER('1) ID Fortified foods'!D9:F9,'1) ID Fortified foods'!D10:F10=true)"),"Folate (mcg)") -> Folate (mcg) | AS16: =IFERROR(__xludf.DUMMYFUNCTION("""COMPUTED_VALUE"""),"Calcium (mg)") -> Calcium (mg) | AT16: =IFERROR(__xludf.DUMMYFUNCTION("""COMPUTED_VALUE"""),"Iron (mg)") -> Iron (mg) | AU16: Animal Sourced Foods (including fish, eggs, milk, cheese) | AV16: Protein (g) | AW16: =IFERROR(__xludf.DUMMYFUNCTION("FILTER('1) ID Fortified foods'!D9:F9,'1) ID Fortified foods'!D10:F10=true)"),"Folate (mcg)") -> Folate (mcg) | AX16: =IFERROR(__xludf.DUMMYFUNCTION("""COMPUTED_VALUE"""),"Calcium (mg)") -> Calcium (mg) | AY16: =IFERROR(__xludf.DUMMYFUNCTION("""COMPUTED_VALUE"""),"Iron (mg)") -> Iron (mg) | AZ16: Animal Sourced Foods | BA16: Protein (g) | BB16: =IFERROR(__xludf.DUMMYFUNCTION("FILTER('1) ID Fortified foods'!D9:F9,'1) ID Fortified foods'!D10:F10=true)"),"Folate (mcg)") -> Folate (mcg) | BC16: =IFERROR(__xludf.DUMMYFUNCTION("""COMPUTED_VALUE"""),"Calcium (mg)") -> Calcium (mg) | BD16: =IFERROR(__xludf.DUMMYFUNCTION("""COMPUTED_VALUE"""),"Iron (mg)") -> Iron (mg)
L17: ='2) Key Foods ID List'!B86 -> 0 | M17: =('2) Key Foods ID List'!Y86/100)*'2) Key Foods ID List'!$AC$86 -> 0 | N17: =('2) Key Foods ID List'!Z86/100)*'2) Key Foods ID List'!$AC$86 -> 0 | O17: =('2) Key Foods ID List'!AA86/100)*'2) Key Foods ID List'!$AC$86 -> 0 | P17: =('2) Key Foods ID List'!AB86/100)*'2) Key Foods ID List'!$AC$86 -> 0 | Q17: =_xlfn.SORTBY(L17:P20,N17:N20,-1,O17:O20,-1,P17:P20,-1) ->  | AA17: ='2) Key Foods ID List'!B20 -> 0 | AB17: =('2) Key Foods ID List'!Y20/100)*'2) Key Foods ID List'!$AC$20 -> 0 | AC17: =('2) Key Foods ID List'!Z20/100)*'2) Key Foods ID List'!$AC$20 -> 0 | AD17: =('2) Key Foods ID List'!AA20/100)*'2) Key Foods ID List'!$AC$20 -> 0 | AE17: =('2) Key Foods ID List'!AB20/100)*'2) Key Foods ID List'!$AC$20 -> 0 | AF17: =_xlfn.SORTBY(AA17:AE20,AC17:AC20,-1,AD17:AD20,-1,AE17:AE20,-1) ->  | AK17: ='2) Key Foods ID List'!B33 -> 0 | AL17: ='2) Key Foods ID List'!Y33 -> 0 | AM17: ='2) Key Foods ID List'!Z33 -> 0 | AN17: ='2) Key Foods ID List'!AA33 -> 0 | AO17: ='2) Key Foods ID List'!AB33 -> 0 | AP17: =_xlfn.SORTBY(AK17:AO19,AM17:AM19,-1,AN17:AN19,-1,AO17:AO19,-1) ->  | AU17: Meat | AZ17: Meat and Seafood
L18: ='2) Key Foods ID List'!B89 -> 0 | M18: =('2) Key Foods ID List'!Y89/100)*'2) Key Foods ID List'!$AC$89 -> 0 | N18: =('2) Key Foods ID List'!Z89/100)*'2) Key Foods ID List'!$AC$89 -> 0 | O18: =('2) Key Foods ID List'!AA89/100)*'2) Key Foods ID List'!$AC$89 -> 0 | P18: =('2) Key Foods ID List'!AB89/100)*'2) Key Foods ID List'!$AC$89 -> 0 | AA18: ='2) Key Foods ID List'!B23 -> 0 | AB18: =('2) Key Foods ID List'!Y23/100)*'2) Key Foods ID List'!$AC$23 -> 0 | AC18: =('2) Key Foods ID List'!Z23/100)*'2) Key Foods ID List'!$AC$23 -> 0 | AD18: =('2) Key Foods ID List'!AA23/100)*'2) Key Foods ID List'!$AC$23 -> 0 | AE18: =('2) Key Foods ID List'!AB23/100)*'2) Key Foods ID List'!$AC$23 -> 0 | AK18: ='2) Key Foods ID List'!B36 -> 0 | AL18: ='2) Key Foods ID List'!Y36 -> 0 | AM18: ='2) Key Foods ID List'!Z36 -> 0 | AN18: ='2) Key Foods ID List'!AA36 -> 0 | AO18: ='2) Key Foods ID List'!AB36 -> 0 | AU18: ='2) Key Foods ID List'!B58 -> 0 | AV18: =('2) Key Foods ID List'!Y58/100)*'2) Key Foods ID List'!$AC$58 -> 0 | AW18: =('2) Key Foods ID List'!Z58/100)*'2) Key Foods ID List'!$AC$58 -> 0 | AX18: =('2) Key Foods ID List'!AA58/100)*'2) Key Foods ID List'!$AC$58 -> 0 | AY18: =('2) Key Foods ID List'!AB58/100)*'2) Key Foods ID List'!$AC$58 -> 0 | AZ18: =_xlfn.SORTBY(AU18:AY20,AW18:AW20,-1,AX18:AX20,-1,AY18:AY20,-1) -> 
L19: ='2) Key Foods ID List'!B107 -> 0 | M19: =('2) Key Foods ID List'!Y107/100)*'2) Key Foods ID List'!$AC$107 -> 0 | N19: =('2) Key Foods ID List'!Z107/100)*'2) Key Foods ID List'!$AC$107 -> 0 | O19: =('2) Key Foods ID List'!AA107/100)*'2) Key Foods ID List'!$AC$107 -> 0 | P19: =('2) Key Foods ID List'!AB107/100)*'2) Key Foods ID List'!$AC$107 -> 0 | AA19: ='2) Key Foods ID List'!B26 -> 0 | AB19: =('2) Key Foods ID List'!Y26/100)*'2) Key Foods ID List'!$AC$26 -> 0 | AC19: =('2) Key Foods ID List'!Z26/100)*'2) Key Foods ID List'!$AC$26 -> 0 | AD19: =('2) Key Foods ID List'!AA26/100)*'2) Key Foods ID List'!$AC$26 -> 0 | AE19: =('2) Key Foods ID List'!AB26/100)*'2) Key Foods ID List'!$AC$26 -> 0 | AK19: ='2) Key Foods ID List'!B39 -> 0 | AL19: ='2) Key Foods ID List'!Y39 -> 0 | AM19: ='2) Key Foods ID List'!Z39 -> 0 | AN19: ='2) Key Foods ID List'!AA39 -> 0 | AO19: ='2) Key Foods ID List'!AB39 -> 0 | AU19: ='2) Key Foods ID List'!B61 -> 0 | AV19: =('2) Key Foods ID List'!Y61/100)*'2) Key Foods ID List'!$AB$61 -> 0 | AW19: =('2) Key Foods ID List'!Z61/100)*'2) Key Foods ID List'!$AB$61 -> 0 | AX19: =('2) Key Foods ID List'!AA61/100)*'2) Key Foods ID List'!$AB$61 -> 0 | AY19: =('2) Key Foods ID List'!AB61/100)*'2) Key Foods ID List'!$AB$61 -> 0
L20: ='2) Key Foods ID List'!B110 -> 0 | M20: =('2) Key Foods ID List'!Y110/100)*'2) Key Foods ID List'!$AC$110 -> 0 | N20: =('2) Key Foods ID List'!Z110/100)*'2) Key Foods ID List'!$AC$110 -> 0 | O20: =('2) Key Foods ID List'!AA110/100)*'2) Key Foods ID List'!$AC$110 -> 0 | P20: =('2) Key Foods ID List'!AB110/100)*'2) Key Foods ID List'!$AC$110 -> 0 | AA20: ='2) Key Foods ID List'!B29 -> 0 | AB20: =('2) Key Foods ID List'!Y29/100)*'2) Key Foods ID List'!$AC$29 -> 0 | AC20: =('2) Key Foods ID List'!Z29/100)*'2) Key Foods ID List'!$AC$29 -> 0 | AD20: =('2) Key Foods ID List'!AA29/100)*'2) Key Foods ID List'!$AC$29 -> 0 | AE20: =('2) Key Foods ID List'!AB29/100)*'2) Key Foods ID List'!$AC$29 -> 0 | AP20: Average serving size per meal in grams (g) | AQ20: CU2 | AR20: CU5 | AS20: Adults | AT20: PLW | AU20: ='2) Key Foods ID List'!B64 -> 0 | AV20: =('2) Key Foods ID List'!Y64/100)*'2) Key Foods ID List'!$AC$64 -> 0 | AW20: =('2) Key Foods ID List'!Z64/100)*'2) Key Foods ID List'!$AC$64 -> 0 | AX20: =('2) Key Foods ID List'!AA64/100)*'2) Key Foods ID List'!$AC$64 -> 0 | AY20: =('2) Key Foods ID List'!AB64/100)*'2) Key Foods ID List'!$AC$64 -> 0
AF21: Average serving size per meal in grams (g) | AG21: CU2 | AH21: CU5 | AI21: Adults | AJ21: PLW | AQ21: 10 | AR21: 15 | AS21: 30 | AT21: 40
Q22: Average serving size per meal in grams (g) | R22: CU2 | S22: CU5 | T22: Adults | U22: PLW | AG22: 40 | AH22: 70 | AI22: 125 | AJ22: 150 | AZ22: Average serving size per meal in grams (g) | BA22: CU2 | BB22: CU5 | BC22: Adults | BD22: PLW
R23: 40 | S23: 60 | T23: 80 | U23: 100 | BA23: 30 | BB23: 45 | BC23: 75 | BD23: 100
AU24: Milk (fresh, powdered) | AZ24: Milk (fresh, powdered)
AU25: ='2) Key Foods ID List'!B43 -> 0 | AV25: =('2) Key Foods ID List'!Y43/100)*'2) Key Foods ID List'!$AC$43 -> 0 | AW25: =('2) Key Foods ID List'!Z43/100)*'2) Key Foods ID List'!$AC$43 -> 0 | AX25: =('2) Key Foods ID List'!AA43/100)*'2) Key Foods ID List'!$AC$43 -> 0 | AY25: =('2) Key Foods ID List'!AB43/100)*'2) Key Foods ID List'!$AC$43 -> 0 | AZ25: =_xlfn.SORTBY(AU25:AY27,AW25:AW27,-1,AX25:AX27,-1,AY25:AY27,-1) -> 
AU26: ='2) Key Foods ID List'!B46 -> 0 | AV26: =('2) Key Foods ID List'!Y46/100)*'2) Key Foods ID List'!$AC$46 -> 0 | AW26: =('2) Key Foods ID List'!Z46/100)*'2) Key Foods ID List'!$AC$46 -> 0 | AX26: =('2) Key Foods ID List'!AA46/100)*'2) Key Foods ID List'!$AC$46 -> 0 | AY26: =('2) Key Foods ID List'!AB46/100)*'2) Key Foods ID List'!$AC$46 -> 0
AU27: ='2) Key Foods ID List'!B50 -> 0 | AV27: =('2) Key Foods ID List'!Y50/100)*'2) Key Foods ID List'!$AC$50 -> 0 | AW27: =('2) Key Foods ID List'!Z50/100)*'2) Key Foods ID List'!$AC$50 -> 0 | AX27: =('2) Key Foods ID List'!AA50/100)*'2) Key Foods ID List'!$AC$50 -> 0 | AY27: =('2) Key Foods ID List'!AB50/100)*'2) Key Foods ID List'!$AC$50 -> 0
AZ28: Average serving size per meal in grams (g) | BA28: CU2 | BB28: CU5 | BC28: Adults | BD28: PLW
BA29: 80 | BB29: 120 | BC29: 250 | BD29: 250
AU30: Cheese | AZ30: Yogurt
AU31: ='2) Key Foods ID List'!B54 -> 0 | AV31: =('2) Key Foods ID List'!Y54/100)*'2) Key Foods ID List'!$AC$54 -> 0 | AW31: =('2) Key Foods ID List'!Z54/100)*'2) Key Foods ID List'!$AC$54 -> 0 | AX31: =('2) Key Foods ID List'!AA54/100)*'2) Key Foods ID List'!$AC$54 -> 0 | AY31: =('2) Key Foods ID List'!AB54/100)*'2) Key Foods ID List'!$AC$54 -> 0 | AZ31: =AU31 -> 0 | BA31: =AV31 -> 0 | BB31: 0 | BC31: 0 | BD31: 0
AZ32: Average serving size per meal in grams (g) | BA32: CU2 | BB32: CU5 | BC32: Adults | BD32: PLW
BA33: 50 | BB33: 80 | BC33: 170 | BD33: 200
AU34: Eggs | AZ34: Eggs
AU35: =IFERROR(__xludf.DUMMYFUNCTION("FILTER('2) Key Foods ID List'!$B$7:$B$112,'2) Key Foods ID List'!$H$7:$H$112=""6. Eggs (MDD-W)"")"),"Eggs") -> Eggs | AV35: =('2) Key Foods ID List'!Y68/100)*'2) Key Foods ID List'!$AC$68 -> 0 | AW35: =('2) Key Foods ID List'!Z68/100)*'2) Key Foods ID List'!$AC$68 -> 0 | AX35: =('2) Key Foods ID List'!AA68/100)*'2) Key Foods ID List'!$AC$68 -> 0 | AY35: =('2) Key Foods ID List'!AB68/100)*'2) Key Foods ID List'!$AC$68 -> 0 | AZ35: =AU35 -> Eggs | BA35: =AV35 -> 0 | BB35: 0 | BC35: 0 | BD35: 0
AZ36: Average serving size per meal in grams (g) | BA36: CU2 | BB36: CU5 | BC36: Adults | BD36: PLW
BA37: 25 | BB37: 50 | BC37: 50 | BD37: 70

Sheet 3B-4B) Nutr Calc (6-11)
A1: 6-11 mos: Nutrition Calculator (Option 2)
A2: Step 3B: Listing Potential Ingredients List all potential ingredients for each food based recommendation. If two different forms on the same ingredient are used (e.g. fresh, dried), they must be added and analyzed independently. Salt, sugar and multivitamins are added in column M-O in Step 4.
A3: Estimated serving size (per meal) for specific population
A4: 1 | B4: Type approximate meal serving size (in grams) for specific population | C4: 90 | D4: grams of food per meal (serving) | E4: GRAMS OF FOOD REQUIRED, PER DAY RECOMMENDATIONS for CU2: 137-187 grams of food/day at 6-8 months 206-281 grams of food/day at 9-11 months
A5: Ingredients
A6: # | B6: Common Name | C6: Local name (if different) | D6: Scientific Name | E6: Form | F6: Nutrition Composition Source INFOODS link | H6: Hyperlink
A7: 1 | B7: =(_xlfn._xlws.FILTER('2) Key Foods ID List'!B$7:B$112, '2) Key Foods ID List'!AD$7:AD$112 = "Yes")) ->  | C7: Amabele | D7: Pennisetum glaucum | E7: flour | F7: Zambia Food Composition tables | H7: https://www.nfnc.org.zm/download/zambia-food-composition-tables-4th-edition/?wpdmdl=1500&refresh=63d248a846b6e1674725544
A8: 2
A9: 3
A10: 4
A11: 5
A12: 6
A13: 7
A14: 8
A15: 9
A16: 10
A17: Step 4: Enter the Nutrition Composition for each Ingredient. Please enter food composition data exactly as it appears in the closest food composition table (FCT) to your geographic context. All foods must be entered in 100 gram (g) quantities.
A18: Ingredient (per 100 g) | D18: =B8 -> 0 | E18: =B9 -> 0 | F18: =B10 -> 0 | G18: =B11 -> 0 | H18: =B12 -> 0 | I18: =B13 -> 0 | J18: =B14 -> 0 | K18: =B15 -> 0 | L18: =B16 -> 0 | M18: Sugar | N18: Salt | O18: Micronutrient Powder (per 100g)
B19: Energy (kcal, or calories)
B20: Protein (g)
B21: Total fat (g)
B22: Carbohydrate (g)
B23: Fiber (g)
B24: Sugar (g)
B25: Calcium [Ca] (mg)
B26: Iron [Fe] (mg)
B27: Magnesium [Mg] (mg)
B28: Potassium [K] (mg)
B29: Sodium [Na] (mg)
B30: Zinc [Zn] (mg)
B31: Vitamin A RAE (mcg)
B32: Thiamine [Vit B1] (mg)
B33: Riboflavin [Vit B2] (mg)
B34: Niacin Equiv [Vit B3] (mg)
B35: Folate DFE (mcg)
B36: Vitamin B12 (mcg)
B37: Vitamin C (mg)
A38: Step 4B: Building Food Based Recommendations (FBR) or Enriched Flour Blends (EFB) Enter the name, select preparation method, and add total quantity of each ingredient (in grams) for up to 4 FBRs or enriched flour blends. Max 10 ingredients per FBR. Sugar, salt, and vitamin mix are added in addition.
A39: FBR or EFB # | C39: 1 | D39: 2 | E39: 3 | F39: 4
A40: Add FBR / Enriched Flour Blend Name | C40: FBR #1 | D40: FBR #2 | E40: FBR #3 | F40: FBR #4 | H40: ESTIMATED SERVING SIZE KEY Average serving size per food group
A41: Select Preparation Method | C41: Boiled (<10 min) | D41: Boiled (<10 min) | E41: Boiled (<10 min) | H41: FOOD GROUP | K41: 2023-06-11
A42: 1 | B42: =B7 ->  | K42: grams | L42: unit
A43: 2 | B43: =B8 -> 0 | H43: 1. Grains, white roots, tubers, plantains (MDD-W) | K43: 40 | L43: 1/4 cup
A44: 3 | B44: =B9 -> 0 | H44: 2. Pulses (beans, peas, lentils) MDD-W | K44: 20 | L44: 1/3 cup
A45: 4 | B45: =B10 -> 0 | H45: 3. Nuts and seeds (MDD-W) | K45: 10 | L45: 1 tbsp
A46: 5 | B46: 0 | H46: 4.1 Milk, milk products (MDD-W) | K46: 60 | L46: 1/4 cup
A47: 6 | B47: 0 | H47: 4.2 Powdered milk | K47: 10 | L47: 1.25 tbsp
A48: 7 | B48: 0 | H48: 4.2 Cheese | K48: 10 | L48: 1.25 tbsp
A49: 8 | B49: 0 | H49: 5. Meat, poultry, fish (MDD-W) | K49: 20 | L49: 2 tbsp
A50: 9 | B50: 0 | H50: 6. Eggs (MDD-W) | K50: 25 | L50: 1/2 egg
A51: 10 | B51: 0 | H51: 7.1 (FRESH) Dark leafy vegetables (MDD-W) | K51: 10 | L51: 1/4 cup
A52: + | B52: ADDED SUGAR (g) | H52: 7.2 (DRIED) Dark leafy vegetables | K52: 5 | L52: 1 tbsp
A53: + | B53: ADDED SALT (g) | H53: 8. Vitamin A-rich fruits and vegetables (MDD-W) | K53: 30 | L53: 2 tbsp
A54: + | B54: =O18 -> Micronutrient Powder (per 100g) | H54: 9. Other vegetables (MDD-W) | K54: 30 | L54: 2 tbsp
B55: TOTAL FBR WEIGHT | C55: =_xlfn.CONCAT(SUM(C42:C54)," grams") ->  | D55: =_xlfn.CONCAT(SUM(D42:D54)," grams") ->  | E55: =_xlfn.CONCAT(SUM(E42:E54)," grams") ->  | F55: =_xlfn.CONCAT(SUM(F42:F54)," grams") ->  | H55: 10. Other fruits (MDD-W) | K55: 30 | L55: 2 tbsp
B56: Serving Size for specific population | C56: =_xlfn.CONCAT(C4, " grams") -> 

Sheet 5) Dashboards (6-11mos)
A1: DASHBOARD for 6-11 months | B1: ='3B-4B) Nutr Calc (6-11)'!C40 -> FBR #1 | E1: ='3B-4B) Nutr Calc (6-11)'!D40 -> FBR #2 | H1: ='3B-4B) Nutr Calc (6-11)'!E40 -> FBR #3 | K1: ='3B-4B) Nutr Calc (6-11)'!F40 -> FBR #4 | N1: DAILY RATION PER SERVE (reference)
A2: Nutrients | B2: Prepared FBR / EFB (w/ retention factor) | C2: Children (6-11 months) % DV | D2: Children (6-12 months) % DV | E2: Prepared FBR / EFB (w/ retention factor) | F2: Children (6-11 months) % DV | G2: Children (6-12 months) % DV | H2: Prepared FBR / EFB (w/ retention factor) | I2: Children (6-11 months) % DV | J2: Children (6-12 months) % DV | K2: Prepared FBR / EFB (w/retention factor) | L2: Children (6-11 months) % DV | M2: Children (6-12 months) % DV | N2: CSB+ with oil | O2: CSB++ | P2: SQ-LNS | Q2: Multiple Micronutrient Powder (5g sachet)
A3: Energy (kcal, or calories) | B3: ='FBREFB #1 (Details)'!C36 ->  | C3: ='FBREFB #1 (Details)'!Q36 ->  | D3: ='FBREFB #1 (Details)'!S36 ->  | E3: ='FBREFB #2 (Details)'!C36 ->  | F3: ='FBREFB #2 (Details)'!Q36 ->  | G3: ='FBREFB #2 (Details)'!S36 ->  | H3: ='FBREFB #3 (Details)'!C36 ->  | I3: ='FBREFB #3 (Details)'!H36 ->  | J3: ='FBREFB #3 (Details)'!J36 ->  | K3: ='FBREFB #4 (Details)'!C36 ->  | L3: ='FBREFB #4 (Details)'!Q36 ->  | M3: ='FBREFB #4 (Details)'!S36 ->  | N3: 601 | O3: 563 | P3: 550-620
A4: Protein (g) | B4: ='FBREFB #1 (Details)'!C37 -> 0 | C4: ='FBREFB #1 (Details)'!Q37 -> 0 | D4: ='FBREFB #1 (Details)'!S37 -> 0 | E4: ='FBREFB #2 (Details)'!C37 -> 0 | F4: ='FBREFB #2 (Details)'!Q37 -> 0 | G4: ='FBREFB #2 (Details)'!S37 -> 0 | H4: ='FBREFB #3 (Details)'!C37 -> 0 | I4: ='FBREFB #3 (Details)'!H37 -> 0 | J4: ='FBREFB #3 (Details)'!J37 -> 0 | K4: ='FBREFB #4 (Details)'!C37 -> 0 | L4: ='FBREFB #4 (Details)'!Q37 -> 0 | M4: ='FBREFB #4 (Details)'!S37 -> 0 | N4: 13.3 | O4: 21 | P4: 2023-12-16
A5: Total fat (g) | B5: ='FBREFB #1 (Details)'!C38 -> 0 | C5: ='FBREFB #1 (Details)'!Q38 -> 0 | D5: ='FBREFB #1 (Details)'!S38 -> 0 | E5: ='FBREFB #2 (Details)'!C38 -> 0 | F5: ='FBREFB #2 (Details)'!Q38 -> 0 | G5: ='FBREFB #2 (Details)'!S38 -> 0 | H5: ='FBREFB #3 (Details)'!C38 -> 0 | I5: ='FBREFB #3 (Details)'!H38 -> 0 | J5: ='FBREFB #3 (Details)'!J38 -> 0 | K5: ='FBREFB #4 (Details)'!C38 -> 0 | L5: ='FBREFB #4 (Details)'!Q38 -> 0 | M5: ='FBREFB #4 (Details)'!S38 -> 0 | N5: 26.5 | O5: 13 | P5: 40-53
A6: Carbohydrate (g) | B6: ='FBREFB #1 (Details)'!C39 -> 0 | C6: ='FBREFB #1 (Details)'!Q39 -> 0 | D6: ='FBREFB #1 (Details)'!S39 -> 0 | E6: ='FBREFB #2 (Details)'!C39 -> 0 | F6: ='FBREFB #2 (Details)'!Q39 -> 0 | G6: ='FBREFB #2 (Details)'!S39 -> 0 | H6: ='FBREFB #3 (Details)'!C39 -> 0 | I6: ='FBREFB #3 (Details)'!H39 -> 0 | J6: ='FBREFB #3 (Details)'!J39 -> 0 | K6: ='FBREFB #4 (Details)'!C39 -> 0 | L6: ='FBREFB #4 (Details)'!Q39 -> 0 | M6: ='FBREFB #4 (Details)'!S39 -> 0 | N6: 51 | P6: 0-8
A7: Fiber (g) | B7: ='FBREFB #1 (Details)'!C40 -> 0 | C7: ='FBREFB #1 (Details)'!Q40 -> 0 | D7: ='FBREFB #1 (Details)'!S40 -> NA | E7: ='FBREFB #2 (Details)'!C40 -> 0 | F7: ='FBREFB #2 (Details)'!Q40 -> 0 | G7: ='FBREFB #2 (Details)'!S40 -> NA | H7: ='FBREFB #3 (Details)'!C40 -> 0 | I7: ='FBREFB #3 (Details)'!H40 -> 0 | J7: ='FBREFB #3 (Details)'!J40 -> NA | K7: ='FBREFB #4 (Details)'!C40 -> 0 | L7: ='FBREFB #4 (Details)'!Q40 -> 0 | M7: ='FBREFB #4 (Details)'!S40 -> NA | N7: 3.7
A8: Sugar (g) | B8: ='FBREFB #1 (Details)'!C41 -> 0 | C8: ='FBREFB #1 (Details)'!Q41 -> NA | D8: ='FBREFB #1 (Details)'!S41 -> NA | E8: ='FBREFB #2 (Details)'!C41 -> 0 | F8: ='FBREFB #2 (Details)'!Q41 -> NA | G8: ='FBREFB #2 (Details)'!S41 -> NA | H8: ='FBREFB #3 (Details)'!C41 -> 0 | I8: ='FBREFB #3 (Details)'!H41 -> NA | J8: ='FBREFB #3 (Details)'!J41 -> NA | K8: ='FBREFB #4 (Details)'!C41 -> 0 | L8: ='FBREFB #4 (Details)'!Q41 -> NA | M8: ='FBREFB #4 (Details)'!S41 -> NA | N8: 2 | P8: 0-8
A9: Calcium [Ca] (mg) | B9: ='FBREFB #1 (Details)'!C42 -> 0 | C9: ='FBREFB #1 (Details)'!Q42 -> 0 | D9: ='FBREFB #1 (Details)'!S42 -> 0 | E9: ='FBREFB #2 (Details)'!C42 -> 0 | F9: ='FBREFB #2 (Details)'!Q42 -> 0 | G9: ='FBREFB #2 (Details)'!S42 -> 0 | H9: ='FBREFB #3 (Details)'!C42 -> 0 | I9: ='FBREFB #3 (Details)'!H42 -> 0 | J9: ='FBREFB #3 (Details)'!J42 -> 0 | K9: ='FBREFB #4 (Details)'!C42 -> 0 | L9: ='FBREFB #4 (Details)'!Q42 -> 0 | M9: ='FBREFB #4 (Details)'!S42 -> 0 | N9: 381 | O9: 579 | P9: 1400-1960
A10: Iron [Fe] (mg) | B10: ='FBREFB #1 (Details)'!C43 -> 0 | C10: ='FBREFB #1 (Details)'!Q43 -> 0 | D10: ='FBREFB #1 (Details)'!S43 -> 0 | E10: ='FBREFB #2 (Details)'!C43 -> 0 | F10: ='FBREFB #2 (Details)'!Q43 -> 0 | G10: ='FBREFB #2 (Details)'!S43 -> 0 | H10: ='FBREFB #3 (Details)'!C43 -> 0 | I10: ='FBREFB #3 (Details)'!H43 -> 0 | J10: ='FBREFB #3 (Details)'!J43 -> 0 | K10: ='FBREFB #4 (Details)'!C43 -> 0 | L10: ='FBREFB #4 (Details)'!Q43 -> 0 | M10: ='FBREFB #4 (Details)'!S43 -> 0 | N10: 7.8 | O10: 15 | P10: 30-42 | Q10: 12.5
A11: Magnesium [Mg] (mg) | B11: ='FBREFB #1 (Details)'!C44 -> 0 | C11: ='FBREFB #1 (Details)'!Q44 -> 0 | D11: ='FBREFB #1 (Details)'!S44 -> 0 | E11: ='FBREFB #2 (Details)'!C44 -> 0 | F11: ='FBREFB #2 (Details)'!Q44 -> 0 | G11: ='FBREFB #2 (Details)'!S44 -> 0 | H11: ='FBREFB #3 (Details)'!C44 -> 0 | I11: ='FBREFB #3 (Details)'!H44 -> 0 | J11: ='FBREFB #3 (Details)'!J44 -> 0 | K11: ='FBREFB #4 (Details)'!C44 -> 0 | L11: ='FBREFB #4 (Details)'!Q44 -> 0 | M11: ='FBREFB #4 (Details)'!S44 -> 0 | N11: 60.7 | O11: 190 | P11: 200-280
A12: Potassium [K] (mg) | B12: ='FBREFB #1 (Details)'!C45 -> 0 | C12: ='FBREFB #1 (Details)'!Q45 -> 0 | D12: ='FBREFB #1 (Details)'!S45 -> 0 | E12: ='FBREFB #2 (Details)'!C45 -> 0 | F12: ='FBREFB #2 (Details)'!Q45 -> 0 | G12: ='FBREFB #2 (Details)'!S45 -> 0 | H12: ='FBREFB #3 (Details)'!C45 -> 0 | I12: ='FBREFB #3 (Details)'!H45 -> 0 | J12: ='FBREFB #3 (Details)'!J45 -> 0 | K12: ='FBREFB #4 (Details)'!C45 -> 0 | L12: ='FBREFB #4 (Details)'!Q45 -> 0 | M12: ='FBREFB #4 (Details)'!S45 -> 0 | N12: 457 | O12: 1426 | P12: 1000-1400
A13: Sodium [Na] (mg) | B13: ='FBREFB #1 (Details)'!C46 -> 0 | C13: ='FBREFB #1 (Details)'!Q46 -> 0 | D13: ='FBREFB #1 (Details)'!S46 -> 0 | E13: ='FBREFB #2 (Details)'!C46 -> 0 | F13: ='FBREFB #2 (Details)'!Q46 -> 0 | G13: ='FBREFB #2 (Details)'!S46 -> 0 | H13: ='FBREFB #3 (Details)'!C46 -> 0 | I13: ='FBREFB #3 (Details)'!H46 -> 0 | J13: ='FBREFB #3 (Details)'!J46 -> 0 | K13: ='FBREFB #4 (Details)'!C46 -> 0 | L13: ='FBREFB #4 (Details)'!Q46 -> 0 | M13: ='FBREFB #4 (Details)'!S46 -> 0 | N13: 3.7
A14: Zinc [Zn] (mg) | B14: ='FBREFB #1 (Details)'!C47 -> 0 | C14: ='FBREFB #1 (Details)'!Q47 -> 0 | D14: ='FBREFB #1 (Details)'!S47 -> 0 | E14: ='FBREFB #2 (Details)'!C47 -> 0 | F14: ='FBREFB #2 (Details)'!Q47 -> 0 | G14: ='FBREFB #2 (Details)'!S47 -> 0 | H14: ='FBREFB #3 (Details)'!C47 -> 0 | I14: ='FBREFB #3 (Details)'!H47 -> 0 | J14: ='FBREFB #3 (Details)'!J47 -> 0 | K14: ='FBREFB #4 (Details)'!C47 -> 0 | L14: ='FBREFB #4 (Details)'!Q47 -> 0 | M14: ='FBREFB #4 (Details)'!S47 -> 0 | N14: 4.88 | O14: 11 | P14: 40-56 | Q14: 5
A15: Vitamin A RAE (mcg) | B15: ='FBREFB #1 (Details)'!C48 -> 0 | C15: ='FBREFB #1 (Details)'!Q48 -> 0 | D15: ='FBREFB #1 (Details)'!S48 -> 0 | E15: ='FBREFB #2 (Details)'!C48 -> 0 | F15: ='FBREFB #2 (Details)'!Q48 -> 0 | G15: ='FBREFB #2 (Details)'!S48 -> 0 | H15: ='FBREFB #3 (Details)'!C48 -> 0 | I15: ='FBREFB #3 (Details)'!H48 -> 0 | J15: ='FBREFB #3 (Details)'!J48 -> 0 | K15: ='FBREFB #4 (Details)'!C48 -> 0 | L15: ='FBREFB #4 (Details)'!Q48 -> 0 | M15: ='FBREFB #4 (Details)'!S48 -> 0 | N15: 4074 | O15: 714 | P15: 2000-3390 | Q15: 300
A16: Thiamine [Vitamin B1] (mg) | B16: ='FBREFB #1 (Details)'!C49 -> 0 | C16: ='FBREFB #1 (Details)'!Q49 -> 0 | D16: ='FBREFB #1 (Details)'!S49 -> 0 | E16: ='FBREFB #2 (Details)'!C49 -> 0 | F16: ='FBREFB #2 (Details)'!Q49 -> 0 | G16: ='FBREFB #2 (Details)'!S49 -> 0 | H16: ='FBREFB #3 (Details)'!C49 -> 0 | I16: ='FBREFB #3 (Details)'!H49 -> 0 | J16: ='FBREFB #3 (Details)'!J49 -> 0 | K16: ='FBREFB #4 (Details)'!C49 -> 0 | L16: ='FBREFB #4 (Details)'!Q49 -> 0 | M16: ='FBREFB #4 (Details)'!S49 -> 0 | N16: 0.36 | O16: 0.8 | P16: 1.5-3.8
A17: Riboflavin [Vitamin B2] (mg) | B17: ='FBREFB #1 (Details)'!C50 -> 0 | C17: ='FBREFB #1 (Details)'!Q50 -> 0 | D17: ='FBREFB #1 (Details)'!S50 -> 0 | E17: ='FBREFB #2 (Details)'!C50 -> 0 | F17: ='FBREFB #2 (Details)'!Q50 -> 0 | G17: ='FBREFB #2 (Details)'!S50 -> 0 | H17: ='FBREFB #3 (Details)'!C50 -> 0 | I17: ='FBREFB #3 (Details)'!H50 -> 0 | J17: ='FBREFB #3 (Details)'!J50 -> 0 | K17: ='FBREFB #4 (Details)'!C50 -> 0 | L17: ='FBREFB #4 (Details)'!Q50 -> 0 | M17: ='FBREFB #4 (Details)'!S50 -> 0 | N17: 1.2 | O17: 1.2 | P17: 2023-02-03
A18: Niacin Equiv [Vitamin B3] (mg) | B18: ='FBREFB #1 (Details)'!C51 -> 0 | C18: ='FBREFB #1 (Details)'!Q51 -> 0 | D18: ='FBREFB #1 (Details)'!S51 -> 0 | E18: ='FBREFB #2 (Details)'!C51 -> 0 | F18: ='FBREFB #2 (Details)'!Q51 -> 0 | G18: ='FBREFB #2 (Details)'!S51 -> 0 | H18: ='FBREFB #3 (Details)'!C51 -> 0 | I18: ='FBREFB #3 (Details)'!H51 -> 0 | J18: ='FBREFB #3 (Details)'!J51 -> 0 | K18: ='FBREFB #4 (Details)'!C51 -> 0 | L18: ='FBREFB #4 (Details)'!Q51 -> 0 | M18: ='FBREFB #4 (Details)'!S51 -> 0 | N18: 6.75 | O18: 11 | P18: 20-28.8
A19: Folate DFE (mcg) | B19: ='FBREFB #1 (Details)'!C52 -> 0 | C19: ='FBREFB #1 (Details)'!Q52 -> 0 | D19: ='FBREFB #1 (Details)'!S52 -> 0 | E19: ='FBREFB #2 (Details)'!C52 -> 0 | F19: ='FBREFB #2 (Details)'!Q52 -> 0 | G19: ='FBREFB #2 (Details)'!S52 -> 0 | H19: ='FBREFB #3 (Details)'!C52 -> 0 | I19: ='FBREFB #3 (Details)'!H52 -> 0 | J19: ='FBREFB #3 (Details)'!J52 -> 0 | K19: ='FBREFB #4 (Details)'!C52 -> 0 | L19: ='FBREFB #4 (Details)'!Q52 -> 0 | M19: ='FBREFB #4 (Details)'!S52 -> 0 | N19: 156 | O19: 3.1 | P19: 667-1044
A20: Vitamin B12 (mcg) | B20: ='FBREFB #1 (Details)'!C53 -> 0 | C20: ='FBREFB #1 (Details)'!Q53 -> 0 | D20: ='FBREFB #1 (Details)'!S53 -> 0 | E20: ='FBREFB #2 (Details)'!C53 -> 0 | F20: ='FBREFB #2 (Details)'!Q53 -> 0 | G20: ='FBREFB #2 (Details)'!S53 -> 0 | H20: ='FBREFB #3 (Details)'!C53 -> 0 | I20: ='FBREFB #3 (Details)'!H53 -> 0 | J20: ='FBREFB #3 (Details)'!J53 -> 0 | K20: ='FBREFB #4 (Details)'!C53 -> 0 | L20: ='FBREFB #4 (Details)'!Q53 -> 0 | M20: ='FBREFB #4 (Details)'!S53 -> 0 | N20: 1.5 | O20: 3.3 | P20: 2.5-4.2
A21: Vitamin C (mg) | B21: ='FBREFB #1 (Details)'!C54 -> 0 | C21: ='FBREFB #1 (Details)'!Q54 -> 0 | D21: ='FBREFB #1 (Details)'!S54 -> 0 | E21: ='FBREFB #2 (Details)'!C54 -> 0 | F21: ='FBREFB #2 (Details)'!Q54 -> 0 | G21: ='FBREFB #2 (Details)'!S54 -> 0 | H21: ='FBREFB #3 (Details)'!C54 -> 0 | I21: ='FBREFB #3 (Details)'!H54 -> 0 | J21: ='FBREFB #3 (Details)'!J54 -> 0 | K21: ='FBREFB #4 (Details)'!C54 -> 0 | L21: ='FBREFB #4 (Details)'!Q54 -> 0 | M21: ='FBREFB #4 (Details)'!S54 -> 0 | N21: 68 | O21: 145 | P21: 75-169 | Q21: 50
C22: = >30% Daily value per meal | F22: = >30% Daily value per meal | I22: = >30% Daily value per meal | L22: = >30% Daily value per meal | M22: = >30% Daily value per meal
B23: ='3B-4B) Nutr Calc (6-11)'!C40 -> FBR #1 | E23: ='3B-4B) Nutr Calc (6-11)'!D40 -> FBR #2 | H23: ='3B-4B) Nutr Calc (6-11)'!E40 -> FBR #3 | K23: ='3B-4B) Nutr Calc (6-11)'!F40 -> FBR #4
A24: Ingredients: | B24: Quantity (grams) | E24: Quantity (grams) | H24: Quantity (grams) | K24: Quantity (grams)
A25: Millet | B25: =IF('3B-4B) Nutr Calc (6-11)'!C42>0,'3B-4B) Nutr Calc (6-11)'!C42,0) -> 0 | E25: =IF('3B-4B) Nutr Calc (6-11)'!D42>0,'3B-4B) Nutr Calc (6-11)'!D42,0) -> 0 | H25: =IF('3B-4B) Nutr Calc (6-11)'!E42>0,'3B-4B) Nutr Calc (6-11)'!E42,0) -> 0 | K25: =IF('3B-4B) Nutr Calc (6-11)'!F42>0,'3B-4B) Nutr Calc (6-11)'!F42,0) -> 0
A26: ='3B-4B) Nutr Calc (6-11)'!B8 -> 0 | B26: =IF('3B-4B) Nutr Calc (6-11)'!C43>0,'3B-4B) Nutr Calc (6-11)'!C43,0) -> 0 | E26: =IF('3B-4B) Nutr Calc (6-11)'!D43>0,'3B-4B) Nutr Calc (6-11)'!D43,0) -> 0 | H26: =IF('3B-4B) Nutr Calc (6-11)'!E43>0,'3B-4B) Nutr Calc (6-11)'!E43,0) -> 0 | K26: =IF('3B-4B) Nutr Calc (6-11)'!F43>0,'3B-4B) Nutr Calc (6-11)'!F43,0) -> 0
A27: ='3B-4B) Nutr Calc (6-11)'!B9 -> 0 | B27: =IF('3B-4B) Nutr Calc (6-11)'!C44>0,'3B-4B) Nutr Calc (6-11)'!C44,0) -> 0 | E27: =IF('3B-4B) Nutr Calc (6-11)'!D44>0,'3B-4B) Nutr Calc (6-11)'!D44,0) -> 0 | H27: =IF('3B-4B) Nutr Calc (6-11)'!E44>0,'3B-4B) Nutr Calc (6-11)'!E44,0) -> 0 | K27: =IF('3B-4B) Nutr Calc (6-11)'!F44>0,'3B-4B) Nutr Calc (6-11)'!F44,0) -> 0
A28: ='3B-4B) Nutr Calc (6-11)'!B10 -> 0 | B28: =IF('3B-4B) Nutr Calc (6-11)'!C45>0,'3B-4B) Nutr Calc (6-11)'!C45,0) -> 0 | E28: =IF('3B-4B) Nutr Calc (6-11)'!D45>0,'3B-4B) Nutr Calc (6-11)'!D45,0) -> 0 | H28: =IF('3B-4B) Nutr Calc (6-11)'!E45>0,'3B-4B) Nutr Calc (6-11)'!E45,0) -> 0 | K28: =IF('3B-4B) Nutr Calc (6-11)'!F45>0,'3B-4B) Nutr Calc (6-11)'!F45,0) -> 0
A29: ='3B-4B) Nutr Calc (6-11)'!B11 -> 0 | B29: =IF('3B-4B) Nutr Calc (6-11)'!C46>0,'3B-4B) Nutr Calc (6-11)'!C46,0) -> 0 | E29: =IF('3B-4B) Nutr Calc (6-11)'!D46>0,'3B-4B) Nutr Calc (6-11)'!D46,0) -> 0 | H29: =IF('3B-4B) Nutr Calc (6-11)'!E46>0,'3B-4B) Nutr Calc (6-11)'!E46,0) -> 0 | K29: =IF('3B-4B) Nutr Calc (6-11)'!F46>0,'3B-4B) Nutr Calc (6-11)'!F46,0) -> 0
A30: ='3B-4B) Nutr Calc (6-11)'!B12 -> 0 | B30: =IF('3B-4B) Nutr Calc (6-11)'!C47>0,'3B-4B) Nutr Calc (6-11)'!C47,0) -> 0 | E30: =IF('3B-4B) Nutr Calc (6-11)'!D47>0,'3B-4B) Nutr Calc (6-11)'!D47,0) -> 0 | H30: =IF('3B-4B) Nutr Calc (6-11)'!E47>0,'3B-4B) Nutr Calc (6-11)'!E47,0) -> 0 | K30: =IF('3B-4B) Nutr Calc (6-11)'!F47>0,'3B-4B) Nutr Calc (6-11)'!F47,0) -> 0
A31: ='3B-4B) Nutr Calc (6-11)'!B13 -> 0 | B31: =IF('3B-4B) Nutr Calc (6-11)'!C48>0,'3B-4B) Nutr Calc (6-11)'!C48,0) -> 0 | E31: =IF('3B-4B) Nutr Calc (6-11)'!D48>0,'3B-4B) Nutr Calc (6-11)'!D48,0) -> 0 | H31: =IF('3B-4B) Nutr Calc (6-11)'!E48>0,'3B-4B) Nutr Calc (6-11)'!E48,0) -> 0 | K31: =IF('3B-4B) Nutr Calc (6-11)'!F48>0,'3B-4B) Nutr Calc (6-11)'!F48,0) -> 0
A32: ='3B-4B) Nutr Calc (6-11)'!B14 -> 0 | B32: =IF('3B-4B) Nutr Calc (6-11)'!C49>0,'3B-4B) Nutr Calc (6-11)'!C49,0) -> 0 | E32: =IF('3B-4B) Nutr Calc (6-11)'!D49>0,'3B-4B) Nutr Calc (6-11)'!D49,0) -> 0 | H32: =IF('3B-4B) Nutr Calc (6-11)'!E49>0,'3B-4B) Nutr Calc (6-11)'!E49,0) -> 0 | K32: =IF('3B-4B) Nutr Calc (6-11)'!F49>0,'3B-4B) Nutr Calc (6-11)'!F49,0) -> 0
A33: ='3B-4B) Nutr Calc (6-11)'!B15 -> 0 | B33: =IF('3B-4B) Nutr Calc (6-11)'!C50>0,'3B-4B) Nutr Calc (6-11)'!C50,0) -> 0 | E33: =IF('3B-4B) Nutr Calc (6-11)'!D50>0,'3B-4B) Nutr Calc (6-11)'!D50,0) -> 0 | H33: =IF('3B-4B) Nutr Calc (6-11)'!E50>0,'3B-4B) Nutr Calc (6-11)'!E50,0) -> 0 | K33: =IF('3B-4B) Nutr Calc (6-11)'!F50>0,'3B-4B) Nutr Calc (6-11)'!F50,0) -> 0
A34: ='3B-4B) Nutr Calc (6-11)'!B52 -> ADDED SUGAR (g) | B34: =IF('3B-4B) Nutr Calc (6-11)'!C51>0,'3B-4B) Nutr Calc (6-11)'!C51,0) -> 0 | E34: =IF('3B-4B) Nutr Calc (6-11)'!D51>0,'3B-4B) Nutr Calc (6-11)'!D51,0) -> 0 | H34: =IF('3B-4B) Nutr Calc (6-11)'!E51>0,'3B-4B) Nutr Calc (6-11)'!E51,0) -> 0 | K34: =IF('3B-4B) Nutr Calc (6-11)'!F51>0,'3B-4B) Nutr Calc (6-11)'!F51,0) -> 0
A35: ='3B-4B) Nutr Calc (6-11)'!B53 -> ADDED SALT (g) | B35: =IF('3B-4B) Nutr Calc (6-11)'!C52>0,'3B-4B) Nutr Calc (6-11)'!C52,0) -> 0 | E35: =IF('3B-4B) Nutr Calc (6-11)'!D52>0,'3B-4B) Nutr Calc (6-11)'!D52,0) -> 0 | H35: =IF('3B-4B) Nutr Calc (6-11)'!E52>0,'3B-4B) Nutr Calc (6-11)'!E52,0) -> 0 | K35: =IF('3B-4B) Nutr Calc (6-11)'!F52>0,'3B-4B) Nutr Calc (6-11)'!F52,0) -> 0
A36: ='3B-4B) Nutr Calc (6-11)'!B54 -> Micronutrient Powder (per 100g) | B36: =IF('3B-4B) Nutr Calc (6-11)'!C53>0,'3B-4B) Nutr Calc (6-11)'!C53,0) -> 0 | E36: =IF('3B-4B) Nutr Calc (6-11)'!D53>0,'3B-4B) Nutr Calc (6-11)'!D53,0) -> 0 | H36: =IF('3B-4B) Nutr Calc (6-11)'!E53>0,'3B-4B) Nutr Calc (6-11)'!E53,0) -> 0 | K36: =IF('3B-4B) Nutr Calc (6-11)'!F53>0,'3B-4B) Nutr Calc (6-11)'!F53,0) -> 0
A37: TOTAL | B37: =SUM(B25:B36) -> 0 | C37: grams | E37: =SUM(E25:E36) -> 0 | F37: grams | H37: =SUM(H25:H36) -> 0 | I37: grams | K37: =SUM(K25:K36) -> 0 | L37: grams

Sheet 3B-4B) Nutr Calc (12-23)
A1: 12-23 months: Nutrition Calculator (Option 2)
A2: Step 3B: Listing Potential Ingredients List all potential ingredients for each food based recommendation. If two different forms on the same ingredient are used (e.g. fresh, dried), they must be added and analyzed independently. Salt, sugar and multivitamins are added in column M-O in Step 4.
A3: Estimated serving size (per meal) for specific population
A4: 1 | B4: Type approximate meal serving size (in grams) for specific population | C4: 150 | D4: grams of food per meal (serving) | E4: GRAMS OF FOOD REQUIRED, PER DAY RECOMMENDATIONS for CU2: 378-515 grams of food/day at 12-24 months
A5: Ingredients
A6: # | B6: Common Name | C6: Local name (if different) | D6: Scientific Name | E6: Form | F6: Nutrition Composition Source INFOODS link | H6: Hyperlink
A7: 1 | B7: ='3B-4B) Nutr Calc (6-11)'!B7 ->  | C7: ='3B-4B) Nutr Calc (6-11)'!C7 -> Amabele | D7: ='3B-4B) Nutr Calc (6-11)'!D7 -> Pennisetum glaucum | E7: ='3B-4B) Nutr Calc (6-11)'!E7 -> flour | F7: ='3B-4B) Nutr Calc (6-11)'!F7 -> Zambia Food Composition tables | H7: ='3B-4B) Nutr Calc (6-11)'!H7 -> https://www.nfnc.org.zm/download/zambia-food-composition-tables-4th-edition/?wpdmdl=1500&refresh=63d248a846b6e1674725544
A8: 2 | B8: ='3B-4B) Nutr Calc (6-11)'!B8 -> 0 | C8: ='3B-4B) Nutr Calc (6-11)'!C8 -> 0 | D8: ='3B-4B) Nutr Calc (6-11)'!D8 -> 0 | E8: ='3B-4B) Nutr Calc (6-11)'!E8 -> 0 | F8: ='3B-4B) Nutr Calc (6-11)'!F8 -> 0 | H8: ='3B-4B) Nutr Calc (6-11)'!H8 -> 0
A9: 3 | B9: ='3B-4B) Nutr Calc (6-11)'!B9 -> 0 | C9: ='3B-4B) Nutr Calc (6-11)'!C9 -> 0 | D9: ='3B-4B) Nutr Calc (6-11)'!D9 -> 0 | E9: ='3B-4B) Nutr Calc (6-11)'!E9 -> 0 | F9: ='3B-4B) Nutr Calc (6-11)'!F9 -> 0 | H9: ='3B-4B) Nutr Calc (6-11)'!H9 -> 0
A10: 4 | B10: ='3B-4B) Nutr Calc (6-11)'!B10 -> 0 | C10: ='3B-4B) Nutr Calc (6-11)'!C10 -> 0 | D10: ='3B-4B) Nutr Calc (6-11)'!D10 -> 0 | E10: ='3B-4B) Nutr Calc (6-11)'!E10 -> 0 | F10: ='3B-4B) Nutr Calc (6-11)'!F10 -> 0 | H10: ='3B-4B) Nutr Calc (6-11)'!H10 -> 0
A11: 5 | B11: ='3B-4B) Nutr Calc (6-11)'!B11 -> 0 | C11: ='3B-4B) Nutr Calc (6-11)'!C11 -> 0 | D11: ='3B-4B) Nutr Calc (6-11)'!D11 -> 0 | E11: ='3B-4B) Nutr Calc (6-11)'!E11 -> 0 | F11: ='3B-4B) Nutr Calc (6-11)'!F11 -> 0 | H11: ='3B-4B) Nutr Calc (6-11)'!H11 -> 0
A12: 6 | B12: ='3B-4B) Nutr Calc (6-11)'!B12 -> 0 | C12: ='3B-4B) Nutr Calc (6-11)'!C12 -> 0 | D12: ='3B-4B) Nutr Calc (6-11)'!D12 -> 0 | E12: ='3B-4B) Nutr Calc (6-11)'!E12 -> 0 | F12: ='3B-4B) Nutr Calc (6-11)'!F12 -> 0 | H12: ='3B-4B) Nutr Calc (6-11)'!H12 -> 0
A13: 7 | B13: ='3B-4B) Nutr Calc (6-11)'!B13 -> 0 | C13: ='3B-4B) Nutr Calc (6-11)'!C13 -> 0 | D13: ='3B-4B) Nutr Calc (6-11)'!D13 -> 0 | E13: ='3B-4B) Nutr Calc (6-11)'!E13 -> 0 | F13: ='3B-4B) Nutr Calc (6-11)'!F13 -> 0 | H13: ='3B-4B) Nutr Calc (6-11)'!H13 -> 0
A14: 8 | B14: ='3B-4B) Nutr Calc (6-11)'!B14 -> 0 | C14: ='3B-4B) Nutr Calc (6-11)'!C14 -> 0 | D14: ='3B-4B) Nutr Calc (6-11)'!D14 -> 0 | E14: ='3B-4B) Nutr Calc (6-11)'!E14 -> 0 | F14: ='3B-4B) Nutr Calc (6-11)'!F14 -> 0 | H14: ='3B-4B) Nutr Calc (6-11)'!H14 -> 0
A15: 9 | B15: ='3B-4B) Nutr Calc (6-11)'!B15 -> 0 | C15: ='3B-4B) Nutr Calc (6-11)'!C15 -> 0 | D15: ='3B-4B) Nutr Calc (6-11)'!D15 -> 0 | E15: ='3B-4B) Nutr Calc (6-11)'!E15 -> 0 | F15: ='3B-4B) Nutr Calc (6-11)'!F15 -> 0 | H15: ='3B-4B) Nutr Calc (6-11)'!H15 -> 0
A16: 10 | B16: ='3B-4B) Nutr Calc (6-11)'!B16 -> 0 | C16: ='3B-4B) Nutr Calc (6-11)'!C16 -> 0 | D16: ='3B-4B) Nutr Calc (6-11)'!D16 -> 0 | E16: ='3B-4B) Nutr Calc (6-11)'!E16 -> 0 | F16: ='3B-4B) Nutr Calc (6-11)'!F16 -> 0 | H16: ='3B-4B) Nutr Calc (6-11)'!H16 -> 0
A17: Step 4: Enter the Nutrition Composition for each Ingredient. Please enter food composition data exactly as it appears in the closest food composition table (FCT) to your geographic context. All foods must be entered in 100 gram (g) quantities.
A18: Ingredient (per 100 g) | C18: =B7 ->  | D18: =B8 -> 0 | E18: =B9 -> 0 | F18: =B10 -> 0 | G18: =B11 -> 0 | H18: =B12 -> 0 | I18: =B13 -> 0 | J18: =B14 -> 0 | K18: =B15 -> 0 | L18: =B16 -> 0 | M18: Sugar | N18: Salt | O18: Micronutrient Powder (per 100g)
B19: Energy (kcal/calories) | C19: ='3B-4B) Nutr Calc (6-11)'!C19 ->  | D19: ='3B-4B) Nutr Calc (6-11)'!D19 -> 0 | E19: ='3B-4B) Nutr Calc (6-11)'!E19 -> 0 | F19: ='3B-4B) Nutr Calc (6-11)'!F19 -> 0 | G19: ='3B-4B) Nutr Calc (6-11)'!G19 -> 0 | H19: ='3B-4B) Nutr Calc (6-11)'!H19 -> 0 | I19: ='3B-4B) Nutr Calc (6-11)'!I19 -> 0 | J19: ='3B-4B) Nutr Calc (6-11)'!J19 -> 0 | K19: ='3B-4B) Nutr Calc (6-11)'!K19 -> 0 | L19: ='3B-4B) Nutr Calc (6-11)'!L19 -> 0
B20: Protein (g) | C20: ='3B-4B) Nutr Calc (6-11)'!C20 -> 0 | D20: ='3B-4B) Nutr Calc (6-11)'!D20 -> 0 | E20: ='3B-4B) Nutr Calc (6-11)'!E20 -> 0 | F20: ='3B-4B) Nutr Calc (6-11)'!F20 -> 0 | G20: ='3B-4B) Nutr Calc (6-11)'!G20 -> 0 | H20: ='3B-4B) Nutr Calc (6-11)'!H20 -> 0 | I20: ='3B-4B) Nutr Calc (6-11)'!I20 -> 0 | J20: ='3B-4B) Nutr Calc (6-11)'!J20 -> 0 | K20: ='3B-4B) Nutr Calc (6-11)'!K20 -> 0 | L20: ='3B-4B) Nutr Calc (6-11)'!L20 -> 0
B21: Total fat (g) | C21: ='3B-4B) Nutr Calc (6-11)'!C21 -> 0 | D21: ='3B-4B) Nutr Calc (6-11)'!D21 -> 0 | E21: ='3B-4B) Nutr Calc (6-11)'!E21 -> 0 | F21: ='3B-4B) Nutr Calc (6-11)'!F21 -> 0 | G21: ='3B-4B) Nutr Calc (6-11)'!G21 -> 0 | H21: ='3B-4B) Nutr Calc (6-11)'!H21 -> 0 | I21: ='3B-4B) Nutr Calc (6-11)'!I21 -> 0 | J21: ='3B-4B) Nutr Calc (6-11)'!J21 -> 0 | K21: ='3B-4B) Nutr Calc (6-11)'!K21 -> 0 | L21: ='3B-4B) Nutr Calc (6-11)'!L21 -> 0
B22: Carbohydrate (g) | C22: ='3B-4B) Nutr Calc (6-11)'!C22 -> 0 | D22: ='3B-4B) Nutr Calc (6-11)'!D22 -> 0 | E22: ='3B-4B) Nutr Calc (6-11)'!E22 -> 0 | F22: ='3B-4B) Nutr Calc (6-11)'!F22 -> 0 | G22: ='3B-4B) Nutr Calc (6-11)'!G22 -> 0 | H22: ='3B-4B) Nutr Calc (6-11)'!H22 -> 0 | I22: ='3B-4B) Nutr Calc (6-11)'!I22 -> 0 | J22: ='3B-4B) Nutr Calc (6-11)'!J22 -> 0 | K22: ='3B-4B) Nutr Calc (6-11)'!K22 -> 0 | L22: ='3B-4B) Nutr Calc (6-11)'!L22 -> 0
B23: Fiber (g) | C23: ='3B-4B) Nutr Calc (6-11)'!C23 -> 0 | D23: ='3B-4B) Nutr Calc (6-11)'!D23 -> 0 | E23: ='3B-4B) Nutr Calc (6-11)'!E23 -> 0 | F23: ='3B-4B) Nutr Calc (6-11)'!F23 -> 0 | G23: ='3B-4B) Nutr Calc (6-11)'!G23 -> 0 | H23: ='3B-4B) Nutr Calc (6-11)'!H23 -> 0 | I23: ='3B-4B) Nutr Calc (6-11)'!I23 -> 0 | J23: ='3B-4B) Nutr Calc (6-11)'!J23 -> 0 | K23: ='3B-4B) Nutr Calc (6-11)'!K23 -> 0 | L23: ='3B-4B) Nutr Calc (6-11)'!L23 -> 0
B24: Sugar (g) | C24: ='3B-4B) Nutr Calc (6-11)'!C24 -> 0 | D24: ='3B-4B) Nutr Calc (6-11)'!D24 -> 0 | E24: ='3B-4B) Nutr Calc (6-11)'!E24 -> 0 | F24: ='3B-4B) Nutr Calc (6-11)'!F24 -> 0 | G24: ='3B-4B) Nutr Calc (6-11)'!G24 -> 0 | H24: ='3B-4B) Nutr Calc (6-11)'!H24 -> 0 | I24: ='3B-4B) Nutr Calc (6-11)'!I24 -> 0 | J24: ='3B-4B) Nutr Calc (6-11)'!J24 -> 0 | K24: ='3B-4B) Nutr Calc (6-11)'!K24 -> 0 | L24: ='3B-4B) Nutr Calc (6-11)'!L24 -> 0
B25: Calcium [Ca] (mg) | C25: ='3B-4B) Nutr Calc (6-11)'!C25 -> 0 | D25: ='3B-4B) Nutr Calc (6-11)'!D25 -> 0 | E25: ='3B-4B) Nutr Calc (6-11)'!E25 -> 0 | F25: ='3B-4B) Nutr Calc (6-11)'!F25 -> 0 | G25: ='3B-4B) Nutr Calc (6-11)'!G25 -> 0 | H25: ='3B-4B) Nutr Calc (6-11)'!H25 -> 0 | I25: ='3B-4B) Nutr Calc (6-11)'!I25 -> 0 | J25: ='3B-4B) Nutr Calc (6-11)'!J25 -> 0 | K25: ='3B-4B) Nutr Calc (6-11)'!K25 -> 0 | L25: ='3B-4B) Nutr Calc (6-11)'!L25 -> 0
B26: Iron [Fe] (mg) | C26: ='3B-4B) Nutr Calc (6-11)'!C26 -> 0 | D26: ='3B-4B) Nutr Calc (6-11)'!D26 -> 0 | E26: ='3B-4B) Nutr Calc (6-11)'!E26 -> 0 | F26: ='3B-4B) Nutr Calc (6-11)'!F26 -> 0 | G26: ='3B-4B) Nutr Calc (6-11)'!G26 -> 0 | H26: ='3B-4B) Nutr Calc (6-11)'!H26 -> 0 | I26: ='3B-4B) Nutr Calc (6-11)'!I26 -> 0 | J26: ='3B-4B) Nutr Calc (6-11)'!J26 -> 0 | K26: ='3B-4B) Nutr Calc (6-11)'!K26 -> 0 | L26: ='3B-4B) Nutr Calc (6-11)'!L26 -> 0
B27: Magnesium [Mg] (mg) | C27: ='3B-4B) Nutr Calc (6-11)'!C27 -> 0 | D27: ='3B-4B) Nutr Calc (6-11)'!D27 -> 0 | E27: ='3B-4B) Nutr Calc (6-11)'!E27 -> 0 | F27: ='3B-4B) Nutr Calc (6-11)'!F27 -> 0 | G27: ='3B-4B) Nutr Calc (6-11)'!G27 -> 0 | H27: ='3B-4B) Nutr Calc (6-11)'!H27 -> 0 | I27: ='3B-4B) Nutr Calc (6-11)'!I27 -> 0 | J27: ='3B-4B) Nutr Calc (6-11)'!J27 -> 0 | K27: ='3B-4B) Nutr Calc (6-11)'!K27 -> 0 | L27: ='3B-4B) Nutr Calc (6-11)'!L27 -> 0
B28: Potassium [K] (mg) | C28: ='3B-4B) Nutr Calc (6-11)'!C28 -> 0 | D28: ='3B-4B) Nutr Calc (6-11)'!D28 -> 0 | E28: ='3B-4B) Nutr Calc (6-11)'!E28 -> 0 | F28: ='3B-4B) Nutr Calc (6-11)'!F28 -> 0 | G28: ='3B-4B) Nutr Calc (6-11)'!G28 -> 0 | H28: ='3B-4B) Nutr Calc (6-11)'!H28 -> 0 | I28: ='3B-4B) Nutr Calc (6-11)'!I28 -> 0 | J28: ='3B-4B) Nutr Calc (6-11)'!J28 -> 0 | K28: ='3B-4B) Nutr Calc (6-11)'!K28 -> 0 | L28: ='3B-4B) Nutr Calc (6-11)'!L28 -> 0
B29: Sodium [Na] (mg) | C29: ='3B-4B) Nutr Calc (6-11)'!C29 -> 0 | D29: ='3B-4B) Nutr Calc (6-11)'!D29 -> 0 | E29: ='3B-4B) Nutr Calc (6-11)'!E29 -> 0 | F29: ='3B-4B) Nutr Calc (6-11)'!F29 -> 0 | G29: ='3B-4B) Nutr Calc (6-11)'!G29 -> 0 | H29: ='3B-4B) Nutr Calc (6-11)'!H29 -> 0 | I29: ='3B-4B) Nutr Calc (6-11)'!I29 -> 0 | J29: ='3B-4B) Nutr Calc (6-11)'!J29 -> 0 | K29: ='3B-4B) Nutr Calc (6-11)'!K29 -> 0 | L29: ='3B-4B) Nutr Calc (6-11)'!L29 -> 0
B30: Zinc [Zn] (mg) | C30: ='3B-4B) Nutr Calc (6-11)'!C30 -> 0 | D30: ='3B-4B) Nutr Calc (6-11)'!D30 -> 0 | E30: ='3B-4B) Nutr Calc (6-11)'!E30 -> 0 | F30: ='3B-4B) Nutr Calc (6-11)'!F30 -> 0 | G30: ='3B-4B) Nutr Calc (6-11)'!G30 -> 0 | H30: ='3B-4B) Nutr Calc (6-11)'!H30 -> 0 | I30: ='3B-4B) Nutr Calc (6-11)'!I30 -> 0 | J30: ='3B-4B) Nutr Calc (6-11)'!J30 -> 0 | K30: ='3B-4B) Nutr Calc (6-11)'!K30 -> 0 | L30: ='3B-4B) Nutr Calc (6-11)'!L30 -> 0
B31: Vitamin A RAE (mcg) | C31: ='3B-4B) Nutr Calc (6-11)'!C31 -> 0 | D31: ='3B-4B) Nutr Calc (6-11)'!D31 -> 0 | E31: ='3B-4B) Nutr Calc (6-11)'!E31 -> 0 | F31: ='3B-4B) Nutr Calc (6-11)'!F31 -> 0 | G31: ='3B-4B) Nutr Calc (6-11)'!G31 -> 0 | H31: ='3B-4B) Nutr Calc (6-11)'!H31 -> 0 | I31: ='3B-4B) Nutr Calc (6-11)'!I31 -> 0 | J31: ='3B-4B) Nutr Calc (6-11)'!J31 -> 0 | K31: ='3B-4B) Nutr Calc (6-11)'!K31 -> 0 | L31: ='3B-4B) Nutr Calc (6-11)'!L31 -> 0
B32: Thiamine [Vit B1] (mg) | C32: ='3B-4B) Nutr Calc (6-11)'!C32 -> 0 | D32: ='3B-4B) Nutr Calc (6-11)'!D32 -> 0 | E32: ='3B-4B) Nutr Calc (6-11)'!E32 -> 0 | F32: ='3B-4B) Nutr Calc (6-11)'!F32 -> 0 | G32: ='3B-4B) Nutr Calc (6-11)'!G32 -> 0 | H32: ='3B-4B) Nutr Calc (6-11)'!H32 -> 0 | I32: ='3B-4B) Nutr Calc (6-11)'!I32 -> 0 | J32: ='3B-4B) Nutr Calc (6-11)'!J32 -> 0 | K32: ='3B-4B) Nutr Calc (6-11)'!K32 -> 0 | L32: ='3B-4B) Nutr Calc (6-11)'!L32 -> 0
B33: Riboflavin [Vit B2] (mg) | C33: ='3B-4B) Nutr Calc (6-11)'!C33 -> 0 | D33: ='3B-4B) Nutr Calc (6-11)'!D33 -> 0 | E33: ='3B-4B) Nutr Calc (6-11)'!E33 -> 0 | F33: ='3B-4B) Nutr Calc (6-11)'!F33 -> 0 | G33: ='3B-4B) Nutr Calc (6-11)'!G33 -> 0 | H33: ='3B-4B) Nutr Calc (6-11)'!H33 -> 0 | I33: ='3B-4B) Nutr Calc (6-11)'!I33 -> 0 | J33: ='3B-4B) Nutr Calc (6-11)'!J33 -> 0 | K33: ='3B-4B) Nutr Calc (6-11)'!K33 -> 0 | L33: ='3B-4B) Nutr Calc (6-11)'!L33 -> 0
B34: Niacin Equiv [Vit B3] (mg) | C34: ='3B-4B) Nutr Calc (6-11)'!C34 -> 0 | D34: ='3B-4B) Nutr Calc (6-11)'!D34 -> 0 | E34: ='3B-4B) Nutr Calc (6-11)'!E34 -> 0 | F34: ='3B-4B) Nutr Calc (6-11)'!F34 -> 0 | G34: ='3B-4B) Nutr Calc (6-11)'!G34 -> 0 | H34: ='3B-4B) Nutr Calc (6-11)'!H34 -> 0 | I34: ='3B-4B) Nutr Calc (6-11)'!I34 -> 0 | J34: ='3B-4B) Nutr Calc (6-11)'!J34 -> 0 | K34: ='3B-4B) Nutr Calc (6-11)'!K34 -> 0 | L34: ='3B-4B) Nutr Calc (6-11)'!L34 -> 0
B35: Folate DFE (mcg) | C35: ='3B-4B) Nutr Calc (6-11)'!C35 -> 0 | D35: ='3B-4B) Nutr Calc (6-11)'!D35 -> 0 | E35: ='3B-4B) Nutr Calc (6-11)'!E35 -> 0 | F35: ='3B-4B) Nutr Calc (6-11)'!F35 -> 0 | G35: ='3B-4B) Nutr Calc (6-11)'!G35 -> 0 | H35: ='3B-4B) Nutr Calc (6-11)'!H35 -> 0 | I35: ='3B-4B) Nutr Calc (6-11)'!I35 -> 0 | J35: ='3B-4B) Nutr Calc (6-11)'!J35 -> 0 | K35: ='3B-4B) Nutr Calc (6-11)'!K35 -> 0 | L35: ='3B-4B) Nutr Calc (6-11)'!L35 -> 0
B36: Vitamin B12 (mcg) | C36: ='3B-4B) Nutr Calc (6-11)'!C36 -> 0 | D36: ='3B-4B) Nutr Calc (6-11)'!D36 -> 0 | E36: ='3B-4B) Nutr Calc (6-11)'!E36 -> 0 | F36: ='3B-4B) Nutr Calc (6-11)'!F36 -> 0 | G36: ='3B-4B) Nutr Calc (6-11)'!G36 -> 0 | H36: ='3B-4B) Nutr Calc (6-11)'!H36 -> 0 | I36: ='3B-4B) Nutr Calc (6-11)'!I36 -> 0 | J36: ='3B-4B) Nutr Calc (6-11)'!J36 -> 0 | K36: ='3B-4B) Nutr Calc (6-11)'!K36 -> 0 | L36: ='3B-4B) Nutr Calc (6-11)'!L36 -> 0
B37: Vitamin C (mg) | C37: ='3B-4B) Nutr Calc (6-11)'!C37 -> 0 | D37: ='3B-4B) Nutr Calc (6-11)'!D37 -> 0 | E37: ='3B-4B) Nutr Calc (6-11)'!E37 -> 0 | F37: ='3B-4B) Nutr Calc (6-11)'!F37 -> 0 | G37: ='3B-4B) Nutr Calc (6-11)'!G37 -> 0 | H37: ='3B-4B) Nutr Calc (6-11)'!H37 -> 0 | I37: ='3B-4B) Nutr Calc (6-11)'!I37 -> 0 | J37: ='3B-4B) Nutr Calc (6-11)'!J37 -> 0 | K37: ='3B-4B) Nutr Calc (6-11)'!K37 -> 0 | L37: ='3B-4B) Nutr Calc (6-11)'!L37 -> 0
A38: Step 4B: Building Food Based Recommendations (FBR) or Enriched Flour Blends (EFB) Enter the name, select preparation method, and add total quantity of each ingredient (in grams) for up to 4 FBRs or enriched flour blends. Max 10 ingredients per FBR. Sugar, salt, and vitamin mix are added in addition.
A39: FBR or EFB # | C39: 1 | D39: 2 | E39: 3 | F39: 4
A40: Add FBR / Enriched Flour Blend Name | C40: FBR #1 | D40: FBR #2 | E40: FBR #3 | F40: FBR #4 | H40: ESTIMATED SERVING SIZE KEY Average serving size per food group
A41: Select Preparation Method | C41: Boiled (<10 min) | D41: Boiled (<10 min) | E41: Boiled (<10 min) | H41: FOOD GROUP | K41: 2023-12-24
A42: 1 | B42: =B7 ->  | K42: grams | L42: unit
A43: 2 | B43: =B8 -> 0 | H43: 1. Grains, white roots, tubers, plantains (MDD-W) | K43: 60 | L43: 1/3 cup
A44: 3 | B44: 0 | H44: 2. Pulses (beans, peas, lentils) MDD-W | K44: 30 | L44: 1/2 cup
A45: 4 | B45: 0 | H45: 3. Nuts and seeds (MDD-W) | K45: 15 | L45: 1.5 tbsp
A46: 5 | B46: 0 | H46: 4.1 Milk, milk products (MDD-W) | K46: 80 | L46: 1/3 cup
A47: 6 | B47: 0 | H47: 4.2 Powdered milk | K47: 15 | L47: 2 tbsp
A48: 7 | B48: 0 | H48: 4.2 Cheese | K48: 15 | L48: 2.5 tbsp
A49: 8 | B49: 0 | H49: 5. Meat, poultry, fish (MDD-W) | K49: 30 | L49: 3 tbsp
A50: 9 | B50: 0 | H50: 6. Eggs (MDD-W) | K50: 25-50 | L50: 1/2 - 1 egg
A51: 10 | B51: 0 | H51: 7.1 (FRESH) Dark leafy vegetables (MDD-W) | K51: 15 | L51: 1/3 cup
A52: + | B52: ADDED SUGAR (g) | H52: 7.2 (DRIED) Dark leafy vegetables | K52: 8 | L52: 1.5 tbsp
A53: + | B53: ADDED SALT (g) | H53: 8. Vitamin A-rich fruits and vegetables (MDD-W) | K53: 40 | L53: 3 tbsp
A54: + | B54: =O18 -> Micronutrient Powder (per 100g) | H54: 9. Other vegetables (MDD-W) | K54: 40 | L54: 3 tbsp
B55: TOTAL FBR WEIGHT | C55: =_xlfn.CONCAT(SUM(C42:C54)," grams") ->  | D55: =_xlfn.CONCAT(SUM(D42:D54)," grams") ->  | E55: =_xlfn.CONCAT(SUM(E42:E54)," grams") ->  | F55: =_xlfn.CONCAT(SUM(F42:F54)," grams") ->  | H55: 10. Other fruits (MDD-W) | K55: 40 | L55: 3 tbsp
B56: Serving Size for specific population | C56: =_xlfn.CONCAT(C4, " grams") -> 

Sheet 5) Dashboards (12-23mos)
A1: DASHBOARD for 12-23 months | B1: ='3B-4B) Nutr Calc (12-23)'!C40 -> FBR #1 | E1: ='3B-4B) Nutr Calc (12-23)'!D40 -> FBR #2 | H1: ='3B-4B) Nutr Calc (12-23)'!E40 -> FBR #3 | K1: ='3B-4B) Nutr Calc (12-23)'!F40 -> FBR #4 | N1: DAILY RATION PER SERVE (reference)
A2: Nutrients | B2: Prepared FBR / EFB (w/ retention factor) | C2: Children (12-23 months) % DV | D2: Children (6-12 months) % DV | E2: Prepared FBR / EFB (w/ retention factor) | F2: Children (12-23 months) % DV | G2: Children (6-12 months) % DV | H2: Prepared FBR / EFB (w/ retention factor) | I2: Children (12-23 months) % DV | J2: Children (6-12 months) % DV | K2: Prepared FBR / EFB (w/ retention factor) | L2: Children (12-23 months) % DV | M2: Children (6-12 months) % DV | N2: CSB+ with oil | O2: CSB++ | P2: SQ-LNS | Q2: Multiple Micronutrient Powder (5g sachet)
A3: Energy (kcal, or calories) | B3: ='FBREFB #1 (Details)'!C36 ->  | C3: ='FBREFB #1 (Details)'!Q36 ->  | D3: ='FBREFB #1 (Details)'!S36 ->  | E3: ='FBREFB #2 (Details)'!C36 ->  | F3: ='FBREFB #2 (Details)'!Q36 ->  | G3: ='FBREFB #2 (Details)'!S36 ->  | H3: ='FBREFB #3 (Details)'!C36 ->  | I3: ='FBREFB #3 (Details)'!H36 ->  | J3: ='FBREFB #3 (Details)'!J36 ->  | K3: ='FBREFB #4 (Details)'!C36 ->  | L3: ='FBREFB #4 (Details)'!Q36 ->  | M3: ='FBREFB #4 (Details)'!S36 ->  | N3: 601 | O3: 563 | P3: 550-620
A4: Protein (g) | B4: ='FBREFB #1 (Details)'!C37 -> 0 | C4: ='FBREFB #1 (Details)'!Q37 -> 0 | D4: ='FBREFB #1 (Details)'!S37 -> 0 | E4: ='FBREFB #2 (Details)'!C37 -> 0 | F4: ='FBREFB #2 (Details)'!Q37 -> 0 | G4: ='FBREFB #2 (Details)'!S37 -> 0 | H4: ='FBREFB #3 (Details)'!C37 -> 0 | I4: ='FBREFB #3 (Details)'!H37 -> 0 | J4: ='FBREFB #3 (Details)'!J37 -> 0 | K4: ='FBREFB #4 (Details)'!C37 -> 0 | L4: ='FBREFB #4 (Details)'!Q37 -> 0 | M4: ='FBREFB #4 (Details)'!S37 -> 0 | N4: 13.3 | O4: 21 | P4: 2023-12-16
A5: Total fat (g) | B5: ='FBREFB #1 (Details)'!C38 -> 0 | C5: ='FBREFB #1 (Details)'!Q38 -> 0 | D5: ='FBREFB #1 (Details)'!S38 -> 0 | E5: ='FBREFB #2 (Details)'!C38 -> 0 | F5: ='FBREFB #2 (Details)'!Q38 -> 0 | G5: ='FBREFB #2 (Details)'!S38 -> 0 | H5: ='FBREFB #3 (Details)'!C38 -> 0 | I5: ='FBREFB #3 (Details)'!H38 -> 0 | J5: ='FBREFB #3 (Details)'!J38 -> 0 | K5: ='FBREFB #4 (Details)'!C38 -> 0 | L5: ='FBREFB #4 (Details)'!Q38 -> 0 | M5: ='FBREFB #4 (Details)'!S38 -> 0 | N5: 26.5 | O5: 13 | P5: 40-53
A6: Carbohydrate (g) | B6: ='FBREFB #1 (Details)'!C39 -> 0 | C6: ='FBREFB #1 (Details)'!Q39 -> 0 | D6: ='FBREFB #1 (Details)'!S39 -> 0 | E6: ='FBREFB #2 (Details)'!C39 -> 0 | F6: ='FBREFB #2 (Details)'!Q39 -> 0 | G6: ='FBREFB #2 (Details)'!S39 -> 0 | H6: ='FBREFB #3 (Details)'!C39 -> 0 | I6: ='FBREFB #3 (Details)'!H39 -> 0 | J6: ='FBREFB #3 (Details)'!J39 -> 0 | K6: ='FBREFB #4 (Details)'!C39 -> 0 | L6: ='FBREFB #4 (Details)'!Q39 -> 0 | M6: ='FBREFB #4 (Details)'!S39 -> 0 | N6: 51 | P6: 0-8
A7: Fiber (g) | B7: ='FBREFB #1 (Details)'!C40 -> 0 | C7: ='FBREFB #1 (Details)'!Q40 -> 0 | D7: ='FBREFB #1 (Details)'!S40 -> NA | E7: ='FBREFB #2 (Details)'!C40 -> 0 | F7: ='FBREFB #2 (Details)'!Q40 -> 0 | G7: ='FBREFB #2 (Details)'!S40 -> NA | H7: ='FBREFB #3 (Details)'!C40 -> 0 | I7: ='FBREFB #3 (Details)'!H40 -> 0 | J7: ='FBREFB #3 (Details)'!J40 -> NA | K7: ='FBREFB #4 (Details)'!C40 -> 0 | L7: ='FBREFB #4 (Details)'!Q40 -> 0 | M7: ='FBREFB #4 (Details)'!S40 -> NA | N7: 3.7
A8: Sugar (g) | B8: ='FBREFB #1 (Details)'!C41 -> 0 | C8: ='FBREFB #1 (Details)'!Q41 -> NA | D8: ='FBREFB #1 (Details)'!S41 -> NA | E8: ='FBREFB #2 (Details)'!C41 -> 0 | F8: ='FBREFB #2 (Details)'!Q41 -> NA | G8: ='FBREFB #2 (Details)'!S41 -> NA | H8: ='FBREFB #3 (Details)'!C41 -> 0 | I8: ='FBREFB #3 (Details)'!H41 -> NA | J8: ='FBREFB #3 (Details)'!J41 -> NA | K8: ='FBREFB #4 (Details)'!C41 -> 0 | L8: ='FBREFB #4 (Details)'!Q41 -> NA | M8: ='FBREFB #4 (Details)'!S41 -> NA | N8: 2 | P8: 0-8
A9: Calcium [Ca] (mg) | B9: ='FBREFB #1 (Details)'!C42 -> 0 | C9: ='FBREFB #1 (Details)'!Q42 -> 0 | D9: ='FBREFB #1 (Details)'!S42 -> 0 | E9: ='FBREFB #2 (Details)'!C42 -> 0 | F9: ='FBREFB #2 (Details)'!Q42 -> 0 | G9: ='FBREFB #2 (Details)'!S42 -> 0 | H9: ='FBREFB #3 (Details)'!C42 -> 0 | I9: ='FBREFB #3 (Details)'!H42 -> 0 | J9: ='FBREFB #3 (Details)'!J42 -> 0 | K9: ='FBREFB #4 (Details)'!C42 -> 0 | L9: ='FBREFB #4 (Details)'!Q42 -> 0 | M9: ='FBREFB #4 (Details)'!S42 -> 0 | N9: 381 | O9: 579 | P9: 1400-1960
A10: Iron [Fe] (mg) | B10: ='FBREFB #1 (Details)'!C43 -> 0 | C10: ='FBREFB #1 (Details)'!Q43 -> 0 | D10: ='FBREFB #1 (Details)'!S43 -> 0 | E10: ='FBREFB #2 (Details)'!C43 -> 0 | F10: ='FBREFB #2 (Details)'!Q43 -> 0 | G10: ='FBREFB #2 (Details)'!S43 -> 0 | H10: ='FBREFB #3 (Details)'!C43 -> 0 | I10: ='FBREFB #3 (Details)'!H43 -> 0 | J10: ='FBREFB #3 (Details)'!J43 -> 0 | K10: ='FBREFB #4 (Details)'!C43 -> 0 | L10: ='FBREFB #4 (Details)'!Q43 -> 0 | M10: ='FBREFB #4 (Details)'!S43 -> 0 | N10: 7.8 | O10: 15 | P10: 30-42 | Q10: 12.5
A11: Magnesium [Mg] (mg) | B11: ='FBREFB #1 (Details)'!C44 -> 0 | C11: ='FBREFB #1 (Details)'!Q44 -> 0 | D11: ='FBREFB #1 (Details)'!S44 -> 0 | E11: ='FBREFB #2 (Details)'!C44 -> 0 | F11: ='FBREFB #2 (Details)'!Q44 -> 0 | G11: ='FBREFB #2 (Details)'!S44 -> 0 | H11: ='FBREFB #3 (Details)'!C44 -> 0 | I11: ='FBREFB #3 (Details)'!H44 -> 0 | J11: ='FBREFB #3 (Details)'!J44 -> 0 | K11: ='FBREFB #4 (Details)'!C44 -> 0 | L11: ='FBREFB #4 (Details)'!Q44 -> 0 | M11: ='FBREFB #4 (Details)'!S44 -> 0 | N11: 60.7 | O11: 190 | P11: 200-280
A12: Potassium [K] (mg) | B12: ='FBREFB #1 (Details)'!C45 -> 0 | C12: ='FBREFB #1 (Details)'!Q45 -> 0 | D12: ='FBREFB #1 (Details)'!S45 -> 0 | E12: ='FBREFB #2 (Details)'!C45 -> 0 | F12: ='FBREFB #2 (Details)'!Q45 -> 0 | G12: ='FBREFB #2 (Details)'!S45 -> 0 | H12: ='FBREFB #3 (Details)'!C45 -> 0 | I12: ='FBREFB #3 (Details)'!H45 -> 0 | J12: ='FBREFB #3 (Details)'!J45 -> 0 | K12: ='FBREFB #4 (Details)'!C45 -> 0 | L12: ='FBREFB #4 (Details)'!Q45 -> 0 | M12: ='FBREFB #4 (Details)'!S45 -> 0 | N12: 457 | O12: 1426 | P12: 1000-1400
A13: Sodium [Na] (mg) | B13: ='FBREFB #1 (Details)'!C46 -> 0 | C13: ='FBREFB #1 (Details)'!Q46 -> 0 | D13: ='FBREFB #1 (Details)'!S46 -> 0 | E13: ='FBREFB #2 (Details)'!C46 -> 0 | F13: ='FBREFB #2 (Details)'!Q46 -> 0 | G13: ='FBREFB #2 (Details)'!S46 -> 0 | H13: ='FBREFB #3 (Details)'!C46 -> 0 | I13: ='FBREFB #3 (Details)'!H46 -> 0 | J13: ='FBREFB #3 (Details)'!J46 -> 0 | K13: ='FBREFB #4 (Details)'!C46 -> 0 | L13: ='FBREFB #4 (Details)'!Q46 -> 0 | M13: ='FBREFB #4 (Details)'!S46 -> 0 | N13: 3.7
A14: Zinc [Zn] (mg) | B14: ='FBREFB #1 (Details)'!C47 -> 0 | C14: ='FBREFB #1 (Details)'!Q47 -> 0 | D14: ='FBREFB #1 (Details)'!S47 -> 0 | E14: ='FBREFB #2 (Details)'!C47 -> 0 | F14: ='FBREFB #2 (Details)'!Q47 -> 0 | G14: ='FBREFB #2 (Details)'!S47 -> 0 | H14: ='FBREFB #3 (Details)'!C47 -> 0 | I14: ='FBREFB #3 (Details)'!H47 -> 0 | J14: ='FBREFB #3 (Details)'!J47 -> 0 | K14: ='FBREFB #4 (Details)'!C47 -> 0 | L14: ='FBREFB #4 (Details)'!Q47 -> 0 | M14: ='FBREFB #4 (Details)'!S47 -> 0 | N14: 4.88 | O14: 11 | P14: 40-56 | Q14: 5
A15: Vitamin A RAE (mcg) | B15: ='FBREFB #1 (Details)'!C48 -> 0 | C15: ='FBREFB #1 (Details)'!Q48 -> 0 | D15: ='FBREFB #1 (Details)'!S48 -> 0 | E15: ='FBREFB #2 (Details)'!C48 -> 0 | F15: ='FBREFB #2 (Details)'!Q48 -> 0 | G15: ='FBREFB #2 (Details)'!S48 -> 0 | H15: ='FBREFB #3 (Details)'!C48 -> 0 | I15: ='FBREFB #3 (Details)'!H48 -> 0 | J15: ='FBREFB #3 (Details)'!J48 -> 0 | K15: ='FBREFB #4 (Details)'!C48 -> 0 | L15: ='FBREFB #4 (Details)'!Q48 -> 0 | M15: ='FBREFB #4 (Details)'!S48 -> 0 | N15: 4074 | O15: 714 | P15: 2000-3390 | Q15: 300
A16: Thiamine [Vitamin B1] (mg) | B16: ='FBREFB #1 (Details)'!C49 -> 0 | C16: ='FBREFB #1 (Details)'!Q49 -> 0 | D16: ='FBREFB #1 (Details)'!S49 -> 0 | E16: ='FBREFB #2 (Details)'!C49 -> 0 | F16: ='FBREFB #2 (Details)'!Q49 -> 0 | G16: ='FBREFB #2 (Details)'!S49 -> 0 | H16: ='FBREFB #3 (Details)'!C49 -> 0 | I16: ='FBREFB #3 (Details)'!H49 -> 0 | J16: ='FBREFB #3 (Details)'!J49 -> 0 | K16: ='FBREFB #4 (Details)'!C49 -> 0 | L16: ='FBREFB #4 (Details)'!Q49 -> 0 | M16: ='FBREFB #4 (Details)'!S49 -> 0 | N16: 0.36 | O16: 0.8 | P16: 1.5-3.8
A17: Riboflavin [Vitamin B2] (mg) | B17: ='FBREFB #1 (Details)'!C50 -> 0 | C17: ='FBREFB #1 (Details)'!Q50 -> 0 | D17: ='FBREFB #1 (Details)'!S50 -> 0 | E17: ='FBREFB #2 (Details)'!C50 -> 0 | F17: ='FBREFB #2 (Details)'!Q50 -> 0 | G17: ='FBREFB #2 (Details)'!S50 -> 0 | H17: ='FBREFB #3 (Details)'!C50 -> 0 | I17: ='FBREFB #3 (Details)'!H50 -> 0 | J17: ='FBREFB #3 (Details)'!J50 -> 0 | K17: ='FBREFB #4 (Details)'!C50 -> 0 | L17: ='FBREFB #4 (Details)'!Q50 -> 0 | M17: ='FBREFB #4 (Details)'!S50 -> 0 | N17: 1.2 | O17: 1.2 | P17: 2023-02-03
A18: Niacin Equiv [Vitamin B3] (mg) | B18: ='FBREFB #1 (Details)'!C51 -> 0 | C18: ='FBREFB #1 (Details)'!Q51 -> 0 | D18: ='FBREFB #1 (Details)'!S51 -> 0 | E18: ='FBREFB #2 (Details)'!C51 -> 0 | F18: ='FBREFB #2 (Details)'!Q51 -> 0 | G18: ='FBREFB #2 (Details)'!S51 -> 0 | H18: ='FBREFB #3 (Details)'!C51 -> 0 | I18: ='FBREFB #3 (Details)'!H51 -> 0 | J18: ='FBREFB #3 (Details)'!J51 -> 0 | K18: ='FBREFB #4 (Details)'!C51 -> 0 | L18: ='FBREFB #4 (Details)'!Q51 -> 0 | M18: ='FBREFB #4 (Details)'!S51 -> 0 | N18: 6.75 | O18: 11 | P18: 20-28.8
A19: Folate DFE (mcg) | B19: ='FBREFB #1 (Details)'!C52 -> 0 | C19: ='FBREFB #1 (Details)'!Q52 -> 0 | D19: ='FBREFB #1 (Details)'!S52 -> 0 | E19: ='FBREFB #2 (Details)'!C52 -> 0 | F19: ='FBREFB #2 (Details)'!Q52 -> 0 | G19: ='FBREFB #2 (Details)'!S52 -> 0 | H19: ='FBREFB #3 (Details)'!C52 -> 0 | I19: ='FBREFB #3 (Details)'!H52 -> 0 | J19: ='FBREFB #3 (Details)'!J52 -> 0 | K19: ='FBREFB #4 (Details)'!C52 -> 0 | L19: ='FBREFB #4 (Details)'!Q52 -> 0 | M19: ='FBREFB #4 (Details)'!S52 -> 0 | N19: 156 | O19: 3.1 | P19: 667-1044
A20: Vitamin B12 (mcg) | B20: ='FBREFB #1 (Details)'!C53 -> 0 | C20: ='FBREFB #1 (Details)'!Q53 -> 0 | D20: ='FBREFB #1 (Details)'!S53 -> 0 | E20: ='FBREFB #2 (Details)'!C53 -> 0 | F20: ='FBREFB #2 (Details)'!Q53 -> 0 | G20: ='FBREFB #2 (Details)'!S53 -> 0 | H20: ='FBREFB #3 (Details)'!C53 -> 0 | I20: ='FBREFB #3 (Details)'!H53 -> 0 | J20: ='FBREFB #3 (Details)'!J53 -> 0 | K20: ='FBREFB #4 (Details)'!C53 -> 0 | L20: ='FBREFB #4 (Details)'!Q53 -> 0 | M20: ='FBREFB #4 (Details)'!S53 -> 0 | N20: 1.5 | O20: 3.3 | P20: 2.5-4.2
A21: Vitamin C (mg) | B21: ='FBREFB #1 (Details)'!C54 -> 0 | C21: ='FBREFB #1 (Details)'!Q54 -> 0 | D21: ='FBREFB #1 (Details)'!S54 -> 0 | E21: ='FBREFB #2 (Details)'!C54 -> 0 | F21: ='FBREFB #2 (Details)'!Q54 -> 0 | G21: ='FBREFB #2 (Details)'!S54 -> 0 | H21: ='FBREFB #3 (Details)'!C54 -> 0 | I21: ='FBREFB #3 (Details)'!H54 -> 0 | J21: ='FBREFB #3 (Details)'!J54 -> 0 | K21: ='FBREFB #4 (Details)'!C54 -> 0 | L21: ='FBREFB #4 (Details)'!Q54 -> 0 | M21: ='FBREFB #4 (Details)'!S54 -> 0 | N21: 68 | O21: 145 | P21: 75-169 | Q21: 50
C22: = >30% Daily value per meal | F22: = >30% Daily value per meal | I22: = >30% Daily value per meal | L22: = >30% Daily value per meal
B23: ='3B-4B) Nutr Calc (12-23)'!C40 -> FBR #1 | E23: ='3B-4B) Nutr Calc (12-23)'!D40 -> FBR #2 | H23: ='3B-4B) Nutr Calc (12-23)'!E40 -> FBR #3 | K23: ='3B-4B) Nutr Calc (12-23)'!F40 -> FBR #4
A24: Ingredients: | B24: Quantity (grams) | E24: Quantity (grams) | H24: Quantity (grams) | K24: Quantity (grams)
A25: ='3B-4B) Nutr Calc (12-23)'!B7 ->  | B25: =IF('3B-4B) Nutr Calc (12-23)'!C42>0,'3B-4B) Nutr Calc (12-23)'!C42,0) -> 0 | E25: =IF('3B-4B) Nutr Calc (12-23)'!D42>0,'3B-4B) Nutr Calc (12-23)'!D42,0) -> 0 | H25: =IF('3B-4B) Nutr Calc (12-23)'!E42>0,'3B-4B) Nutr Calc (12-23)'!E42,0) -> 0 | K25: =IF('3B-4B) Nutr Calc (12-23)'!F42>0,'3B-4B) Nutr Calc (12-23)'!F42,0) -> 0
A26: ='3B-4B) Nutr Calc (12-23)'!B8 -> 0 | B26: =IF('3B-4B) Nutr Calc (12-23)'!C43>0,'3B-4B) Nutr Calc (12-23)'!C43,0) -> 0 | E26: =IF('3B-4B) Nutr Calc (12-23)'!D43>0,'3B-4B) Nutr Calc (12-23)'!D43,0) -> 0 | H26: =IF('3B-4B) Nutr Calc (12-23)'!E43>0,'3B-4B) Nutr Calc (12-23)'!E43,0) -> 0 | K26: =IF('3B-4B) Nutr Calc (12-23)'!F43>0,'3B-4B) Nutr Calc (12-23)'!F43,0) -> 0
A27: ='3B-4B) Nutr Calc (12-23)'!B9 -> 0 | B27: =IF('3B-4B) Nutr Calc (12-23)'!C44>0,'3B-4B) Nutr Calc (12-23)'!C44,0) -> 0 | E27: =IF('3B-4B) Nutr Calc (12-23)'!D44>0,'3B-4B) Nutr Calc (12-23)'!D44,0) -> 0 | H27: =IF('3B-4B) Nutr Calc (12-23)'!E44>0,'3B-4B) Nutr Calc (12-23)'!E44,0) -> 0 | K27: =IF('3B-4B) Nutr Calc (12-23)'!F44>0,'3B-4B) Nutr Calc (12-23)'!F44,0) -> 0
A28: ='3B-4B) Nutr Calc (12-23)'!B10 -> 0 | B28: =IF('3B-4B) Nutr Calc (12-23)'!C45>0,'3B-4B) Nutr Calc (12-23)'!C45,0) -> 0 | E28: =IF('3B-4B) Nutr Calc (12-23)'!D45>0,'3B-4B) Nutr Calc (12-23)'!D45,0) -> 0 | H28: =IF('3B-4B) Nutr Calc (12-23)'!E45>0,'3B-4B) Nutr Calc (12-23)'!E45,0) -> 0 | K28: =IF('3B-4B) Nutr Calc (12-23)'!F45>0,'3B-4B) Nutr Calc (12-23)'!F45,0) -> 0
A29: ='3B-4B) Nutr Calc (12-23)'!B11 -> 0 | B29: =IF('3B-4B) Nutr Calc (12-23)'!C46>0,'3B-4B) Nutr Calc (12-23)'!C46,0) -> 0 | E29: =IF('3B-4B) Nutr Calc (12-23)'!D46>0,'3B-4B) Nutr Calc (12-23)'!D46,0) -> 0 | H29: =IF('3B-4B) Nutr Calc (12-23)'!E46>0,'3B-4B) Nutr Calc (12-23)'!E46,0) -> 0 | K29: =IF('3B-4B) Nutr Calc (12-23)'!F46>0,'3B-4B) Nutr Calc (12-23)'!F46,0) -> 0
A30: ='3B-4B) Nutr Calc (12-23)'!B12 -> 0 | B30: =IF('3B-4B) Nutr Calc (12-23)'!C47>0,'3B-4B) Nutr Calc (12-23)'!C47,0) -> 0 | E30: =IF('3B-4B) Nutr Calc (12-23)'!D47>0,'3B-4B) Nutr Calc (12-23)'!D47,0) -> 0 | H30: =IF('3B-4B) Nutr Calc (12-23)'!E47>0,'3B-4B) Nutr Calc (12-23)'!E47,0) -> 0 | K30: =IF('3B-4B) Nutr Calc (12-23)'!F47>0,'3B-4B) Nutr Calc (12-23)'!F47,0) -> 0
A31: ='3B-4B) Nutr Calc (12-23)'!B13 -> 0 | B31: =IF('3B-4B) Nutr Calc (12-23)'!C48>0,'3B-4B) Nutr Calc (12-23)'!C48,0) -> 0 | E31: =IF('3B-4B) Nutr Calc (12-23)'!D48>0,'3B-4B) Nutr Calc (12-23)'!D48,0) -> 0 | H31: =IF('3B-4B) Nutr Calc (12-23)'!E48>0,'3B-4B) Nutr Calc (12-23)'!E48,0) -> 0 | K31: =IF('3B-4B) Nutr Calc (12-23)'!F48>0,'3B-4B) Nutr Calc (12-23)'!F48,0) -> 0
A32: ='3B-4B) Nutr Calc (12-23)'!B14 -> 0 | B32: =IF('3B-4B) Nutr Calc (12-23)'!C49>0,'3B-4B) Nutr Calc (12-23)'!C49,0) -> 0 | E32: =IF('3B-4B) Nutr Calc (12-23)'!D49>0,'3B-4B) Nutr Calc (12-23)'!D49,0) -> 0 | H32: =IF('3B-4B) Nutr Calc (12-23)'!E49>0,'3B-4B) Nutr Calc (12-23)'!E49,0) -> 0 | K32: =IF('3B-4B) Nutr Calc (12-23)'!F49>0,'3B-4B) Nutr Calc (12-23)'!F49,0) -> 0
A33: ='3B-4B) Nutr Calc (12-23)'!B15 -> 0 | B33: =IF('3B-4B) Nutr Calc (12-23)'!C50>0,'3B-4B) Nutr Calc (12-23)'!C50,0) -> 0 | E33: =IF('3B-4B) Nutr Calc (12-23)'!D50>0,'3B-4B) Nutr Calc (12-23)'!D50,0) -> 0 | H33: =IF('3B-4B) Nutr Calc (12-23)'!E50>0,'3B-4B) Nutr Calc (12-23)'!E50,0) -> 0 | K33: =IF('3B-4B) Nutr Calc (12-23)'!F50>0,'3B-4B) Nutr Calc (12-23)'!F50,0) -> 0
A34: ='3B-4B) Nutr Calc (12-23)'!B52 -> ADDED SUGAR (g) | B34: =IF('3B-4B) Nutr Calc (12-23)'!C51>0,'3B-4B) Nutr Calc (12-23)'!C51,0) -> 0 | E34: =IF('3B-4B) Nutr Calc (12-23)'!D51>0,'3B-4B) Nutr Calc (12-23)'!D51,0) -> 0 | H34: =IF('3B-4B) Nutr Calc (12-23)'!E51>0,'3B-4B) Nutr Calc (12-23)'!E51,0) -> 0 | K34: =IF('3B-4B) Nutr Calc (12-23)'!F51>0,'3B-4B) Nutr Calc (12-23)'!F51,0) -> 0
A35: ='3B-4B) Nutr Calc (12-23)'!B53 -> ADDED SALT (g) | B35: =IF('3B-4B) Nutr Calc (12-23)'!C52>0,'3B-4B) Nutr Calc (12-23)'!C52,0) -> 0 | E35: =IF('3B-4B) Nutr Calc (12-23)'!D52>0,'3B-4B) Nutr Calc (12-23)'!D52,0) -> 0 | H35: =IF('3B-4B) Nutr Calc (12-23)'!E52>0,'3B-4B) Nutr Calc (12-23)'!E52,0) -> 0 | K35: =IF('3B-4B) Nutr Calc (12-23)'!F52>0,'3B-4B) Nutr Calc (12-23)'!F52,0) -> 0
A36: ='3B-4B) Nutr Calc (12-23)'!B54 -> Micronutrient Powder (per 100g) | B36: =IF('3B-4B) Nutr Calc (12-23)'!C53>0,'3B-4B) Nutr Calc (12-23)'!C53,0) -> 0 | E36: =IF('3B-4B) Nutr Calc (12-23)'!D53>0,'3B-4B) Nutr Calc (12-23)'!D53,0) -> 0 | H36: =IF('3B-4B) Nutr Calc (12-23)'!E53>0,'3B-4B) Nutr Calc (12-23)'!E53,0) -> 0 | K36: =IF('3B-4B) Nutr Calc (12-23)'!F53>0,'3B-4B) Nutr Calc (12-23)'!F53,0) -> 0
A37: TOTAL | B37: =SUM(B25:B36) -> 0 | C37: grams | E37: =SUM(E25:E36) -> 0 | F37: grams | H37: =SUM(H25:H36) -> 0 | I37: grams | K37: =SUM(K25:K36) -> 0 | L37: grams

Sheet 3B-4B) Nutr Calc (2-5yo)
A1: 2-5 years old: Nutrition Calculator (Option 2)
A2: Step 3B: Listing Potential Ingredients List all potential ingredients for each food based recommendation. If two different forms on the same ingredient are used (e.g. fresh, dried), they must be added and analyzed independently. Salt, sugar and multivitamins are added in column M-O in Step 4.
A3: Estimated serving size (per meal) for specific population
A4: 1 | B4: Type approximate meal serving size (in grams) for specific population | C4: 100 | D4: grams of food per meal (serving) | E4: Most MAM programs aim for a ration of 270 grams per day, which is the equivalent of three meals per day @90 grams per meal.
A5: Ingredients
A6: # | B6: Common Name | C6: Local name (if different) | D6: Scientific Name | E6: Form | F6: Nutrition Composition Source INFOODS link | H6: Hyperlink
A7: 1 | B7: ='3B-4B) Nutr Calc (6-11)'!B7 ->  | C7: ='3B-4B) Nutr Calc (6-11)'!C7 -> Amabele | D7: ='3B-4B) Nutr Calc (6-11)'!D7 -> Pennisetum glaucum | E7: ='3B-4B) Nutr Calc (6-11)'!E7 -> flour | F7: ='3B-4B) Nutr Calc (6-11)'!F7 -> Zambia Food Composition tables | H7: ='3B-4B) Nutr Calc (6-11)'!H7 -> https://www.nfnc.org.zm/download/zambia-food-composition-tables-4th-edition/?wpdmdl=1500&refresh=63d248a846b6e1674725544
A8: 2 | B8: ='3B-4B) Nutr Calc (6-11)'!B8 -> 0 | C8: ='3B-4B) Nutr Calc (6-11)'!C8 -> 0 | D8: ='3B-4B) Nutr Calc (6-11)'!D8 -> 0 | E8: ='3B-4B) Nutr Calc (6-11)'!E8 -> 0 | F8: ='3B-4B) Nutr Calc (6-11)'!F8 -> 0 | H8: ='3B-4B) Nutr Calc (6-11)'!H8 -> 0
A9: 3 | B9: ='3B-4B) Nutr Calc (6-11)'!B9 -> 0 | C9: ='3B-4B) Nutr Calc (6-11)'!C9 -> 0 | D9: ='3B-4B) Nutr Calc (6-11)'!D9 -> 0 | E9: ='3B-4B) Nutr Calc (6-11)'!E9 -> 0 | F9: ='3B-4B) Nutr Calc (6-11)'!F9 -> 0 | H9: ='3B-4B) Nutr Calc (6-11)'!H9 -> 0
A10: 4 | B10: ='3B-4B) Nutr Calc (6-11)'!B10 -> 0 | C10: ='3B-4B) Nutr Calc (6-11)'!C10 -> 0 | D10: ='3B-4B) Nutr Calc (6-11)'!D10 -> 0 | E10: ='3B-4B) Nutr Calc (6-11)'!E10 -> 0 | F10: ='3B-4B) Nutr Calc (6-11)'!F10 -> 0 | H10: ='3B-4B) Nutr Calc (6-11)'!H10 -> 0
A11: 5 | B11: ='3B-4B) Nutr Calc (6-11)'!B11 -> 0 | C11: ='3B-4B) Nutr Calc (6-11)'!C11 -> 0 | D11: ='3B-4B) Nutr Calc (6-11)'!D11 -> 0 | E11: ='3B-4B) Nutr Calc (6-11)'!E11 -> 0 | F11: ='3B-4B) Nutr Calc (6-11)'!F11 -> 0 | H11: ='3B-4B) Nutr Calc (6-11)'!H11 -> 0
A12: 6 | B12: ='3B-4B) Nutr Calc (6-11)'!B12 -> 0 | C12: ='3B-4B) Nutr Calc (6-11)'!C12 -> 0 | D12: ='3B-4B) Nutr Calc (6-11)'!D12 -> 0 | E12: ='3B-4B) Nutr Calc (6-11)'!E12 -> 0 | F12: ='3B-4B) Nutr Calc (6-11)'!F12 -> 0 | H12: ='3B-4B) Nutr Calc (6-11)'!H12 -> 0
A13: 7 | B13: ='3B-4B) Nutr Calc (6-11)'!B13 -> 0 | C13: ='3B-4B) Nutr Calc (6-11)'!C13 -> 0 | D13: ='3B-4B) Nutr Calc (6-11)'!D13 -> 0 | E13: ='3B-4B) Nutr Calc (6-11)'!E13 -> 0 | F13: ='3B-4B) Nutr Calc (6-11)'!F13 -> 0 | H13: ='3B-4B) Nutr Calc (6-11)'!H13 -> 0
A14: 8 | B14: ='3B-4B) Nutr Calc (6-11)'!B14 -> 0 | C14: ='3B-4B) Nutr Calc (6-11)'!C14 -> 0 | D14: ='3B-4B) Nutr Calc (6-11)'!D14 -> 0 | E14: ='3B-4B) Nutr Calc (6-11)'!E14 -> 0 | F14: ='3B-4B) Nutr Calc (6-11)'!F14 -> 0 | H14: ='3B-4B) Nutr Calc (6-11)'!H14 -> 0
A15: 9 | B15: ='3B-4B) Nutr Calc (6-11)'!B15 -> 0 | C15: ='3B-4B) Nutr Calc (6-11)'!C15 -> 0 | D15: ='3B-4B) Nutr Calc (6-11)'!D15 -> 0 | E15: ='3B-4B) Nutr Calc (6-11)'!E15 -> 0 | F15: ='3B-4B) Nutr Calc (6-11)'!F15 -> 0 | H15: ='3B-4B) Nutr Calc (6-11)'!H15 -> 0
A16: 10 | B16: ='3B-4B) Nutr Calc (6-11)'!B16 -> 0 | C16: ='3B-4B) Nutr Calc (6-11)'!C16 -> 0 | D16: ='3B-4B) Nutr Calc (6-11)'!D16 -> 0 | E16: ='3B-4B) Nutr Calc (6-11)'!E16 -> 0 | F16: ='3B-4B) Nutr Calc (6-11)'!F16 -> 0 | H16: ='3B-4B) Nutr Calc (6-11)'!H16 -> 0
A17: Step 4: Enter the Nutrition Composition for each Ingredient. Please enter food composition data exactly as it appears in the closest food composition table (FCT) to your geographic context. All foods must be entered in 100 gram (g) quantities.
A18: Ingredient (per 100 g) | C18: =B7 ->  | D18: =B8 -> 0 | E18: =B9 -> 0 | F18: =B10 -> 0 | G18: =B11 -> 0 | H18: =B12 -> 0 | I18: =B13 -> 0 | J18: =B14 -> 0 | K18: =B15 -> 0 | L18: =B16 -> 0 | M18: Sugar | N18: Salt | O18: Micronutrient Powder (per 100g)
B19: Energy (kcal, or calories) | C19: ='3B-4B) Nutr Calc (6-11)'!C19 ->  | D19: ='3B-4B) Nutr Calc (6-11)'!D19 -> 0 | E19: ='3B-4B) Nutr Calc (6-11)'!E19 -> 0 | F19: ='3B-4B) Nutr Calc (6-11)'!F19 -> 0 | G19: ='3B-4B) Nutr Calc (6-11)'!G19 -> 0 | H19: ='3B-4B) Nutr Calc (6-11)'!H19 -> 0 | I19: ='3B-4B) Nutr Calc (6-11)'!I19 -> 0 | J19: ='3B-4B) Nutr Calc (6-11)'!J19 -> 0 | K19: ='3B-4B) Nutr Calc (6-11)'!K19 -> 0 | L19: ='3B-4B) Nutr Calc (6-11)'!L19 -> 0
B20: Protein (g) | C20: ='3B-4B) Nutr Calc (6-11)'!C20 -> 0 | D20: ='3B-4B) Nutr Calc (6-11)'!D20 -> 0 | E20: ='3B-4B) Nutr Calc (6-11)'!E20 -> 0 | F20: ='3B-4B) Nutr Calc (6-11)'!F20 -> 0 | G20: ='3B-4B) Nutr Calc (6-11)'!G20 -> 0 | H20: ='3B-4B) Nutr Calc (6-11)'!H20 -> 0 | I20: ='3B-4B) Nutr Calc (6-11)'!I20 -> 0 | J20: ='3B-4B) Nutr Calc (6-11)'!J20 -> 0 | K20: ='3B-4B) Nutr Calc (6-11)'!K20 -> 0 | L20: ='3B-4B) Nutr Calc (6-11)'!L20 -> 0
B21: Total fat (g) | C21: ='3B-4B) Nutr Calc (6-11)'!C21 -> 0 | D21: ='3B-4B) Nutr Calc (6-11)'!D21 -> 0 | E21: ='3B-4B) Nutr Calc (6-11)'!E21 -> 0 | F21: ='3B-4B) Nutr Calc (6-11)'!F21 -> 0 | G21: ='3B-4B) Nutr Calc (6-11)'!G21 -> 0 | H21: ='3B-4B) Nutr Calc (6-11)'!H21 -> 0 | I21: ='3B-4B) Nutr Calc (6-11)'!I21 -> 0 | J21: ='3B-4B) Nutr Calc (6-11)'!J21 -> 0 | K21: ='3B-4B) Nutr Calc (6-11)'!K21 -> 0 | L21: ='3B-4B) Nutr Calc (6-11)'!L21 -> 0
B22: Carbohydrate (g) | C22: ='3B-4B) Nutr Calc (6-11)'!C22 -> 0 | D22: ='3B-4B) Nutr Calc (6-11)'!D22 -> 0 | E22: ='3B-4B) Nutr Calc (6-11)'!E22 -> 0 | F22: ='3B-4B) Nutr Calc (6-11)'!F22 -> 0 | G22: ='3B-4B) Nutr Calc (6-11)'!G22 -> 0 | H22: ='3B-4B) Nutr Calc (6-11)'!H22 -> 0 | I22: ='3B-4B) Nutr Calc (6-11)'!I22 -> 0 | J22: ='3B-4B) Nutr Calc (6-11)'!J22 -> 0 | K22: ='3B-4B) Nutr Calc (6-11)'!K22 -> 0 | L22: ='3B-4B) Nutr Calc (6-11)'!L22 -> 0
B23: Fiber (g) | C23: ='3B-4B) Nutr Calc (6-11)'!C23 -> 0 | D23: ='3B-4B) Nutr Calc (6-11)'!D23 -> 0 | E23: ='3B-4B) Nutr Calc (6-11)'!E23 -> 0 | F23: ='3B-4B) Nutr Calc (6-11)'!F23 -> 0 | G23: ='3B-4B) Nutr Calc (6-11)'!G23 -> 0 | H23: ='3B-4B) Nutr Calc (6-11)'!H23 -> 0 | I23: ='3B-4B) Nutr Calc (6-11)'!I23 -> 0 | J23: ='3B-4B) Nutr Calc (6-11)'!J23 -> 0 | K23: ='3B-4B) Nutr Calc (6-11)'!K23 -> 0 | L23: ='3B-4B) Nutr Calc (6-11)'!L23 -> 0
B24: Sugar (g) | C24: ='3B-4B) Nutr Calc (6-11)'!C24 -> 0 | D24: ='3B-4B) Nutr Calc (6-11)'!D24 -> 0 | E24: ='3B-4B) Nutr Calc (6-11)'!E24 -> 0 | F24: ='3B-4B) Nutr Calc (6-11)'!F24 -> 0 | G24: ='3B-4B) Nutr Calc (6-11)'!G24 -> 0 | H24: ='3B-4B) Nutr Calc (6-11)'!H24 -> 0 | I24: ='3B-4B) Nutr Calc (6-11)'!I24 -> 0 | J24: ='3B-4B) Nutr Calc (6-11)'!J24 -> 0 | K24: ='3B-4B) Nutr Calc (6-11)'!K24 -> 0 | L24: ='3B-4B) Nutr Calc (6-11)'!L24 -> 0
B25: Calcium [Ca] (mg) | C25: ='3B-4B) Nutr Calc (6-11)'!C25 -> 0 | D25: ='3B-4B) Nutr Calc (6-11)'!D25 -> 0 | E25: ='3B-4B) Nutr Calc (6-11)'!E25 -> 0 | F25: ='3B-4B) Nutr Calc (6-11)'!F25 -> 0 | G25: ='3B-4B) Nutr Calc (6-11)'!G25 -> 0 | H25: ='3B-4B) Nutr Calc (6-11)'!H25 -> 0 | I25: ='3B-4B) Nutr Calc (6-11)'!I25 -> 0 | J25: ='3B-4B) Nutr Calc (6-11)'!J25 -> 0 | K25: ='3B-4B) Nutr Calc (6-11)'!K25 -> 0 | L25: ='3B-4B) Nutr Calc (6-11)'!L25 -> 0
B26: Iron [Fe] (mg) | C26: ='3B-4B) Nutr Calc (6-11)'!C26 -> 0 | D26: ='3B-4B) Nutr Calc (6-11)'!D26 -> 0 | E26: ='3B-4B) Nutr Calc (6-11)'!E26 -> 0 | F26: ='3B-4B) Nutr Calc (6-11)'!F26 -> 0 | G26: ='3B-4B) Nutr Calc (6-11)'!G26 -> 0 | H26: ='3B-4B) Nutr Calc (6-11)'!H26 -> 0 | I26: ='3B-4B) Nutr Calc (6-11)'!I26 -> 0 | J26: ='3B-4B) Nutr Calc (6-11)'!J26 -> 0 | K26: ='3B-4B) Nutr Calc (6-11)'!K26 -> 0 | L26: ='3B-4B) Nutr Calc (6-11)'!L26 -> 0
B27: Magnesium [Mg] (mg) | C27: ='3B-4B) Nutr Calc (6-11)'!C27 -> 0 | D27: ='3B-4B) Nutr Calc (6-11)'!D27 -> 0 | E27: ='3B-4B) Nutr Calc (6-11)'!E27 -> 0 | F27: ='3B-4B) Nutr Calc (6-11)'!F27 -> 0 | G27: ='3B-4B) Nutr Calc (6-11)'!G27 -> 0 | H27: ='3B-4B) Nutr Calc (6-11)'!H27 -> 0 | I27: ='3B-4B) Nutr Calc (6-11)'!I27 -> 0 | J27: ='3B-4B) Nutr Calc (6-11)'!J27 -> 0 | K27: ='3B-4B) Nutr Calc (6-11)'!K27 -> 0 | L27: ='3B-4B) Nutr Calc (6-11)'!L27 -> 0
B28: Potassium [K] (mg) | C28: ='3B-4B) Nutr Calc (6-11)'!C28 -> 0 | D28: ='3B-4B) Nutr Calc (6-11)'!D28 -> 0 | E28: ='3B-4B) Nutr Calc (6-11)'!E28 -> 0 | F28: ='3B-4B) Nutr Calc (6-11)'!F28 -> 0 | G28: ='3B-4B) Nutr Calc (6-11)'!G28 -> 0 | H28: ='3B-4B) Nutr Calc (6-11)'!H28 -> 0 | I28: ='3B-4B) Nutr Calc (6-11)'!I28 -> 0 | J28: ='3B-4B) Nutr Calc (6-11)'!J28 -> 0 | K28: ='3B-4B) Nutr Calc (6-11)'!K28 -> 0 | L28: ='3B-4B) Nutr Calc (6-11)'!L28 -> 0
B29: Sodium [Na] (mg) | C29: ='3B-4B) Nutr Calc (6-11)'!C29 -> 0 | D29: ='3B-4B) Nutr Calc (6-11)'!D29 -> 0 | E29: ='3B-4B) Nutr Calc (6-11)'!E29 -> 0 | F29: ='3B-4B) Nutr Calc (6-11)'!F29 -> 0 | G29: ='3B-4B) Nutr Calc (6-11)'!G29 -> 0 | H29: ='3B-4B) Nutr Calc (6-11)'!H29 -> 0 | I29: ='3B-4B) Nutr Calc (6-11)'!I29 -> 0 | J29: ='3B-4B) Nutr Calc (6-11)'!J29 -> 0 | K29: ='3B-4B) Nutr Calc (6-11)'!K29 -> 0 | L29: ='3B-4B) Nutr Calc (6-11)'!L29 -> 0
B30: Zinc [Zn] (mg) | C30: ='3B-4B) Nutr Calc (6-11)'!C30 -> 0 | D30: ='3B-4B) Nutr Calc (6-11)'!D30 -> 0 | E30: ='3B-4B) Nutr Calc (6-11)'!E30 -> 0 | F30: ='3B-4B) Nutr Calc (6-11)'!F30 -> 0 | G30: ='3B-4B) Nutr Calc (6-11)'!G30 -> 0 | H30: ='3B-4B) Nutr Calc (6-11)'!H30 -> 0 | I30: ='3B-4B) Nutr Calc (6-11)'!I30 -> 0 | J30: ='3B-4B) Nutr Calc (6-11)'!J30 -> 0 | K30: ='3B-4B) Nutr Calc (6-11)'!K30 -> 0 | L30: ='3B-4B) Nutr Calc (6-11)'!L30 -> 0
B31: Vitamin A RAE (mcg) | C31: ='3B-4B) Nutr Calc (6-11)'!C31 -> 0 | D31: ='3B-4B) Nutr Calc (6-11)'!D31 -> 0 | E31: ='3B-4B) Nutr Calc (6-11)'!E31 -> 0 | F31: ='3B-4B) Nutr Calc (6-11)'!F31 -> 0 | G31: ='3B-4B) Nutr Calc (6-11)'!G31 -> 0 | H31: ='3B-4B) Nutr Calc (6-11)'!H31 -> 0 | I31: ='3B-4B) Nutr Calc (6-11)'!I31 -> 0 | J31: ='3B-4B) Nutr Calc (6-11)'!J31 -> 0 | K31: ='3B-4B) Nutr Calc (6-11)'!K31 -> 0 | L31: ='3B-4B) Nutr Calc (6-11)'!L31 -> 0
B32: Thiamine [Vit B1] (mg) | C32: ='3B-4B) Nutr Calc (6-11)'!C32 -> 0 | D32: ='3B-4B) Nutr Calc (6-11)'!D32 -> 0 | E32: ='3B-4B) Nutr Calc (6-11)'!E32 -> 0 | F32: ='3B-4B) Nutr Calc (6-11)'!F32 -> 0 | G32: ='3B-4B) Nutr Calc (6-11)'!G32 -> 0 | H32: ='3B-4B) Nutr Calc (6-11)'!H32 -> 0 | I32: ='3B-4B) Nutr Calc (6-11)'!I32 -> 0 | J32: ='3B-4B) Nutr Calc (6-11)'!J32 -> 0 | K32: ='3B-4B) Nutr Calc (6-11)'!K32 -> 0 | L32: ='3B-4B) Nutr Calc (6-11)'!L32 -> 0
B33: Riboflavin [Vit B2] (mg) | C33: ='3B-4B) Nutr Calc (6-11)'!C33 -> 0 | D33: ='3B-4B) Nutr Calc (6-11)'!D33 -> 0 | E33: ='3B-4B) Nutr Calc (6-11)'!E33 -> 0 | F33: ='3B-4B) Nutr Calc (6-11)'!F33 -> 0 | G33: ='3B-4B) Nutr Calc (6-11)'!G33 -> 0 | H33: ='3B-4B) Nutr Calc (6-11)'!H33 -> 0 | I33: ='3B-4B) Nutr Calc (6-11)'!I33 -> 0 | J33: ='3B-4B) Nutr Calc (6-11)'!J33 -> 0 | K33: ='3B-4B) Nutr Calc (6-11)'!K33 -> 0 | L33: ='3B-4B) Nutr Calc (6-11)'!L33 -> 0
B34: Niacin Equiv [Vit B3] (mg) | C34: ='3B-4B) Nutr Calc (6-11)'!C34 -> 0 | D34: ='3B-4B) Nutr Calc (6-11)'!D34 -> 0 | E34: ='3B-4B) Nutr Calc (6-11)'!E34 -> 0 | F34: ='3B-4B) Nutr Calc (6-11)'!F34 -> 0 | G34: ='3B-4B) Nutr Calc (6-11)'!G34 -> 0 | H34: ='3B-4B) Nutr Calc (6-11)'!H34 -> 0 | I34: ='3B-4B) Nutr Calc (6-11)'!I34 -> 0 | J34: ='3B-4B) Nutr Calc (6-11)'!J34 -> 0 | K34: ='3B-4B) Nutr Calc (6-11)'!K34 -> 0 | L34: ='3B-4B) Nutr Calc (6-11)'!L34 -> 0
B35: Folate DFE (mcg) | C35: ='3B-4B) Nutr Calc (6-11)'!C35 -> 0 | D35: ='3B-4B) Nutr Calc (6-11)'!D35 -> 0 | E35: ='3B-4B) Nutr Calc (6-11)'!E35 -> 0 | F35: ='3B-4B) Nutr Calc (6-11)'!F35 -> 0 | G35: ='3B-4B) Nutr Calc (6-11)'!G35 -> 0 | H35: ='3B-4B) Nutr Calc (6-11)'!H35 -> 0 | I35: ='3B-4B) Nutr Calc (6-11)'!I35 -> 0 | J35: ='3B-4B) Nutr Calc (6-11)'!J35 -> 0 | K35: ='3B-4B) Nutr Calc (6-11)'!K35 -> 0 | L35: ='3B-4B) Nutr Calc (6-11)'!L35 -> 0
B36: Vitamin B12 (mcg) | C36: ='3B-4B) Nutr Calc (6-11)'!C36 -> 0 | D36: ='3B-4B) Nutr Calc (6-11)'!D36 -> 0 | E36: ='3B-4B) Nutr Calc (6-11)'!E36 -> 0 | F36: ='3B-4B) Nutr Calc (6-11)'!F36 -> 0 | G36: ='3B-4B) Nutr Calc (6-11)'!G36 -> 0 | H36: ='3B-4B) Nutr Calc (6-11)'!H36 -> 0 | I36: ='3B-4B) Nutr Calc (6-11)'!I36 -> 0 | J36: ='3B-4B) Nutr Calc (6-11)'!J36 -> 0 | K36: ='3B-4B) Nutr Calc (6-11)'!K36 -> 0 | L36: ='3B-4B) Nutr Calc (6-11)'!L36 -> 0
B37: Vitamin C (mg) | C37: ='3B-4B) Nutr Calc (6-11)'!C37 -> 0 | D37: ='3B-4B) Nutr Calc (6-11)'!D37 -> 0 | E37: ='3B-4B) Nutr Calc (6-11)'!E37 -> 0 | F37: ='3B-4B) Nutr Calc (6-11)'!F37 -> 0 | G37: ='3B-4B) Nutr Calc (6-11)'!G37 -> 0 | H37: ='3B-4B) Nutr Calc (6-11)'!H37 -> 0 | I37: ='3B-4B) Nutr Calc (6-11)'!I37 -> 0 | J37: ='3B-4B) Nutr Calc (6-11)'!J37 -> 0 | K37: ='3B-4B) Nutr Calc (6-11)'!K37 -> 0 | L37: ='3B-4B) Nutr Calc (6-11)'!L37 -> 0
A38: Step 4B: Building Food Based Recommendations (FBR) or Enriched Flour Blends (EFB) Enter the name, select preparation method, and add total quantity of each ingredient (in grams) for up to 4 FBRs or enriched flour blends. Max 10 ingredients per FBR. Sugar, salt, and vitamin mix are added in addition.
A39: FBR or EFB # | C39: 1 | D39: 2 | E39: 3 | F39: 4
A40: Add FBR / Enriched Flour Blend Name | C40: FBR #1 | D40: FBR #2 | E40: FBR #3 | F40: FBR #4 | H40: ESTIMATED SERVING SIZE KEY Average serving size per food group
A41: Select Preparation Method | C41: Boiled (<10 min) | D41: Boiled (<10 min) | E41: Boiled (<10 min) | H41: FOOD GROUP | K41: 2-5 year olds
A42: 1 | B42: =B7 ->  | K42: grams | L42: unit
A43: 2 | B43: =B8 -> 0 | H43: 1. Grains, white roots, tubers, plantains (MDD-W) | K43: 90 | L43: 3/8 cup
A44: 3 | B44: 0 | H44: 2. Pulses (beans, peas, lentils) MDD-W | K44: 60 | L44: 1/2 cup
A45: 4 | B45: 0 | H45: 3. Nuts and seeds (MDD-W) | K45: 30 | L45: 2 tbsp
A46: 5 | B46: 0 | H46: 4.1 Milk, milk products (MDD-W) | K46: 120 | L46: 1/3 cup
A47: 6 | B47: 0 | H47: 4.2 Powdered milk | K47: 30 | L47: 3 tbsp
A48: 7 | B48: 0 | H48: 4.2 Cheese | K48: 25 | L48: 2 tbsp
A49: 8 | B49: 0 | H49: 5. Meat, poultry, fish (MDD-W) | K49: 45 | L49: 1.5 oz
A50: 9 | B50: 0 | H50: 6. Eggs (MDD-W) | K50: 50-75 | L50: 1-1.5 large eggs
A51: 10 | B51: 0 | H51: 7.1 (FRESH) Dark leafy vegetables (MDD-W) | K51: 50 | L51: 1.5 cups
A52: + | B52: ADDED SUGAR (g) | H52: 7.2 (DRIED) Dark leafy vegetables | K52: 15 | L52: 3 tbsp
A53: + | B53: ADDED SALT (g) | H53: 8. Vitamin A-rich fruits and vegetables (MDD-W) | K53: 80 | L53: 1/3 cup
A54: + | B54: =O18 -> Micronutrient Powder (per 100g) | H54: 9. Other vegetables (MDD-W) | K54: 80 | L54: 1/3 cup
B55: TOTAL FBR WEIGHT | C55: =_xlfn.CONCAT(SUM(C42:C54)," grams") ->  | D55: =_xlfn.CONCAT(SUM(D42:D54)," grams") ->  | E55: =_xlfn.CONCAT(SUM(E42:E54)," grams") ->  | F55: =_xlfn.CONCAT(SUM(F42:F54)," grams") ->  | H55: 10. Other fruits (MDD-W) | K55: 80 | L55: 1/3 cup
B56: Serving Size for specific population | C56: =_xlfn.CONCAT(C4, " grams") -> 

Sheet 5) Dashboards (2-5yo)
A1: DASHBOARD for 12-24 months | B1: ='3B-4B) Nutr Calc (2-5yo)'!C40 -> FBR #1 | E1: ='3B-4B) Nutr Calc (2-5yo)'!D40 -> FBR #2 | H1: ='3B-4B) Nutr Calc (2-5yo)'!E40 -> FBR #3 | K1: ='3B-4B) Nutr Calc (2-5yo)'!F40 -> FBR #4 | N1: Formulation Reference Values | O1: WHO Standard | Q1: WFP Approved | T1: MNP
A2: Nutrients | B2: Prepared FBR / EFB (w/ retention factor) | C2: Children (2-5 years of age) % DV | D2: Children (6-12 months) % DV | E2: Prepared FBR / EFB (w/ retention factor) | F2: Children (2-5 years of age) % DV | G2: Children (6-12 months) % DV | H2: Prepared FBR / EFB (w/ retention factor) | I2: Children (2-5 years of age) % DV | J2: Children (6-12 months) % DV | K2: Prepared FBR / EFB (w/ retention factor) | L2: Children (2-5 years of age) % DV | M2: Children (6-12 months) % DV | N2: Nutrients | O2: Proposed nutrient composition of supplementary foods for use in the management of moderate acute malnutrition in children | Q2: CSB+ (100g) w/fortified oil (25g) | R2: SuperCereal + | S2: RUSF (average) | T2: Micronutrient powder
A3: Energy (kcal, or calories) | B3: ='FBREFB #1 (Details)'!C36 ->  | C3: ='FBREFB #1 (Details)'!M36 ->  | D3: ='FBREFB #1 (Details)'!S36 ->  | E3: ='FBREFB #2 (Details)'!C36 ->  | F3: ='FBREFB #2 (Details)'!M36 ->  | G3: ='FBREFB #2 (Details)'!S36 ->  | H3: ='FBREFB #3 (Details)'!C36 ->  | I3: ='FBREFB #3 (Details)'!F36 ->  | J3: ='FBREFB #3 (Details)'!J36 ->  | K3: ='FBREFB #4 (Details)'!C36 ->  | L3: ='FBREFB #4 (Details)'!M36 ->  | M3: ='FBREFB #4 (Details)'!S36 ->  | N3: Energy maximum, kcal | Q3: =380+221 -> 601 | R3: 400 | S3: 510 | T3: 0
A4: Protein (g) | B4: ='FBREFB #1 (Details)'!C37 -> 0 | C4: ='FBREFB #1 (Details)'!M37 -> 0 | D4: ='FBREFB #1 (Details)'!S37 -> 0 | E4: ='FBREFB #2 (Details)'!C37 -> 0 | F4: ='FBREFB #2 (Details)'!M37 -> 0 | G4: ='FBREFB #2 (Details)'!S37 -> 0 | H4: ='FBREFB #3 (Details)'!C37 -> 0 | I4: ='FBREFB #3 (Details)'!F37 -> 0 | J4: ='FBREFB #3 (Details)'!J37 -> 0 | K4: ='FBREFB #4 (Details)'!C37 -> 0 | L4: ='FBREFB #4 (Details)'!M37 -> 0 | M4: ='FBREFB #4 (Details)'!S37 -> 0 | N4: Protein, g | O4: 20 | P4: 43 | Q4: 13.3 | R4: 16 | S4: 11 | T4: 0
A5: Total fat (g) | B5: ='FBREFB #1 (Details)'!C38 -> 0 | C5: ='FBREFB #1 (Details)'!M38 -> 0 | D5: ='FBREFB #1 (Details)'!S38 -> 0 | E5: ='FBREFB #2 (Details)'!C38 -> 0 | F5: ='FBREFB #2 (Details)'!M38 -> 0 | G5: ='FBREFB #2 (Details)'!S38 -> 0 | H5: ='FBREFB #3 (Details)'!C38 -> 0 | I5: ='FBREFB #3 (Details)'!F38 -> 0 | J5: ='FBREFB #3 (Details)'!J38 -> 0 | K5: ='FBREFB #4 (Details)'!C38 -> 0 | L5: ='FBREFB #4 (Details)'!M38 -> 0 | M5: ='FBREFB #4 (Details)'!S38 -> 0 | N5: Fat, g | O5: 25 | P5: 65 | Q5: =2.5+25 -> 27.5 | R5: 9 | S5: 26 | T5: 0
A6: Carbohydrate (g) | B6: ='FBREFB #1 (Details)'!C39 -> 0 | C6: ='FBREFB #1 (Details)'!M39 -> 0 | D6: ='FBREFB #1 (Details)'!S39 -> 0 | E6: ='FBREFB #2 (Details)'!C39 -> 0 | F6: ='FBREFB #2 (Details)'!M39 -> 0 | G6: ='FBREFB #2 (Details)'!S39 -> 0 | H6: ='FBREFB #3 (Details)'!C39 -> 0 | I6: ='FBREFB #3 (Details)'!F39 -> 0 | J6: ='FBREFB #3 (Details)'!J39 -> 0 | K6: ='FBREFB #4 (Details)'!C39 -> 0 | L6: ='FBREFB #4 (Details)'!M39 -> 0 | M6: ='FBREFB #4 (Details)'!S39 -> 0 | N6: Carbohydrate | Q6: 64 | T6: 0
A7: Fiber (g) | B7: ='FBREFB #1 (Details)'!C40 -> 0 | C7: ='FBREFB #1 (Details)'!M40 -> 0 | D7: ='FBREFB #1 (Details)'!S40 -> NA | E7: ='FBREFB #2 (Details)'!C40 -> 0 | F7: ='FBREFB #2 (Details)'!M40 -> 0 | G7: ='FBREFB #2 (Details)'!S40 -> NA | H7: ='FBREFB #3 (Details)'!C40 -> 0 | I7: ='FBREFB #3 (Details)'!F40 -> 0 | J7: ='FBREFB #3 (Details)'!J40 -> NA | K7: ='FBREFB #4 (Details)'!C40 -> 0 | L7: ='FBREFB #4 (Details)'!M40 -> 0 | M7: ='FBREFB #4 (Details)'!S40 -> NA | N7: Fiber | Q7: 5 | T7: 0
A8: Sugar (g) | B8: ='FBREFB #1 (Details)'!C41 -> 0 | C8: ='FBREFB #1 (Details)'!M41 -> 0 | D8: ='FBREFB #1 (Details)'!S41 -> NA | E8: ='FBREFB #2 (Details)'!C41 -> 0 | F8: ='FBREFB #2 (Details)'!M41 -> 0 | G8: ='FBREFB #2 (Details)'!S41 -> NA | H8: ='FBREFB #3 (Details)'!C41 -> 0 | I8: ='FBREFB #3 (Details)'!F41 -> 0 | J8: ='FBREFB #3 (Details)'!J41 -> NA | K8: ='FBREFB #4 (Details)'!C41 -> 0 | L8: ='FBREFB #4 (Details)'!M41 -> 0 | M8: ='FBREFB #4 (Details)'!S41 -> NA | N8: Sugar (g)
A9: Calcium [Ca] (mg) | B9: ='FBREFB #1 (Details)'!C42 -> 0 | C9: ='FBREFB #1 (Details)'!M42 -> 0 | D9: ='FBREFB #1 (Details)'!S42 -> 0 | E9: ='FBREFB #2 (Details)'!C42 -> 0 | F9: ='FBREFB #2 (Details)'!M42 -> 0 | G9: ='FBREFB #2 (Details)'!S42 -> 0 | H9: ='FBREFB #3 (Details)'!C42 -> 0 | I9: ='FBREFB #3 (Details)'!F42 -> 0 | J9: ='FBREFB #3 (Details)'!J42 -> 0 | K9: ='FBREFB #4 (Details)'!C42 -> 0 | L9: ='FBREFB #4 (Details)'!M42 -> 0 | M9: ='FBREFB #4 (Details)'!S42 -> 0 | N9: Calcium, mg | O9: 1000 | P9: 1400 | Q9: 512 | R9: 420 | S9: 535 | T9: 0
A10: Iron [Fe] (mg) | B10: ='FBREFB #1 (Details)'!C43 -> 0 | C10: ='FBREFB #1 (Details)'!M43 -> 0 | D10: ='FBREFB #1 (Details)'!S43 -> 0 | E10: ='FBREFB #2 (Details)'!C43 -> 0 | F10: ='FBREFB #2 (Details)'!M43 -> 0 | G10: ='FBREFB #2 (Details)'!S43 -> 0 | H10: ='FBREFB #3 (Details)'!C43 -> 0 | I10: ='FBREFB #3 (Details)'!F43 -> 0 | J10: ='FBREFB #3 (Details)'!J43 -> 0 | K10: ='FBREFB #4 (Details)'!C43 -> 0 | L10: ='FBREFB #4 (Details)'!M43 -> 0 | M10: ='FBREFB #4 (Details)'!S43 -> 0 | N10: Iron | O10: 18 | P10: 30 | Q10: 2.5 | R10: 9 | S10: 10 | T10: 10
A11: Magnesium [Mg] (mg) | B11: ='FBREFB #1 (Details)'!C44 -> 0 | C11: ='FBREFB #1 (Details)'!M44 -> 0 | D11: ='FBREFB #1 (Details)'!S44 -> 0 | E11: ='FBREFB #2 (Details)'!C44 -> 0 | F11: ='FBREFB #2 (Details)'!M44 -> 0 | G11: ='FBREFB #2 (Details)'!S44 -> 0 | H11: ='FBREFB #3 (Details)'!C44 -> 0 | I11: ='FBREFB #3 (Details)'!F44 -> 0 | J11: ='FBREFB #3 (Details)'!J44 -> 0 | K11: ='FBREFB #4 (Details)'!C44 -> 0 | L11: ='FBREFB #4 (Details)'!M44 -> 0 | M11: ='FBREFB #4 (Details)'!S44 -> 0 | N11: Magnesium, mg | O11: 280 | P11: 420 | S11: 150 | T11: 0
A12: Potassium [K] (mg) | B12: ='FBREFB #1 (Details)'!C45 -> 0 | C12: ='FBREFB #1 (Details)'!M45 -> 0 | D12: ='FBREFB #1 (Details)'!S45 -> 0 | E12: ='FBREFB #2 (Details)'!C45 -> 0 | F12: ='FBREFB #2 (Details)'!M45 -> 0 | G12: ='FBREFB #2 (Details)'!S45 -> 0 | H12: ='FBREFB #3 (Details)'!C45 -> 0 | I12: ='FBREFB #3 (Details)'!F45 -> 0 | J12: ='FBREFB #3 (Details)'!J45 -> 0 | K12: ='FBREFB #4 (Details)'!C45 -> 0 | L12: ='FBREFB #4 (Details)'!M45 -> 0 | M12: ='FBREFB #4 (Details)'!S45 -> 0 | N12: Potassium, mg | O12: 1500 | P12: 2200 | Q12: 724 | R12: 650 | S12: 800 | T12: 0
A13: Sodium [Na] (mg) | B13: ='FBREFB #1 (Details)'!C46 -> 0 | C13: ='FBREFB #1 (Details)'!M46 -> 0 | D13: ='FBREFB #1 (Details)'!S46 -> 0 | E13: ='FBREFB #2 (Details)'!C46 -> 0 | F13: ='FBREFB #2 (Details)'!M46 -> 0 | G13: ='FBREFB #2 (Details)'!S46 -> 0 | H13: ='FBREFB #3 (Details)'!C46 -> 0 | I13: ='FBREFB #3 (Details)'!F46 -> 0 | J13: ='FBREFB #3 (Details)'!J46 -> 0 | K13: ='FBREFB #4 (Details)'!C46 -> 0 | L13: ='FBREFB #4 (Details)'!M46 -> 0 | M13: ='FBREFB #4 (Details)'!S46 -> 0 | N13: Sodium
A14: Zinc [Zn] (mg) | B14: ='FBREFB #1 (Details)'!C47 -> 0 | C14: ='FBREFB #1 (Details)'!M47 -> 0 | D14: ='FBREFB #1 (Details)'!S47 -> 0 | E14: ='FBREFB #2 (Details)'!C47 -> 0 | F14: ='FBREFB #2 (Details)'!M47 -> 0 | G14: ='FBREFB #2 (Details)'!S47 -> 0 | H14: ='FBREFB #3 (Details)'!C47 -> 0 | I14: ='FBREFB #3 (Details)'!F47 -> 0 | J14: ='FBREFB #3 (Details)'!J47 -> 0 | K14: ='FBREFB #4 (Details)'!C47 -> 0 | L14: ='FBREFB #4 (Details)'!M47 -> 0 | M14: ='FBREFB #4 (Details)'!S47 -> 0 | N14: Zinc, mg | O14: 20 | P14: 35 | Q14: 7.7 | R14: 8 | S14: 11 | T14: 4.1
A15: Vitamin A RAE (mcg) | B15: ='FBREFB #1 (Details)'!C48 -> 0 | C15: ='FBREFB #1 (Details)'!M48 -> 0 | D15: ='FBREFB #1 (Details)'!S48 -> 0 | E15: ='FBREFB #2 (Details)'!C48 -> 0 | F15: ='FBREFB #2 (Details)'!M48 -> 0 | G15: ='FBREFB #2 (Details)'!S48 -> 0 | H15: ='FBREFB #3 (Details)'!C48 -> 0 | I15: ='FBREFB #3 (Details)'!F48 -> 0 | J15: ='FBREFB #3 (Details)'!J48 -> 0 | K15: ='FBREFB #4 (Details)'!C48 -> 0 | L15: ='FBREFB #4 (Details)'!M48 -> 0 | M15: ='FBREFB #4 (Details)'!S48 -> 0 | N15: Vitamin A (retinol), IU | O15: 2000 | P15: 3000 | Q15: =3632+1500 -> 5132 | R15: 800 | S15: 700 | T15: 400
A16: Thiamine [Vitamin B1] (mg) | B16: ='FBREFB #1 (Details)'!C49 -> 0 | C16: ='FBREFB #1 (Details)'!M49 -> 0 | D16: ='FBREFB #1 (Details)'!S49 -> 0 | E16: ='FBREFB #2 (Details)'!C49 -> 0 | F16: ='FBREFB #2 (Details)'!M49 -> 0 | G16: ='FBREFB #2 (Details)'!S49 -> 0 | H16: ='FBREFB #3 (Details)'!C49 -> 0 | I16: ='FBREFB #3 (Details)'!F49 -> 0 | J16: ='FBREFB #3 (Details)'!J49 -> 0 | K16: ='FBREFB #4 (Details)'!C49 -> 0 | L16: ='FBREFB #4 (Details)'!M49 -> 0 | M16: ='FBREFB #4 (Details)'!S49 -> 0 | N16: Vitamin B1 (thiamine), mg | O16: 1 | Q16: 0.68 | R16: 0.4 | S16: 1 | T16: 0.5
A17: Riboflavin [Vitamin B2] (mg) | B17: ='FBREFB #1 (Details)'!C50 -> 0 | C17: ='FBREFB #1 (Details)'!M50 -> 0 | D17: ='FBREFB #1 (Details)'!S50 -> 0 | E17: ='FBREFB #2 (Details)'!C50 -> 0 | F17: ='FBREFB #2 (Details)'!M50 -> 0 | G17: ='FBREFB #2 (Details)'!S50 -> 0 | H17: ='FBREFB #3 (Details)'!C50 -> 0 | I17: ='FBREFB #3 (Details)'!F50 -> 0 | J17: ='FBREFB #3 (Details)'!J50 -> 0 | K17: ='FBREFB #4 (Details)'!C50 -> 0 | L17: ='FBREFB #4 (Details)'!M50 -> 0 | M17: ='FBREFB #4 (Details)'!S50 -> 0 | N17: Vitamin B2 (riboflavin), mg | O17: 4 | Q17: 1.73 | R17: 1.6 | S17: 2.1 | T17: 0.5
A18: Niacin Equiv [Vitamin B3] (mg) | B18: ='FBREFB #1 (Details)'!C51 -> 0 | C18: ='FBREFB #1 (Details)'!M51 -> 0 | D18: ='FBREFB #1 (Details)'!S51 -> 0 | E18: ='FBREFB #2 (Details)'!C51 -> 0 | F18: ='FBREFB #2 (Details)'!M51 -> 0 | G18: ='FBREFB #2 (Details)'!S51 -> 0 | H18: ='FBREFB #3 (Details)'!C51 -> 0 | I18: ='FBREFB #3 (Details)'!F51 -> 0 | J18: ='FBREFB #3 (Details)'!J51 -> 0 | K18: ='FBREFB #4 (Details)'!C51 -> 0 | L18: ='FBREFB #4 (Details)'!M51 -> 0 | M18: ='FBREFB #4 (Details)'!S51 -> 0 | N18: Vitamin B3 (Niacin), mg | Q18: 0 | R18: 10 | S18: 13 | T18: 6
A19: Folate DFE (mcg) | B19: ='FBREFB #1 (Details)'!C52 -> 0 | C19: ='FBREFB #1 (Details)'!M52 -> 0 | D19: ='FBREFB #1 (Details)'!S52 -> 0 | E19: ='FBREFB #2 (Details)'!C52 -> 0 | F19: ='FBREFB #2 (Details)'!M52 -> 0 | G19: ='FBREFB #2 (Details)'!S52 -> 0 | H19: ='FBREFB #3 (Details)'!C52 -> 0 | I19: ='FBREFB #3 (Details)'!F52 -> 0 | J19: ='FBREFB #3 (Details)'!J52 -> 0 | K19: ='FBREFB #4 (Details)'!C52 -> 0 | L19: ='FBREFB #4 (Details)'!M52 -> 0 | M19: ='FBREFB #4 (Details)'!S52 -> 0 | N19: Vitamin B9 (Folate), mcg | Q19: 0 | R19: 160 | S19: 330 | T19: 90
A20: Vitamin B12 (mcg) | B20: ='FBREFB #1 (Details)'!C53 -> 0 | C20: ='FBREFB #1 (Details)'!M53 -> 0 | D20: ='FBREFB #1 (Details)'!S53 -> 0 | E20: ='FBREFB #2 (Details)'!C53 -> 0 | F20: ='FBREFB #2 (Details)'!M53 -> 0 | G20: ='FBREFB #2 (Details)'!S53 -> 0 | H20: ='FBREFB #3 (Details)'!C53 -> 0 | I20: ='FBREFB #3 (Details)'!F53 -> 0 | J20: ='FBREFB #3 (Details)'!J53 -> 0 | K20: ='FBREFB #4 (Details)'!C53 -> 0 | L20: ='FBREFB #4 (Details)'!M53 -> 0 | M20: ='FBREFB #4 (Details)'!S53 -> 0 | N20: Vitamin B12 (Cobalamin), mcg | O20: 5 | Q20: 2 | R20: 2 | S20: 2.7 | T20: 0.9
A21: Vitamin C (mg) | B21: ='FBREFB #1 (Details)'!C54 -> 0 | C21: ='FBREFB #1 (Details)'!M54 -> 0 | D21: ='FBREFB #1 (Details)'!S54 -> 0 | E21: ='FBREFB #2 (Details)'!C54 -> 0 | F21: ='FBREFB #2 (Details)'!M54 -> 0 | G21: ='FBREFB #2 (Details)'!S54 -> 0 | H21: ='FBREFB #3 (Details)'!C54 -> 0 | I21: ='FBREFB #3 (Details)'!F54 -> 0 | J21: ='FBREFB #3 (Details)'!J54 -> 0 | K21: ='FBREFB #4 (Details)'!C54 -> 0 | L21: ='FBREFB #4 (Details)'!M54 -> 0 | M21: ='FBREFB #4 (Details)'!S54 -> 0 | N21: Vitamin C (Ascorbate), mg | O21: 150 | Q21: 91.2 | R21: 60 | S21: 80 | T21: 30
C22: = >30% Daily value per meal | F22: = >30% Daily value per meal | I22: = >30% Daily value per meal | L22: = >30% Daily value per meal
B23: ='3B-4B) Nutr Calc (2-5yo)'!C40 -> FBR #1 | E23: ='3B-4B) Nutr Calc (2-5yo)'!D40 -> FBR #2 | H23: ='3B-4B) Nutr Calc (2-5yo)'!E40 -> FBR #3 | K23: ='3B-4B) Nutr Calc (2-5yo)'!F40 -> FBR #4
A24: Ingredients: | B24: Quantity (grams) | E24: Quantity (grams) | H24: Quantity (grams) | K24: Quantity (grams)
A25: ='3B-4B) Nutr Calc (2-5yo)'!B7 ->  | B25: =IF('3B-4B) Nutr Calc (2-5yo)'!C42>0,'3B-4B) Nutr Calc (2-5yo)'!C42,0) -> 0 | E25: =IF('3B-4B) Nutr Calc (2-5yo)'!D42>0,'3B-4B) Nutr Calc (2-5yo)'!D42,0) -> 0 | H25: =IF('3B-4B) Nutr Calc (2-5yo)'!E42>0,'3B-4B) Nutr Calc (2-5yo)'!E42,0) -> 0 | K25: =IF('3B-4B) Nutr Calc (2-5yo)'!F42>0,'3B-4B) Nutr Calc (2-5yo)'!F42,0) -> 0
A26: ='3B-4B) Nutr Calc (2-5yo)'!B8 -> 0 | B26: =IF('3B-4B) Nutr Calc (2-5yo)'!C43>0,'3B-4B) Nutr Calc (2-5yo)'!C43,0) -> 0 | E26: =IF('3B-4B) Nutr Calc (2-5yo)'!D43>0,'3B-4B) Nutr Calc (2-5yo)'!D43,0) -> 0 | H26: =IF('3B-4B) Nutr Calc (2-5yo)'!E43>0,'3B-4B) Nutr Calc (2-5yo)'!E43,0) -> 0 | K26: =IF('3B-4B) Nutr Calc (2-5yo)'!F43>0,'3B-4B) Nutr Calc (2-5yo)'!F43,0) -> 0
A27: ='3B-4B) Nutr Calc (2-5yo)'!B9 -> 0 | B27: =IF('3B-4B) Nutr Calc (2-5yo)'!C44>0,'3B-4B) Nutr Calc (2-5yo)'!C44,0) -> 0 | E27: =IF('3B-4B) Nutr Calc (2-5yo)'!D44>0,'3B-4B) Nutr Calc (2-5yo)'!D44,0) -> 0 | H27: =IF('3B-4B) Nutr Calc (2-5yo)'!E44>0,'3B-4B) Nutr Calc (2-5yo)'!E44,0) -> 0 | K27: =IF('3B-4B) Nutr Calc (2-5yo)'!F44>0,'3B-4B) Nutr Calc (2-5yo)'!F44,0) -> 0
A28: ='3B-4B) Nutr Calc (2-5yo)'!B10 -> 0 | B28: =IF('3B-4B) Nutr Calc (2-5yo)'!C45>0,'3B-4B) Nutr Calc (2-5yo)'!C45,0) -> 0 | E28: =IF('3B-4B) Nutr Calc (2-5yo)'!D45>0,'3B-4B) Nutr Calc (2-5yo)'!D45,0) -> 0 | H28: =IF('3B-4B) Nutr Calc (2-5yo)'!E45>0,'3B-4B) Nutr Calc (2-5yo)'!E45,0) -> 0 | K28: =IF('3B-4B) Nutr Calc (2-5yo)'!F45>0,'3B-4B) Nutr Calc (2-5yo)'!F45,0) -> 0
A29: ='3B-4B) Nutr Calc (2-5yo)'!B11 -> 0 | B29: =IF('3B-4B) Nutr Calc (2-5yo)'!C46>0,'3B-4B) Nutr Calc (2-5yo)'!C46,0) -> 0 | E29: =IF('3B-4B) Nutr Calc (2-5yo)'!D46>0,'3B-4B) Nutr Calc (2-5yo)'!D46,0) -> 0 | H29: =IF('3B-4B) Nutr Calc (2-5yo)'!E46>0,'3B-4B) Nutr Calc (2-5yo)'!E46,0) -> 0 | K29: =IF('3B-4B) Nutr Calc (2-5yo)'!F46>0,'3B-4B) Nutr Calc (2-5yo)'!F46,0) -> 0
A30: ='3B-4B) Nutr Calc (2-5yo)'!B12 -> 0 | B30: =IF('3B-4B) Nutr Calc (2-5yo)'!C47>0,'3B-4B) Nutr Calc (2-5yo)'!C47,0) -> 0 | E30: =IF('3B-4B) Nutr Calc (2-5yo)'!D47>0,'3B-4B) Nutr Calc (2-5yo)'!D47,0) -> 0 | H30: =IF('3B-4B) Nutr Calc (2-5yo)'!E47>0,'3B-4B) Nutr Calc (2-5yo)'!E47,0) -> 0 | K30: =IF('3B-4B) Nutr Calc (2-5yo)'!F47>0,'3B-4B) Nutr Calc (2-5yo)'!F47,0) -> 0
A31: ='3B-4B) Nutr Calc (2-5yo)'!B13 -> 0 | B31: =IF('3B-4B) Nutr Calc (2-5yo)'!C48>0,'3B-4B) Nutr Calc (2-5yo)'!C48,0) -> 0 | E31: =IF('3B-4B) Nutr Calc (2-5yo)'!D48>0,'3B-4B) Nutr Calc (2-5yo)'!D48,0) -> 0 | H31: =IF('3B-4B) Nutr Calc (2-5yo)'!E48>0,'3B-4B) Nutr Calc (2-5yo)'!E48,0) -> 0 | K31: =IF('3B-4B) Nutr Calc (2-5yo)'!F48>0,'3B-4B) Nutr Calc (2-5yo)'!F48,0) -> 0
A32: ='3B-4B) Nutr Calc (2-5yo)'!B14 -> 0 | B32: =IF('3B-4B) Nutr Calc (2-5yo)'!C49>0,'3B-4B) Nutr Calc (2-5yo)'!C49,0) -> 0 | E32: =IF('3B-4B) Nutr Calc (2-5yo)'!D49>0,'3B-4B) Nutr Calc (2-5yo)'!D49,0) -> 0 | H32: =IF('3B-4B) Nutr Calc (2-5yo)'!E49>0,'3B-4B) Nutr Calc (2-5yo)'!E49,0) -> 0 | K32: =IF('3B-4B) Nutr Calc (2-5yo)'!F49>0,'3B-4B) Nutr Calc (2-5yo)'!F49,0) -> 0
A33: ='3B-4B) Nutr Calc (2-5yo)'!B15 -> 0 | B33: =IF('3B-4B) Nutr Calc (2-5yo)'!C50>0,'3B-4B) Nutr Calc (2-5yo)'!C50,0) -> 0 | E33: =IF('3B-4B) Nutr Calc (2-5yo)'!D50>0,'3B-4B) Nutr Calc (2-5yo)'!D50,0) -> 0 | H33: =IF('3B-4B) Nutr Calc (2-5yo)'!E50>0,'3B-4B) Nutr Calc (2-5yo)'!E50,0) -> 0 | K33: =IF('3B-4B) Nutr Calc (2-5yo)'!F50>0,'3B-4B) Nutr Calc (2-5yo)'!F50,0) -> 0
A34: ='3B-4B) Nutr Calc (2-5yo)'!B52 -> ADDED SUGAR (g) | B34: =IF('3B-4B) Nutr Calc (2-5yo)'!C51>0,'3B-4B) Nutr Calc (2-5yo)'!C51,0) -> 0 | E34: =IF('3B-4B) Nutr Calc (2-5yo)'!D51>0,'3B-4B) Nutr Calc (2-5yo)'!D51,0) -> 0 | H34: =IF('3B-4B) Nutr Calc (2-5yo)'!E51>0,'3B-4B) Nutr Calc (2-5yo)'!E51,0) -> 0 | K34: =IF('3B-4B) Nutr Calc (2-5yo)'!F51>0,'3B-4B) Nutr Calc (2-5yo)'!F51,0) -> 0
A35: ='3B-4B) Nutr Calc (2-5yo)'!B53 -> ADDED SALT (g) | B35: =IF('3B-4B) Nutr Calc (2-5yo)'!C52>0,'3B-4B) Nutr Calc (2-5yo)'!C52,0) -> 0 | E35: =IF('3B-4B) Nutr Calc (2-5yo)'!D52>0,'3B-4B) Nutr Calc (2-5yo)'!D52,0) -> 0 | H35: =IF('3B-4B) Nutr Calc (2-5yo)'!E52>0,'3B-4B) Nutr Calc (2-5yo)'!E52,0) -> 0 | K35: =IF('3B-4B) Nutr Calc (2-5yo)'!F52>0,'3B-4B) Nutr Calc (2-5yo)'!F52,0) -> 0
A36: ='3B-4B) Nutr Calc (2-5yo)'!B54 -> Micronutrient Powder (per 100g) | B36: =IF('3B-4B) Nutr Calc (2-5yo)'!C53>0,'3B-4B) Nutr Calc (2-5yo)'!C53,0) -> 0 | E36: =IF('3B-4B) Nutr Calc (2-5yo)'!D53>0,'3B-4B) Nutr Calc (2-5yo)'!D53,0) -> 0 | H36: =IF('3B-4B) Nutr Calc (2-5yo)'!E53>0,'3B-4B) Nutr Calc (2-5yo)'!E53,0) -> 0 | K36: =IF('3B-4B) Nutr Calc (2-5yo)'!F53>0,'3B-4B) Nutr Calc (2-5yo)'!F53,0) -> 0
A37: TOTAL | B37: =SUM(B25:B36) -> 0 | C37: grams | E37: =SUM(E25:E36) -> 0 | F37: grams | H37: =SUM(H25:H36) -> 0 | I37: grams | K37: =SUM(K25:K36) -> 0 | L37: grams

Sheet FCT Common Foods
B1: 1. Grains, white roots, tubers, plantains (MDD-W) | S1: 2. Pulses (beans, peas, lentils) MDD-W | AE1: 3. Nuts and seeds (MDD-W) | AJ1: 4.1 Milk, milk products (MDD-W) | AO1: 5. Meat, poultry, fish (MDD-W) | AZ1: 6. Eggs (MDD-W) | BA1: 7.1 (FRESH) Dark leafy vegetables (MDD-W) | BG1: 7.2 (DRIED) Dark leafy vegetables | BH1: 8. Vitamin A-rich fruits and vegetables (MDD-W) | BL1: 9. Other vegetables (MDD-W) | BR1: 10. Other fruits (MDD-W)
B2: Maize (corn) | C2: Maize flour | D2: Fonio | E2: Rice | F2: Rice flour | G2: Potato, boiled | H2: Cassava | I2: Cassava, boiled | J2: Cassava flour | K2: Plantain | L2: Plantain, boiled | M2: Sorghum | N2: Millet | O2: Finger millet | P2: Millet flour | Q2: Teff | R2: Whole wheat flour | S2: cowpeas, whole, raw | T2: Kidney beans | U2: Pigeon peas | V2: Chickpeas | W2: Chickpea flour | X2: Red lentils | Y2: Black lentils | Z2: Mung bean | AA2: Green split peas (dried) | AB2: Soybeans | AC2: Soy flour | AD2: Bambara nuts | AE2: sesame, whole, raw | AF2: Sesame seed paste (tahini) | AG2: Peanuts | AH2: peanut butter, whole, raw | AI2: Pumpkin seeds | AJ2: Cows mik, whole, raw | AK2: Dry milk powder | AL2: Goat milk | AM2: Buffalo milk | AN2: Unsweetened whole milk yogurt (cows) | AO2: Chicken | AP2: chicken liver | AQ2: Beef | AR2: beef liver | AS2: Rabbit | AT2: Guinea fowl | AU2: Goat meat | AV2: Lamb | AW2: Pork | AX2: Tilapia (steamed) | AY2: Tilapia (grilled) | AZ2: chicken egg, raw | BA2: Spinach | BB2: Pumpkin leaves | BC2: Mustard green leaves | BD2: Kale (sukuma wiki) | BE2: Amaranth leaves (such as African spinach) | BF2: Moringa Leaves (fresh) | BG2: Dried moringa leaves (powder) | BH2: Orange Flesh sweet potatoes | BI2: Carrots | BJ2: Mangoes (ripe) | BK2: Papayas (pawpaw) (ripe) | BL2: Tomatoes | BM2: Onions | BN2: Green Peppers | BO2: Red Peppers | BP2: Cabbage | BQ2: Okra | BR2: Banana | BS2: Orange | BT2: Lemon | BU2: Lime | BV2: Watermelon | BW2: Avocados
A3: SPECIES | B3: Zea mays | C3: Zea mays | D3: Digitaria exilis | E3: Oryza sativa | F3: Oryza sativa | G3: Solanum tuberosum | H3: Manihot esculenta | I3: Manihot esculenta | J3: Manihot esculenta | K3: Musa paradisica | L3: Musa paradisica | M3: Sorghum bicolor | N3: Pennisetum glaucum | R3: triticum spp | S3: Vigna unguiculata | T3: Phaseolus vulgaris var. Kidney | U3: Cajanus cajan | V3: Cicer arietinum | W3: Cicer arietinum | X3: Cajanus cajan | Y3: Phaseolus mongo | Z3: Vigna radiata (L) R Wilczek | AA3: Pisum sativum | AB3: Glycine max | AC3: Glycine max | AD3: Vigna subterranea | AE3: Sesame spp. | AF3: Sesame spp. | AG3: Arachis hypogaea | AH3: Arachis hypogaea | AI3: Curcubita spp. | AJ3: Bos taurus | AK3: Bos taurus | AL3: Capra aegagrus hircus | AN3: Bos taurus | AO3: Gallus gallus domesticus | AP3: Gallus gallus domesticus | AQ3: Bos taurus | AR3: Bos taurus | AS3: Oryctolagus cuniculus | AT3: Numida meleagris | AU3: Capra aegagrus hircus | AV3: Ovis aries | AW3: Sus domesticus | AX3: Oreochromis spp./Tilappia spp. | AY3: Oreochromis spp./Tilappia spp. | AZ3: Gallus gallus domesticus | BA3: Spinacia oleracea | BB3: Cucurbita pepo/Curcurbita maxima | BC3: Brassica juncea | BE3: Amaranthus spp | BF3: Moringa oleifera | BG3: Moringa oleifera | BH3: Ipomoea batatas | BI3: Daucus carota | BJ3: Mangifera indica | BK3: Carica papaya | BL3: Solanum lycopersicum | BM3: Allium cepa | BN3: Capsicum annuum | BO3: Capsicum annuum | BP3: Brassica oleracea var. capitata | BQ3: Abelmoschus esculentus | BR3: Musa spp | BS3: Citrus aurantium | BT3: Citrus limon | BU3: Citrus aurantiifolia | BV3: Citrullus lanatus | BW3: Persea americana
A4: FORM | B4: white, whole kernel, dry, raw | C4: white, meal, sifted, unfortified | D4: Fonio, white, whole grains, raw | E4: white, raw | F4: rice flour, white | G4: Potato, boiled* (without salt), drained | H4: tuber, white flesh, raw | I4: Cassava, tuber, white flesh, boiled* (without salt), drained | J4: flour, from white cassava | K4: ripe, ivory flesh, raw | L4: Plantain, ripe, ivory flesh, boiled* (without salt), drained | M4: whole grains, raw | N4: pearl millet, whole grains (with bran), raw | O4: finger, grain or flour | P4: Millet flour | Q4: raw | R4: wheat flour, white, unfortified | S4: cowpea, dry, raw | T4: beans, kidney, dry, raw | U4: pigeon pea, dry, raw | V4: Bengal gram, whole | W4: Chickpea flour (besan) | X4: red gram, whole | Y4: black gram, whole | Z4: Mung bean, mature, whole, water-soaked, boiled in different water, without salt, drained | AA4: Pea, green, mature, split, dried, raw | AB4: soya bean, dry, raw | AC4: Flour, soy, full-fat | AD4: Bambara groundnut, dry, raw | AE4: Sesame seed, whole, dried, raw | AF4: Seeds, sesame butter, tahini, from roasted and toasted kernels (most common type) | AG4: Groundnut, shelled, dried, raw | AH4: peanut butter, whole, raw | AI4: Pumpkin seed, kernel only, dried, raw | AJ4: Milk, cow, whole, raw, 4.5% fat | AK4: Milk, cow, powder, whole, unfortified | AL4: Milk, goat, fresh | AM4: milk, whole, buffalo | AN4: yoghurt, plain, from whole cow's milk | AO4: Chicken, dark meat with skin, stewed* (as part of a recipe) | AP4: Chicken liver, stewed* (as part of a recipe) | AQ4: Beef meat, moderately fat, ca. 20% fat, stewed* (as part of a recipe) | AR4: Beef liver, stewed* (as part of a recipe) | AS4: Rabbit meat, stewed* (as part of a recipe) | AT4: Guinea fowl meat, stewed* (as part of a recipe) | AU4: Goat meat, moderately fat, ca. 10% fat, stewed* (as part of a recipe) | AV4: Lamb/mutton meat, moderately fat, ca. 20% fat, stewed* (as part of a recipe) | AW4: Pork meat, moderately fat, ca. 20% fat, stewed* (as part of a recipe) | AX4: Tilapia, fillet, steamed* (without salt) | AY4: Tilapia, fillet, grilled* (without salt or fat) | AZ4: egg, chicken, raw | BA4: Spinach, leaves, fresh, raw | BB4: Pumpkin, leaves, fresh, raw | BC4: mustard leaves | BD4: Kale (sukuma wiki), raw | BE4: Amaranth, leaves, fresh, raw | BF4: Moringa (drumstick), leaves, fresh, raw | BH4: sweet potato, orange flesh, raw | BI4: Carrot, raw | BJ4: Mango, orange flesh, ripe, raw | BK4: Papaya, fruit, ripe, raw | BL4: Tomato, red, ripe, raw | BM4: Onion, fresh, raw | BN4: Pepper, sweet, green, fresh, raw | BO4: Pepper, sweet, red, fresh, raw | BP4: cabbage, white, raw | BQ4: Okra, fruit, fresh, raw | BR4: Banana, yellow flesh, ripe, raw | BS4: Orange, raw | BT4: Lemon, raw | BU4: Lime, raw | BV4: Watermelon, fruit, raw | BW4: Avocado, fruit, raw
A6: Energy (kcal, or calories) | B6: 346 | C6: 353 | D6: 334 | E6: 344 | F6: 352 | G6: 79 | H6: 142 | I6: 121 | J6: 341 | K6: 143 | L6: 151 | M6: 345 | N6: 365 | O6: 328 | P6: 382 | Q6: 351 | R6: 352 | S6: 325 | T6: 305 | U6: 310 | V6: 287 | W6: 387 | X6: 274 | Y6: 291 | Z6: 360 | AA6: 368 | AB6: 381 | AD6: 323 | AE6: 601 | AF6: 595 | AG6: 574 | AH6: 593 | AI6: 567 | AJ6: 78 | AK6: 493 | AL6: 83 | AM6: 107 | AN6: 82 | AO6: 331 | AP6: 152 | AQ6: 336 | AR6: 171 | AS6: 205 | AT6: 152 | AU6: 281 | AV6: 405 | AW6: 425 | AX6: 101 | AY6: 112 | AZ6: 150 | BA6: 23 | BB6: 32 | BC6: 30.35 | BD6: 29 | BE6: 40 | BF6: 81 | BG6: 500 | BH6: 91 | BI6: 34 | BJ6: 70 | BK6: 59 | BL6: 22 | BM6: 37 | BN6: 34 | BO6: 48 | BP6: 26 | BQ6: 34 | BR6: 89 | BS6: 44 | BT6: 36 | BU6: 30 | BV6: 25 | BW6: 156
A7: Protein (g) | B7: 9.7 | C7: 8.7 | D7: 7.1 | E7: 7 | F7: 6 | G7: 1.5 | H7: 1.3 | I7: 1.1 | J7: 1.6 | K7: 1.4 | L7: 1.4 | M7: 11.5 | N7: 9.3 | O7: 6.6 | P7: 10.8 | Q7: 13.3 | R7: 10.4 | S7: 22.6 | T7: 20.5 | U7: 20.8 | V7: 18.77 | W7: 22.4 | X7: 20.47 | Y7: 21.97 | Z7: 23.2 | AA7: 24.2 | AB7: 31.3 | AC7: 38.6 | AD7: 19.5 | AE7: 16.6 | AF7: 17 | AG7: 22.4 | AH7: 20.1 | AI7: 27.7 | AJ7: 3.1 | AK7: 25.8 | AL7: 3.9 | AM7: 3.68 | AN7: 2.9 | AO7: 23.8 | AP7: 24.4 | AQ7: 26.2 | AR7: 25.7 | AS7: 30.9 | AT7: 30.7 | AU7: 31 | AV7: 25.9 | AW7: 25 | AX7: 21.4 | AY7: 23.6 | AZ7: 13.5 | BA7: 2.9 | BB7: 4.1 | BC7: 3.52 | BD7: 3 | BE7: 4.1 | BF7: 8.4 | BG7: 33.33 | BH7: 1 | BI7: 0.9 | BJ7: 0.6 | BK7: 0.4 | BL7: 1.1 | BM7: 1.1 | BN7: 0.9 | BO7: 2 | BP7: 1.6 | BQ7: 1.7 | BR7: 1.3 | BS7: 0.7 | BT7: 0.7 | BU7: 0.7 | BV7: 0.5 | BW7: 1.6
A8: Total fat (g) | B8: 3.8 | C8: 3.3 | D8: 3.8 | E8: 0.6 | F8: 1.4 | G8: 0.1 | H8: 0.3 | I8: 0.3 | J8: 0.7 | K8: 0.2 | L8: 0.2 | M8: 3.5 | N8: 5.9 | O8: 1.3 | P8: 4.25 | Q8: 2.4 | R8: 1.8 | S8: 1.5 | T8: 2 | U8: 2.1 | V8: 5.11 | W8: 6.69 | X8: 1.38 | Y8: 1.58 | Z8: 1.5 | AA8: 1.4 | AB8: 17 | AC8: 20.7 | AD8: 5.9 | AE8: 54.1 | AF8: 53.8 | AG8: 44.2 | AH8: 48.4 | AI8: 45.4 | AJ8: 5 | AK8: 26.8 | AL8: 5.3 | AM8: 6.58 | AN8: 4.7 | AO8: 26.2 | AP8: 5.3 | AQ8: 25.7 | AR8: 5.6 | AS8: 9.1 | AT8: 3.2 | AU8: 17.5 | AV8: 33.5 | AW8: 36.2 | AX8: 1.7 | AY8: 1.9 | AZ8: 10.6 | BA8: 0.4 | BB8: 0.2 | BC8: 0.51 | BD8: 0.3 | BE8: 0.4 | BF8: 1.4 | BG8: 33.33 | BH8: 0.2 | BI8: 0.2 | BJ8: 0.2 | BK8: 0.1 | BL8: 0.2 | BM8: 0.1 | BN8: 0.4 | BO8: 0.8 | BP8: 0.1 | BQ8: 0.2 | BR8: 0.2 | BS8: 0.4 | BT8: 0.6 | BU8: 0.2 | BV8: 0.1 | BW8: 14.8
A9: Carbohydrate (g) | B9: 62.6 | C9: 68.6 | D9: 59.7 | E9: 75.9 | F9: 77.7 | G9: 17.4 | H9: 31.6 | I9: 27 | J9: 79.9 | K9: 32.9 | L9: 34.6 | M9: 61.1 | N9: 64.2 | P9: 75.1 | Q9: 65.1 | R9: 72.2 | S9: 49 | T9: 40.6 | U9: 41.6 | V9: 39.56 | W9: 57.8 | X9: 42.48 | Y9: 43.99 | Z9: 54.9 | AA9: 57 | AB9: 14.2 | AC9: 27.9 | AD9: 33.6 | AE9: 4.9 | AF9: 21.2 | AG9: 17.4 | AH9: 15 | AI9: 9 | AJ9: 5 | AK9: 37.3 | AL9: 4.9 | AM9: 8.39 | AN9: 7.1 | AO9: 0 | AP9: 1.7 | AQ9: 0 | AR9: 4.5 | AS9: 0 | AT9: 0 | AU9: 0 | AV9: 0 | AW9: 0 | AX9: 0 | AY9: 0 | AZ9: 0.2 | BA9: 0.7 | BB9: 2.4 | BC9: 2.41 | BD9: 1.2 | BE9: 3 | BF9: 4.5 | BG9: 66.67 | BH9: 19.8 | BI9: 5.5 | BJ9: 15.3 | BK9: 13 | BL9: 3.4 | BM9: 7.1 | BN9: 5.6 | BO9: 7.1 | BP9: 3.6 | BQ9: 4.2 | BR9: 19.2 | BS9: 8.7 | BT9: 5.8 | BU9: 10.5 | BV9: 5 | BW9: 2.1
A10: Fiber (g) | B10: 11.5 | C10: 7 | D10: 16.4 | E10: 3.6 | F10: 2.4 | G10: 1.7 | H10: 3.7 | I10: 3.2 | J10: 4.3 | K10: 2.3 | L10: 2.5 | M10: 11.9 | N10: 9 | O10: 13.4 | P10: 3.5 | Q10: 8 | R10: 2.8 | S10: 12.6 | T10: 21.2 | U10: 21 | V10: 25.22 | W10: 10.8 | X10: 22.84 | Y10: 20.41 | Z10: 17 | AA10: 14.2 | AB10: 23.4 | AD10: 28.9 | AE10: 14.3 | AF10: 9.3 | AG10: 8.3 | AH10: 8.3 | AI10: 6 | AJ10: 0 | AK10: 0 | AL10: 0 | AN10: 0 | AO10: 0 | AP10: 0 | AQ10: 0 | AR10: 0 | AS10: 0 | AT10: 0 | AU10: 0 | AV10: 0 | AW10: 0 | AX10: 0 | AY10: 0 | AZ10: 0 | BA10: 2.7 | BB10: 2.3 | BC10: 3.92 | BD10: 4.7 | BE10: 3.8 | BF10: 8.2 | BG10: 33.33 | BH10: 3 | BI10: 3.2 | BJ10: 1.8 | BK10: 2.1 | BL10: 1.4 | BM10: 1.8 | BN10: 2.4 | BO10: 2.5 | BP10: 2.2 | BQ10: 4.1 | BR10: 2.7 | BS10: 1.7 | BT10: 2.5 | BU10: 2.8 | BV10: 0.9 | BW10: 4
A11: Sugar (g) | BG11: 2667
A12: Calcium [Ca] (mg) | B12: 23 | C12: 15 | D12: 40 | E12: 14 | F12: 10 | G12: 5 | H12: 37 | I12: 30 | J12: 66 | K12: 6 | L12: 6 | M12: 26 | N12: 23 | O12: 275 | P12: 14 | Q12: 180 | R12: 17 | S12: 82 | T12: 106 | U12: 121 | V12: 150 | W12: 45 | X12: 139 | Y12: 86.18 | Z12: 84 | AA12: 41 | AB12: 232 | AC12: 258 | AD12: 53 | AE12: 777 | AF12: 426 | AG12: 45 | AH12: 117 | AI12: 62 | AJ12: 191 | AK12: 925 | AL12: 159 | AM12: 0.004 | AN12: 123 | AO12: 16 | AP12: 8 | AQ12: 20 | AR12: 44 | AS12: 46 | AT12: 35 | AU12: 48 | AV12: 16 | AW12: 15 | AX12: 125 | AY12: 138 | AZ12: 57 | BA12: 99 | BB12: 383 | BC12: 191 | BD12: 402 | BE12: 368 | BF12: 595 | BG12: 6 | BH12: 54 | BI12: 36 | BJ12: 17 | BK12: 21 | BL12: 14 | BM12: 25 | BN12: 28 | BO12: 22 | BP12: 43 | BQ12: 87 | BR12: 9 | BS12: 29 | BT12: 21 | BU12: 26 | BV12: 7 | BW12: 14
A13: Iron [Fe] (mg) | B13: 3.3 | C13: 3.2 | D13: 29.4 | E13: 1.9 | F13: 0.4 | G13: 0.9 | H13: 1.5 | I13: 1.2 | J13: 2 | K13: 1.1 | L13: 1 | M13: 6.8 | N13: 15.2 | O13: 2.7 | P13: 3.94 | Q13: 7.6 | R13: 2 | S13: 6.2 | T13: 6.4 | U13: 4.5 | V13: 6.78 | W13: 4.86 | X13: 5.37 | Y13: 5.97 | Z13: 4.2 | AA13: 3.9 | AB13: 7.8 | AC13: 9.51 | AD13: 3.2 | AE13: 11.2 | AF13: 8.95 | AG13: 3.5 | AH13: 5.5 | AI13: 8.3 | AJ13: 0.1 | AK13: 0.8 | AL13: 0.1 | AM13: 0.16 | AN13: 0.1 | AO13: 1.4 | AP13: 12.6 | AQ13: 1.8 | AR13: 13.1 | AS13: 2.6 | AT13: 1.7 | AU13: 3.9 | AV13: 3.4 | AW13: 3.1 | AX13: 1.6 | AY13: 1.9 | AZ13: 2.2 | BA13: 2.7 | BB13: 2.2 | BC13: 2.84 | BD13: 2.8 | BE13: 7.2 | BF13: 10.3 | BG13: 233 | BH13: 0.9 | BI13: 0.8 | BJ13: 0.7 | BK13: 0.8 | BL13: 0.7 | BM13: 0.7 | BN13: 0.9 | BO13: 2.2 | BP13: 1.2 | BQ13: 0.8 | BR13: 0.3 | BS13: 0.2 | BT13: 0.6 | BU13: 0.6 | BV13: 0.3 | BW13: 1.3
A14: Magnesium [Mg] (mg) | B14: 89 | C14: 90 | D14: 430 | E14: 46 | F14: 35 | G14: 23 | H14: 13 | I14: 10 | J14: 51 | K14: 37 | L14: 35 | M14: 193 | N14: 96 | O14: 27 | P14: 119 | Q14: 184 | R14: 20 | S14: 249 | T14: 103 | U14: 191 | V14: 160 | W14: 166 | X14: 155 | Y14: 190 | Z14: 131 | AA14: 86 | AB14: 245 | AC14: 254 | AD14: 174 | AE14: 347 | AF14: 95 | AG14: 200 | AH14: 225 | AI14: 534 | AJ14: 13 | AK14: 85 | AL14: 20 | AM14: 10.05 | AN14: 13 | AO14: 27 | AP14: 24 | AQ14: 28 | AR14: 22 | AS14: 42 | AT14: 34 | AU14: 43 | AV14: 33 | AW14: 23 | AX14: 30 | AY14: 35 | AZ14: 14 | BA14: 79 | BB14: 142 | BC14: 51.63 | BD14: 41 | BE14: 160 | BF14: 68 | BH14: 28 | BI14: 14 | BJ14: 9 | BK14: 8 | BL14: 13 | BM14: 12 | BN14: 10 | BO14: 20 | BP14: 9 | BQ14: 77 | BR14: 16 | BS14: 11 | BT14: 12 | BU14: 8 | BV14: 9 | BW14: 25
A15: Potassium [K] (mg) | B15: 316 | C15: 197 | D15: 340 | E15: 181 | F15: 76 | G15: 375 | H15: 167 | I15: 114 | J15: 209 | K15: 499 | L15: 420 | M15: 305 | N15: 332 | O15: 408 | P15: 224 | Q15: 427 | R15: 111 | S15: 1120 | T15: 872 | U15: 1660 | V15: 935 | W15: 846 | X15: 1303 | Y15: 1093 | Z15: 977 | AA15: 1080 | AB15: 1740 | AC15: 1860 | AD15: 1160 | AE15: 458 | AF15: 414 | AG15: 619 | AH15: 630 | AI15: 579 | AJ15: 159 | AK15: 1140 | AL15: 185 | AM15: 109 | AN15: 135 | AO15: 254 | AP15: 320 | AQ15: 408 | AR15: 212 | AS15: 543 | AT15: 182 | AU15: 511 | AV15: 397 | AW15: 360 | AX15: 229 | AY15: 286 | AZ15: 150 | BA15: 558 | BB15: 500 | BC15: 403 | BD15: 238 | BE15: 545 | BF15: 405 | BH15: 288 | BI15: 225 | BJ15: 194 | BK15: 220 | BL15: 235 | BM15: 162 | BN15: 177 | BO15: 177 | BP15: 313 | BQ15: 382 | BR15: 293 | BS15: 162 | BT15: 157 | BU15: 138 | BV15: 109 | BW15: 414
A16: Sodium [Na] (mg) | B16: 15 | C16: 4 | D16: 8 | E16: 3 | F16: 0 | G16: 6 | H16: 2 | I16: 1 | J16: 3 | K16: 4 | L16: 3 | M16: 9 | N16: 12 | O16: 11 | P16: 4 | Q16: 12 | R16: 4 | S16: 22 | T16: 22 | U16: 3 | V16: 26.56 | W16: 64 | X16: 19.03 | Y16: 26.8 | Z16: 8 | AA16: 12 | AB16: 5 | AC16: 2 | AD16: 2 | AE16: 45 | AF16: 115 | AG16: 6 | AH16: 1 | AI16: 5 | AJ16: 45 | AK16: 380 | AL16: 55 | AM16: 30.1 | AN16: 29 | AO16: 104 | AP16: 92 | AQ16: 128 | AR16: 100 | AS16: 75 | AT16: 25 | AU16: 178 | AV16: 97 | AW16: 85 | AX16: 63 | AY16: 69 | AZ16: 165 | BA16: 79 | BB16: 11 | BC16: 19.14 | BD16: 71 | BE16: 7 | BF16: 9 | BH16: 20 | BI16: 35 | BJ16: 3 | BK16: 4 | BL16: 13 | BM16: 10 | BN16: 10 | BO16: 10 | BP16: 13 | BQ16: 11 | BR16: 2 | BS16: 2 | BT16: 4 | BU16: 2 | BV16: 4 | BW16: 4
A17: Zinc [Zn] (mg) | B17: 2.2 | C17: 2.01 | D17: 2.79 | E17: 1.45 | F17: 0.8 | G17: 0.33 | H17: 2.05 | I17: 1.58 | J17: 0.17 | K17: 0.14 | L17: 0.13 | M17: 1.88 | N17: 2.58 | O17: 1.2 | P17: 2.63 | Q17: 3.63 | R17: 0.5 | S17: 3.55 | T17: 2.78 | U17: 2.49 | V17: 3.37 | W17: 2.81 | X17: 2.99 | Y17: 3.05 | Z17: 1.62 | AA17: 3.44 | AB17: 4.73 | AC17: 3.75 | AD17: 2.4 | AE17: 2.1 | AF17: 4.62 | AG17: 2.61 | AH17: 2.24 | AI17: 8.89 | AJ17: 0.32 | AK17: 3.34 | AL17: 0.38 | AM17: 0.3 | AN17: 0.35 | AO17: 2.26 | AP17: 4.21 | AQ17: 4.78 | AR17: 4.75 | AS17: 2.35 | AT17: 1.97 | AU17: 5.94 | AV17: 3.65 | AW17: 3.2 | AX17: 1.05 | AY17: 1.15 | AZ17: 1.51 | BA17: 0.53 | BB17: 0.9 | BC17: 0.68 | BD17: 0.5 | BE17: 0.66 | BF17: 1.2 | BH17: 0.62 | BI17: 0.25 | BJ17: 0.1 | BK17: 0.15 | BL17: 0.22 | BM17: 0.28 | BN17: 0.24 | BO17: 0.12 | BP17: 0.16 | BQ17: 0.55 | BR17: 0.28 | BS17: 0.08 | BT17: 0.1 | BU17: 0.1 | BV17: 0.1 | BW17: 0.36
A18: Vitamin A RAE (mcg) | B18: 0 | C18: 0 | D18: 0 | E18: 0 | F18: 0 | G18: 0 | H18: 2 | I18: 2 | J18: 0 | K18: 63 | L18: 63 | M18: 1 | N18: 0 | O18: 5 | Q18: 0 | R18: 0 | S18: 1 | T18: 1 | U18: 8 | W18: 2 | Z18: 8 | AA18: 9 | AB18: 0 | AD18: tr | AE18: 1 | AF18: 3 | AG18: 2 | AH18: 0 | AI18: 2 | AJ18: 29 | AK18: 329 | AL18: 37 | AN18: 26 | AO18: 56 | AP18: 8420 | AQ18: 19 | AR18: 23400 | AS18: 7 | AT18: 14 | AU18: 13 | AV18: 22 | AW18: 6 | AX18: 10 | AY18: 11 | AZ18: 122 | BA18: 159 | BB18: 112 | BD18: 177 | BE18: 225 | BF18: 1640 | BH18: 791 | BI18: 637 | BJ18: 202 | BK18: 63 | BL18: 44 | BM18: 0 | BN18: 61 | BO18: 104 | BP18: tr | BQ18: 43 | BR18: 119 | BS18: 8 | BT18: 1 | BU18: 2 | BV18: 25 | BW18: 2
A19: Thiamine [Vit B1] (mg) | B19: 0.32 | C19: 0.32 | D19: 0.26 | E19: 0.12 | F19: 0.14 | G19: 0.06 | H19: 0.05 | I19: 0.03 | J19: 0.09 | K19: 0.05 | L19: 0.04 | M19: 0.35 | N19: 0.29 | O19: 0.3 | P19: 0.413 | Q19: 0.39 | R19: 0.21 | S19: 0.58 | T19: 0.35 | U19: 0.82 | V19: 0.37 | W19: 0.486 | X19: 0.74 | Y19: 0.32 | Z19: 0.27 | AA19: 0.79 | AB19: 0.7 | AC19: 0.362 | AD19: 0.19 | AE19: 0.68 | AF19: 1.22 | AG19: 0.87 | AH19: 0.85 | AI19: 0.25 | AJ19: 0.04 | AK19: 0.3 | AL19: 0.07 | AM19: 0.05 | AN19: 0.03 | AO19: 0.06 | AP19: 0.41 | AQ19: 0.09 | AR19: 0.28 | AS19: 0.03 | AT19: 0.13 | AU19: 0.22 | AV19: 0.15 | AW19: 0.66 | AX19: 0.02 | AY19: 0.02 | AZ19: 0.12 | BA19: 0.08 | BB19: 0.08 | BC19: 0.08 | BD19: 0.11 | BE19: 0.05 | BF19: 0.22 | BH19: 0.03 | BI19: 0.04 | BJ19: 0.03 | BK19: 0.03 | BL19: 0.06 | BM19: 0.02 | BN19: 0.11 | BO19: 0.11 | BP19: 0.04 | BQ19: 0.04 | BR19: 0.03 | BS19: 0.02 | BT19: 0.04 | BU19: 0 | BV19: 0.03 | BW19: 0.05
A20: Riboflavin [Vit B2] (mg) | B20: 0.09 | C20: 0.07 | D20: 0.1 | E20: 0.03 | F20: 0.02 | G20: 0.03 | H20: 0.03 | I20: 0.02 | J20: 0.04 | K20: 0.05 | L20: 0.05 | M20: 0.15 | N20: 0.19 | O20: 0.1 | P20: 0.073 | Q20: 0.27 | R20: 0.09 | S20: 0.15 | T20: 0.18 | U20: 0.16 | V20: 0.24 | W20: 0.106 | X20: 0.15 | Y20: 0.11 | Z20: 0.22 | AA20: 0.24 | AB20: 0.28 | AC20: 0.363 | AD20: 0.14 | AE20: 0.19 | AF20: 0.473 | AG20: 0.14 | AH20: 0.14 | AI20: 0.24 | AJ20: 0.2 | AK20: 1.2 | AL20: 0.17 | AM20: 0.13 | AN20: 0.16 | AO20: 0.21 | AP20: 2 | AQ20: 0.15 | AR20: 2 | AS20: 0.15 | AT20: 0.29 | AU20: 0.45 | AV20: 0.29 | AW20: 0.15 | AX20: 0.07 | AY20: 0.1 | AZ20: 0.51 | BA20: 0.19 | BB20: 0.08 | BC20: 0.18 | BD20: 0.13 | BE20: 0.19 | BF20: 0.77 | BH20: 0.05 | BI20: 0.05 | BJ20: 0.05 | BK20: 0.03 | BL20: 0.04 | BM20: 0.04 | BN20: 0.13 | BO20: 0.16 | BP20: 0.04 | BQ20: 0.08 | BR20: 0.03 | BS20: 0.03 | BT20: 0.02 | BU20: 0 | BV20: 0.04 | BW20: 0.15
A21: Niacin Equiv [Vit B3] (mg) | B21: 3.1 | C21: 2.3 | D21: 3.3 | E21: 3.3 | F21: 3.8 | G21: 1.4 | H21: 0.8 | I21: 0.6 | J21: 1.5 | K21: 1 | L21: 0.8 | M21: 5.4 | N21: 3.8 | O21: 0.8 | P21: 6.02 | Q21: 3.4 | R21: 4.3 | S21: 5.5 | T21: 2.4 | U21: 5.5 | V21: 2.1 | W21: 1.76 | X21: 2.42 | Y21: 1.85 | Z21: 1.6 | AA21: 3.2 | AB21: 11 | AC21: 2.74 | AD21: 4.1 | AE21: 7.6 | AF21: 5.45 | AG21: 19 | AH21: 15 | AI21: 12 | AJ21: 1 | AK21: 6.8 | AL21: 1.1 | AM21: 0.07 | AN21: 0.8 | AO21: 10 | AP21: 15 | AQ21: 9.7 | AR21: 22 | AS21: 14 | AT21: 13 | AU21: 13 | AV21: 9.7 | AW21: 11 | AX21: 5.9 | AY21: 7.3 | AZ21: 3.6 | BA21: 1.4 | BB21: 1.8 | BC21: 0.58 | BD21: 1 | BE21: 1.4 | BF21: 2.6 | BH21: 1.3 | BI21: 0.7 | BJ21: 0.5 | BK21: 0.4 | BL21: 0.7 | BM21: 0.4 | BN21: 0.8 | BO21: 2.5 | BP21: 0.6 | BQ21: 1.2 | BR21: 0.9 | BS21: 0.3 | BT21: 0.3 | BU21: 0.2 | BV21: 0.2 | BW21: 2.1
A22: Folate DFE (mcg) | B22: 71 | C22: 29 | D22: 120 | E22: 16 | F22: 4 | G22: 6 | H22: 24 | I22: 13 | J22: 100 | K22: 22 | L22: 15 | M22: 64 | N22: 160 | O22: 10 | P22: 42 | Q22: 166 | R22: 240 | S22: 420 | T22: 272 | U22: 340 | V22: 233 | W22: 437 | X22: 229 | Y22: 134 | Z22: 340 | AA22: 230 | AB22: 380 | AD22: 100 | AE22: 100 | AF22: 98 | AG22: 110 | AH22: 110 | AI22: 58 | AJ22: 6 | AK22: 37 | AL22: 1 | AM22: 8.57 | AN22: 7 | AO22: 7 | AP22: 1000 | AQ22: 11 | AR22: 250 | AS22: 2 | AT22: 5 | AU22: 4 | AV22: 13 | AW22: 9 | AX22: 4 | AY22: 5 | AZ22: 83 | BA22: 190 | BB22: 36 | BC22: 110 | BD22: 62 | BE22: 76 | BF22: 40 | BH22: 11 | BI22: 17 | BJ22: 40 | BK22: 37 | BL22: 23 | BM22: 17 | BN22: 24 | BO22: 24 | BP22: 15 | BQ22: 88 | BR22: 19 | BS22: 37 | BT22: 17 | BU22: 8 | BV22: 8 | BW22: 22
A23: Vitamin B12 (mcg) | B23: 0 | C23: 0 | D23: 0 | E23: 0 | F23: 0 | G23: 0 | H23: 0 | I23: 0 | J23: 0 | K23: 0 | L23: 0 | M23: 0 | N23: 0 | O23: 0 | Q23: 0 | R23: 0 | S23: 0 | T23: 0 | U23: 0 | W23: 0 | Z23: 0 | AA23: 0 | AB23: 0 | AD23: 0 | AE23: 0 | AF23: 0 | AG23: 0 | AH23: 0 | AI23: 0 | AJ23: 0.4 | AK23: 1.8 | AL23: 0.1 | AN23: 0.4 | AO23: 0.29 | AP23: 26 | AQ23: 1.1 | AR23: 130 | AS23: 5.4 | AT23: 0.37 | AU23: 2.1 | AV23: 3.2 | AW23: 0.49 | AX23: 1.4 | AY23: 1.7 | AZ23: 1.4 | BA23: 0 | BB23: 0 | BD23: 0 | BE23: 0 | BF23: 0 | BH23: 0 | BI23: 0 | BJ23: 0 | BK23: 0 | BL23: 0 | BM23: 0 | BN23: 0 | BO23: 0 | BP23: 0 | BQ23: 0 | BR23: 0 | BS23: 0 | BT23: 0 | BU23: 0 | BV23: 0 | BW23: 0
A24: Vitamin C (mg) | B24: 2 | C24: 0 | D24: 0 | E24: 0 | F24: 0 | G24: 10 | H24: 30 | I24: 18 | J24: 1 | K24: 20 | L24: 15 | M24: 0 | N24: 0 | O24: 0 | P24: 0 | Q24: 3 | R24: 0 | S24: 1 | T24: 0.3 | U24: 1 | W24: 0 | Z24: 2 | AA24: 3.9 | AB24: tr | AD24: tr | AE24: 0 | AF24: 0 | AG24: 1 | AH24: 0 | AI24: 2 | AJ24: 1 | AK24: 13 | AL24: 1 | AN24: 1 | AO24: 0 | AP24: 23 | AQ24: 0 | AR24: 24 | AS24: 0 | AT24: 2 | AU24: 1 | AV24: 0 | AW24: 0 | AX24: 0 | AY24: 0 | AZ24: 0 | BA24: 28 | BB24: 11 | BD24: 134 | BE24: 67 | BF24: 221 | BG24: 40 | BH24: 31 | BI24: 7 | BJ24: 35 | BK24: 52 | BL24: 28 | BM24: 11 | BN24: 140 | BO24: 190 | BP24: 54 | BQ24: 28 | BR24: 10 | BS24: 46 | BT24: 43 | BU24: 29.1 | BV24: 6 | BW24: 18
A26: SOURCE LINK | B26: WAFCT 2019 03 NV_sum_39 | C26: WAFCT 2019 03 NV_sum_39 | D26: WAFCT 2019 03 NV_sum_39 | E26: WAFCT 2019 03 NV_sum_39 | F26: WAFCT 2019 03 NV_sum_39 | G26: WAFCT 2019 03 NV_sum_39 | H26: WAFCT 2019 03 NV_sum_39 | I26: WAFCT 2019 03 NV_sum_39 | J26: WAFCT 2019 03 NV_sum_39 | K26: WAFCT 2019 03 NV_sum_39 | L26: WAFCT 2019 03 NV_sum_39 | M26: WAFCT 2019 03 NV_sum_39 | N26: WAFCT 2019 03 NV_sum_39 | O26: Tanzania Food Composition Table 2008 | P26: https://fdc.nal.usda.gov/fdc-app.html#/food-details/172023/nutrients | Q26: Kenya Food Composition Tables 2018 | R26: WAFCT 2019 03 NV_sum_39 | S26: WAFCT 2019 03 NV_sum_39 | T26: Kenya Food Composition Tables 2018 | U26: WAFCT 2019 03 NV_sum_39 | V26: http://www.ifct2017.com/frame.php?page=home | W26: https://fdc.nal.usda.gov/fdc-app.html#/food-details/174288/nutrients | X26: http://www.ifct2017.com/frame.php?page=home | Y26: http://www.ifct2017.com/frame.php?page=home | Z26: FAO/INFOODS Global Database for Pulses on Dry Matter Basis – version 1.0 (PulsesDM1.0) - 2017 | AA26: FAO/INFOODS Global Database for Pulses on Dry Matter Basis – version 1.0 (PulsesDM1.0) - 2017 | AB26: WAFCT 2019 03 NV_sum_39 | AC26: https://fdc.nal.usda.gov/fdc-app.html#/food-details/1104766/nutrients | AD26: WAFCT 2019 03 NV_sum_39 | AE26: WAFCT 2019 03 NV_sum_39 | AF26: https://fdc.nal.usda.gov/fdc-app.html#/food-details/170189/nutrients | AG26: WAFCT 2019 03 NV_sum_39 | AH26: Kenya Food Composition Tables 2018 | AI26: WAFCT 2019 03 NV_sum_39 | AJ26: WAFCT 2019 03 NV_sum_39 | AK26: WAFCT 2019 03 NV_sum_39 | AL26: WAFCT 2019 03 NV_sum_39 | AM26: http://www.ifct2017.com/frame.php?page=home | AN26: WAFCT 2019 03 NV_sum_39 | AO26: WAFCT 2019 03 NV_sum_39 | AP26: WAFCT 2019 03 NV_sum_39 | AQ26: WAFCT 2019 03 NV_sum_39 | AR26: WAFCT 2019 03 NV_sum_39 | AS26: WAFCT 2019 03 NV_sum_39 | AT26: WAFCT 2019 03 NV_sum_39 | AU26: WAFCT 2019 03 NV_sum_39 | AV26: WAFCT 2019 03 NV_sum_39 | AW26: WAFCT 2019 03 NV_sum_39 | AX26: WAFCT 2019 03 NV_sum_39 | AY26: WAFCT 2019 03 NV_sum_39 | AZ26: WAFCT 2019 03 NV_sum_39 | BA26: WAFCT 2019 03 NV_sum_39 | BB26: WAFCT 2019 03 NV_sum_39 | BC26: http://www.ifct2017.com/frame.php?page=home | BD26: Kenya Food Composition Tables 2018 | BE26: WAFCT 2019 03 NV_sum_39 | BF26: WAFCT 2019 03 NV_sum_39 | BG26: https://fdc.nal.usda.gov/fdc-app.html#/food-details/589814/nutrients | BH26: WAFCT 2019 03 NV_sum_39 | BI26: WAFCT 2019 03 NV_sum_39 | BJ26: WAFCT 2019 03 NV_sum_39 | BK26: WAFCT 2019 03 NV_sum_39 | BL26: WAFCT 2019 03 NV_sum_39 | BM26: WAFCT 2019 03 NV_sum_39 | BN26: WAFCT 2019 03 NV_sum_39 | BO26: WAFCT 2019 03 NV_sum_39 | BP26: WAFCT 2019 03 NV_sum_39 | BQ26: WAFCT 2019 03 NV_sum_39 | BR26: WAFCT 2019 03 NV_sum_39 | BS26: WAFCT 2019 03 NV_sum_39 | BT26: WAFCT 2019 03 NV_sum_39 | BU26: Tanzania Food Composition Table 2008 | BV26: WAFCT 2019 03 NV_sum_39 | BW26: WAFCT 2019 03 NV_sum_39
A27: NOTES

Sheet FBREFB #1 (Details) (hidden)
A1: =_xlfn.CONCAT(#REF!," Nutrition Composition") -> 
A2: Weight = | B2: =#REF! -> 
A3: Nutrients (before & after cooking) | B3: Energy (kcal, or calories) | C3: Protein (g) | D3: Total fat (g) | E3: Saturated Fat (g) | F3: Monounsaturated fat (g) | G3: Polyunsaturated fat (g) | H3: Carbohydrate (g) | I3: Fiber (g) | J3: Sugar (g) | K3: Calcium [Ca] (mg) | L3: Iron [Fe] (mg) | M3: Magnesium [Mg] (mg) | N3: Phosphorus [P] (mg) | O3: Potassium [K] (mg) | R3: Sodium [Na] (mg) | S3: Zinc [Zn] (mg)
A4: Raw FBR Ingredients | B4: =((#REF!/100)*#REF!)+((#REF!/100)*#REF!)+((#REF!/100)*#REF!)+((#REF!/100)*#REF!)+((#REF!/100)*#REF!)+((#REF!/100)*#REF!)+((#REF!/100)*#REF!)+((#REF!/100)*#REF!)+((#REF!/100)*#REF!)+((#REF!/100)*#REF!)+((#REF!/100)*#REF!)+((#REF!/100)*#REF!) ->  | C4: =((#REF!/100)*#REF!)+((#REF!/100)*#REF!)+((#REF!/100)*#REF!)+((#REF!/100)*#REF!)+((#REF!/100)*#REF!)+((#REF!/100)*#REF!)+((#REF!/100)*#REF!)+((#REF!/100)*#REF!)+((#REF!/100)*#REF!)+((#REF!/100)*#REF!)+((#REF!/100)*#REF!)+((#REF!/100)*#REF!) ->  | D4: =((#REF!/100)*#REF!)+((#REF!/100)*#REF!)+((#REF!/100)*#REF!)+((#REF!/100)*#REF!)+((#REF!/100)*#REF!)+((#REF!/100)*#REF!)+((#REF!/100)*#REF!)+((#REF!/100)*#REF!)+((#REF!/100)*#REF!)+((#REF!/100)*#REF!)+((#REF!/100)*#REF!)+((#REF!/100)*#REF!) ->  | E4: =((#REF!/100)*#REF!)+((#REF!/100)*#REF!)+((#REF!/100)*#REF!)+((#REF!/100)*#REF!)+((#REF!/100)*#REF!)+((#REF!/100)*#REF!)+((#REF!/100)*#REF!)+((#REF!/100)*#REF!)+((#REF!/100)*#REF!)+((#REF!/100)*#REF!)+((#REF!/100)*#REF!)+((#REF!/100)*#REF!) ->  | F4: =((#REF!/100)*#REF!)+((#REF!/100)*#REF!)+((#REF!/100)*#REF!)+((#REF!/100)*#REF!)+((#REF!/100)*#REF!)+((#REF!/100)*#REF!)+((#REF!/100)*#REF!)+((#REF!/100)*#REF!)+((#REF!/100)*#REF!)+((#REF!/100)*#REF!)+((#REF!/100)*#REF!)+((#REF!/100)*#REF!) ->  | G4: =((#REF!/100)*#REF!)+((#REF!/100)*#REF!)+((#REF!/100)*#REF!)+((#REF!/100)*#REF!)+((#REF!/100)*#REF!)+((#REF!/100)*#REF!)+((#REF!/100)*#REF!)+((#REF!/100)*#REF!)+((#REF!/100)*#REF!)+((#REF!/100)*#REF!)+((#REF!/100)*#REF!)+((#REF!/100)*#REF!) ->  | H4: =((#REF!/100)*#REF!)+((#REF!/100)*#REF!)+((#REF!/100)*#REF!)+((#REF!/100)*#REF!)+((#REF!/100)*#REF!)+((#REF!/100)*#REF!)+((#REF!/100)*#REF!)+((#REF!/100)*#REF!)+((#REF!/100)*#REF!)+((#REF!/100)*#REF!)+((#REF!/100)*#REF!)+((#REF!/100)*#REF!) ->  | I4: =((#REF!/100)*#REF!)+((#REF!/100)*#REF!)+((#REF!/100)*#REF!)+((#REF!/100)*#REF!)+((#REF!/100)*#REF!)+((#REF!/100)*#REF!)+((#REF!/100)*#REF!)+((#REF!/100)*#REF!)+((#REF!/100)*#REF!)+((#REF!/100)*#REF!)+((#REF!/100)*#REF!)+((#REF!/100)*#REF!) ->  | J4: =((#REF!/100)*#REF!)+((#REF!/100)*#REF!)+((#REF!/100)*#REF!)+((#REF!/100)*#REF!)+((#REF!/100)*#REF!)+((#REF!/100)*#REF!)+((#REF!/100)*#REF!)+((#REF!/100)*#REF!)+((#REF!/100)*#REF!)+((#REF!/100)*#REF!)+((#REF!/100)*#REF!)+((#REF!/100)*#REF!) ->  | K4: =((#REF!/100)*#REF!)+((#REF!/100)*#REF!)+((#REF!/100)*#REF!)+((#REF!/100)*#REF!)+((#REF!/100)*#REF!)+((#REF!/100)*#REF!)+((#REF!/100)*#REF!)+((#REF!/100)*#REF!)+((#REF!/100)*#REF!)+((#REF!/100)*#REF!)+((#REF!/100)*#REF!)+((#REF!/100)*#REF!) ->  | L4: 0.11 | M4: =((#REF!/100)*#REF!)+((#REF!/100)*#REF!)+((#REF!/100)*#REF!)+((#REF!/100)*#REF!)+((#REF!/100)*#REF!)+((#REF!/100)*#REF!)+((#REF!/100)*#REF!)+((#REF!/100)*#REF!)+((#REF!/100)*#REF!)+((#REF!/100)*#REF!)+((#REF!/100)*#REF!)+((#REF!/100)*#REF!) ->  | N4: =((#REF!/100)*#REF!)+((#REF!/100)*#REF!)+((#REF!/100)*#REF!)+((#REF!/100)*#REF!)+((#REF!/100)*#REF!)+((#REF!/100)*#REF!)+((#REF!/100)*#REF!)+((#REF!/100)*#REF!)+((#REF!/100)*#REF!)+((#REF!/100)*#REF!)+((#REF!/100)*#REF!)+((#REF!/100)*#REF!) ->  | O4: =((#REF!/100)*#REF!)+((#REF!/100)*#REF!)+((#REF!/100)*#REF!)+((#REF!/100)*#REF!)+((#REF!/100)*#REF!)+((#REF!/100)*#REF!)+((#REF!/100)*#REF!)+((#REF!/100)*#REF!)+((#REF!/100)*#REF!)+((#REF!/100)*#REF!)+((#REF!/100)*#REF!)+((#REF!/100)*#REF!) ->  | R4: =((#REF!/100)*#REF!)+((#REF!/100)*#REF!)+((#REF!/100)*#REF!)+((#REF!/100)*#REF!)+((#REF!/100)*#REF!)+((#REF!/100)*#REF!)+((#REF!/100)*#REF!)+((#REF!/100)*#REF!)+((#REF!/100)*#REF!)+((#REF!/100)*#REF!)+((#REF!/100)*#REF!)+((#REF!/100)*#REF!) ->  | S4: =((#REF!/100)*#REF!)+((#REF!/100)*#REF!)+((#REF!/100)*#REF!)+((#REF!/100)*#REF!)+((#REF!/100)*#REF!)+((#REF!/100)*#REF!)+((#REF!/100)*#REF!)+((#REF!/100)*#REF!)+((#REF!/100)*#REF!)+((#REF!/100)*#REF!)+((#REF!/100)*#REF!)+((#REF!/100)*#REF!) -> 
A5: Cooked FBR (+ retention factor) | B5: =B4 ->  | L5: 0.11 | R5: =R4 -> 
A7: Daily Nutrient Values for select populations | B7: Energy (kcal, or calories) | C7: Protein (g) | D7: Total fat (g) | E7: Saturated Fat (g) | F7: Monounsaturated fat (g) | G7: Polyunsaturated fat (g) | H7: Carbohydrate (g) | I7: Fiber (g) | J7: Sugar (g) | K7: Calcium [Ca] (mg) | L7: Iron [Fe] (mg) | M7: Magnesium [Mg] (mg) | N7: Phosphorus [P] (mg) | O7: Potassium [K] (mg) | R7: Sodium [Na] (mg) | S7: Zinc [Zn] (mg)
A8: Men, Adult, RDA (2000 calorie diet) | B8: 2400 | C8: =(B8*0.15)/4 -> 90 | D8: =(B8*0.35)/9 -> 93.33333333 | E8: =(B8*0.1)/9 -> 26.66666667 | F8: =((D8-E8)*0.6) -> 40 | G8: =((D8-E8)*0.4) -> 26.66666667 | H8: =(B8*0.5)/4 -> 300 | I8: 38 | J8: 36 | K8: 1000 | L8: 8 | M8: 420 | N8: 1250 | O8: 3400 | R8: 2000 | S8: 11
A9: Men, Adult, % Daily Value | B9: =B$5/B8 ->  | L9: 0.01375 | R9: =R$5/R8 -> 
B10: Energy (kcal, or calories) | C10: Protein (g) | D10: Total fat (g) | E10: Saturated Fat (g) | F10: Monounsaturated fat (g) | G10: Polyunsaturated fat (g) | H10: Carbohydrate (g) | I10: Fiber (g) | J10: Sugar (g) | K10: Calcium [Ca] (mg) | L10: Iron [Fe] (mg) | M10: Magnesium [Mg] (mg) | N10: Phosphorus [P] (mg) | O10: Potassium [K] (mg) | R10: Sodium [Na] (mg) | S10: Zinc [Zn] (mg)
A11: Women, Adult, RDA (2000 calorie diet) | B11: 2000 | C11: =(B11*0.15)/4 -> 75 | D11: =(B11*0.35)/9 -> 77.77777778 | E11: =(B11*0.1)/9 -> 22.22222222 | F11: =((D11-E11)*0.6) -> 33.33333333 | G11: =((D11-E11)*0.4) -> 22.22222222 | H11: =(B11*0.5)/4 -> 250 | I11: 25 | J11: 25 | K11: 1000 | L11: 18 | M11: 320 | N11: 1250 | O11: 2600 | R11: 2000 | S11: 8
A12: Women, Adult, % Daily Value | B12: =B$5/B11 ->  | L12: 0.006111111111 | R12: =R$5/R11 -> 
B13: Energy (kcal, or calories) | C13: Protein (g) | D13: Total fat (g) | E13: Saturated Fat (g) | F13: Monounsaturated fat (g) | G13: Polyunsaturated fat (g) | H13: Carbohydrate (g) | I13: Fiber (g) | J13: Sugar (g) | K13: Calcium [Ca] (mg) | L13: Iron [Fe] (mg) | M13: Magnesium [Mg] (mg) | N13: Phosphorus [P] (mg) | O13: Potassium [K] (mg) | R13: Sodium [Na] (mg) | S13: Zinc [Zn] (mg)
A14: PLW, Adult, RDA | B14: 2200 | C14: =(B14*0.15)/4 -> 82.5 | D14: =(B14*0.35)/9 -> 85.55555556 | E14: =(B14*0.1)/9 -> 24.44444444 | F14: =((D14-E14)*0.6) -> 36.66666667 | G14: =((D14-E14)*0.4) -> 24.44444444 | H14: =(B14*0.5)/4 -> 275 | I14: 29 | J14: 28 | K14: 1000 | L14: 27 | M14: 350 | N14: 700 | O14: 2900 | R14: 2000 | S14: 11
A15: PLW, Adult, % Daily Value | B15: =B$5/B14 ->  | L15: 0.004074074074 | R15: =R$5/R14 -> 
B16: Energy (kcal, or calories) | C16: Protein (g) | D16: Total fat (g) | E16: Saturated Fat (g) | F16: Monounsaturated fat (g) | G16: Polyunsaturated fat (g) | H16: Carbohydrate (g) | I16: Fiber (g) | J16: Sugar (g) | K16: Calcium [Ca] (mg) | L16: Iron [Fe] (mg) | M16: Magnesium [Mg] (mg) | N16: Phosphorus [P] (mg) | O16: Potassium [K] (mg) | R16: Sodium [Na] (mg) | S16: Zinc [Zn] (mg)
A17: Teens (14-18 years), RDA | B17: 2000 | C17: =(B17*0.15)/4 -> 75 | D17: =(B17*0.35)/9 -> 77.77777778 | E17: =(B17*0.1)/9 -> 22.22222222 | F17: =((D17-E17)*0.6) -> 33.33333333 | G17: =((D17-E17)*0.4) -> 22.22222222 | H17: =(B17*0.5)/4 -> 250 | I17: 26 | J17: 25 | K17: 1300 | L17: 13 | M17: 380 | N17: 1250 | O17: 2600 | R17: 2000 | S17: 10
A18: Teens (14-18 years), % Daily Value | B18: =B$5/B17 ->  | L18: 0.008461538462 | R18: =R$5/R17 -> 
B19: Energy (kcal, or calories) | C19: Protein (g) | D19: Total fat (g) | E19: Saturated Fat (g) | F19: Monounsaturated fat (g) | G19: Polyunsaturated fat (g) | H19: Carbohydrate (g) | I19: Fiber (g) | J19: Sugar (g) | K19: Calcium [Ca] (mg) | L19: Iron [Fe] (mg) | M19: Magnesium [Mg] (mg) | N19: Phosphorus [P] (mg) | O19: Potassium [K] (mg) | R19: Sodium [Na] (mg) | S19: Zinc [Zn] (mg)
A20: Children (4-8 years), RDA | B20: 1400 | C20: =(B20*0.15)/4 -> 52.5 | D20: =(B20*0.35)/9 -> 54.44444444 | E20: =(B20*0.1)/9 -> 15.55555556 | F20: =((D20-E20)*0.6) -> 23.33333333 | G20: =((D20-E20)*0.4) -> 15.55555556 | H20: =(B20*0.5)/4 -> 175 | I20: 25 | J20: 20 | K20: 1000 | L20: 10 | M20: 130 | N20: 500 | O20: 2300 | R20: 1200 | S20: 5
A21: Children (4-8 years), % Daily Value | B21: =B$5/B20 ->  | L21: 0.011 | R21: =R$5/R20 -> 
B22: Energy (kcal, or calories) | C22: Protein (g) | D22: Total fat (g) | E22: Saturated Fat (g) | F22: Monounsaturated fat (g) | G22: Polyunsaturated fat (g) | H22: Carbohydrate (g) | I22: Fiber (g) | J22: Sugar (g) | K22: Calcium [Ca] (mg) | L22: Iron [Fe] (mg) | M22: Magnesium [Mg] (mg) | N22: Phosphorus [P] (mg) | O22: Potassium [K] (mg) | R22: Sodium [Na] (mg) | S22: Zinc [Zn] (mg)
A23: Children (1-3 years), RDA | B23: 1200 | C23: =(B23*0.15)/4 -> 45 | D23: =(B23*0.35)/9 -> 46.66666667 | E23: =(B23*0.1)/9 -> 13.33333333 | F23: =((D23-E23)*0.6) -> 20 | G23: =((D23-E23)*0.4) -> 13.33333333 | H23: =(B23*0.5)/4 -> 150 | I23: 19 | J23: =(B23*0.06)/4 -> 18 | K23: 700 | L23: 7 | M23: 80 | N23: 460 | O23: 2000 | R23: 800 | S23: 3
A24: Children (1-3 years), % Daily Value | B24: =B$5/B23 ->  | L24: 0.01571428571 | R24: =R$5/R23 -> 
B25: Energy (kcal, or calories) | C25: Protein (g) | D25: Total fat (g) | E25: Saturated Fat (g) | F25: Monounsaturated fat (g) | G25: Polyunsaturated fat (g) | H25: Carbohydrate (g) | I25: Fiber (g) | J25: Sugar (g) | K25: Calcium [Ca] (mg) | L25: Iron [Fe] (mg) | M25: Magnesium [Mg] (mg) | N25: Phosphorus [P] (mg) | O25: Potassium [K] (mg) | R25: Sodium [Na] (mg) | S25: Zinc [Zn] (mg)
A26: Infant (6-12 months), RDA | B26: 1000 | C26: =(B26*0.15)/4 -> 37.5 | D26: =(B26*0.35)/9 -> 38.88888889 | E26: NA | F26: NA | G26: NA | H26: =(B26*0.5)/4 -> 125 | I26: NA | J26: NA | K26: 260 | L26: 11 | M26: 75 | N26: 275 | O26: 860 | R26: 400 | S26: 3
A27: Infant (6-12 months), % Daily Value | B27: =B$5/B26 ->  | E27: na | F27: na | G27: na | H27: =H$5/H26 ->  | I27: na | J27: na | K27: =K$5/K26 ->  | L27: 0.01 | R27: =R$5/R26 -> 
E28: = > 25% daily value | H28: = > 30% daily value, nutrient to limit (saturated fat, sugar, sodium)
A29: Sustainability Factors (based on Step 2) | B29: Crop Yield | C29: Profitability | D29: Ease of processing | E29: Affordability | F29: Accessibility | G29: Security | H29: Ease of production | I29: Consumer preference | J29: Women's workload | K29: Drought resilience | L29: Heat tolerance | M29: Agrochemical inputs
A31: Annual Seasonality Score (based on Step 3)
A33: =_xlfn.CONCAT('3B-4B) Nutr Calc (6-11)'!C40, " - Summary Dashboard") -> 
A34: Nutrient Composition | D34: Daily Nutrient Values for select populations | E34: % Daily Values (DV) of Nutrients for select populations | L34: =L33 -> 0 | N34: =N33 -> 0 | O34: 0 | R34: =R33 -> 0 | S34: 0
A35: Nutrients | B35: Raw FBR / EFB Ingredients | C35: Cooked FBR / EFB (w/ retention factor) | D35: Men, Adult, RDA (2000 calorie diet) | E35: Men, Adult, % DV | F35: Women, Adult, RDA (2000 calorie diet) | G35: Women, Adult, % DV | H35: PLW, Adult, RDA | I35: PLW, Adult, % DV | J35: Teens (14-18 years), RDA | K35: Teens (14-18 years), % DV | L35: Children (2-5 years), WHO | M35: Children (2-5 years), % DV | N35: Children (1-3 years), RDA | O35: Children (2-3 years), % DV | P35: Infant (12-24 months), % RDA | Q35: Infant (12-24 months), % DV | R35: Infant (6-12 months), RDA | S35: Infant (6-12 months), % DV
A36: Energy (kcal, or calories) | B36: =SUM(('3B-4B) Nutr Calc (6-11)'!C19/100)*('3B-4B) Nutr Calc (6-11)'!C$42),SUM('3B-4B) Nutr Calc (6-11)'!D19/100)*('3B-4B) Nutr Calc (6-11)'!C$43),SUM('3B-4B) Nutr Calc (6-11)'!E19/100)*('3B-4B) Nutr Calc (6-11)'!C$44),SUM('3B-4B) Nutr Calc (6-11)'!F19/100)*('3B-4B) Nutr Calc (6-11)'!C$45),SUM('3B-4B) Nutr Calc (6-11)'!G19/100)*('3B-4B) Nutr Calc (6-11)'!C$46),SUM('3B-4B) Nutr Calc (6-11)'!H19/100)*('3B-4B) Nutr Calc (6-11)'!C$47),SUM('3B-4B) Nutr Calc (6-11)'!I19/100)*('3B-4B) Nutr Calc (6-11)'!C$48),SUM('3B-4B) Nutr Calc (6-11)'!J19/100)*('3B-4B) Nutr Calc (6-11)'!C$49),SUM('3B-4B) Nutr Calc (6-11)'!K19/100)*('3B-4B) Nutr Calc (6-11)'!C$50),SUM('3B-4B) Nutr Calc (6-11)'!L19/100)*('3B-4B) Nutr Calc (6-11)'!C$51),SUM('3B-4B) Nutr Calc (6-11)'!M19/100)*('3B-4B) Nutr Calc (6-11)'!C52),SUM('3B-4B) Nutr Calc (6-11)'!N19/100)*('3B-4B) Nutr Calc (6-11)'!C53),SUM('3B-4B) Nutr Calc (6-11)'!O19/100)*('3B-4B) Nutr Calc (6-11)'!C54)) ->  | C36: =B36 ->  | D36: 2400 | E36: =$C36/D36 ->  | F36: 2000 | G36: =$C36/F36 ->  | H36: 2200 | I36: =$C36/H36 ->  | J36: 2000 | K36: =$C36/J36 ->  | L36: 1100 | M36: =$C36/L36 ->  | N36: 1200 | O36: =$C36/N36 ->  | P36: 1000 | Q36: =$C36/P36 ->  | R36: 800 | S36: =$C36/R36 -> 
A37: Protein (g) | B37: =SUM(('3B-4B) Nutr Calc (6-11)'!C20/100)*('3B-4B) Nutr Calc (6-11)'!C$42),SUM('3B-4B) Nutr Calc (6-11)'!D20/100)*('3B-4B) Nutr Calc (6-11)'!C$43),SUM('3B-4B) Nutr Calc (6-11)'!E20/100)*('3B-4B) Nutr Calc (6-11)'!C$44),SUM('3B-4B) Nutr Calc (6-11)'!F20/100)*('3B-4B) Nutr Calc (6-11)'!C$45),SUM('3B-4B) Nutr Calc (6-11)'!G20/100)*('3B-4B) Nutr Calc (6-11)'!C$46),SUM('3B-4B) Nutr Calc (6-11)'!H20/100)*('3B-4B) Nutr Calc (6-11)'!C$47),SUM('3B-4B) Nutr Calc (6-11)'!I20/100)*('3B-4B) Nutr Calc (6-11)'!C$48),SUM('3B-4B) Nutr Calc (6-11)'!J20/100)*('3B-4B) Nutr Calc (6-11)'!C$49),SUM('3B-4B) Nutr Calc (6-11)'!K20/100)*('3B-4B) Nutr Calc (6-11)'!C$50),SUM('3B-4B) Nutr Calc (6-11)'!L20/100)*('3B-4B) Nutr Calc (6-11)'!C$51),SUM('3B-4B) Nutr Calc (6-11)'!M20/100)*('3B-4B) Nutr Calc (6-11)'!C52),SUM('3B-4B) Nutr Calc (6-11)'!N20/100)*('3B-4B) Nutr Calc (6-11)'!C53),SUM('3B-4B) Nutr Calc (6-11)'!O20/100)*('3B-4B) Nutr Calc (6-11)'!C54)) -> 0 | C37: 0 | D37: =(D36*0.15)/4 -> 90 | E37: 0 | F37: 75 | G37: 0 | H37: =(H36*0.15)/4 -> 82.5 | I37: 0 | J37: =(J36*0.15)/4 -> 75 | K37: 0 | L37: =(L36*0.15)/4 -> 41.25 | M37: =$C37/L37 -> 0 | N37: =(N36*0.15)/4 -> 45 | O37: 0 | P37: =(P36*0.15)/4 -> 37.5 | Q37: 0 | R37: =(R36*0.15)/4 -> 30 | S37: 0
A38: Total fat (g) | B38: =SUM(('3B-4B) Nutr Calc (6-11)'!C21/100)*('3B-4B) Nutr Calc (6-11)'!C$42),SUM('3B-4B) Nutr Calc (6-11)'!D21/100)*('3B-4B) Nutr Calc (6-11)'!C$43),SUM('3B-4B) Nutr Calc (6-11)'!E21/100)*('3B-4B) Nutr Calc (6-11)'!C$44),SUM('3B-4B) Nutr Calc (6-11)'!F21/100)*('3B-4B) Nutr Calc (6-11)'!C$45),SUM('3B-4B) Nutr Calc (6-11)'!G21/100)*('3B-4B) Nutr Calc (6-11)'!C$46),SUM('3B-4B) Nutr Calc (6-11)'!H21/100)*('3B-4B) Nutr Calc (6-11)'!C$47),SUM('3B-4B) Nutr Calc (6-11)'!I21/100)*('3B-4B) Nutr Calc (6-11)'!C$48),SUM('3B-4B) Nutr Calc (6-11)'!J21/100)*('3B-4B) Nutr Calc (6-11)'!C$49),SUM('3B-4B) Nutr Calc (6-11)'!K21/100)*('3B-4B) Nutr Calc (6-11)'!C$50),SUM('3B-4B) Nutr Calc (6-11)'!L21/100)*('3B-4B) Nutr Calc (6-11)'!C$51),SUM('3B-4B) Nutr Calc (6-11)'!M21/100)*('3B-4B) Nutr Calc (6-11)'!C52),SUM('3B-4B) Nutr Calc (6-11)'!N21/100)*('3B-4B) Nutr Calc (6-11)'!C53),SUM('3B-4B) Nutr Calc (6-11)'!O21/100)*('3B-4B) Nutr Calc (6-11)'!C54)) -> 0 | C38: 0 | D38: =(D36*0.35)/9 -> 93.33333333 | E38: 0 | F38: 77.77777778 | G38: 0 | H38: =(H36*0.35)/9 -> 85.55555556 | I38: 0 | J38: =(J36*0.35)/9 -> 77.77777778 | K38: 0 | L38: =(L36*0.35)/9 -> 42.77777778 | M38: 0 | N38: =(N36*0.35)/9 -> 46.66666667 | O38: 0 | P38: =(P36*0.35)/9 -> 38.88888889 | Q38: 0 | R38: =(R36*0.35)/9 -> 31.11111111 | S38: 0
A39: Carbohydrate (g) | B39: =SUM(('3B-4B) Nutr Calc (6-11)'!C22/100)*('3B-4B) Nutr Calc (6-11)'!C$42),SUM('3B-4B) Nutr Calc (6-11)'!D22/100)*('3B-4B) Nutr Calc (6-11)'!C$43),SUM('3B-4B) Nutr Calc (6-11)'!E22/100)*('3B-4B) Nutr Calc (6-11)'!C$44),SUM('3B-4B) Nutr Calc (6-11)'!F22/100)*('3B-4B) Nutr Calc (6-11)'!C$45),SUM('3B-4B) Nutr Calc (6-11)'!G22/100)*('3B-4B) Nutr Calc (6-11)'!C$46),SUM('3B-4B) Nutr Calc (6-11)'!H22/100)*('3B-4B) Nutr Calc (6-11)'!C$47),SUM('3B-4B) Nutr Calc (6-11)'!I22/100)*('3B-4B) Nutr Calc (6-11)'!C$48),SUM('3B-4B) Nutr Calc (6-11)'!J22/100)*('3B-4B) Nutr Calc (6-11)'!C$49),SUM('3B-4B) Nutr Calc (6-11)'!K22/100)*('3B-4B) Nutr Calc (6-11)'!C$50),SUM('3B-4B) Nutr Calc (6-11)'!L22/100)*('3B-4B) Nutr Calc (6-11)'!C$51),SUM('3B-4B) Nutr Calc (6-11)'!M22/100)*('3B-4B) Nutr Calc (6-11)'!C52),SUM('3B-4B) Nutr Calc (6-11)'!N22/100)*('3B-4B) Nutr Calc (6-11)'!C53),SUM('3B-4B) Nutr Calc (6-11)'!O22/100)*('3B-4B) Nutr Calc (6-11)'!C54)) -> 0 | C39: 0 | D39: =(D36*0.5)/4 -> 300 | E39: 0 | F39: 250 | G39: 0 | H39: =(H36*0.5)/4 -> 275 | I39: 0 | J39: =(J36*0.5)/4 -> 250 | K39: 0 | L39: =(L36*0.5)/4 -> 137.5 | M39: 0 | N39: =(N36*0.5)/4 -> 150 | O39: 0 | P39: =(P36*0.5)/4 -> 125 | Q39: 0 | R39: =(R36*0.5)/4 -> 100 | S39: 0
A40: Fiber (g) | B40: =SUM(('3B-4B) Nutr Calc (6-11)'!C23/100)*('3B-4B) Nutr Calc (6-11)'!C$42),SUM('3B-4B) Nutr Calc (6-11)'!D23/100)*('3B-4B) Nutr Calc (6-11)'!C$43),SUM('3B-4B) Nutr Calc (6-11)'!E23/100)*('3B-4B) Nutr Calc (6-11)'!C$44),SUM('3B-4B) Nutr Calc (6-11)'!F23/100)*('3B-4B) Nutr Calc (6-11)'!C$45),SUM('3B-4B) Nutr Calc (6-11)'!G23/100)*('3B-4B) Nutr Calc (6-11)'!C$46),SUM('3B-4B) Nutr Calc (6-11)'!H23/100)*('3B-4B) Nutr Calc (6-11)'!C$47),SUM('3B-4B) Nutr Calc (6-11)'!I23/100)*('3B-4B) Nutr Calc (6-11)'!C$48),SUM('3B-4B) Nutr Calc (6-11)'!J23/100)*('3B-4B) Nutr Calc (6-11)'!C$49),SUM('3B-4B) Nutr Calc (6-11)'!K23/100)*('3B-4B) Nutr Calc (6-11)'!C$50),SUM('3B-4B) Nutr Calc (6-11)'!L23/100)*('3B-4B) Nutr Calc (6-11)'!C$51),SUM('3B-4B) Nutr Calc (6-11)'!M23/100)*('3B-4B) Nutr Calc (6-11)'!C52),SUM('3B-4B) Nutr Calc (6-11)'!N23/100)*('3B-4B) Nutr Calc (6-11)'!C53),SUM('3B-4B) Nutr Calc (6-11)'!O23/100)*('3B-4B) Nutr Calc (6-11)'!C54)) -> 0 | C40: 0 | D40: 38 | E40: 0 | F40: 25 | G40: 0 | H40: 29 | I40: 0 | J40: 26 | K40: 0 | L40: 25 | M40: 0 | N40: 19 | O40: 0 | P40: 17 | Q40: 0 | R40: NA | S40: NA
A41: Sugar (g) | B41: =SUM(('3B-4B) Nutr Calc (6-11)'!C24/100)*('3B-4B) Nutr Calc (6-11)'!C$42),SUM('3B-4B) Nutr Calc (6-11)'!D24/100)*('3B-4B) Nutr Calc (6-11)'!C$43),SUM('3B-4B) Nutr Calc (6-11)'!E24/100)*('3B-4B) Nutr Calc (6-11)'!C$44),SUM('3B-4B) Nutr Calc (6-11)'!F24/100)*('3B-4B) Nutr Calc (6-11)'!C$45),SUM('3B-4B) Nutr Calc (6-11)'!G24/100)*('3B-4B) Nutr Calc (6-11)'!C$46),SUM('3B-4B) Nutr Calc (6-11)'!H24/100)*('3B-4B) Nutr Calc (6-11)'!C$47),SUM('3B-4B) Nutr Calc (6-11)'!I24/100)*('3B-4B) Nutr Calc (6-11)'!C$48),SUM('3B-4B) Nutr Calc (6-11)'!J24/100)*('3B-4B) Nutr Calc (6-11)'!C$49),SUM('3B-4B) Nutr Calc (6-11)'!K24/100)*('3B-4B) Nutr Calc (6-11)'!C$50),SUM('3B-4B) Nutr Calc (6-11)'!L24/100)*('3B-4B) Nutr Calc (6-11)'!C$51),SUM('3B-4B) Nutr Calc (6-11)'!M24/100)*('3B-4B) Nutr Calc (6-11)'!C52),SUM('3B-4B) Nutr Calc (6-11)'!N24/100)*('3B-4B) Nutr Calc (6-11)'!C53),SUM('3B-4B) Nutr Calc (6-11)'!O24/100)*('3B-4B) Nutr Calc (6-11)'!C54)) -> 0 | C41: 0 | D41: 36 | E41: 0 | F41: 25 | G41: 0 | H41: 28 | I41: 0 | J41: 25 | K41: 0 | L41: 20 | M41: 0 | N41: =(N36*0.06)/4 -> 18 | O41: 0 | P41: NA | Q41: NA | R41: NA | S41: NA
A42: Calcium [Ca] (mg) | B42: =SUM(('3B-4B) Nutr Calc (6-11)'!C25/100)*('3B-4B) Nutr Calc (6-11)'!C$42),SUM('3B-4B) Nutr Calc (6-11)'!D25/100)*('3B-4B) Nutr Calc (6-11)'!C$43),SUM('3B-4B) Nutr Calc (6-11)'!E25/100)*('3B-4B) Nutr Calc (6-11)'!C$44),SUM('3B-4B) Nutr Calc (6-11)'!F25/100)*('3B-4B) Nutr Calc (6-11)'!C$45),SUM('3B-4B) Nutr Calc (6-11)'!G25/100)*('3B-4B) Nutr Calc (6-11)'!C$46),SUM('3B-4B) Nutr Calc (6-11)'!H25/100)*('3B-4B) Nutr Calc (6-11)'!C$47),SUM('3B-4B) Nutr Calc (6-11)'!I25/100)*('3B-4B) Nutr Calc (6-11)'!C$48),SUM('3B-4B) Nutr Calc (6-11)'!J25/100)*('3B-4B) Nutr Calc (6-11)'!C$49),SUM('3B-4B) Nutr Calc (6-11)'!K25/100)*('3B-4B) Nutr Calc (6-11)'!C$50),SUM('3B-4B) Nutr Calc (6-11)'!L25/100)*('3B-4B) Nutr Calc (6-11)'!C$51),SUM('3B-4B) Nutr Calc (6-11)'!M25/100)*('3B-4B) Nutr Calc (6-11)'!C52),SUM('3B-4B) Nutr Calc (6-11)'!N25/100)*('3B-4B) Nutr Calc (6-11)'!C53),SUM('3B-4B) Nutr Calc (6-11)'!O25/100)*('3B-4B) Nutr Calc (6-11)'!C54)) -> 0 | C42: 0 | D42: 1000 | E42: 0 | F42: 1000 | G42: 0 | H42: 1000 | I42: 0 | J42: 1300 | K42: 0 | L42: 1200 | M42: 0 | N42: 700 | O42: 0 | P42: 400 | Q42: =$C42/P42 -> 0 | R42: 260 | S42: =$C42/R42 -> 0
A43: Iron [Fe] (mg) | B43: =SUM(('3B-4B) Nutr Calc (6-11)'!C26/100)*('3B-4B) Nutr Calc (6-11)'!C$42),SUM('3B-4B) Nutr Calc (6-11)'!D26/100)*('3B-4B) Nutr Calc (6-11)'!C$43),SUM('3B-4B) Nutr Calc (6-11)'!E26/100)*('3B-4B) Nutr Calc (6-11)'!C$44),SUM('3B-4B) Nutr Calc (6-11)'!F26/100)*('3B-4B) Nutr Calc (6-11)'!C$45),SUM('3B-4B) Nutr Calc (6-11)'!G26/100)*('3B-4B) Nutr Calc (6-11)'!C$46),SUM('3B-4B) Nutr Calc (6-11)'!H26/100)*('3B-4B) Nutr Calc (6-11)'!C$47),SUM('3B-4B) Nutr Calc (6-11)'!I26/100)*('3B-4B) Nutr Calc (6-11)'!C$48),SUM('3B-4B) Nutr Calc (6-11)'!J26/100)*('3B-4B) Nutr Calc (6-11)'!C$49),SUM('3B-4B) Nutr Calc (6-11)'!K26/100)*('3B-4B) Nutr Calc (6-11)'!C$50),SUM('3B-4B) Nutr Calc (6-11)'!L26/100)*('3B-4B) Nutr Calc (6-11)'!C$51),SUM('3B-4B) Nutr Calc (6-11)'!M26/100)*('3B-4B) Nutr Calc (6-11)'!C52),SUM('3B-4B) Nutr Calc (6-11)'!N26/100)*('3B-4B) Nutr Calc (6-11)'!C53),SUM('3B-4B) Nutr Calc (6-11)'!O26/100)*('3B-4B) Nutr Calc (6-11)'!C54)) -> 0 | C43: 0 | D43: 8 | E43: 0 | F43: 18 | G43: 0 | H43: 27 | I43: 0 | J43: 13 | K43: 0 | L43: 22 | M43: 0 | N43: 7 | O43: 0 | P43: 7 | Q43: 0 | R43: 11 | S43: 0
A44: Magnesium [Mg] (mg) | B44: =SUM(('3B-4B) Nutr Calc (6-11)'!C27/100)*('3B-4B) Nutr Calc (6-11)'!C$42),SUM('3B-4B) Nutr Calc (6-11)'!D27/100)*('3B-4B) Nutr Calc (6-11)'!C$43),SUM('3B-4B) Nutr Calc (6-11)'!E27/100)*('3B-4B) Nutr Calc (6-11)'!C$44),SUM('3B-4B) Nutr Calc (6-11)'!F27/100)*('3B-4B) Nutr Calc (6-11)'!C$45),SUM('3B-4B) Nutr Calc (6-11)'!G27/100)*('3B-4B) Nutr Calc (6-11)'!C$46),SUM('3B-4B) Nutr Calc (6-11)'!H27/100)*('3B-4B) Nutr Calc (6-11)'!C$47),SUM('3B-4B) Nutr Calc (6-11)'!I27/100)*('3B-4B) Nutr Calc (6-11)'!C$48),SUM('3B-4B) Nutr Calc (6-11)'!J27/100)*('3B-4B) Nutr Calc (6-11)'!C$49),SUM('3B-4B) Nutr Calc (6-11)'!K27/100)*('3B-4B) Nutr Calc (6-11)'!C$50),SUM('3B-4B) Nutr Calc (6-11)'!L27/100)*('3B-4B) Nutr Calc (6-11)'!C$51),SUM('3B-4B) Nutr Calc (6-11)'!M27/100)*('3B-4B) Nutr Calc (6-11)'!C52),SUM('3B-4B) Nutr Calc (6-11)'!N27/100)*('3B-4B) Nutr Calc (6-11)'!C53),SUM('3B-4B) Nutr Calc (6-11)'!O27/100)*('3B-4B) Nutr Calc (6-11)'!C54)) -> 0 | C44: 0 | D44: 420 | E44: 0 | F44: 320 | G44: 0 | H44: 350 | I44: 0 | J44: 380 | K44: 0 | L44: =(280+420)/2 -> 350 | M44: 0 | N44: 80 | O44: 0 | P44: 65 | Q44: 0 | R44: 75 | S44: 0
A45: Potassium [K] (mg) | B45: =SUM(('3B-4B) Nutr Calc (6-11)'!C28/100)*('3B-4B) Nutr Calc (6-11)'!C$42),SUM('3B-4B) Nutr Calc (6-11)'!D28/100)*('3B-4B) Nutr Calc (6-11)'!C$43),SUM('3B-4B) Nutr Calc (6-11)'!E28/100)*('3B-4B) Nutr Calc (6-11)'!C$44),SUM('3B-4B) Nutr Calc (6-11)'!F28/100)*('3B-4B) Nutr Calc (6-11)'!C$45),SUM('3B-4B) Nutr Calc (6-11)'!G28/100)*('3B-4B) Nutr Calc (6-11)'!C$46),SUM('3B-4B) Nutr Calc (6-11)'!H28/100)*('3B-4B) Nutr Calc (6-11)'!C$47),SUM('3B-4B) Nutr Calc (6-11)'!I28/100)*('3B-4B) Nutr Calc (6-11)'!C$48),SUM('3B-4B) Nutr Calc (6-11)'!J28/100)*('3B-4B) Nutr Calc (6-11)'!C$49),SUM('3B-4B) Nutr Calc (6-11)'!K28/100)*('3B-4B) Nutr Calc (6-11)'!C$50),SUM('3B-4B) Nutr Calc (6-11)'!L28/100)*('3B-4B) Nutr Calc (6-11)'!C$51),SUM('3B-4B) Nutr Calc (6-11)'!M28/100)*('3B-4B) Nutr Calc (6-11)'!C52),SUM('3B-4B) Nutr Calc (6-11)'!N28/100)*('3B-4B) Nutr Calc (6-11)'!C53),SUM('3B-4B) Nutr Calc (6-11)'!O28/100)*('3B-4B) Nutr Calc (6-11)'!C54)) -> 0 | C45: 0 | D45: 3400 | E45: 0 | F45: 2600 | G45: 0 | H45: 2900 | I45: 0 | J45: 2600 | K45: 0 | L45: =(1500+2200)/2 -> 1850 | M45: 0 | N45: 2000 | O45: 0 | P45: 900 | Q45: 0 | R45: 860 | S45: 0
A46: Sodium [Na] (mg) | B46: =SUM(('3B-4B) Nutr Calc (6-11)'!C29/100)*('3B-4B) Nutr Calc (6-11)'!C$42),SUM('3B-4B) Nutr Calc (6-11)'!D29/100)*('3B-4B) Nutr Calc (6-11)'!C$43),SUM('3B-4B) Nutr Calc (6-11)'!E29/100)*('3B-4B) Nutr Calc (6-11)'!C$44),SUM('3B-4B) Nutr Calc (6-11)'!F29/100)*('3B-4B) Nutr Calc (6-11)'!C$45),SUM('3B-4B) Nutr Calc (6-11)'!G29/100)*('3B-4B) Nutr Calc (6-11)'!C$46),SUM('3B-4B) Nutr Calc (6-11)'!H29/100)*('3B-4B) Nutr Calc (6-11)'!C$47),SUM('3B-4B) Nutr Calc (6-11)'!I29/100)*('3B-4B) Nutr Calc (6-11)'!C$48),SUM('3B-4B) Nutr Calc (6-11)'!J29/100)*('3B-4B) Nutr Calc (6-11)'!C$49),SUM('3B-4B) Nutr Calc (6-11)'!K29/100)*('3B-4B) Nutr Calc (6-11)'!C$50),SUM('3B-4B) Nutr Calc (6-11)'!L29/100)*('3B-4B) Nutr Calc (6-11)'!C$51),SUM('3B-4B) Nutr Calc (6-11)'!M29/100)*('3B-4B) Nutr Calc (6-11)'!C52),SUM('3B-4B) Nutr Calc (6-11)'!N29/100)*('3B-4B) Nutr Calc (6-11)'!C53),SUM('3B-4B) Nutr Calc (6-11)'!O29/100)*('3B-4B) Nutr Calc (6-11)'!C54)) -> 0 | C46: 0 | D46: 2000 | E46: 0 | F46: 2000 | G46: 0 | H46: 2000 | I46: 0 | J46: 2000 | K46: 0 | L46: 1200 | M46: 0 | N46: 800 | O46: 0 | P46: 600 | Q46: 0 | R46: 400 | S46: 0
A47: Zinc [Zn] (mg) | B47: =SUM(('3B-4B) Nutr Calc (6-11)'!C30/100)*('3B-4B) Nutr Calc (6-11)'!C$42),SUM('3B-4B) Nutr Calc (6-11)'!D30/100)*('3B-4B) Nutr Calc (6-11)'!C$43),SUM('3B-4B) Nutr Calc (6-11)'!E30/100)*('3B-4B) Nutr Calc (6-11)'!C$44),SUM('3B-4B) Nutr Calc (6-11)'!F30/100)*('3B-4B) Nutr Calc (6-11)'!C$45),SUM('3B-4B) Nutr Calc (6-11)'!G30/100)*('3B-4B) Nutr Calc (6-11)'!C$46),SUM('3B-4B) Nutr Calc (6-11)'!H30/100)*('3B-4B) Nutr Calc (6-11)'!C$47),SUM('3B-4B) Nutr Calc (6-11)'!I30/100)*('3B-4B) Nutr Calc (6-11)'!C$48),SUM('3B-4B) Nutr Calc (6-11)'!J30/100)*('3B-4B) Nutr Calc (6-11)'!C$49),SUM('3B-4B) Nutr Calc (6-11)'!K30/100)*('3B-4B) Nutr Calc (6-11)'!C$50),SUM('3B-4B) Nutr Calc (6-11)'!L30/100)*('3B-4B) Nutr Calc (6-11)'!C$51),SUM('3B-4B) Nutr Calc (6-11)'!M30/100)*('3B-4B) Nutr Calc (6-11)'!C52),SUM('3B-4B) Nutr Calc (6-11)'!N30/100)*('3B-4B) Nutr Calc (6-11)'!C53),SUM('3B-4B) Nutr Calc (6-11)'!O30/100)*('3B-4B) Nutr Calc (6-11)'!C54)) -> 0 | C47: 0 | D47: 11 | E47: 0 | F47: 8 | G47: 0 | H47: 11 | I47: 0 | J47: 10 | K47: 0 | L47: =(20+35)/2 -> 27.5 | M47: 0 | N47: 3 | O47: 0 | P47: 2.5 | Q47: 0 | R47: 3 | S47: 0
A48: Vitamin A RAE (mcg) | B48: =SUM(('3B-4B) Nutr Calc (6-11)'!C31/100)*('3B-4B) Nutr Calc (6-11)'!C$42),SUM('3B-4B) Nutr Calc (6-11)'!D31/100)*('3B-4B) Nutr Calc (6-11)'!C$43),SUM('3B-4B) Nutr Calc (6-11)'!E31/100)*('3B-4B) Nutr Calc (6-11)'!C$44),SUM('3B-4B) Nutr Calc (6-11)'!F31/100)*('3B-4B) Nutr Calc (6-11)'!C$45),SUM('3B-4B) Nutr Calc (6-11)'!G31/100)*('3B-4B) Nutr Calc (6-11)'!C$46),SUM('3B-4B) Nutr Calc (6-11)'!H31/100)*('3B-4B) Nutr Calc (6-11)'!C$47),SUM('3B-4B) Nutr Calc (6-11)'!I31/100)*('3B-4B) Nutr Calc (6-11)'!C$48),SUM('3B-4B) Nutr Calc (6-11)'!J31/100)*('3B-4B) Nutr Calc (6-11)'!C$49),SUM('3B-4B) Nutr Calc (6-11)'!K31/100)*('3B-4B) Nutr Calc (6-11)'!C$50),SUM('3B-4B) Nutr Calc (6-11)'!L31/100)*('3B-4B) Nutr Calc (6-11)'!C$51),SUM('3B-4B) Nutr Calc (6-11)'!M31/100)*('3B-4B) Nutr Calc (6-11)'!C52),SUM('3B-4B) Nutr Calc (6-11)'!N31/100)*('3B-4B) Nutr Calc (6-11)'!C53),SUM('3B-4B) Nutr Calc (6-11)'!O31/100)*('3B-4B) Nutr Calc (6-11)'!C54)) -> 0 | C48: =((IF('3B-4B) Nutr Calc (6-11)'!C41="Boiled (<10 min)",0.8,IF('3B-4B) Nutr Calc (6-11)'!C41="Boiled (>10 min)",0.75,IF('3B-4B) Nutr Calc (6-11)'!C41="Steamed",0.9,IF('3B-4B) Nutr Calc (6-11)'!C41="Fried",0.9,IF('3B-4B) Nutr Calc (6-11)'!C41="Baked",0.9,IF('3B-4B) Nutr Calc (6-11)'!C41="Raw (no cooking)",1,IF('3B-4B) Nutr Calc (6-11)'!C41="Other cooking method",1))))))))*B48) -> 0 | D48: 900 | E48: 0 | F48: 700 | G48: 0 | H48: 1300 | I48: 0 | J48: 700 | K48: 0 | L48: =2500*0.3 -> 750 | M48: 0 | N48: 300 | O48: 0 | P48: 210 | Q48: 0 | R48: 500 | S48: 0
A49: Thiamine [Vitamin B1] (mg) | B49: =SUM(('3B-4B) Nutr Calc (6-11)'!C32/100)*('3B-4B) Nutr Calc (6-11)'!C$42),SUM('3B-4B) Nutr Calc (6-11)'!D32/100)*('3B-4B) Nutr Calc (6-11)'!C$43),SUM('3B-4B) Nutr Calc (6-11)'!E32/100)*('3B-4B) Nutr Calc (6-11)'!C$44),SUM('3B-4B) Nutr Calc (6-11)'!F32/100)*('3B-4B) Nutr Calc (6-11)'!C$45),SUM('3B-4B) Nutr Calc (6-11)'!G32/100)*('3B-4B) Nutr Calc (6-11)'!C$46),SUM('3B-4B) Nutr Calc (6-11)'!H32/100)*('3B-4B) Nutr Calc (6-11)'!C$47),SUM('3B-4B) Nutr Calc (6-11)'!I32/100)*('3B-4B) Nutr Calc (6-11)'!C$48),SUM('3B-4B) Nutr Calc (6-11)'!J32/100)*('3B-4B) Nutr Calc (6-11)'!C$49),SUM('3B-4B) Nutr Calc (6-11)'!K32/100)*('3B-4B) Nutr Calc (6-11)'!C$50),SUM('3B-4B) Nutr Calc (6-11)'!L32/100)*('3B-4B) Nutr Calc (6-11)'!C$51),SUM('3B-4B) Nutr Calc (6-11)'!M32/100)*('3B-4B) Nutr Calc (6-11)'!C$52),SUM('3B-4B) Nutr Calc (6-11)'!N32/100)*('3B-4B) Nutr Calc (6-11)'!C$53),SUM('3B-4B) Nutr Calc (6-11)'!O32/100)*('3B-4B) Nutr Calc (6-11)'!C$54)) -> 0 | C49: =((IF('3B-4B) Nutr Calc (6-11)'!C41="Boiled (<10 min)",0.75,IF('3B-4B) Nutr Calc (6-11)'!C41="Boiled (>10 min)",0.65,IF('3B-4B) Nutr Calc (6-11)'!C41="Steamed",0.8,IF('3B-4B) Nutr Calc (6-11)'!C41="Fried",0.8,IF('3B-4B) Nutr Calc (6-11)'!C41="Baked",0.85,IF('3B-4B) Nutr Calc (6-11)'!C41="Raw (no cooking)",1,IF('3B-4B) Nutr Calc (6-11)'!C41="Other cooking method",1))))))))*B49) -> 0 | D49: 1.2 | E49: 0 | F49: 1.1 | G49: 0 | H49: 1.4 | I49: 0 | J49: 1.2 | K49: 0 | L49: 1 | M49: 0 | N49: 0.5 | O49: 0 | P49: 0.4 | Q49: 0 | R49: 0.3 | S49: 0
A50: Riboflavin [Vitamin B2] (mg) | B50: =SUM(('3B-4B) Nutr Calc (6-11)'!C33/100)*('3B-4B) Nutr Calc (6-11)'!C$42),SUM('3B-4B) Nutr Calc (6-11)'!D33/100)*('3B-4B) Nutr Calc (6-11)'!C$43),SUM('3B-4B) Nutr Calc (6-11)'!E33/100)*('3B-4B) Nutr Calc (6-11)'!C$44),SUM('3B-4B) Nutr Calc (6-11)'!F33/100)*('3B-4B) Nutr Calc (6-11)'!C$45),SUM('3B-4B) Nutr Calc (6-11)'!G33/100)*('3B-4B) Nutr Calc (6-11)'!C$46),SUM('3B-4B) Nutr Calc (6-11)'!H33/100)*('3B-4B) Nutr Calc (6-11)'!C$47),SUM('3B-4B) Nutr Calc (6-11)'!I33/100)*('3B-4B) Nutr Calc (6-11)'!C$48),SUM('3B-4B) Nutr Calc (6-11)'!J33/100)*('3B-4B) Nutr Calc (6-11)'!C$49),SUM('3B-4B) Nutr Calc (6-11)'!K33/100)*('3B-4B) Nutr Calc (6-11)'!C$50),SUM('3B-4B) Nutr Calc (6-11)'!L33/100)*('3B-4B) Nutr Calc (6-11)'!C$51), SUM('3B-4B) Nutr Calc (6-11)'!M33/100)*('3B-4B) Nutr Calc (6-11)'!C$52),SUM('3B-4B) Nutr Calc (6-11)'!N33/100)*('3B-4B) Nutr Calc (6-11)'!C$53),SUM('3B-4B) Nutr Calc (6-11)'!O33/100)*('3B-4B) Nutr Calc (6-11)'!C$54)) -> 0 | C50: =((IF('3B-4B) Nutr Calc (6-11)'!C41="Boiled (<10 min)",0.75,IF('3B-4B) Nutr Calc (6-11)'!C41="Boiled (>10 min)",0.65,IF('3B-4B) Nutr Calc (6-11)'!C41="Steamed",0.9,IF('3B-4B) Nutr Calc (6-11)'!C41="Fried",0.9,IF('3B-4B) Nutr Calc (6-11)'!C41="Baked",0.9,IF('3B-4B) Nutr Calc (6-11)'!C41="Raw (no cooking)",1,IF('3B-4B) Nutr Calc (6-11)'!C41="Other cooking method",1))))))))*B50) -> 0 | D50: 1.3 | E50: 0 | F50: 1.1 | G50: 0 | H50: 1.5 | I50: 0 | J50: 1.15 | K50: 0 | L50: 4 | M50: 0 | N50: 0.5 | O50: 0 | P50: 0.4 | Q50: 0 | R50: 0.4 | S50: 0
A51: Niacin Equiv [Vitamin B3] (mg) | B51: =SUM(('3B-4B) Nutr Calc (6-11)'!C34/100)*('3B-4B) Nutr Calc (6-11)'!C$42),SUM('3B-4B) Nutr Calc (6-11)'!D34/100)*('3B-4B) Nutr Calc (6-11)'!C$43),SUM('3B-4B) Nutr Calc (6-11)'!E34/100)*('3B-4B) Nutr Calc (6-11)'!C$44),SUM('3B-4B) Nutr Calc (6-11)'!F34/100)*('3B-4B) Nutr Calc (6-11)'!C$45),SUM('3B-4B) Nutr Calc (6-11)'!G34/100)*('3B-4B) Nutr Calc (6-11)'!C$46),SUM('3B-4B) Nutr Calc (6-11)'!H34/100)*('3B-4B) Nutr Calc (6-11)'!C$47),SUM('3B-4B) Nutr Calc (6-11)'!I34/100)*('3B-4B) Nutr Calc (6-11)'!C$48),SUM('3B-4B) Nutr Calc (6-11)'!J34/100)*('3B-4B) Nutr Calc (6-11)'!C$49),SUM('3B-4B) Nutr Calc (6-11)'!K34/100)*('3B-4B) Nutr Calc (6-11)'!C$50),SUM('3B-4B) Nutr Calc (6-11)'!L34/100)*('3B-4B) Nutr Calc (6-11)'!C$51),SUM('3B-4B) Nutr Calc (6-11)'!M34/100)*('3B-4B) Nutr Calc (6-11)'!C$52),SUM('3B-4B) Nutr Calc (6-11)'!N34/100)*('3B-4B) Nutr Calc (6-11)'!C$53),SUM('3B-4B) Nutr Calc (6-11)'!O34/100)*('3B-4B) Nutr Calc (6-11)'!C$54)) -> 0 | C51: =((IF('3B-4B) Nutr Calc (6-11)'!C41="Boiled (<10 min)",0.8,IF('3B-4B) Nutr Calc (6-11)'!C41="Boiled (>10 min)",0.75,IF('3B-4B) Nutr Calc (6-11)'!C41="Steamed",0.9,IF('3B-4B) Nutr Calc (6-11)'!C41="Fried",0.9,IF('3B-4B) Nutr Calc (6-11)'!C41="Baked",0.9,IF('3B-4B) Nutr Calc (6-11)'!C41="Raw (no cooking)",1,IF('3B-4B) Nutr Calc (6-11)'!C41="Other cooking method",1))))))))*B51) -> 0 | D51: 16 | E51: 0 | F51: 14 | G51: 0 | H51: 18 | I51: 0 | J51: 15 | K51: 0 | L51: 8 | M51: 0 | N51: 6 | O51: 0 | P51: 5 | Q51: 0 | R51: 4 | S51: 0
A52: Folate DFE (mcg) | B52: =SUM(('3B-4B) Nutr Calc (6-11)'!C35/100)*('3B-4B) Nutr Calc (6-11)'!C$42),SUM('3B-4B) Nutr Calc (6-11)'!D35/100)*('3B-4B) Nutr Calc (6-11)'!C$43),SUM('3B-4B) Nutr Calc (6-11)'!E35/100)*('3B-4B) Nutr Calc (6-11)'!C$44),SUM('3B-4B) Nutr Calc (6-11)'!F35/100)*('3B-4B) Nutr Calc (6-11)'!C$45),SUM('3B-4B) Nutr Calc (6-11)'!G35/100)*('3B-4B) Nutr Calc (6-11)'!C$46),SUM('3B-4B) Nutr Calc (6-11)'!H35/100)*('3B-4B) Nutr Calc (6-11)'!C$47),SUM('3B-4B) Nutr Calc (6-11)'!I35/100)*('3B-4B) Nutr Calc (6-11)'!C$48),SUM('3B-4B) Nutr Calc (6-11)'!J35/100)*('3B-4B) Nutr Calc (6-11)'!C$49),SUM('3B-4B) Nutr Calc (6-11)'!K35/100)*('3B-4B) Nutr Calc (6-11)'!C$50),SUM('3B-4B) Nutr Calc (6-11)'!L35/100)*('3B-4B) Nutr Calc (6-11)'!C$51),SUM('3B-4B) Nutr Calc (6-11)'!M35/100)*('3B-4B) Nutr Calc (6-11)'!C52),SUM('3B-4B) Nutr Calc (6-11)'!N35/100)*('3B-4B) Nutr Calc (6-11)'!C53),SUM('3B-4B) Nutr Calc (6-11)'!O35/100)*('3B-4B) Nutr Calc (6-11)'!C54)) -> 0 | C52: =((IF('3B-4B) Nutr Calc (6-11)'!C41="Boiled (<10 min)",0.8,IF('3B-4B) Nutr Calc (6-11)'!C41="Boiled (>10 min)",0.7,IF('3B-4B) Nutr Calc (6-11)'!C41="Steamed",0.85,IF('3B-4B) Nutr Calc (6-11)'!C41="Fried",0.85,IF('3B-4B) Nutr Calc (6-11)'!C41="Baked",0.9,IF('3B-4B) Nutr Calc (6-11)'!C41="Raw (no cooking)",1,IF('3B-4B) Nutr Calc (6-11)'!C41="Other cooking method",1))))))))*B52) -> 0 | D52: 400 | E52: 0 | F52: 400 | G52: 0 | H52: 600 | I52: 0 | J52: 400 | K52: 0 | L52: 200 | M52: 0 | N52: 150 | O52: 0 | P52: 120 | Q52: 0 | R52: 80 | S52: 0
A53: Vitamin B12 (mcg) | B53: =SUM(('3B-4B) Nutr Calc (6-11)'!C36/100)*('3B-4B) Nutr Calc (6-11)'!C$42),SUM('3B-4B) Nutr Calc (6-11)'!D36/100)*('3B-4B) Nutr Calc (6-11)'!C$43),SUM('3B-4B) Nutr Calc (6-11)'!E36/100)*('3B-4B) Nutr Calc (6-11)'!C$44),SUM('3B-4B) Nutr Calc (6-11)'!F36/100)*('3B-4B) Nutr Calc (6-11)'!C$45),SUM('3B-4B) Nutr Calc (6-11)'!G36/100)*('3B-4B) Nutr Calc (6-11)'!C$46),SUM('3B-4B) Nutr Calc (6-11)'!H36/100)*('3B-4B) Nutr Calc (6-11)'!C$47),SUM('3B-4B) Nutr Calc (6-11)'!I36/100)*('3B-4B) Nutr Calc (6-11)'!C$48),SUM('3B-4B) Nutr Calc (6-11)'!J36/100)*('3B-4B) Nutr Calc (6-11)'!C$49),SUM('3B-4B) Nutr Calc (6-11)'!K36/100)*('3B-4B) Nutr Calc (6-11)'!C$50),SUM('3B-4B) Nutr Calc (6-11)'!L36/100)*('3B-4B) Nutr Calc (6-11)'!C$51),SUM('3B-4B) Nutr Calc (6-11)'!M36/100)*('3B-4B) Nutr Calc (6-11)'!C52),SUM('3B-4B) Nutr Calc (6-11)'!N36/100)*('3B-4B) Nutr Calc (6-11)'!C53),SUM('3B-4B) Nutr Calc (6-11)'!O36/100)*('3B-4B) Nutr Calc (6-11)'!C54)) -> 0 | C53: =((IF('3B-4B) Nutr Calc (6-11)'!C41="Boiled (<10 min)",0.9,IF('3B-4B) Nutr Calc (6-11)'!C41="Boiled (>10 min)",0.8,IF('3B-4B) Nutr Calc (6-11)'!C41="Steamed",0.9,IF('3B-4B) Nutr Calc (6-11)'!C41="Fried",0.9,IF('3B-4B) Nutr Calc (6-11)'!C41="Baked",0.9,IF('3B-4B) Nutr Calc (6-11)'!C41="Raw (no cooking)",1,IF('3B-4B) Nutr Calc (6-11)'!C41="Other cooking method",1))))))))*B53) -> 0 | D53: 2.4 | E53: 0 | F53: 2.4 | G53: 0 | H53: 2.8 | I53: 0 | J53: 2.4 | K53: 0 | L53: 5 | M53: 0 | N53: 0.9 | O53: 0 | P53: 0.7 | Q53: 0 | R53: 0.5 | S53: 0
A54: Vitamin C (mg) | B54: =SUM(('3B-4B) Nutr Calc (6-11)'!C37/100)*('3B-4B) Nutr Calc (6-11)'!C$42),SUM('3B-4B) Nutr Calc (6-11)'!D37/100)*('3B-4B) Nutr Calc (6-11)'!C$43),SUM('3B-4B) Nutr Calc (6-11)'!E37/100)*('3B-4B) Nutr Calc (6-11)'!C$44),SUM('3B-4B) Nutr Calc (6-11)'!F37/100)*('3B-4B) Nutr Calc (6-11)'!C$45),SUM('3B-4B) Nutr Calc (6-11)'!G37/100)*('3B-4B) Nutr Calc (6-11)'!C$46),SUM('3B-4B) Nutr Calc (6-11)'!H37/100)*('3B-4B) Nutr Calc (6-11)'!C$47),SUM('3B-4B) Nutr Calc (6-11)'!I37/100)*('3B-4B) Nutr Calc (6-11)'!C$48),SUM('3B-4B) Nutr Calc (6-11)'!J37/100)*('3B-4B) Nutr Calc (6-11)'!C$49),SUM('3B-4B) Nutr Calc (6-11)'!K37/100)*('3B-4B) Nutr Calc (6-11)'!C$50),SUM('3B-4B) Nutr Calc (6-11)'!L37/100)*('3B-4B) Nutr Calc (6-11)'!C$51),SUM('3B-4B) Nutr Calc (6-11)'!M37/100)*('3B-4B) Nutr Calc (6-11)'!C52),SUM('3B-4B) Nutr Calc (6-11)'!N37/100)*('3B-4B) Nutr Calc (6-11)'!C53),SUM('3B-4B) Nutr Calc (6-11)'!O37/100)*('3B-4B) Nutr Calc (6-11)'!C54)) -> 0 | C54: =((IF('3B-4B) Nutr Calc (6-11)'!C41="Boiled (<10 min)",0.8,IF('3B-4B) Nutr Calc (6-11)'!C41="Boiled (>10 min)",0.6,IF('3B-4B) Nutr Calc (6-11)'!C41="Steamed",0.8,IF('3B-4B) Nutr Calc (6-11)'!C41="Fried",0.8,IF('3B-4B) Nutr Calc (6-11)'!C41="Baked",0.8,IF('3B-4B) Nutr Calc (6-11)'!C41="Raw (no cooking)",1,IF('3B-4B) Nutr Calc (6-11)'!C41="Other cooking method",1))))))))*B54) -> 0 | D54: 90 | E54: 0 | F54: 75 | G54: 0 | H54: 120 | I54: 0 | J54: 70 | K54: 0 | L54: 150 | M54: 0 | N54: 15 | O54: 0 | P54: 13 | Q54: 0 | R54: 50 | S54: 0
R56: = >30% DV | S56: = >30% DV
L63: WHO Standard
L64: Proposed nutrient composition of supplementary foods for use in the management of moderate acute malnutrition in children
L65: MIN | M65: MAX
L68: 20 | M68: 43
L71: 25 | M71: 65
L73: 2000 | M73: 3000
L74: 1
L75: 4
L78: 2
L80: 5
L81: 150
L82: 20 | M82: 60
L84: 30
L87: 18 | M87: 30
L88: 20 | M88: 35
L89: 150 | M89: 250
L90: 1500 | M90: 2200
L91: 850 | M91: 1400
L92: 1000 | M92: 1400
L93: 20
L94: 1 | M94: 3.5
L95: 280 | M95: 420
L96: 35 | M96: 90

Sheet FBREFB #2 (Details) (hidden)
A1: =CONCAT(#REF!," Nutrition Composition") -> 
A2: Weight = | B2: =#REF! -> 
A3: Nutrients (before & after cooking) | B3: Energy (kcal, or calories) | C3: Protein (g) | D3: Total fat (g) | E3: Saturated Fat (g) | F3: Monounsaturated fat (g) | G3: Polyunsaturated fat (g) | H3: Carbohydrate (g) | I3: Fiber (g) | J3: Sugar (g) | K3: Calcium [Ca] (mg) | L3: Iron [Fe] (mg) | M3: Magnesium [Mg] (mg) | N3: Phosphorus [P] (mg) | O3: Potassium [K] (mg) | R3: Sodium [Na] (mg) | S3: Zinc [Zn] (mg)
A4: Raw FBR Ingredients | B4: =((#REF!/100)*#REF!)+((#REF!/100)*#REF!)+((#REF!/100)*#REF!)+((#REF!/100)*#REF!)+((#REF!/100)*#REF!)+((#REF!/100)*#REF!)+((#REF!/100)*#REF!)+((#REF!/100)*#REF!)+((#REF!/100)*#REF!)+((#REF!/100)*#REF!)+((#REF!/100)*#REF!)+((#REF!/100)*#REF!) ->  | C4: =((#REF!/100)*#REF!)+((#REF!/100)*#REF!)+((#REF!/100)*#REF!)+((#REF!/100)*#REF!)+((#REF!/100)*#REF!)+((#REF!/100)*#REF!)+((#REF!/100)*#REF!)+((#REF!/100)*#REF!)+((#REF!/100)*#REF!)+((#REF!/100)*#REF!)+((#REF!/100)*#REF!)+((#REF!/100)*#REF!) ->  | D4: =((#REF!/100)*#REF!)+((#REF!/100)*#REF!)+((#REF!/100)*#REF!)+((#REF!/100)*#REF!)+((#REF!/100)*#REF!)+((#REF!/100)*#REF!)+((#REF!/100)*#REF!)+((#REF!/100)*#REF!)+((#REF!/100)*#REF!)+((#REF!/100)*#REF!)+((#REF!/100)*#REF!)+((#REF!/100)*#REF!) ->  | E4: =((#REF!/100)*#REF!)+((#REF!/100)*#REF!)+((#REF!/100)*#REF!)+((#REF!/100)*#REF!)+((#REF!/100)*#REF!)+((#REF!/100)*#REF!)+((#REF!/100)*#REF!)+((#REF!/100)*#REF!)+((#REF!/100)*#REF!)+((#REF!/100)*#REF!)+((#REF!/100)*#REF!)+((#REF!/100)*#REF!) ->  | F4: =((#REF!/100)*#REF!)+((#REF!/100)*#REF!)+((#REF!/100)*#REF!)+((#REF!/100)*#REF!)+((#REF!/100)*#REF!)+((#REF!/100)*#REF!)+((#REF!/100)*#REF!)+((#REF!/100)*#REF!)+((#REF!/100)*#REF!)+((#REF!/100)*#REF!)+((#REF!/100)*#REF!)+((#REF!/100)*#REF!) ->  | G4: =((#REF!/100)*#REF!)+((#REF!/100)*#REF!)+((#REF!/100)*#REF!)+((#REF!/100)*#REF!)+((#REF!/100)*#REF!)+((#REF!/100)*#REF!)+((#REF!/100)*#REF!)+((#REF!/100)*#REF!)+((#REF!/100)*#REF!)+((#REF!/100)*#REF!)+((#REF!/100)*#REF!)+((#REF!/100)*#REF!) ->  | H4: =((#REF!/100)*#REF!)+((#REF!/100)*#REF!)+((#REF!/100)*#REF!)+((#REF!/100)*#REF!)+((#REF!/100)*#REF!)+((#REF!/100)*#REF!)+((#REF!/100)*#REF!)+((#REF!/100)*#REF!)+((#REF!/100)*#REF!)+((#REF!/100)*#REF!)+((#REF!/100)*#REF!)+((#REF!/100)*#REF!) ->  | I4: =((#REF!/100)*#REF!)+((#REF!/100)*#REF!)+((#REF!/100)*#REF!)+((#REF!/100)*#REF!)+((#REF!/100)*#REF!)+((#REF!/100)*#REF!)+((#REF!/100)*#REF!)+((#REF!/100)*#REF!)+((#REF!/100)*#REF!)+((#REF!/100)*#REF!)+((#REF!/100)*#REF!)+((#REF!/100)*#REF!) ->  | J4: =((#REF!/100)*#REF!)+((#REF!/100)*#REF!)+((#REF!/100)*#REF!)+((#REF!/100)*#REF!)+((#REF!/100)*#REF!)+((#REF!/100)*#REF!)+((#REF!/100)*#REF!)+((#REF!/100)*#REF!)+((#REF!/100)*#REF!)+((#REF!/100)*#REF!)+((#REF!/100)*#REF!)+((#REF!/100)*#REF!) ->  | K4: =((#REF!/100)*#REF!)+((#REF!/100)*#REF!)+((#REF!/100)*#REF!)+((#REF!/100)*#REF!)+((#REF!/100)*#REF!)+((#REF!/100)*#REF!)+((#REF!/100)*#REF!)+((#REF!/100)*#REF!)+((#REF!/100)*#REF!)+((#REF!/100)*#REF!)+((#REF!/100)*#REF!)+((#REF!/100)*#REF!) ->  | L4: 0.11 | M4: =((#REF!/100)*#REF!)+((#REF!/100)*#REF!)+((#REF!/100)*#REF!)+((#REF!/100)*#REF!)+((#REF!/100)*#REF!)+((#REF!/100)*#REF!)+((#REF!/100)*#REF!)+((#REF!/100)*#REF!)+((#REF!/100)*#REF!)+((#REF!/100)*#REF!)+((#REF!/100)*#REF!)+((#REF!/100)*#REF!) ->  | N4: =((#REF!/100)*#REF!)+((#REF!/100)*#REF!)+((#REF!/100)*#REF!)+((#REF!/100)*#REF!)+((#REF!/100)*#REF!)+((#REF!/100)*#REF!)+((#REF!/100)*#REF!)+((#REF!/100)*#REF!)+((#REF!/100)*#REF!)+((#REF!/100)*#REF!)+((#REF!/100)*#REF!)+((#REF!/100)*#REF!) ->  | O4: =((#REF!/100)*#REF!)+((#REF!/100)*#REF!)+((#REF!/100)*#REF!)+((#REF!/100)*#REF!)+((#REF!/100)*#REF!)+((#REF!/100)*#REF!)+((#REF!/100)*#REF!)+((#REF!/100)*#REF!)+((#REF!/100)*#REF!)+((#REF!/100)*#REF!)+((#REF!/100)*#REF!)+((#REF!/100)*#REF!) ->  | R4: =((#REF!/100)*#REF!)+((#REF!/100)*#REF!)+((#REF!/100)*#REF!)+((#REF!/100)*#REF!)+((#REF!/100)*#REF!)+((#REF!/100)*#REF!)+((#REF!/100)*#REF!)+((#REF!/100)*#REF!)+((#REF!/100)*#REF!)+((#REF!/100)*#REF!)+((#REF!/100)*#REF!)+((#REF!/100)*#REF!) ->  | S4: =((#REF!/100)*#REF!)+((#REF!/100)*#REF!)+((#REF!/100)*#REF!)+((#REF!/100)*#REF!)+((#REF!/100)*#REF!)+((#REF!/100)*#REF!)+((#REF!/100)*#REF!)+((#REF!/100)*#REF!)+((#REF!/100)*#REF!)+((#REF!/100)*#REF!)+((#REF!/100)*#REF!)+((#REF!/100)*#REF!) -> 
A5: Cooked FBR (+ retention factor) | B5: =B4 ->  | L5: 0.11 | R5: =R4 -> 
A7: Daily Nutrient Values for select populations | B7: Energy (kcal, or calories) | C7: Protein (g) | D7: Total fat (g) | E7: Saturated Fat (g) | F7: Monounsaturated fat (g) | G7: Polyunsaturated fat (g) | H7: Carbohydrate (g) | I7: Fiber (g) | J7: Sugar (g) | K7: Calcium [Ca] (mg) | L7: Iron [Fe] (mg) | M7: Magnesium [Mg] (mg) | N7: Phosphorus [P] (mg) | O7: Potassium [K] (mg) | R7: Sodium [Na] (mg) | S7: Zinc [Zn] (mg)
A8: Men, Adult, RDA (2000 calorie diet) | B8: 2400 | C8: =(B8*0.15)/4 -> 90 | D8: =(B8*0.35)/9 -> 93.33333333 | E8: =(B8*0.1)/9 -> 26.66666667 | F8: =((D8-E8)*0.6) -> 40 | G8: =((D8-E8)*0.4) -> 26.66666667 | H8: =(B8*0.5)/4 -> 300 | I8: 38 | J8: 36 | K8: 1000 | L8: 8 | M8: 420 | N8: 1250 | O8: 3400 | R8: 2000 | S8: 11
A9: Men, Adult, % Daily Value | B9: =B$5/B8 ->  | L9: 0.01375 | R9: =R$5/R8 -> 
B10: Energy (kcal, or calories) | C10: Protein (g) | D10: Total fat (g) | E10: Saturated Fat (g) | F10: Monounsaturated fat (g) | G10: Polyunsaturated fat (g) | H10: Carbohydrate (g) | I10: Fiber (g) | J10: Sugar (g) | K10: Calcium [Ca] (mg) | L10: Iron [Fe] (mg) | M10: Magnesium [Mg] (mg) | N10: Phosphorus [P] (mg) | O10: Potassium [K] (mg) | R10: Sodium [Na] (mg) | S10: Zinc [Zn] (mg)
A11: Women, Adult, RDA (2000 calorie diet) | B11: 2000 | C11: =(B11*0.15)/4 -> 75 | D11: =(B11*0.35)/9 -> 77.77777778 | E11: =(B11*0.1)/9 -> 22.22222222 | F11: =((D11-E11)*0.6) -> 33.33333333 | G11: =((D11-E11)*0.4) -> 22.22222222 | H11: =(B11*0.5)/4 -> 250 | I11: 25 | J11: 25 | K11: 1000 | L11: 18 | M11: 320 | N11: 1250 | O11: 2600 | R11: 2000 | S11: 8
A12: Women, Adult, % Daily Value | B12: =B$5/B11 ->  | L12: 0.006111111111 | R12: =R$5/R11 -> 
B13: Energy (kcal, or calories) | C13: Protein (g) | D13: Total fat (g) | E13: Saturated Fat (g) | F13: Monounsaturated fat (g) | G13: Polyunsaturated fat (g) | H13: Carbohydrate (g) | I13: Fiber (g) | J13: Sugar (g) | K13: Calcium [Ca] (mg) | L13: Iron [Fe] (mg) | M13: Magnesium [Mg] (mg) | N13: Phosphorus [P] (mg) | O13: Potassium [K] (mg) | R13: Sodium [Na] (mg) | S13: Zinc [Zn] (mg)
A14: PLW, Adult, RDA | B14: 2200 | C14: =(B14*0.15)/4 -> 82.5 | D14: =(B14*0.35)/9 -> 85.55555556 | E14: =(B14*0.1)/9 -> 24.44444444 | F14: =((D14-E14)*0.6) -> 36.66666667 | G14: =((D14-E14)*0.4) -> 24.44444444 | H14: =(B14*0.5)/4 -> 275 | I14: 29 | J14: 28 | K14: 1000 | L14: 27 | M14: 350 | N14: 700 | O14: 2900 | R14: 2000 | S14: 11
A15: PLW, Adult, % Daily Value | B15: =B$5/B14 ->  | L15: 0.004074074074 | R15: =R$5/R14 -> 
B16: Energy (kcal, or calories) | C16: Protein (g) | D16: Total fat (g) | E16: Saturated Fat (g) | F16: Monounsaturated fat (g) | G16: Polyunsaturated fat (g) | H16: Carbohydrate (g) | I16: Fiber (g) | J16: Sugar (g) | K16: Calcium [Ca] (mg) | L16: Iron [Fe] (mg) | M16: Magnesium [Mg] (mg) | N16: Phosphorus [P] (mg) | O16: Potassium [K] (mg) | R16: Sodium [Na] (mg) | S16: Zinc [Zn] (mg)
A17: Teens (14-18 years), RDA | B17: 2000 | C17: =(B17*0.15)/4 -> 75 | D17: =(B17*0.35)/9 -> 77.77777778 | E17: =(B17*0.1)/9 -> 22.22222222 | F17: =((D17-E17)*0.6) -> 33.33333333 | G17: =((D17-E17)*0.4) -> 22.22222222 | H17: =(B17*0.5)/4 -> 250 | I17: 26 | J17: 25 | K17: 1300 | L17: 13 | M17: 380 | N17: 1250 | O17: 2600 | R17: 2000 | S17: 10
A18: Teens (14-18 years), % Daily Value | B18: =B$5/B17 ->  | L18: 0.008461538462 | R18: =R$5/R17 -> 
B19: Energy (kcal, or calories) | C19: Protein (g) | D19: Total fat (g) | E19: Saturated Fat (g) | F19: Monounsaturated fat (g) | G19: Polyunsaturated fat (g) | H19: Carbohydrate (g) | I19: Fiber (g) | J19: Sugar (g) | K19: Calcium [Ca] (mg) | L19: Iron [Fe] (mg) | M19: Magnesium [Mg] (mg) | N19: Phosphorus [P] (mg) | O19: Potassium [K] (mg) | R19: Sodium [Na] (mg) | S19: Zinc [Zn] (mg)
A20: Children (4-8 years), RDA | B20: 1400 | C20: =(B20*0.15)/4 -> 52.5 | D20: =(B20*0.35)/9 -> 54.44444444 | E20: =(B20*0.1)/9 -> 15.55555556 | F20: =((D20-E20)*0.6) -> 23.33333333 | G20: =((D20-E20)*0.4) -> 15.55555556 | H20: =(B20*0.5)/4 -> 175 | I20: 25 | J20: 20 | K20: 1000 | L20: 10 | M20: 130 | N20: 500 | O20: 2300 | R20: 1200 | S20: 5
A21: Children (4-8 years), % Daily Value | B21: =B$5/B20 ->  | L21: 0.011 | R21: =R$5/R20 -> 
B22: Energy (kcal, or calories) | C22: Protein (g) | D22: Total fat (g) | E22: Saturated Fat (g) | F22: Monounsaturated fat (g) | G22: Polyunsaturated fat (g) | H22: Carbohydrate (g) | I22: Fiber (g) | J22: Sugar (g) | K22: Calcium [Ca] (mg) | L22: Iron [Fe] (mg) | M22: Magnesium [Mg] (mg) | N22: Phosphorus [P] (mg) | O22: Potassium [K] (mg) | R22: Sodium [Na] (mg) | S22: Zinc [Zn] (mg)
A23: Children (1-3 years), RDA | B23: 1200 | C23: =(B23*0.15)/4 -> 45 | D23: =(B23*0.35)/9 -> 46.66666667 | E23: =(B23*0.1)/9 -> 13.33333333 | F23: =((D23-E23)*0.6) -> 20 | G23: =((D23-E23)*0.4) -> 13.33333333 | H23: =(B23*0.5)/4 -> 150 | I23: 19 | J23: =(B23*0.06)/4 -> 18 | K23: 700 | L23: 7 | M23: 80 | N23: 460 | O23: 2000 | R23: 800 | S23: 3
A24: Children (1-3 years), % Daily Value | B24: =B$5/B23 ->  | L24: 0.01571428571 | R24: =R$5/R23 -> 
B25: Energy (kcal, or calories) | C25: Protein (g) | D25: Total fat (g) | E25: Saturated Fat (g) | F25: Monounsaturated fat (g) | G25: Polyunsaturated fat (g) | H25: Carbohydrate (g) | I25: Fiber (g) | J25: Sugar (g) | K25: Calcium [Ca] (mg) | L25: Iron [Fe] (mg) | M25: Magnesium [Mg] (mg) | N25: Phosphorus [P] (mg) | O25: Potassium [K] (mg) | R25: Sodium [Na] (mg) | S25: Zinc [Zn] (mg)
A26: Infant (6-12 months), RDA | B26: 1000 | C26: =(B26*0.15)/4 -> 37.5 | D26: =(B26*0.35)/9 -> 38.88888889 | E26: NA | F26: NA | G26: NA | H26: =(B26*0.5)/4 -> 125 | I26: NA | J26: NA | K26: 260 | L26: 11 | M26: 75 | N26: 275 | O26: 860 | R26: 400 | S26: 3
A27: Infant (6-12 months), % Daily Value | B27: =B$5/B26 ->  | E27: na | F27: na | G27: na | H27: =H$5/H26 ->  | I27: na | J27: na | K27: =K$5/K26 ->  | L27: 0.01 | R27: =R$5/R26 -> 
E28: = > 25% daily value | H28: = > 30% daily value, nutrient to limit (saturated fat, sugar, sodium)
A29: Sustainability Factors (based on Step 2) | B29: Crop Yield | C29: Profitability | D29: Ease of processing | E29: Affordability | F29: Accessibility | G29: Security | H29: Ease of production | I29: Consumer preference | J29: Women's workload | K29: Drought resilience | L29: Heat tolerance | M29: Agrochemical inputs
A31: Annual Seasonality Score (based on Step 3)
A33: =_xlfn.CONCAT('3B-4B) Nutr Calc (6-11)'!D40, " - Summary Dashboard") -> 
A34: Nutrient Composition | D34: Daily Nutrient Values for select populations | E34: % Daily Values (DV) of Nutrients for select populations | L34: =L33 -> 0 | N34: =N33 -> 0 | O34: 0 | R34: =R33 -> 0 | S34: 0
A35: Nutrients | B35: Raw FBR / EFB Ingredients | C35: Cooked FBR / EFB (w/ retention factor) | D35: Men, Adult, RDA (2000 calorie diet) | E35: Men, Adult, % DV | F35: Women, Adult, RDA (2000 calorie diet) | G35: Women, Adult, % DV | H35: PLW, Adult, RDA | I35: PLW, Adult, % DV | J35: Teens (14-18 years), RDA | K35: Teens (14-18 years), % DV | L35: Children (2-5 years), WHO | M35: Children (2-5 years), % DV | N35: Children (1-3 years), RDA | O35: Children (2-3 years), % DV | P35: Infant (12-24 months), % RDA | Q35: Infant (12-24 months), % DV | R35: Infant (6-12 months), RDA | S35: Infant (6-12 months), % DV
A36: Energy (kcal, or calories) | B36: =SUM(('3B-4B) Nutr Calc (6-11)'!C19/100)*('3B-4B) Nutr Calc (6-11)'!D$42),SUM('3B-4B) Nutr Calc (6-11)'!D19/100)*('3B-4B) Nutr Calc (6-11)'!D$43),SUM('3B-4B) Nutr Calc (6-11)'!E19/100)*('3B-4B) Nutr Calc (6-11)'!D$44),SUM('3B-4B) Nutr Calc (6-11)'!F19/100)*('3B-4B) Nutr Calc (6-11)'!D$45),SUM('3B-4B) Nutr Calc (6-11)'!G19/100)*('3B-4B) Nutr Calc (6-11)'!D$46),SUM('3B-4B) Nutr Calc (6-11)'!H19/100)*('3B-4B) Nutr Calc (6-11)'!D$47),SUM('3B-4B) Nutr Calc (6-11)'!I19/100)*('3B-4B) Nutr Calc (6-11)'!D$48),SUM('3B-4B) Nutr Calc (6-11)'!J19/100)*('3B-4B) Nutr Calc (6-11)'!D$49),SUM('3B-4B) Nutr Calc (6-11)'!K19/100)*('3B-4B) Nutr Calc (6-11)'!D$50),SUM('3B-4B) Nutr Calc (6-11)'!L19/100)*('3B-4B) Nutr Calc (6-11)'!D$51),SUM('3B-4B) Nutr Calc (6-11)'!M19/100)*('3B-4B) Nutr Calc (6-11)'!D52),SUM('3B-4B) Nutr Calc (6-11)'!N19/100)*('3B-4B) Nutr Calc (6-11)'!D53),SUM('3B-4B) Nutr Calc (6-11)'!O19/100)*('3B-4B) Nutr Calc (6-11)'!D54)) ->  | C36: =B36 ->  | D36: 2400 | E36: =$C36/D36 ->  | F36: 2000 | G36: =$C36/F36 ->  | H36: 2200 | I36: =$C36/H36 ->  | J36: 2000 | K36: =$C36/J36 ->  | L36: 1100 | M36: =$C36/L36 ->  | N36: 1200 | O36: =$C36/N36 ->  | P36: 1000 | Q36: =$C36/P36 ->  | R36: 800 | S36: =$C36/R36 -> 
A37: Protein (g) | B37: =SUM(('3B-4B) Nutr Calc (6-11)'!C20/100)*('3B-4B) Nutr Calc (6-11)'!D$42),SUM('3B-4B) Nutr Calc (6-11)'!D20/100)*('3B-4B) Nutr Calc (6-11)'!D$43),SUM('3B-4B) Nutr Calc (6-11)'!E20/100)*('3B-4B) Nutr Calc (6-11)'!D$44),SUM('3B-4B) Nutr Calc (6-11)'!F20/100)*('3B-4B) Nutr Calc (6-11)'!D$45),SUM('3B-4B) Nutr Calc (6-11)'!G20/100)*('3B-4B) Nutr Calc (6-11)'!D$46),SUM('3B-4B) Nutr Calc (6-11)'!H20/100)*('3B-4B) Nutr Calc (6-11)'!D$47),SUM('3B-4B) Nutr Calc (6-11)'!I20/100)*('3B-4B) Nutr Calc (6-11)'!D$48),SUM('3B-4B) Nutr Calc (6-11)'!J20/100)*('3B-4B) Nutr Calc (6-11)'!D$49),SUM('3B-4B) Nutr Calc (6-11)'!K20/100)*('3B-4B) Nutr Calc (6-11)'!D$50),SUM('3B-4B) Nutr Calc (6-11)'!L20/100)*('3B-4B) Nutr Calc (6-11)'!D$51),SUM('3B-4B) Nutr Calc (6-11)'!M20/100)*('3B-4B) Nutr Calc (6-11)'!D52),SUM('3B-4B) Nutr Calc (6-11)'!N20/100)*('3B-4B) Nutr Calc (6-11)'!D53),SUM('3B-4B) Nutr Calc (6-11)'!O20/100)*('3B-4B) Nutr Calc (6-11)'!D54)) -> 0 | C37: 0 | D37: =(D36*0.15)/4 -> 90 | E37: 0 | F37: 75 | G37: 0 | H37: =(H36*0.15)/4 -> 82.5 | I37: 0 | J37: =(J36*0.15)/4 -> 75 | K37: 0 | L37: =(L36*0.15)/4 -> 41.25 | M37: 0 | N37: =(N36*0.15)/4 -> 45 | O37: 0 | P37: =(P36*0.15)/4 -> 37.5 | Q37: 0 | R37: =(R36*0.15)/4 -> 30 | S37: 0
A38: Total fat (g) | B38: =SUM(('3B-4B) Nutr Calc (6-11)'!C21/100)*('3B-4B) Nutr Calc (6-11)'!D$42),SUM('3B-4B) Nutr Calc (6-11)'!D21/100)*('3B-4B) Nutr Calc (6-11)'!D$43),SUM('3B-4B) Nutr Calc (6-11)'!E21/100)*('3B-4B) Nutr Calc (6-11)'!D$44),SUM('3B-4B) Nutr Calc (6-11)'!F21/100)*('3B-4B) Nutr Calc (6-11)'!D$45),SUM('3B-4B) Nutr Calc (6-11)'!G21/100)*('3B-4B) Nutr Calc (6-11)'!D$46),SUM('3B-4B) Nutr Calc (6-11)'!H21/100)*('3B-4B) Nutr Calc (6-11)'!D$47),SUM('3B-4B) Nutr Calc (6-11)'!I21/100)*('3B-4B) Nutr Calc (6-11)'!D$48),SUM('3B-4B) Nutr Calc (6-11)'!J21/100)*('3B-4B) Nutr Calc (6-11)'!D$49),SUM('3B-4B) Nutr Calc (6-11)'!K21/100)*('3B-4B) Nutr Calc (6-11)'!D$50),SUM('3B-4B) Nutr Calc (6-11)'!L21/100)*('3B-4B) Nutr Calc (6-11)'!D$51),SUM('3B-4B) Nutr Calc (6-11)'!M21/100)*('3B-4B) Nutr Calc (6-11)'!D52),SUM('3B-4B) Nutr Calc (6-11)'!N21/100)*('3B-4B) Nutr Calc (6-11)'!D53),SUM('3B-4B) Nutr Calc (6-11)'!O21/100)*('3B-4B) Nutr Calc (6-11)'!D54)) -> 0 | C38: 0 | D38: =(D36*0.35)/9 -> 93.33333333 | E38: 0 | F38: 77.77777778 | G38: 0 | H38: =(H36*0.35)/9 -> 85.55555556 | I38: 0 | J38: =(J36*0.35)/9 -> 77.77777778 | K38: 0 | L38: =(L36*0.35)/9 -> 42.77777778 | M38: 0 | N38: =(N36*0.35)/9 -> 46.66666667 | O38: 0 | P38: =(P36*0.35)/9 -> 38.88888889 | Q38: 0 | R38: =(R36*0.35)/9 -> 31.11111111 | S38: 0
A39: Carbohydrate (g) | B39: =SUM(('3B-4B) Nutr Calc (6-11)'!C22/100)*('3B-4B) Nutr Calc (6-11)'!D$42),SUM('3B-4B) Nutr Calc (6-11)'!D22/100)*('3B-4B) Nutr Calc (6-11)'!D$43),SUM('3B-4B) Nutr Calc (6-11)'!E22/100)*('3B-4B) Nutr Calc (6-11)'!D$44),SUM('3B-4B) Nutr Calc (6-11)'!F22/100)*('3B-4B) Nutr Calc (6-11)'!D$45),SUM('3B-4B) Nutr Calc (6-11)'!G22/100)*('3B-4B) Nutr Calc (6-11)'!D$46),SUM('3B-4B) Nutr Calc (6-11)'!H22/100)*('3B-4B) Nutr Calc (6-11)'!D$47),SUM('3B-4B) Nutr Calc (6-11)'!I22/100)*('3B-4B) Nutr Calc (6-11)'!D$48),SUM('3B-4B) Nutr Calc (6-11)'!J22/100)*('3B-4B) Nutr Calc (6-11)'!D$49),SUM('3B-4B) Nutr Calc (6-11)'!K22/100)*('3B-4B) Nutr Calc (6-11)'!D$50),SUM('3B-4B) Nutr Calc (6-11)'!L22/100)*('3B-4B) Nutr Calc (6-11)'!D$51),SUM('3B-4B) Nutr Calc (6-11)'!M22/100)*('3B-4B) Nutr Calc (6-11)'!D52),SUM('3B-4B) Nutr Calc (6-11)'!N22/100)*('3B-4B) Nutr Calc (6-11)'!D53),SUM('3B-4B) Nutr Calc (6-11)'!O22/100)*('3B-4B) Nutr Calc (6-11)'!D54)) -> 0 | C39: 0 | D39: =(D36*0.5)/4 -> 300 | E39: 0 | F39: 250 | G39: 0 | H39: =(H36*0.5)/4 -> 275 | I39: 0 | J39: =(J36*0.5)/4 -> 250 | K39: 0 | L39: =(L36*0.5)/4 -> 137.5 | M39: 0 | N39: =(N36*0.5)/4 -> 150 | O39: 0 | P39: =(P36*0.5)/4 -> 125 | Q39: 0 | R39: =(R36*0.5)/4 -> 100 | S39: 0
A40: Fiber (g) | B40: =SUM(('3B-4B) Nutr Calc (6-11)'!C23/100)*('3B-4B) Nutr Calc (6-11)'!D$42),SUM('3B-4B) Nutr Calc (6-11)'!D23/100)*('3B-4B) Nutr Calc (6-11)'!D$43),SUM('3B-4B) Nutr Calc (6-11)'!E23/100)*('3B-4B) Nutr Calc (6-11)'!D$44),SUM('3B-4B) Nutr Calc (6-11)'!F23/100)*('3B-4B) Nutr Calc (6-11)'!D$45),SUM('3B-4B) Nutr Calc (6-11)'!G23/100)*('3B-4B) Nutr Calc (6-11)'!D$46),SUM('3B-4B) Nutr Calc (6-11)'!H23/100)*('3B-4B) Nutr Calc (6-11)'!D$47),SUM('3B-4B) Nutr Calc (6-11)'!I23/100)*('3B-4B) Nutr Calc (6-11)'!D$48),SUM('3B-4B) Nutr Calc (6-11)'!J23/100)*('3B-4B) Nutr Calc (6-11)'!D$49),SUM('3B-4B) Nutr Calc (6-11)'!K23/100)*('3B-4B) Nutr Calc (6-11)'!D$50),SUM('3B-4B) Nutr Calc (6-11)'!L23/100)*('3B-4B) Nutr Calc (6-11)'!D$51),SUM('3B-4B) Nutr Calc (6-11)'!M23/100)*('3B-4B) Nutr Calc (6-11)'!D52),SUM('3B-4B) Nutr Calc (6-11)'!N23/100)*('3B-4B) Nutr Calc (6-11)'!D53),SUM('3B-4B) Nutr Calc (6-11)'!O23/100)*('3B-4B) Nutr Calc (6-11)'!D54)) -> 0 | C40: 0 | D40: 38 | E40: 0 | F40: 25 | G40: 0 | H40: 29 | I40: 0 | J40: 26 | K40: 0 | L40: 25 | M40: 0 | N40: 19 | O40: 0 | P40: 17 | Q40: 0 | R40: NA | S40: NA
A41: Sugar (g) | B41: =SUM(('3B-4B) Nutr Calc (6-11)'!C24/100)*('3B-4B) Nutr Calc (6-11)'!D$42),SUM('3B-4B) Nutr Calc (6-11)'!D24/100)*('3B-4B) Nutr Calc (6-11)'!D$43),SUM('3B-4B) Nutr Calc (6-11)'!E24/100)*('3B-4B) Nutr Calc (6-11)'!D$44),SUM('3B-4B) Nutr Calc (6-11)'!F24/100)*('3B-4B) Nutr Calc (6-11)'!D$45),SUM('3B-4B) Nutr Calc (6-11)'!G24/100)*('3B-4B) Nutr Calc (6-11)'!D$46),SUM('3B-4B) Nutr Calc (6-11)'!H24/100)*('3B-4B) Nutr Calc (6-11)'!D$47),SUM('3B-4B) Nutr Calc (6-11)'!I24/100)*('3B-4B) Nutr Calc (6-11)'!D$48),SUM('3B-4B) Nutr Calc (6-11)'!J24/100)*('3B-4B) Nutr Calc (6-11)'!D$49),SUM('3B-4B) Nutr Calc (6-11)'!K24/100)*('3B-4B) Nutr Calc (6-11)'!D$50),SUM('3B-4B) Nutr Calc (6-11)'!L24/100)*('3B-4B) Nutr Calc (6-11)'!D$51),SUM('3B-4B) Nutr Calc (6-11)'!M24/100)*('3B-4B) Nutr Calc (6-11)'!D52),SUM('3B-4B) Nutr Calc (6-11)'!N24/100)*('3B-4B) Nutr Calc (6-11)'!D53),SUM('3B-4B) Nutr Calc (6-11)'!O24/100)*('3B-4B) Nutr Calc (6-11)'!D54)) -> 0 | C41: 0 | D41: 36 | E41: 0 | F41: 25 | G41: 0 | H41: 28 | I41: 0 | J41: 25 | K41: 0 | L41: 20 | M41: 0 | N41: =(N36*0.06)/4 -> 18 | O41: 0 | P41: NA | Q41: NA | R41: NA | S41: NA
A42: Calcium [Ca] (mg) | B42: =SUM(('3B-4B) Nutr Calc (6-11)'!C25/100)*('3B-4B) Nutr Calc (6-11)'!D$42),SUM('3B-4B) Nutr Calc (6-11)'!D25/100)*('3B-4B) Nutr Calc (6-11)'!D$43),SUM('3B-4B) Nutr Calc (6-11)'!E25/100)*('3B-4B) Nutr Calc (6-11)'!D$44),SUM('3B-4B) Nutr Calc (6-11)'!F25/100)*('3B-4B) Nutr Calc (6-11)'!D$45),SUM('3B-4B) Nutr Calc (6-11)'!G25/100)*('3B-4B) Nutr Calc (6-11)'!D$46),SUM('3B-4B) Nutr Calc (6-11)'!H25/100)*('3B-4B) Nutr Calc (6-11)'!D$47),SUM('3B-4B) Nutr Calc (6-11)'!I25/100)*('3B-4B) Nutr Calc (6-11)'!D$48),SUM('3B-4B) Nutr Calc (6-11)'!J25/100)*('3B-4B) Nutr Calc (6-11)'!D$49),SUM('3B-4B) Nutr Calc (6-11)'!K25/100)*('3B-4B) Nutr Calc (6-11)'!D$50),SUM('3B-4B) Nutr Calc (6-11)'!L25/100)*('3B-4B) Nutr Calc (6-11)'!D$51),SUM('3B-4B) Nutr Calc (6-11)'!M25/100)*('3B-4B) Nutr Calc (6-11)'!D52),SUM('3B-4B) Nutr Calc (6-11)'!N25/100)*('3B-4B) Nutr Calc (6-11)'!D53),SUM('3B-4B) Nutr Calc (6-11)'!O25/100)*('3B-4B) Nutr Calc (6-11)'!D54)) -> 0 | C42: 0 | D42: 1000 | E42: 0 | F42: 1000 | G42: 0 | H42: 1000 | I42: 0 | J42: 1300 | K42: 0 | L42: 1200 | M42: 0 | N42: 700 | O42: 0 | P42: 400 | Q42: =$C42/P42 -> 0 | R42: 260 | S42: =$C42/R42 -> 0
A43: Iron [Fe] (mg) | B43: =SUM(('3B-4B) Nutr Calc (6-11)'!C26/100)*('3B-4B) Nutr Calc (6-11)'!D$42),SUM('3B-4B) Nutr Calc (6-11)'!D26/100)*('3B-4B) Nutr Calc (6-11)'!D$43),SUM('3B-4B) Nutr Calc (6-11)'!E26/100)*('3B-4B) Nutr Calc (6-11)'!D$44),SUM('3B-4B) Nutr Calc (6-11)'!F26/100)*('3B-4B) Nutr Calc (6-11)'!D$45),SUM('3B-4B) Nutr Calc (6-11)'!G26/100)*('3B-4B) Nutr Calc (6-11)'!D$46),SUM('3B-4B) Nutr Calc (6-11)'!H26/100)*('3B-4B) Nutr Calc (6-11)'!D$47),SUM('3B-4B) Nutr Calc (6-11)'!I26/100)*('3B-4B) Nutr Calc (6-11)'!D$48),SUM('3B-4B) Nutr Calc (6-11)'!J26/100)*('3B-4B) Nutr Calc (6-11)'!D$49),SUM('3B-4B) Nutr Calc (6-11)'!K26/100)*('3B-4B) Nutr Calc (6-11)'!D$50),SUM('3B-4B) Nutr Calc (6-11)'!L26/100)*('3B-4B) Nutr Calc (6-11)'!D$51),SUM('3B-4B) Nutr Calc (6-11)'!M26/100)*('3B-4B) Nutr Calc (6-11)'!D52),SUM('3B-4B) Nutr Calc (6-11)'!N26/100)*('3B-4B) Nutr Calc (6-11)'!D53),SUM('3B-4B) Nutr Calc (6-11)'!O26/100)*('3B-4B) Nutr Calc (6-11)'!D54)) -> 0 | C43: 0 | D43: 8 | E43: 0 | F43: 18 | G43: 0 | H43: 27 | I43: 0 | J43: 13 | K43: 0 | L43: 22 | M43: 0 | N43: 7 | O43: 0 | P43: 7 | Q43: 0 | R43: 11 | S43: 0
A44: Magnesium [Mg] (mg) | B44: =SUM(('3B-4B) Nutr Calc (6-11)'!C27/100)*('3B-4B) Nutr Calc (6-11)'!D$42),SUM('3B-4B) Nutr Calc (6-11)'!D27/100)*('3B-4B) Nutr Calc (6-11)'!D$43),SUM('3B-4B) Nutr Calc (6-11)'!E27/100)*('3B-4B) Nutr Calc (6-11)'!D$44),SUM('3B-4B) Nutr Calc (6-11)'!F27/100)*('3B-4B) Nutr Calc (6-11)'!D$45),SUM('3B-4B) Nutr Calc (6-11)'!G27/100)*('3B-4B) Nutr Calc (6-11)'!D$46),SUM('3B-4B) Nutr Calc (6-11)'!H27/100)*('3B-4B) Nutr Calc (6-11)'!D$47),SUM('3B-4B) Nutr Calc (6-11)'!I27/100)*('3B-4B) Nutr Calc (6-11)'!D$48),SUM('3B-4B) Nutr Calc (6-11)'!J27/100)*('3B-4B) Nutr Calc (6-11)'!D$49),SUM('3B-4B) Nutr Calc (6-11)'!K27/100)*('3B-4B) Nutr Calc (6-11)'!D$50),SUM('3B-4B) Nutr Calc (6-11)'!L27/100)*('3B-4B) Nutr Calc (6-11)'!D$51),SUM('3B-4B) Nutr Calc (6-11)'!M27/100)*('3B-4B) Nutr Calc (6-11)'!D52),SUM('3B-4B) Nutr Calc (6-11)'!N27/100)*('3B-4B) Nutr Calc (6-11)'!D53),SUM('3B-4B) Nutr Calc (6-11)'!O27/100)*('3B-4B) Nutr Calc (6-11)'!D54)) -> 0 | C44: 0 | D44: 420 | E44: 0 | F44: 320 | G44: 0 | H44: 350 | I44: 0 | J44: 380 | K44: 0 | L44: =(280+420)/2 -> 350 | M44: 0 | N44: 80 | O44: 0 | P44: 65 | Q44: 0 | R44: 75 | S44: 0
A45: Potassium [K] (mg) | B45: =SUM(('3B-4B) Nutr Calc (6-11)'!C28/100)*('3B-4B) Nutr Calc (6-11)'!D$42),SUM('3B-4B) Nutr Calc (6-11)'!D28/100)*('3B-4B) Nutr Calc (6-11)'!D$43),SUM('3B-4B) Nutr Calc (6-11)'!E28/100)*('3B-4B) Nutr Calc (6-11)'!D$44),SUM('3B-4B) Nutr Calc (6-11)'!F28/100)*('3B-4B) Nutr Calc (6-11)'!D$45),SUM('3B-4B) Nutr Calc (6-11)'!G28/100)*('3B-4B) Nutr Calc (6-11)'!D$46),SUM('3B-4B) Nutr Calc (6-11)'!H28/100)*('3B-4B) Nutr Calc (6-11)'!D$47),SUM('3B-4B) Nutr Calc (6-11)'!I28/100)*('3B-4B) Nutr Calc (6-11)'!D$48),SUM('3B-4B) Nutr Calc (6-11)'!J28/100)*('3B-4B) Nutr Calc (6-11)'!D$49),SUM('3B-4B) Nutr Calc (6-11)'!K28/100)*('3B-4B) Nutr Calc (6-11)'!D$50),SUM('3B-4B) Nutr Calc (6-11)'!L28/100)*('3B-4B) Nutr Calc (6-11)'!D$51),SUM('3B-4B) Nutr Calc (6-11)'!M28/100)*('3B-4B) Nutr Calc (6-11)'!D52),SUM('3B-4B) Nutr Calc (6-11)'!N28/100)*('3B-4B) Nutr Calc (6-11)'!D53),SUM('3B-4B) Nutr Calc (6-11)'!O28/100)*('3B-4B) Nutr Calc (6-11)'!D54)) -> 0 | C45: 0 | D45: 3400 | E45: 0 | F45: 2600 | G45: 0 | H45: 2900 | I45: 0 | J45: 2600 | K45: 0 | L45: =(1500+2200)/2 -> 1850 | M45: 0 | N45: 2000 | O45: 0 | P45: 900 | Q45: 0 | R45: 860 | S45: 0
A46: Sodium [Na] (mg) | B46: =SUM(('3B-4B) Nutr Calc (6-11)'!C29/100)*('3B-4B) Nutr Calc (6-11)'!D$42),SUM('3B-4B) Nutr Calc (6-11)'!D29/100)*('3B-4B) Nutr Calc (6-11)'!D$43),SUM('3B-4B) Nutr Calc (6-11)'!E29/100)*('3B-4B) Nutr Calc (6-11)'!D$44),SUM('3B-4B) Nutr Calc (6-11)'!F29/100)*('3B-4B) Nutr Calc (6-11)'!D$45),SUM('3B-4B) Nutr Calc (6-11)'!G29/100)*('3B-4B) Nutr Calc (6-11)'!D$46),SUM('3B-4B) Nutr Calc (6-11)'!H29/100)*('3B-4B) Nutr Calc (6-11)'!D$47),SUM('3B-4B) Nutr Calc (6-11)'!I29/100)*('3B-4B) Nutr Calc (6-11)'!D$48),SUM('3B-4B) Nutr Calc (6-11)'!J29/100)*('3B-4B) Nutr Calc (6-11)'!D$49),SUM('3B-4B) Nutr Calc (6-11)'!K29/100)*('3B-4B) Nutr Calc (6-11)'!D$50),SUM('3B-4B) Nutr Calc (6-11)'!L29/100)*('3B-4B) Nutr Calc (6-11)'!D$51),SUM('3B-4B) Nutr Calc (6-11)'!M29/100)*('3B-4B) Nutr Calc (6-11)'!D52),SUM('3B-4B) Nutr Calc (6-11)'!N29/100)*('3B-4B) Nutr Calc (6-11)'!D53),SUM('3B-4B) Nutr Calc (6-11)'!O29/100)*('3B-4B) Nutr Calc (6-11)'!D54)) -> 0 | C46: 0 | D46: 2000 | E46: 0 | F46: 2000 | G46: 0 | H46: 2000 | I46: 0 | J46: 2000 | K46: 0 | L46: 1200 | M46: 0 | N46: 800 | O46: 0 | P46: 600 | Q46: 0 | R46: 400 | S46: 0
A47: Zinc [Zn] (mg) | B47: =SUM(('3B-4B) Nutr Calc (6-11)'!C30/100)*('3B-4B) Nutr Calc (6-11)'!D$42),SUM('3B-4B) Nutr Calc (6-11)'!D30/100)*('3B-4B) Nutr Calc (6-11)'!D$43),SUM('3B-4B) Nutr Calc (6-11)'!E30/100)*('3B-4B) Nutr Calc (6-11)'!D$44),SUM('3B-4B) Nutr Calc (6-11)'!F30/100)*('3B-4B) Nutr Calc (6-11)'!D$45),SUM('3B-4B) Nutr Calc (6-11)'!G30/100)*('3B-4B) Nutr Calc (6-11)'!D$46),SUM('3B-4B) Nutr Calc (6-11)'!H30/100)*('3B-4B) Nutr Calc (6-11)'!D$47),SUM('3B-4B) Nutr Calc (6-11)'!I30/100)*('3B-4B) Nutr Calc (6-11)'!D$48),SUM('3B-4B) Nutr Calc (6-11)'!J30/100)*('3B-4B) Nutr Calc (6-11)'!D$49),SUM('3B-4B) Nutr Calc (6-11)'!K30/100)*('3B-4B) Nutr Calc (6-11)'!D$50),SUM('3B-4B) Nutr Calc (6-11)'!L30/100)*('3B-4B) Nutr Calc (6-11)'!D$51),SUM('3B-4B) Nutr Calc (6-11)'!M30/100)*('3B-4B) Nutr Calc (6-11)'!D52),SUM('3B-4B) Nutr Calc (6-11)'!N30/100)*('3B-4B) Nutr Calc (6-11)'!D53),SUM('3B-4B) Nutr Calc (6-11)'!O30/100)*('3B-4B) Nutr Calc (6-11)'!D54)) -> 0 | C47: 0 | D47: 11 | E47: 0 | F47: 8 | G47: 0 | H47: 11 | I47: 0 | J47: 10 | K47: 0 | L47: =(20+35)/2 -> 27.5 | M47: 0 | N47: 3 | O47: 0 | P47: 2.5 | Q47: 0 | R47: 3 | S47: 0
A48: Vitamin A RAE (mcg) | B48: =SUM(('3B-4B) Nutr Calc (6-11)'!C31/100)*('3B-4B) Nutr Calc (6-11)'!D$42),SUM('3B-4B) Nutr Calc (6-11)'!D31/100)*('3B-4B) Nutr Calc (6-11)'!D$43),SUM('3B-4B) Nutr Calc (6-11)'!E31/100)*('3B-4B) Nutr Calc (6-11)'!D$44),SUM('3B-4B) Nutr Calc (6-11)'!F31/100)*('3B-4B) Nutr Calc (6-11)'!D$45),SUM('3B-4B) Nutr Calc (6-11)'!G31/100)*('3B-4B) Nutr Calc (6-11)'!D$46),SUM('3B-4B) Nutr Calc (6-11)'!H31/100)*('3B-4B) Nutr Calc (6-11)'!D$47),SUM('3B-4B) Nutr Calc (6-11)'!I31/100)*('3B-4B) Nutr Calc (6-11)'!D$48),SUM('3B-4B) Nutr Calc (6-11)'!J31/100)*('3B-4B) Nutr Calc (6-11)'!D$49),SUM('3B-4B) Nutr Calc (6-11)'!K31/100)*('3B-4B) Nutr Calc (6-11)'!D$50),SUM('3B-4B) Nutr Calc (6-11)'!L31/100)*('3B-4B) Nutr Calc (6-11)'!D$51),SUM('3B-4B) Nutr Calc (6-11)'!M31/100)*('3B-4B) Nutr Calc (6-11)'!D52),SUM('3B-4B) Nutr Calc (6-11)'!N31/100)*('3B-4B) Nutr Calc (6-11)'!D53),SUM('3B-4B) Nutr Calc (6-11)'!O31/100)*('3B-4B) Nutr Calc (6-11)'!D54)) -> 0 | C48: =((IF('3B-4B) Nutr Calc (6-11)'!D41="Boiled (<10 min)",0.8,IF('3B-4B) Nutr Calc (6-11)'!D41="Boiled (>10 min)",0.75,IF('3B-4B) Nutr Calc (6-11)'!D41="Steamed",0.9,IF('3B-4B) Nutr Calc (6-11)'!D41="Fried",0.9,IF('3B-4B) Nutr Calc (6-11)'!D41="Baked",0.9,IF('3B-4B) Nutr Calc (6-11)'!D41="Raw (no cooking)",1,IF('3B-4B) Nutr Calc (6-11)'!D41="Other cooking method",1))))))))*B48) -> 0 | D48: 900 | E48: 0 | F48: 700 | G48: 0 | H48: 1300 | I48: 0 | J48: 700 | K48: 0 | L48: =2500*0.3 -> 750 | M48: 0 | N48: 300 | O48: 0 | P48: 210 | Q48: 0 | R48: 500 | S48: 0
A49: Thiamine [Vitamin B1] (mg) | B49: =SUM(('3B-4B) Nutr Calc (6-11)'!C32/100)*('3B-4B) Nutr Calc (6-11)'!D$42),SUM('3B-4B) Nutr Calc (6-11)'!D32/100)*('3B-4B) Nutr Calc (6-11)'!D$43),SUM('3B-4B) Nutr Calc (6-11)'!E32/100)*('3B-4B) Nutr Calc (6-11)'!D$44),SUM('3B-4B) Nutr Calc (6-11)'!F32/100)*('3B-4B) Nutr Calc (6-11)'!D$45),SUM('3B-4B) Nutr Calc (6-11)'!G32/100)*('3B-4B) Nutr Calc (6-11)'!D$46),SUM('3B-4B) Nutr Calc (6-11)'!H32/100)*('3B-4B) Nutr Calc (6-11)'!D$47),SUM('3B-4B) Nutr Calc (6-11)'!I32/100)*('3B-4B) Nutr Calc (6-11)'!D$48),SUM('3B-4B) Nutr Calc (6-11)'!J32/100)*('3B-4B) Nutr Calc (6-11)'!D$49),SUM('3B-4B) Nutr Calc (6-11)'!K32/100)*('3B-4B) Nutr Calc (6-11)'!D$50),SUM('3B-4B) Nutr Calc (6-11)'!L32/100)*('3B-4B) Nutr Calc (6-11)'!D$51),SUM('3B-4B) Nutr Calc (6-11)'!M32/100)*('3B-4B) Nutr Calc (6-11)'!D$52),SUM('3B-4B) Nutr Calc (6-11)'!N32/100)*('3B-4B) Nutr Calc (6-11)'!D$53),SUM('3B-4B) Nutr Calc (6-11)'!O32/100)*('3B-4B) Nutr Calc (6-11)'!D$54)) -> 0 | C49: =((IF('3B-4B) Nutr Calc (6-11)'!D41="Boiled (<10 min)",0.75,IF('3B-4B) Nutr Calc (6-11)'!D41="Boiled (>10 min)",0.65,IF('3B-4B) Nutr Calc (6-11)'!D41="Steamed",0.8,IF('3B-4B) Nutr Calc (6-11)'!D41="Fried",0.8,IF('3B-4B) Nutr Calc (6-11)'!D41="Baked",0.85,IF('3B-4B) Nutr Calc (6-11)'!D41="Raw (no cooking)",1,IF('3B-4B) Nutr Calc (6-11)'!D41="Other cooking method",1))))))))*B49) -> 0 | D49: 1.2 | E49: 0 | F49: 1.1 | G49: 0 | H49: 1.4 | I49: 0 | J49: 1.2 | K49: 0 | L49: 1 | M49: 0 | N49: 0.5 | O49: 0 | P49: 0.4 | Q49: 0 | R49: 0.3 | S49: 0
A50: Riboflavin [Vitamin B2] (mg) | B50: =SUM(('3B-4B) Nutr Calc (6-11)'!C33/100)*('3B-4B) Nutr Calc (6-11)'!D$42),SUM('3B-4B) Nutr Calc (6-11)'!D33/100)*('3B-4B) Nutr Calc (6-11)'!D$43),SUM('3B-4B) Nutr Calc (6-11)'!E33/100)*('3B-4B) Nutr Calc (6-11)'!D$44),SUM('3B-4B) Nutr Calc (6-11)'!F33/100)*('3B-4B) Nutr Calc (6-11)'!D$45),SUM('3B-4B) Nutr Calc (6-11)'!G33/100)*('3B-4B) Nutr Calc (6-11)'!D$46),SUM('3B-4B) Nutr Calc (6-11)'!H33/100)*('3B-4B) Nutr Calc (6-11)'!D$47),SUM('3B-4B) Nutr Calc (6-11)'!I33/100)*('3B-4B) Nutr Calc (6-11)'!D$48),SUM('3B-4B) Nutr Calc (6-11)'!J33/100)*('3B-4B) Nutr Calc (6-11)'!D$49),SUM('3B-4B) Nutr Calc (6-11)'!K33/100)*('3B-4B) Nutr Calc (6-11)'!D$50),SUM('3B-4B) Nutr Calc (6-11)'!L33/100)*('3B-4B) Nutr Calc (6-11)'!D$51),SUM('3B-4B) Nutr Calc (6-11)'!M33/100)*('3B-4B) Nutr Calc (6-11)'!D$52),SUM('3B-4B) Nutr Calc (6-11)'!N33/100)*('3B-4B) Nutr Calc (6-11)'!D$53),SUM('3B-4B) Nutr Calc (6-11)'!O33/100)*('3B-4B) Nutr Calc (6-11)'!D$54)) -> 0 | C50: =((IF('3B-4B) Nutr Calc (6-11)'!D41="Boiled (<10 min)",0.75,IF('3B-4B) Nutr Calc (6-11)'!D41="Boiled (>10 min)",0.65,IF('3B-4B) Nutr Calc (6-11)'!D41="Steamed",0.9,IF('3B-4B) Nutr Calc (6-11)'!D41="Fried",0.9,IF('3B-4B) Nutr Calc (6-11)'!D41="Baked",0.9,IF('3B-4B) Nutr Calc (6-11)'!D41="Raw (no cooking)",1,IF('3B-4B) Nutr Calc (6-11)'!D41="Other cooking method",1))))))))*B50) -> 0 | D50: 1.3 | E50: 0 | F50: 1.1 | G50: 0 | H50: 1.5 | I50: 0 | J50: 1.15 | K50: 0 | L50: 4 | M50: 0 | N50: 0.5 | O50: 0 | P50: 0.4 | Q50: 0 | R50: 0.4 | S50: 0
A51: Niacin Equiv [Vitamin B3] (mg) | B51: =SUM(('3B-4B) Nutr Calc (6-11)'!C34/100)*('3B-4B) Nutr Calc (6-11)'!D$42),SUM('3B-4B) Nutr Calc (6-11)'!D34/100)*('3B-4B) Nutr Calc (6-11)'!D$43),SUM('3B-4B) Nutr Calc (6-11)'!E34/100)*('3B-4B) Nutr Calc (6-11)'!D$44),SUM('3B-4B) Nutr Calc (6-11)'!F34/100)*('3B-4B) Nutr Calc (6-11)'!D$45),SUM('3B-4B) Nutr Calc (6-11)'!G34/100)*('3B-4B) Nutr Calc (6-11)'!D$46),SUM('3B-4B) Nutr Calc (6-11)'!H34/100)*('3B-4B) Nutr Calc (6-11)'!D$47),SUM('3B-4B) Nutr Calc (6-11)'!I34/100)*('3B-4B) Nutr Calc (6-11)'!D$48),SUM('3B-4B) Nutr Calc (6-11)'!J34/100)*('3B-4B) Nutr Calc (6-11)'!D$49),SUM('3B-4B) Nutr Calc (6-11)'!K34/100)*('3B-4B) Nutr Calc (6-11)'!D$50),SUM('3B-4B) Nutr Calc (6-11)'!L34/100)*('3B-4B) Nutr Calc (6-11)'!D$51),SUM('3B-4B) Nutr Calc (6-11)'!M34/100)*('3B-4B) Nutr Calc (6-11)'!D$52),SUM('3B-4B) Nutr Calc (6-11)'!N34/100)*('3B-4B) Nutr Calc (6-11)'!D$53),SUM('3B-4B) Nutr Calc (6-11)'!O34/100)*('3B-4B) Nutr Calc (6-11)'!D$54)) -> 0 | C51: =((IF('3B-4B) Nutr Calc (6-11)'!D41="Boiled (<10 min)",0.8,IF('3B-4B) Nutr Calc (6-11)'!D41="Boiled (>10 min)",0.75,IF('3B-4B) Nutr Calc (6-11)'!D41="Steamed",0.9,IF('3B-4B) Nutr Calc (6-11)'!D41="Fried",0.9,IF('3B-4B) Nutr Calc (6-11)'!D41="Baked",0.9,IF('3B-4B) Nutr Calc (6-11)'!D41="Raw (no cooking)",1,IF('3B-4B) Nutr Calc (6-11)'!D41="Other cooking method",1))))))))*B51) -> 0 | D51: 16 | E51: 0 | F51: 14 | G51: 0 | H51: 18 | I51: 0 | J51: 15 | K51: 0 | L51: 8 | M51: 0 | N51: 6 | O51: 0 | P51: 5 | Q51: 0 | R51: 4 | S51: 0
A52: Folate DFE (mcg) | B52: =SUM(('3B-4B) Nutr Calc (6-11)'!C35/100)*('3B-4B) Nutr Calc (6-11)'!D$42),SUM('3B-4B) Nutr Calc (6-11)'!D35/100)*('3B-4B) Nutr Calc (6-11)'!D$43),SUM('3B-4B) Nutr Calc (6-11)'!E35/100)*('3B-4B) Nutr Calc (6-11)'!D$44),SUM('3B-4B) Nutr Calc (6-11)'!F35/100)*('3B-4B) Nutr Calc (6-11)'!D$45),SUM('3B-4B) Nutr Calc (6-11)'!G35/100)*('3B-4B) Nutr Calc (6-11)'!D$46),SUM('3B-4B) Nutr Calc (6-11)'!H35/100)*('3B-4B) Nutr Calc (6-11)'!D$47),SUM('3B-4B) Nutr Calc (6-11)'!I35/100)*('3B-4B) Nutr Calc (6-11)'!D$48),SUM('3B-4B) Nutr Calc (6-11)'!J35/100)*('3B-4B) Nutr Calc (6-11)'!D$49),SUM('3B-4B) Nutr Calc (6-11)'!K35/100)*('3B-4B) Nutr Calc (6-11)'!D$50),SUM('3B-4B) Nutr Calc (6-11)'!L35/100)*('3B-4B) Nutr Calc (6-11)'!D$51),SUM('3B-4B) Nutr Calc (6-11)'!M31/100)*('3B-4B) Nutr Calc (6-11)'!D52),SUM('3B-4B) Nutr Calc (6-11)'!N31/100)*('3B-4B) Nutr Calc (6-11)'!D53),SUM('3B-4B) Nutr Calc (6-11)'!O31/100)*('3B-4B) Nutr Calc (6-11)'!D54)) -> 0 | C52: =((IF('3B-4B) Nutr Calc (6-11)'!D41="Boiled (<10 min)",0.8,IF('3B-4B) Nutr Calc (6-11)'!D41="Boiled (>10 min)",0.7,IF('3B-4B) Nutr Calc (6-11)'!D41="Steamed",0.85,IF('3B-4B) Nutr Calc (6-11)'!D41="Fried",0.85,IF('3B-4B) Nutr Calc (6-11)'!D41="Baked",0.9,IF('3B-4B) Nutr Calc (6-11)'!D41="Raw (no cooking)",1,IF('3B-4B) Nutr Calc (6-11)'!D41="Other cooking method",1))))))))*B52) -> 0 | D52: 400 | E52: 0 | F52: 400 | G52: 0 | H52: 600 | I52: 0 | J52: 400 | K52: 0 | L52: 200 | M52: 0 | N52: 150 | O52: 0 | P52: 120 | Q52: 0 | R52: 80 | S52: 0
A53: Vitamin B12 (mcg) | B53: =SUM(('3B-4B) Nutr Calc (6-11)'!C36/100)*('3B-4B) Nutr Calc (6-11)'!D$42),SUM('3B-4B) Nutr Calc (6-11)'!D36/100)*('3B-4B) Nutr Calc (6-11)'!D$43),SUM('3B-4B) Nutr Calc (6-11)'!E36/100)*('3B-4B) Nutr Calc (6-11)'!D$44),SUM('3B-4B) Nutr Calc (6-11)'!F36/100)*('3B-4B) Nutr Calc (6-11)'!D$45),SUM('3B-4B) Nutr Calc (6-11)'!G36/100)*('3B-4B) Nutr Calc (6-11)'!D$46),SUM('3B-4B) Nutr Calc (6-11)'!H36/100)*('3B-4B) Nutr Calc (6-11)'!D$47),SUM('3B-4B) Nutr Calc (6-11)'!I36/100)*('3B-4B) Nutr Calc (6-11)'!D$48),SUM('3B-4B) Nutr Calc (6-11)'!J36/100)*('3B-4B) Nutr Calc (6-11)'!D$49),SUM('3B-4B) Nutr Calc (6-11)'!K36/100)*('3B-4B) Nutr Calc (6-11)'!D$50),SUM('3B-4B) Nutr Calc (6-11)'!L36/100)*('3B-4B) Nutr Calc (6-11)'!D$51),SUM('3B-4B) Nutr Calc (6-11)'!M36/100)*('3B-4B) Nutr Calc (6-11)'!D52),SUM('3B-4B) Nutr Calc (6-11)'!N36/100)*('3B-4B) Nutr Calc (6-11)'!D53),SUM('3B-4B) Nutr Calc (6-11)'!O36/100)*('3B-4B) Nutr Calc (6-11)'!D54)) -> 0 | C53: =((IF('3B-4B) Nutr Calc (6-11)'!D41="Boiled (<10 min)",0.9,IF('3B-4B) Nutr Calc (6-11)'!D41="Boiled (>10 min)",0.8,IF('3B-4B) Nutr Calc (6-11)'!D41="Steamed",0.9,IF('3B-4B) Nutr Calc (6-11)'!D41="Fried",0.9,IF('3B-4B) Nutr Calc (6-11)'!D41="Baked",0.9,IF('3B-4B) Nutr Calc (6-11)'!D41="Raw (no cooking)",1,IF('3B-4B) Nutr Calc (6-11)'!D41="Other cooking method",1))))))))*B53) -> 0 | D53: 2.4 | E53: 0 | F53: 2.4 | G53: 0 | H53: 2.8 | I53: 0 | J53: 2.4 | K53: 0 | L53: 5 | M53: 0 | N53: 0.9 | O53: 0 | P53: 0.7 | Q53: 0 | R53: 0.5 | S53: 0
A54: Vitamin C (mg) | B54: =SUM(('3B-4B) Nutr Calc (6-11)'!C37/100)*('3B-4B) Nutr Calc (6-11)'!D$42),SUM('3B-4B) Nutr Calc (6-11)'!D37/100)*('3B-4B) Nutr Calc (6-11)'!D$43),SUM('3B-4B) Nutr Calc (6-11)'!E37/100)*('3B-4B) Nutr Calc (6-11)'!D$44),SUM('3B-4B) Nutr Calc (6-11)'!F37/100)*('3B-4B) Nutr Calc (6-11)'!D$45),SUM('3B-4B) Nutr Calc (6-11)'!G37/100)*('3B-4B) Nutr Calc (6-11)'!D$46),SUM('3B-4B) Nutr Calc (6-11)'!H37/100)*('3B-4B) Nutr Calc (6-11)'!D$47),SUM('3B-4B) Nutr Calc (6-11)'!I37/100)*('3B-4B) Nutr Calc (6-11)'!D$48),SUM('3B-4B) Nutr Calc (6-11)'!J37/100)*('3B-4B) Nutr Calc (6-11)'!D$49),SUM('3B-4B) Nutr Calc (6-11)'!K37/100)*('3B-4B) Nutr Calc (6-11)'!D$50),SUM('3B-4B) Nutr Calc (6-11)'!L37/100)*('3B-4B) Nutr Calc (6-11)'!D$51),SUM('3B-4B) Nutr Calc (6-11)'!M37/100)*('3B-4B) Nutr Calc (6-11)'!D52),SUM('3B-4B) Nutr Calc (6-11)'!N37/100)*('3B-4B) Nutr Calc (6-11)'!D53),SUM('3B-4B) Nutr Calc (6-11)'!O37/100)*('3B-4B) Nutr Calc (6-11)'!D54)) -> 0 | C54: =((IF('3B-4B) Nutr Calc (6-11)'!D41="Boiled (<10 min)",0.8,IF('3B-4B) Nutr Calc (6-11)'!D41="Boiled (>10 min)",0.6,IF('3B-4B) Nutr Calc (6-11)'!D41="Steamed",0.8,IF('3B-4B) Nutr Calc (6-11)'!D41="Fried",0.8,IF('3B-4B) Nutr Calc (6-11)'!D41="Baked",0.8,IF('3B-4B) Nutr Calc (6-11)'!D41="Raw (no cooking)",1,IF('3B-4B) Nutr Calc (6-11)'!D41="Other cooking method",1))))))))*B54) -> 0 | D54: 90 | E54: 0 | F54: 75 | G54: 0 | H54: 120 | I54: 0 | J54: 70 | K54: 0 | L54: 150 | M54: 0 | N54: 15 | O54: 0 | P54: 13 | Q54: 0 | R54: 50 | S54: 0
R57: = >30% DV | S57: = >30% DV

Sheet FBREFB #3 (Details) (hidden)
A1: =CONCAT(#REF!," Nutrition Composition") -> 
A2: Weight = | B2: =#REF! -> 
A3: Nutrients (before & after cooking) | B3: Energy (kcal, or calories) | C3: Protein (g) | D3: Total fat (g) | I3: Sodium [Na] (mg) | J3: Zinc [Zn] (mg)
A4: Raw FBR Ingredients | B4: =((#REF!/100)*#REF!)+((#REF!/100)*#REF!)+((#REF!/100)*#REF!)+((#REF!/100)*#REF!)+((#REF!/100)*#REF!)+((#REF!/100)*#REF!)+((#REF!/100)*#REF!)+((#REF!/100)*#REF!)+((#REF!/100)*#REF!)+((#REF!/100)*#REF!)+((#REF!/100)*#REF!)+((#REF!/100)*#REF!) ->  | C4: =((#REF!/100)*#REF!)+((#REF!/100)*#REF!)+((#REF!/100)*#REF!)+((#REF!/100)*#REF!)+((#REF!/100)*#REF!)+((#REF!/100)*#REF!)+((#REF!/100)*#REF!)+((#REF!/100)*#REF!)+((#REF!/100)*#REF!)+((#REF!/100)*#REF!)+((#REF!/100)*#REF!)+((#REF!/100)*#REF!) ->  | D4: =((#REF!/100)*#REF!)+((#REF!/100)*#REF!)+((#REF!/100)*#REF!)+((#REF!/100)*#REF!)+((#REF!/100)*#REF!)+((#REF!/100)*#REF!)+((#REF!/100)*#REF!)+((#REF!/100)*#REF!)+((#REF!/100)*#REF!)+((#REF!/100)*#REF!)+((#REF!/100)*#REF!)+((#REF!/100)*#REF!) ->  | I4: =((#REF!/100)*#REF!)+((#REF!/100)*#REF!)+((#REF!/100)*#REF!)+((#REF!/100)*#REF!)+((#REF!/100)*#REF!)+((#REF!/100)*#REF!)+((#REF!/100)*#REF!)+((#REF!/100)*#REF!)+((#REF!/100)*#REF!)+((#REF!/100)*#REF!)+((#REF!/100)*#REF!)+((#REF!/100)*#REF!) ->  | J4: =((#REF!/100)*#REF!)+((#REF!/100)*#REF!)+((#REF!/100)*#REF!)+((#REF!/100)*#REF!)+((#REF!/100)*#REF!)+((#REF!/100)*#REF!)+((#REF!/100)*#REF!)+((#REF!/100)*#REF!)+((#REF!/100)*#REF!)+((#REF!/100)*#REF!)+((#REF!/100)*#REF!)+((#REF!/100)*#REF!) -> 
A5: Cooked FBR (+ retention factor) | B5: =B4 ->  | I5: =I4 -> 
A7: Daily Nutrient Values for select populations | B7: Energy (kcal, or calories) | C7: Protein (g) | D7: Total fat (g) | I7: Sodium [Na] (mg) | J7: Zinc [Zn] (mg)
A8: Men, Adult, RDA (2000 calorie diet) | B8: 2400 | C8: =(B8*0.15)/4 -> 90 | D8: =(B8*0.35)/9 -> 93.33333333 | I8: 2000 | J8: 11
A9: Men, Adult, % Daily Value | B9: =B$5/B8 ->  | I9: =I$5/I8 -> 
B10: Energy (kcal, or calories) | C10: Protein (g) | D10: Total fat (g) | I10: Sodium [Na] (mg) | J10: Zinc [Zn] (mg)
A11: Women, Adult, RDA (2000 calorie diet) | B11: 2000 | C11: =(B11*0.15)/4 -> 75 | D11: =(B11*0.35)/9 -> 77.77777778 | I11: 2000 | J11: 8
A12: Women, Adult, % Daily Value | B12: =B$5/B11 ->  | I12: =I$5/I11 -> 
B13: Energy (kcal, or calories) | C13: Protein (g) | D13: Total fat (g) | I13: Sodium [Na] (mg) | J13: Zinc [Zn] (mg)
A14: PLW, Adult, RDA | B14: 2200 | C14: =(B14*0.15)/4 -> 82.5 | D14: =(B14*0.35)/9 -> 85.55555556 | I14: 2000 | J14: 11
A15: PLW, Adult, % Daily Value | B15: =B$5/B14 ->  | I15: =I$5/I14 -> 
B16: Energy (kcal, or calories) | C16: Protein (g) | D16: Total fat (g) | I16: Sodium [Na] (mg) | J16: Zinc [Zn] (mg)
A17: Teens (14-18 years), RDA | B17: 2000 | C17: =(B17*0.15)/4 -> 75 | D17: =(B17*0.35)/9 -> 77.77777778 | I17: 2000 | J17: 10
A18: Teens (14-18 years), % Daily Value | B18: =B$5/B17 ->  | I18: =I$5/I17 -> 
B19: Energy (kcal, or calories) | C19: Protein (g) | D19: Total fat (g) | I19: Sodium [Na] (mg) | J19: Zinc [Zn] (mg)
A20: Children (4-8 years), RDA | B20: 1400 | C20: =(B20*0.15)/4 -> 52.5 | D20: =(B20*0.35)/9 -> 54.44444444 | I20: 1200 | J20: 5
A21: Children (4-8 years), % Daily Value | B21: =B$5/B20 ->  | I21: =I$5/I20 -> 
B22: Energy (kcal, or calories) | C22: Protein (g) | D22: Total fat (g) | I22: Sodium [Na] (mg) | J22: Zinc [Zn] (mg)
A23: Children (1-3 years), RDA | B23: 1200 | C23: =(B23*0.15)/4 -> 45 | D23: =(B23*0.35)/9 -> 46.66666667 | I23: 800 | J23: 3
A24: Children (1-3 years), % Daily Value | B24: =B$5/B23 ->  | I24: =I$5/I23 -> 
B25: Energy (kcal, or calories) | C25: Protein (g) | D25: Total fat (g) | I25: Sodium [Na] (mg) | J25: Zinc [Zn] (mg)
A26: Infant (6-12 months), RDA | B26: 1000 | C26: =(B26*0.15)/4 -> 37.5 | D26: =(B26*0.35)/9 -> 38.88888889 | I26: 400 | J26: 3
A27: Infant (6-12 months), % Daily Value | B27: =B$5/B26 ->  | I27: =I$5/I26 -> 
A29: Sustainability Factors (based on Step 2) | B29: Crop Yield | C29: Profitability | D29: Ease of processing
A31: Annual Seasonality Score (based on Step 3)
A33: =_xlfn.CONCAT('3B-4B) Nutr Calc (6-11)'!E40, " - Summary Dashboard") -> 
A34: Nutrient Composition | D34: Daily Nutrient Values for select populations | E34: =E33 -> 0 | I34: =I33 -> 0 | J34: 0
A35: Nutrients | B35: Raw FBR / EFB Ingredients | C35: Cooked FBR / EFB (w/ retention factor) | D35: Men, Adult, RDA (2000 calorie diet) | E35: Children (2-5 years), WHO | F35: Children (2-5 years), % DV | G35: Infant (12-24 months), % RDA | H35: Infant (12-24 months), % DV | I35: Infant (6-12 months), RDA | J35: Infant (6-12 months), % DV
A36: Energy (kcal, or calories) | B36: =SUM(('3B-4B) Nutr Calc (6-11)'!C19/100)*('3B-4B) Nutr Calc (6-11)'!E$42),SUM('3B-4B) Nutr Calc (6-11)'!D19/100)*('3B-4B) Nutr Calc (6-11)'!E$43),SUM('3B-4B) Nutr Calc (6-11)'!E19/100)*('3B-4B) Nutr Calc (6-11)'!E$44),SUM('3B-4B) Nutr Calc (6-11)'!F19/100)*('3B-4B) Nutr Calc (6-11)'!E$45),SUM('3B-4B) Nutr Calc (6-11)'!G19/100)*('3B-4B) Nutr Calc (6-11)'!E$46),SUM('3B-4B) Nutr Calc (6-11)'!H19/100)*('3B-4B) Nutr Calc (6-11)'!E$47),SUM('3B-4B) Nutr Calc (6-11)'!I19/100)*('3B-4B) Nutr Calc (6-11)'!E$48),SUM('3B-4B) Nutr Calc (6-11)'!J19/100)*('3B-4B) Nutr Calc (6-11)'!E$49),SUM('3B-4B) Nutr Calc (6-11)'!K19/100)*('3B-4B) Nutr Calc (6-11)'!E$50),SUM('3B-4B) Nutr Calc (6-11)'!L19/100)*('3B-4B) Nutr Calc (6-11)'!E$51),SUM('3B-4B) Nutr Calc (6-11)'!M19/100)*('3B-4B) Nutr Calc (6-11)'!E52),SUM('3B-4B) Nutr Calc (6-11)'!N19/100)*('3B-4B) Nutr Calc (6-11)'!E53),SUM('3B-4B) Nutr Calc (6-11)'!O19/100)*('3B-4B) Nutr Calc (6-11)'!E54)) ->  | C36: =B36 ->  | D36: 2400 | E36: 1100 | F36: =$C36/E36 ->  | G36: 1000 | H36: =$C36/G36 ->  | I36: 800 | J36: =$C36/I36 -> 
A37: Protein (g) | B37: =SUM(('3B-4B) Nutr Calc (6-11)'!C20/100)*('3B-4B) Nutr Calc (6-11)'!E$42),SUM('3B-4B) Nutr Calc (6-11)'!D20/100)*('3B-4B) Nutr Calc (6-11)'!E$43),SUM('3B-4B) Nutr Calc (6-11)'!E20/100)*('3B-4B) Nutr Calc (6-11)'!E$44),SUM('3B-4B) Nutr Calc (6-11)'!F20/100)*('3B-4B) Nutr Calc (6-11)'!E$45),SUM('3B-4B) Nutr Calc (6-11)'!G20/100)*('3B-4B) Nutr Calc (6-11)'!E$46),SUM('3B-4B) Nutr Calc (6-11)'!H20/100)*('3B-4B) Nutr Calc (6-11)'!E$47),SUM('3B-4B) Nutr Calc (6-11)'!I20/100)*('3B-4B) Nutr Calc (6-11)'!E$48),SUM('3B-4B) Nutr Calc (6-11)'!J20/100)*('3B-4B) Nutr Calc (6-11)'!E$49),SUM('3B-4B) Nutr Calc (6-11)'!K20/100)*('3B-4B) Nutr Calc (6-11)'!E$50),SUM('3B-4B) Nutr Calc (6-11)'!L20/100)*('3B-4B) Nutr Calc (6-11)'!E$51),SUM('3B-4B) Nutr Calc (6-11)'!M20/100)*('3B-4B) Nutr Calc (6-11)'!E52),SUM('3B-4B) Nutr Calc (6-11)'!N20/100)*('3B-4B) Nutr Calc (6-11)'!E53),SUM('3B-4B) Nutr Calc (6-11)'!O20/100)*('3B-4B) Nutr Calc (6-11)'!E54)) -> 0 | C37: 0 | D37: =(D36*0.15)/4 -> 90 | E37: =(E36*0.15)/4 -> 41.25 | F37: =$C37/E37 -> 0 | G37: 37.5 | H37: 0 | I37: =(I36*0.15)/4 -> 30 | J37: 0
A38: Total fat (g) | B38: =SUM(('3B-4B) Nutr Calc (6-11)'!C21/100)*('3B-4B) Nutr Calc (6-11)'!E$42),SUM('3B-4B) Nutr Calc (6-11)'!D21/100)*('3B-4B) Nutr Calc (6-11)'!E$43),SUM('3B-4B) Nutr Calc (6-11)'!E21/100)*('3B-4B) Nutr Calc (6-11)'!E$44),SUM('3B-4B) Nutr Calc (6-11)'!F21/100)*('3B-4B) Nutr Calc (6-11)'!E$45),SUM('3B-4B) Nutr Calc (6-11)'!G21/100)*('3B-4B) Nutr Calc (6-11)'!E$46),SUM('3B-4B) Nutr Calc (6-11)'!H21/100)*('3B-4B) Nutr Calc (6-11)'!E$47),SUM('3B-4B) Nutr Calc (6-11)'!I21/100)*('3B-4B) Nutr Calc (6-11)'!E$48),SUM('3B-4B) Nutr Calc (6-11)'!J21/100)*('3B-4B) Nutr Calc (6-11)'!E$49),SUM('3B-4B) Nutr Calc (6-11)'!K21/100)*('3B-4B) Nutr Calc (6-11)'!E$50),SUM('3B-4B) Nutr Calc (6-11)'!L21/100)*('3B-4B) Nutr Calc (6-11)'!E$51),SUM('3B-4B) Nutr Calc (6-11)'!M21/100)*('3B-4B) Nutr Calc (6-11)'!E52),SUM('3B-4B) Nutr Calc (6-11)'!N21/100)*('3B-4B) Nutr Calc (6-11)'!E53),SUM('3B-4B) Nutr Calc (6-11)'!O21/100)*('3B-4B) Nutr Calc (6-11)'!E54)) -> 0 | C38: 0 | D38: =(D36*0.35)/9 -> 93.33333333 | E38: =(E36*0.35)/9 -> 42.77777778 | F38: 0 | G38: 38.88888889 | H38: 0 | I38: =(I36*0.35)/9 -> 31.11111111 | J38: 0
A39: Carbohydrate (g) | B39: =SUM(('3B-4B) Nutr Calc (6-11)'!C22/100)*('3B-4B) Nutr Calc (6-11)'!E$42),SUM('3B-4B) Nutr Calc (6-11)'!D22/100)*('3B-4B) Nutr Calc (6-11)'!E$43),SUM('3B-4B) Nutr Calc (6-11)'!E22/100)*('3B-4B) Nutr Calc (6-11)'!E$44),SUM('3B-4B) Nutr Calc (6-11)'!F22/100)*('3B-4B) Nutr Calc (6-11)'!E$45),SUM('3B-4B) Nutr Calc (6-11)'!G22/100)*('3B-4B) Nutr Calc (6-11)'!E$46),SUM('3B-4B) Nutr Calc (6-11)'!H22/100)*('3B-4B) Nutr Calc (6-11)'!E$47),SUM('3B-4B) Nutr Calc (6-11)'!I22/100)*('3B-4B) Nutr Calc (6-11)'!E$48),SUM('3B-4B) Nutr Calc (6-11)'!J22/100)*('3B-4B) Nutr Calc (6-11)'!E$49),SUM('3B-4B) Nutr Calc (6-11)'!K22/100)*('3B-4B) Nutr Calc (6-11)'!E$50),SUM('3B-4B) Nutr Calc (6-11)'!L22/100)*('3B-4B) Nutr Calc (6-11)'!E$51),SUM('3B-4B) Nutr Calc (6-11)'!M22/100)*('3B-4B) Nutr Calc (6-11)'!E52),SUM('3B-4B) Nutr Calc (6-11)'!N22/100)*('3B-4B) Nutr Calc (6-11)'!E53),SUM('3B-4B) Nutr Calc (6-11)'!O22/100)*('3B-4B) Nutr Calc (6-11)'!E54)) -> 0 | C39: 0 | D39: =(D36*0.5)/4 -> 300 | E39: =(E36*0.5)/4 -> 137.5 | F39: 0 | G39: 125 | H39: 0 | I39: =(I36*0.5)/4 -> 100 | J39: 0
A40: Fiber (g) | B40: =SUM(('3B-4B) Nutr Calc (6-11)'!C23/100)*('3B-4B) Nutr Calc (6-11)'!E$42),SUM('3B-4B) Nutr Calc (6-11)'!D23/100)*('3B-4B) Nutr Calc (6-11)'!E$43),SUM('3B-4B) Nutr Calc (6-11)'!E23/100)*('3B-4B) Nutr Calc (6-11)'!E$44),SUM('3B-4B) Nutr Calc (6-11)'!F23/100)*('3B-4B) Nutr Calc (6-11)'!E$45),SUM('3B-4B) Nutr Calc (6-11)'!G23/100)*('3B-4B) Nutr Calc (6-11)'!E$46),SUM('3B-4B) Nutr Calc (6-11)'!H23/100)*('3B-4B) Nutr Calc (6-11)'!E$47),SUM('3B-4B) Nutr Calc (6-11)'!I23/100)*('3B-4B) Nutr Calc (6-11)'!E$48),SUM('3B-4B) Nutr Calc (6-11)'!J23/100)*('3B-4B) Nutr Calc (6-11)'!E$49),SUM('3B-4B) Nutr Calc (6-11)'!K23/100)*('3B-4B) Nutr Calc (6-11)'!E$50),SUM('3B-4B) Nutr Calc (6-11)'!L23/100)*('3B-4B) Nutr Calc (6-11)'!E$51),SUM('3B-4B) Nutr Calc (6-11)'!M23/100)*('3B-4B) Nutr Calc (6-11)'!E52),SUM('3B-4B) Nutr Calc (6-11)'!N23/100)*('3B-4B) Nutr Calc (6-11)'!E53),SUM('3B-4B) Nutr Calc (6-11)'!O23/100)*('3B-4B) Nutr Calc (6-11)'!E54)) -> 0 | C40: 0 | D40: 38 | E40: 25 | F40: 0 | G40: 17 | H40: 0 | I40: NA | J40: NA
A41: Sugar (g) | B41: =SUM(('3B-4B) Nutr Calc (6-11)'!C24/100)*('3B-4B) Nutr Calc (6-11)'!E$42),SUM('3B-4B) Nutr Calc (6-11)'!D24/100)*('3B-4B) Nutr Calc (6-11)'!E$43),SUM('3B-4B) Nutr Calc (6-11)'!E24/100)*('3B-4B) Nutr Calc (6-11)'!E$44),SUM('3B-4B) Nutr Calc (6-11)'!F24/100)*('3B-4B) Nutr Calc (6-11)'!E$45),SUM('3B-4B) Nutr Calc (6-11)'!G24/100)*('3B-4B) Nutr Calc (6-11)'!E$46),SUM('3B-4B) Nutr Calc (6-11)'!H24/100)*('3B-4B) Nutr Calc (6-11)'!E$47),SUM('3B-4B) Nutr Calc (6-11)'!I24/100)*('3B-4B) Nutr Calc (6-11)'!E$48),SUM('3B-4B) Nutr Calc (6-11)'!J24/100)*('3B-4B) Nutr Calc (6-11)'!E$49),SUM('3B-4B) Nutr Calc (6-11)'!K24/100)*('3B-4B) Nutr Calc (6-11)'!E$50),SUM('3B-4B) Nutr Calc (6-11)'!L24/100)*('3B-4B) Nutr Calc (6-11)'!E$51),SUM('3B-4B) Nutr Calc (6-11)'!M24/100)*('3B-4B) Nutr Calc (6-11)'!E52),SUM('3B-4B) Nutr Calc (6-11)'!N24/100)*('3B-4B) Nutr Calc (6-11)'!E53),SUM('3B-4B) Nutr Calc (6-11)'!O24/100)*('3B-4B) Nutr Calc (6-11)'!E54)) -> 0 | C41: 0 | D41: 36 | E41: 20 | F41: 0 | G41: NA | H41: NA | I41: NA | J41: NA
A42: Calcium [Ca] (mg) | B42: =SUM(('3B-4B) Nutr Calc (6-11)'!C25/100)*('3B-4B) Nutr Calc (6-11)'!E$42),SUM('3B-4B) Nutr Calc (6-11)'!D25/100)*('3B-4B) Nutr Calc (6-11)'!E$43),SUM('3B-4B) Nutr Calc (6-11)'!E25/100)*('3B-4B) Nutr Calc (6-11)'!E$44),SUM('3B-4B) Nutr Calc (6-11)'!F25/100)*('3B-4B) Nutr Calc (6-11)'!E$45),SUM('3B-4B) Nutr Calc (6-11)'!G25/100)*('3B-4B) Nutr Calc (6-11)'!E$46),SUM('3B-4B) Nutr Calc (6-11)'!H25/100)*('3B-4B) Nutr Calc (6-11)'!E$47),SUM('3B-4B) Nutr Calc (6-11)'!I25/100)*('3B-4B) Nutr Calc (6-11)'!E$48),SUM('3B-4B) Nutr Calc (6-11)'!J25/100)*('3B-4B) Nutr Calc (6-11)'!E$49),SUM('3B-4B) Nutr Calc (6-11)'!K25/100)*('3B-4B) Nutr Calc (6-11)'!E$50),SUM('3B-4B) Nutr Calc (6-11)'!L25/100)*('3B-4B) Nutr Calc (6-11)'!E$51),SUM('3B-4B) Nutr Calc (6-11)'!M25/100)*('3B-4B) Nutr Calc (6-11)'!E52),SUM('3B-4B) Nutr Calc (6-11)'!N25/100)*('3B-4B) Nutr Calc (6-11)'!E53),SUM('3B-4B) Nutr Calc (6-11)'!O25/100)*('3B-4B) Nutr Calc (6-11)'!E54)) -> 0 | C42: 0 | D42: 1000 | E42: 1200 | F42: 0 | G42: 400 | H42: =$C42/G42 -> 0 | I42: 260 | J42: =$C42/I42 -> 0
A43: Iron [Fe] (mg) | B43: =SUM(('3B-4B) Nutr Calc (6-11)'!C26/100)*('3B-4B) Nutr Calc (6-11)'!E$42),SUM('3B-4B) Nutr Calc (6-11)'!D26/100)*('3B-4B) Nutr Calc (6-11)'!E$43),SUM('3B-4B) Nutr Calc (6-11)'!E26/100)*('3B-4B) Nutr Calc (6-11)'!E$44),SUM('3B-4B) Nutr Calc (6-11)'!F26/100)*('3B-4B) Nutr Calc (6-11)'!E$45),SUM('3B-4B) Nutr Calc (6-11)'!G26/100)*('3B-4B) Nutr Calc (6-11)'!E$46),SUM('3B-4B) Nutr Calc (6-11)'!H26/100)*('3B-4B) Nutr Calc (6-11)'!E$47),SUM('3B-4B) Nutr Calc (6-11)'!I26/100)*('3B-4B) Nutr Calc (6-11)'!E$48),SUM('3B-4B) Nutr Calc (6-11)'!J26/100)*('3B-4B) Nutr Calc (6-11)'!E$49),SUM('3B-4B) Nutr Calc (6-11)'!K26/100)*('3B-4B) Nutr Calc (6-11)'!E$50),SUM('3B-4B) Nutr Calc (6-11)'!L26/100)*('3B-4B) Nutr Calc (6-11)'!E$51),SUM('3B-4B) Nutr Calc (6-11)'!M26/100)*('3B-4B) Nutr Calc (6-11)'!E52),SUM('3B-4B) Nutr Calc (6-11)'!N26/100)*('3B-4B) Nutr Calc (6-11)'!E53),SUM('3B-4B) Nutr Calc (6-11)'!O26/100)*('3B-4B) Nutr Calc (6-11)'!E54)) -> 0 | C43: 0 | D43: 8 | E43: 22 | F43: 0 | G43: 7 | H43: 0 | I43: 11 | J43: 0
A44: Magnesium [Mg] (mg) | B44: =SUM(('3B-4B) Nutr Calc (6-11)'!C27/100)*('3B-4B) Nutr Calc (6-11)'!E$42),SUM('3B-4B) Nutr Calc (6-11)'!D27/100)*('3B-4B) Nutr Calc (6-11)'!E$43),SUM('3B-4B) Nutr Calc (6-11)'!E27/100)*('3B-4B) Nutr Calc (6-11)'!E$44),SUM('3B-4B) Nutr Calc (6-11)'!F27/100)*('3B-4B) Nutr Calc (6-11)'!E$45),SUM('3B-4B) Nutr Calc (6-11)'!G27/100)*('3B-4B) Nutr Calc (6-11)'!E$46),SUM('3B-4B) Nutr Calc (6-11)'!H27/100)*('3B-4B) Nutr Calc (6-11)'!E$47),SUM('3B-4B) Nutr Calc (6-11)'!I27/100)*('3B-4B) Nutr Calc (6-11)'!E$48),SUM('3B-4B) Nutr Calc (6-11)'!J27/100)*('3B-4B) Nutr Calc (6-11)'!E$49),SUM('3B-4B) Nutr Calc (6-11)'!K27/100)*('3B-4B) Nutr Calc (6-11)'!E$50),SUM('3B-4B) Nutr Calc (6-11)'!L27/100)*('3B-4B) Nutr Calc (6-11)'!E$51),SUM('3B-4B) Nutr Calc (6-11)'!M27/100)*('3B-4B) Nutr Calc (6-11)'!E52),SUM('3B-4B) Nutr Calc (6-11)'!N27/100)*('3B-4B) Nutr Calc (6-11)'!E53),SUM('3B-4B) Nutr Calc (6-11)'!O27/100)*('3B-4B) Nutr Calc (6-11)'!E54)) -> 0 | C44: 0 | D44: 420 | E44: =(280+420)/2 -> 350 | F44: 0 | G44: 65 | H44: 0 | I44: 75 | J44: 0
A45: Potassium [K] (mg) | B45: =SUM(('3B-4B) Nutr Calc (6-11)'!C28/100)*('3B-4B) Nutr Calc (6-11)'!E$42),SUM('3B-4B) Nutr Calc (6-11)'!D28/100)*('3B-4B) Nutr Calc (6-11)'!E$43),SUM('3B-4B) Nutr Calc (6-11)'!E28/100)*('3B-4B) Nutr Calc (6-11)'!E$44),SUM('3B-4B) Nutr Calc (6-11)'!F28/100)*('3B-4B) Nutr Calc (6-11)'!E$45),SUM('3B-4B) Nutr Calc (6-11)'!G28/100)*('3B-4B) Nutr Calc (6-11)'!E$46),SUM('3B-4B) Nutr Calc (6-11)'!H28/100)*('3B-4B) Nutr Calc (6-11)'!E$47),SUM('3B-4B) Nutr Calc (6-11)'!I28/100)*('3B-4B) Nutr Calc (6-11)'!E$48),SUM('3B-4B) Nutr Calc (6-11)'!J28/100)*('3B-4B) Nutr Calc (6-11)'!E$49),SUM('3B-4B) Nutr Calc (6-11)'!K28/100)*('3B-4B) Nutr Calc (6-11)'!E$50),SUM('3B-4B) Nutr Calc (6-11)'!L28/100)*('3B-4B) Nutr Calc (6-11)'!E$51),SUM('3B-4B) Nutr Calc (6-11)'!M28/100)*('3B-4B) Nutr Calc (6-11)'!E52),SUM('3B-4B) Nutr Calc (6-11)'!N28/100)*('3B-4B) Nutr Calc (6-11)'!E53),SUM('3B-4B) Nutr Calc (6-11)'!O28/100)*('3B-4B) Nutr Calc (6-11)'!E54)) -> 0 | C45: 0 | D45: 3400 | E45: =(1500+2200)/2 -> 1850 | F45: 0 | G45: 900 | H45: 0 | I45: 860 | J45: 0
A46: Sodium [Na] (mg) | B46: =SUM(('3B-4B) Nutr Calc (6-11)'!C29/100)*('3B-4B) Nutr Calc (6-11)'!E$42),SUM('3B-4B) Nutr Calc (6-11)'!D29/100)*('3B-4B) Nutr Calc (6-11)'!E$43),SUM('3B-4B) Nutr Calc (6-11)'!E29/100)*('3B-4B) Nutr Calc (6-11)'!E$44),SUM('3B-4B) Nutr Calc (6-11)'!F29/100)*('3B-4B) Nutr Calc (6-11)'!E$45),SUM('3B-4B) Nutr Calc (6-11)'!G29/100)*('3B-4B) Nutr Calc (6-11)'!E$46),SUM('3B-4B) Nutr Calc (6-11)'!H29/100)*('3B-4B) Nutr Calc (6-11)'!E$47),SUM('3B-4B) Nutr Calc (6-11)'!I29/100)*('3B-4B) Nutr Calc (6-11)'!E$48),SUM('3B-4B) Nutr Calc (6-11)'!J29/100)*('3B-4B) Nutr Calc (6-11)'!E$49),SUM('3B-4B) Nutr Calc (6-11)'!K29/100)*('3B-4B) Nutr Calc (6-11)'!E$50),SUM('3B-4B) Nutr Calc (6-11)'!L29/100)*('3B-4B) Nutr Calc (6-11)'!E$51),SUM('3B-4B) Nutr Calc (6-11)'!M29/100)*('3B-4B) Nutr Calc (6-11)'!E52),SUM('3B-4B) Nutr Calc (6-11)'!N29/100)*('3B-4B) Nutr Calc (6-11)'!E53),SUM('3B-4B) Nutr Calc (6-11)'!O29/100)*('3B-4B) Nutr Calc (6-11)'!E54)) -> 0 | C46: 0 | D46: 2000 | E46: 1200 | F46: 0 | G46: 600 | H46: 0 | I46: 400 | J46: 0
A47: Zinc [Zn] (mg) | B47: =SUM(('3B-4B) Nutr Calc (6-11)'!C30/100)*('3B-4B) Nutr Calc (6-11)'!E$42),SUM('3B-4B) Nutr Calc (6-11)'!D30/100)*('3B-4B) Nutr Calc (6-11)'!E$43),SUM('3B-4B) Nutr Calc (6-11)'!E30/100)*('3B-4B) Nutr Calc (6-11)'!E$44),SUM('3B-4B) Nutr Calc (6-11)'!F30/100)*('3B-4B) Nutr Calc (6-11)'!E$45),SUM('3B-4B) Nutr Calc (6-11)'!G30/100)*('3B-4B) Nutr Calc (6-11)'!E$46),SUM('3B-4B) Nutr Calc (6-11)'!H30/100)*('3B-4B) Nutr Calc (6-11)'!E$47),SUM('3B-4B) Nutr Calc (6-11)'!I30/100)*('3B-4B) Nutr Calc (6-11)'!E$48),SUM('3B-4B) Nutr Calc (6-11)'!J30/100)*('3B-4B) Nutr Calc (6-11)'!E$49),SUM('3B-4B) Nutr Calc (6-11)'!K30/100)*('3B-4B) Nutr Calc (6-11)'!E$50),SUM('3B-4B) Nutr Calc (6-11)'!L30/100)*('3B-4B) Nutr Calc (6-11)'!E$51),SUM('3B-4B) Nutr Calc (6-11)'!M31/100)*('3B-4B) Nutr Calc (6-11)'!E52),SUM('3B-4B) Nutr Calc (6-11)'!N31/100)*('3B-4B) Nutr Calc (6-11)'!E53),SUM('3B-4B) Nutr Calc (6-11)'!O31/100)*('3B-4B) Nutr Calc (6-11)'!E54)) -> 0 | C47: 0 | D47: 11 | E47: =(20+35)/2 -> 27.5 | F47: 0 | G47: 2.5 | H47: 0 | I47: 3 | J47: 0
A48: Vitamin A RAE (mcg) | B48: =SUM(('3B-4B) Nutr Calc (6-11)'!C31/100)*('3B-4B) Nutr Calc (6-11)'!E$42),SUM('3B-4B) Nutr Calc (6-11)'!D31/100)*('3B-4B) Nutr Calc (6-11)'!E$43),SUM('3B-4B) Nutr Calc (6-11)'!E31/100)*('3B-4B) Nutr Calc (6-11)'!E$44),SUM('3B-4B) Nutr Calc (6-11)'!F31/100)*('3B-4B) Nutr Calc (6-11)'!E$45),SUM('3B-4B) Nutr Calc (6-11)'!G31/100)*('3B-4B) Nutr Calc (6-11)'!E$46),SUM('3B-4B) Nutr Calc (6-11)'!H31/100)*('3B-4B) Nutr Calc (6-11)'!E$47),SUM('3B-4B) Nutr Calc (6-11)'!I31/100)*('3B-4B) Nutr Calc (6-11)'!E$48),SUM('3B-4B) Nutr Calc (6-11)'!J31/100)*('3B-4B) Nutr Calc (6-11)'!E$49),SUM('3B-4B) Nutr Calc (6-11)'!K31/100)*('3B-4B) Nutr Calc (6-11)'!E$50),SUM('3B-4B) Nutr Calc (6-11)'!L31/100)*('3B-4B) Nutr Calc (6-11)'!E$51),SUM('3B-4B) Nutr Calc (6-11)'!M31/100)*('3B-4B) Nutr Calc (6-11)'!E52),SUM('3B-4B) Nutr Calc (6-11)'!N31/100)*('3B-4B) Nutr Calc (6-11)'!E53),SUM('3B-4B) Nutr Calc (6-11)'!O31/100)*('3B-4B) Nutr Calc (6-11)'!E54)) -> 0 | C48: =((IF('3B-4B) Nutr Calc (6-11)'!E41="Boiled (<10 min)",0.8,IF('3B-4B) Nutr Calc (6-11)'!E41="Boiled (>10 min)",0.75,IF('3B-4B) Nutr Calc (6-11)'!E41="Steamed",0.9,IF('3B-4B) Nutr Calc (6-11)'!E41="Fried",0.9,IF('3B-4B) Nutr Calc (6-11)'!E41="Baked",0.9,IF('3B-4B) Nutr Calc (6-11)'!E41="Raw (no cooking)",1,IF('3B-4B) Nutr Calc (6-11)'!E41="Other cooking method",1))))))))*B48) -> 0 | D48: 900 | E48: =2500*0.3 -> 750 | F48: 0 | G48: 210 | H48: 0 | I48: 500 | J48: 0
A49: Thiamine [Vitamin B1] (mg) | B49: =SUM(('3B-4B) Nutr Calc (6-11)'!C32/100)*('3B-4B) Nutr Calc (6-11)'!E$42),SUM('3B-4B) Nutr Calc (6-11)'!D32/100)*('3B-4B) Nutr Calc (6-11)'!E$43),SUM('3B-4B) Nutr Calc (6-11)'!E32/100)*('3B-4B) Nutr Calc (6-11)'!E$44),SUM('3B-4B) Nutr Calc (6-11)'!F32/100)*('3B-4B) Nutr Calc (6-11)'!E$45),SUM('3B-4B) Nutr Calc (6-11)'!G32/100)*('3B-4B) Nutr Calc (6-11)'!E$46),SUM('3B-4B) Nutr Calc (6-11)'!H32/100)*('3B-4B) Nutr Calc (6-11)'!E$47),SUM('3B-4B) Nutr Calc (6-11)'!I32/100)*('3B-4B) Nutr Calc (6-11)'!E$48),SUM('3B-4B) Nutr Calc (6-11)'!J32/100)*('3B-4B) Nutr Calc (6-11)'!E$49),SUM('3B-4B) Nutr Calc (6-11)'!K32/100)*('3B-4B) Nutr Calc (6-11)'!E$50),SUM('3B-4B) Nutr Calc (6-11)'!L32/100)*('3B-4B) Nutr Calc (6-11)'!E$51),SUM('3B-4B) Nutr Calc (6-11)'!M32/100)*('3B-4B) Nutr Calc (6-11)'!E$52),SUM('3B-4B) Nutr Calc (6-11)'!N32/100)*('3B-4B) Nutr Calc (6-11)'!E$53),SUM('3B-4B) Nutr Calc (6-11)'!O32/100)*('3B-4B) Nutr Calc (6-11)'!E$54)) -> 0 | C49: =((IF('3B-4B) Nutr Calc (6-11)'!E41="Boiled (<10 min)",0.75,IF('3B-4B) Nutr Calc (6-11)'!E41="Boiled (>10 min)",0.65,IF('3B-4B) Nutr Calc (6-11)'!E41="Steamed",0.8,IF('3B-4B) Nutr Calc (6-11)'!E41="Fried",0.8,IF('3B-4B) Nutr Calc (6-11)'!E41="Baked",0.85,IF('3B-4B) Nutr Calc (6-11)'!E41="Raw (no cooking)",1,IF('3B-4B) Nutr Calc (6-11)'!E41="Other cooking method",1))))))))*B49) -> 0 | D49: 1.2 | E49: 1 | F49: 0 | G49: 0.4 | H49: 0 | I49: 0.3 | J49: 0
A50: Riboflavin [Vitamin B2] (mg) | B50: =SUM(('3B-4B) Nutr Calc (6-11)'!C33/100)*('3B-4B) Nutr Calc (6-11)'!E$42),SUM('3B-4B) Nutr Calc (6-11)'!D33/100)*('3B-4B) Nutr Calc (6-11)'!E$43),SUM('3B-4B) Nutr Calc (6-11)'!E33/100)*('3B-4B) Nutr Calc (6-11)'!E$44),SUM('3B-4B) Nutr Calc (6-11)'!F33/100)*('3B-4B) Nutr Calc (6-11)'!E$45),SUM('3B-4B) Nutr Calc (6-11)'!G33/100)*('3B-4B) Nutr Calc (6-11)'!E$46),SUM('3B-4B) Nutr Calc (6-11)'!H33/100)*('3B-4B) Nutr Calc (6-11)'!E$47),SUM('3B-4B) Nutr Calc (6-11)'!I33/100)*('3B-4B) Nutr Calc (6-11)'!E$48),SUM('3B-4B) Nutr Calc (6-11)'!J33/100)*('3B-4B) Nutr Calc (6-11)'!E$49),SUM('3B-4B) Nutr Calc (6-11)'!K33/100)*('3B-4B) Nutr Calc (6-11)'!E$50),SUM('3B-4B) Nutr Calc (6-11)'!L33/100)*('3B-4B) Nutr Calc (6-11)'!E$51),SUM('3B-4B) Nutr Calc (6-11)'!M33/100)*('3B-4B) Nutr Calc (6-11)'!E$52),SUM('3B-4B) Nutr Calc (6-11)'!N33/100)*('3B-4B) Nutr Calc (6-11)'!E$53),SUM('3B-4B) Nutr Calc (6-11)'!O33/100)*('3B-4B) Nutr Calc (6-11)'!E$54)) -> 0 | C50: =((IF('3B-4B) Nutr Calc (6-11)'!E41="Boiled (<10 min)",0.75,IF('3B-4B) Nutr Calc (6-11)'!E41="Boiled (>10 min)",0.65,IF('3B-4B) Nutr Calc (6-11)'!E41="Steamed",0.9,IF('3B-4B) Nutr Calc (6-11)'!E41="Fried",0.9,IF('3B-4B) Nutr Calc (6-11)'!E41="Baked",0.9,IF('3B-4B) Nutr Calc (6-11)'!E41="Raw (no cooking)",1,IF('3B-4B) Nutr Calc (6-11)'!E41="Other cooking method",1))))))))*B50) -> 0 | D50: 1.3 | E50: 4 | F50: 0 | G50: 0.4 | H50: 0 | I50: 0.4 | J50: 0
A51: Niacin Equiv [Vitamin B3] (mg) | B51: =SUM(('3B-4B) Nutr Calc (6-11)'!C34/100)*('3B-4B) Nutr Calc (6-11)'!E$42),SUM('3B-4B) Nutr Calc (6-11)'!D34/100)*('3B-4B) Nutr Calc (6-11)'!E$43),SUM('3B-4B) Nutr Calc (6-11)'!E34/100)*('3B-4B) Nutr Calc (6-11)'!E$44),SUM('3B-4B) Nutr Calc (6-11)'!F34/100)*('3B-4B) Nutr Calc (6-11)'!E$45),SUM('3B-4B) Nutr Calc (6-11)'!G34/100)*('3B-4B) Nutr Calc (6-11)'!E$46),SUM('3B-4B) Nutr Calc (6-11)'!H34/100)*('3B-4B) Nutr Calc (6-11)'!E$47),SUM('3B-4B) Nutr Calc (6-11)'!I34/100)*('3B-4B) Nutr Calc (6-11)'!E$48),SUM('3B-4B) Nutr Calc (6-11)'!J34/100)*('3B-4B) Nutr Calc (6-11)'!E$49),SUM('3B-4B) Nutr Calc (6-11)'!K34/100)*('3B-4B) Nutr Calc (6-11)'!E$50),SUM('3B-4B) Nutr Calc (6-11)'!L34/100)*('3B-4B) Nutr Calc (6-11)'!E$51),SUM('3B-4B) Nutr Calc (6-11)'!M34/100)*('3B-4B) Nutr Calc (6-11)'!E$52),SUM('3B-4B) Nutr Calc (6-11)'!N34/100)*('3B-4B) Nutr Calc (6-11)'!E$53),SUM('3B-4B) Nutr Calc (6-11)'!O34/100)*('3B-4B) Nutr Calc (6-11)'!E$54)) -> 0 | C51: =((IF('3B-4B) Nutr Calc (6-11)'!E41="Boiled (<10 min)",0.8,IF('3B-4B) Nutr Calc (6-11)'!E41="Boiled (>10 min)",0.75,IF('3B-4B) Nutr Calc (6-11)'!E41="Steamed",0.9,IF('3B-4B) Nutr Calc (6-11)'!E41="Fried",0.9,IF('3B-4B) Nutr Calc (6-11)'!E41="Baked",0.9,IF('3B-4B) Nutr Calc (6-11)'!E41="Raw (no cooking)",1,IF('3B-4B) Nutr Calc (6-11)'!E41="Other cooking method",1))))))))*B51) -> 0 | D51: 16 | E51: 8 | F51: 0 | G51: 5 | H51: 0 | I51: 4 | J51: 0
A52: Folate DFE (mcg) | B52: =SUM(('3B-4B) Nutr Calc (6-11)'!C35/100)*('3B-4B) Nutr Calc (6-11)'!E$42),SUM('3B-4B) Nutr Calc (6-11)'!D35/100)*('3B-4B) Nutr Calc (6-11)'!E$43),SUM('3B-4B) Nutr Calc (6-11)'!E35/100)*('3B-4B) Nutr Calc (6-11)'!E$44),SUM('3B-4B) Nutr Calc (6-11)'!F35/100)*('3B-4B) Nutr Calc (6-11)'!E$45),SUM('3B-4B) Nutr Calc (6-11)'!G35/100)*('3B-4B) Nutr Calc (6-11)'!E$46),SUM('3B-4B) Nutr Calc (6-11)'!H35/100)*('3B-4B) Nutr Calc (6-11)'!E$47),SUM('3B-4B) Nutr Calc (6-11)'!I35/100)*('3B-4B) Nutr Calc (6-11)'!E$48),SUM('3B-4B) Nutr Calc (6-11)'!J35/100)*('3B-4B) Nutr Calc (6-11)'!E$49),SUM('3B-4B) Nutr Calc (6-11)'!K35/100)*('3B-4B) Nutr Calc (6-11)'!E$50),SUM('3B-4B) Nutr Calc (6-11)'!L35/100)*('3B-4B) Nutr Calc (6-11)'!E$51),SUM('3B-4B) Nutr Calc (6-11)'!M31/100)*('3B-4B) Nutr Calc (6-11)'!E52),SUM('3B-4B) Nutr Calc (6-11)'!N31/100)*('3B-4B) Nutr Calc (6-11)'!E53),SUM('3B-4B) Nutr Calc (6-11)'!O31/100)*('3B-4B) Nutr Calc (6-11)'!E54)) -> 0 | C52: =((IF('3B-4B) Nutr Calc (6-11)'!E41="Boiled (<10 min)",0.8,IF('3B-4B) Nutr Calc (6-11)'!E41="Boiled (>10 min)",0.7,IF('3B-4B) Nutr Calc (6-11)'!E41="Steamed",0.85,IF('3B-4B) Nutr Calc (6-11)'!E41="Fried",0.85,IF('3B-4B) Nutr Calc (6-11)'!E41="Baked",0.9,IF('3B-4B) Nutr Calc (6-11)'!E41="Raw (no cooking)",1,IF('3B-4B) Nutr Calc (6-11)'!E41="Other cooking method",1))))))))*B52) -> 0 | D52: 400 | E52: 200 | F52: 0 | G52: 120 | H52: 0 | I52: 80 | J52: 0
A53: Vitamin B12 (mcg) | B53: =SUM(('3B-4B) Nutr Calc (6-11)'!C36/100)*('3B-4B) Nutr Calc (6-11)'!E$42),SUM('3B-4B) Nutr Calc (6-11)'!D36/100)*('3B-4B) Nutr Calc (6-11)'!E$43),SUM('3B-4B) Nutr Calc (6-11)'!E36/100)*('3B-4B) Nutr Calc (6-11)'!E$44),SUM('3B-4B) Nutr Calc (6-11)'!F36/100)*('3B-4B) Nutr Calc (6-11)'!E$45),SUM('3B-4B) Nutr Calc (6-11)'!G36/100)*('3B-4B) Nutr Calc (6-11)'!E$46),SUM('3B-4B) Nutr Calc (6-11)'!H36/100)*('3B-4B) Nutr Calc (6-11)'!E$47),SUM('3B-4B) Nutr Calc (6-11)'!I36/100)*('3B-4B) Nutr Calc (6-11)'!E$48),SUM('3B-4B) Nutr Calc (6-11)'!J36/100)*('3B-4B) Nutr Calc (6-11)'!E$49),SUM('3B-4B) Nutr Calc (6-11)'!K36/100)*('3B-4B) Nutr Calc (6-11)'!E$50),SUM('3B-4B) Nutr Calc (6-11)'!L36/100)*('3B-4B) Nutr Calc (6-11)'!E$51),SUM('3B-4B) Nutr Calc (6-11)'!M36/100)*('3B-4B) Nutr Calc (6-11)'!E52),SUM('3B-4B) Nutr Calc (6-11)'!N36/100)*('3B-4B) Nutr Calc (6-11)'!E53),SUM('3B-4B) Nutr Calc (6-11)'!O36/100)*('3B-4B) Nutr Calc (6-11)'!E54)) -> 0 | C53: =((IF('3B-4B) Nutr Calc (6-11)'!E41="Boiled (<10 min)",0.9,IF('3B-4B) Nutr Calc (6-11)'!E41="Boiled (>10 min)",0.8,IF('3B-4B) Nutr Calc (6-11)'!E41="Steamed",0.9,IF('3B-4B) Nutr Calc (6-11)'!E41="Fried",0.9,IF('3B-4B) Nutr Calc (6-11)'!E41="Baked",0.9,IF('3B-4B) Nutr Calc (6-11)'!E41="Raw (no cooking)",1,IF('3B-4B) Nutr Calc (6-11)'!E41="Other cooking method",1))))))))*B53) -> 0 | D53: 2.4 | E53: 5 | F53: 0 | G53: 0.7 | H53: 0 | I53: 0.5 | J53: 0
A54: Vitamin C (mg) | B54: =SUM(('3B-4B) Nutr Calc (6-11)'!C37/100)*('3B-4B) Nutr Calc (6-11)'!E$42),SUM('3B-4B) Nutr Calc (6-11)'!D37/100)*('3B-4B) Nutr Calc (6-11)'!E$43),SUM('3B-4B) Nutr Calc (6-11)'!E37/100)*('3B-4B) Nutr Calc (6-11)'!E$44),SUM('3B-4B) Nutr Calc (6-11)'!F37/100)*('3B-4B) Nutr Calc (6-11)'!E$45),SUM('3B-4B) Nutr Calc (6-11)'!G37/100)*('3B-4B) Nutr Calc (6-11)'!E$46),SUM('3B-4B) Nutr Calc (6-11)'!H37/100)*('3B-4B) Nutr Calc (6-11)'!E$47),SUM('3B-4B) Nutr Calc (6-11)'!I37/100)*('3B-4B) Nutr Calc (6-11)'!E$48),SUM('3B-4B) Nutr Calc (6-11)'!J37/100)*('3B-4B) Nutr Calc (6-11)'!E$49),SUM('3B-4B) Nutr Calc (6-11)'!K37/100)*('3B-4B) Nutr Calc (6-11)'!E$50),SUM('3B-4B) Nutr Calc (6-11)'!L37/100)*('3B-4B) Nutr Calc (6-11)'!E$51),SUM('3B-4B) Nutr Calc (6-11)'!M37/100)*('3B-4B) Nutr Calc (6-11)'!E52),SUM('3B-4B) Nutr Calc (6-11)'!N37/100)*('3B-4B) Nutr Calc (6-11)'!E53),SUM('3B-4B) Nutr Calc (6-11)'!O37/100)*('3B-4B) Nutr Calc (6-11)'!E54)) -> 0 | C54: =((IF('3B-4B) Nutr Calc (6-11)'!E41="Boiled (<10 min)",0.8,IF('3B-4B) Nutr Calc (6-11)'!E41="Boiled (>10 min)",0.6,IF('3B-4B) Nutr Calc (6-11)'!E41="Steamed",0.8,IF('3B-4B) Nutr Calc (6-11)'!E41="Fried",0.8,IF('3B-4B) Nutr Calc (6-11)'!E41="Baked",0.8,IF('3B-4B) Nutr Calc (6-11)'!E41="Raw (no cooking)",1,IF('3B-4B) Nutr Calc (6-11)'!E41="Other cooking method",1))))))))*B54) -> 0 | D54: 90 | E54: 150 | F54: 0 | G54: 13 | H54: 0 | I54: 50 | J54: 0
I56: = >30% DV | J56: = >30% DV

Sheet FBREFB #4 (Details) (hidden)
A1: =CONCAT(#REF!," Nutrition Composition") -> 
A2: Weight = | B2: =#REF! -> 
A3: Nutrients (before & after cooking) | B3: Energy (kcal, or calories) | C3: Protein (g) | D3: Total fat (g) | E3: Saturated Fat (g) | F3: Monounsaturated fat (g) | G3: Polyunsaturated fat (g) | H3: Carbohydrate (g) | I3: Fiber (g) | J3: Sugar (g) | K3: Calcium [Ca] (mg) | L3: Iron [Fe] (mg) | M3: Magnesium [Mg] (mg) | N3: Phosphorus [P] (mg) | O3: Potassium [K] (mg) | R3: Sodium [Na] (mg) | S3: Zinc [Zn] (mg)
A4: Raw FBR Ingredients | B4: =((#REF!/100)*#REF!)+((#REF!/100)*#REF!)+((#REF!/100)*#REF!)+((#REF!/100)*#REF!)+((#REF!/100)*#REF!)+((#REF!/100)*#REF!)+((#REF!/100)*#REF!)+((#REF!/100)*#REF!)+((#REF!/100)*#REF!)+((#REF!/100)*#REF!)+((#REF!/100)*#REF!)+((#REF!/100)*#REF!) ->  | C4: =((#REF!/100)*#REF!)+((#REF!/100)*#REF!)+((#REF!/100)*#REF!)+((#REF!/100)*#REF!)+((#REF!/100)*#REF!)+((#REF!/100)*#REF!)+((#REF!/100)*#REF!)+((#REF!/100)*#REF!)+((#REF!/100)*#REF!)+((#REF!/100)*#REF!)+((#REF!/100)*#REF!)+((#REF!/100)*#REF!) ->  | D4: =((#REF!/100)*#REF!)+((#REF!/100)*#REF!)+((#REF!/100)*#REF!)+((#REF!/100)*#REF!)+((#REF!/100)*#REF!)+((#REF!/100)*#REF!)+((#REF!/100)*#REF!)+((#REF!/100)*#REF!)+((#REF!/100)*#REF!)+((#REF!/100)*#REF!)+((#REF!/100)*#REF!)+((#REF!/100)*#REF!) ->  | E4: =((#REF!/100)*#REF!)+((#REF!/100)*#REF!)+((#REF!/100)*#REF!)+((#REF!/100)*#REF!)+((#REF!/100)*#REF!)+((#REF!/100)*#REF!)+((#REF!/100)*#REF!)+((#REF!/100)*#REF!)+((#REF!/100)*#REF!)+((#REF!/100)*#REF!)+((#REF!/100)*#REF!)+((#REF!/100)*#REF!) ->  | F4: =((#REF!/100)*#REF!)+((#REF!/100)*#REF!)+((#REF!/100)*#REF!)+((#REF!/100)*#REF!)+((#REF!/100)*#REF!)+((#REF!/100)*#REF!)+((#REF!/100)*#REF!)+((#REF!/100)*#REF!)+((#REF!/100)*#REF!)+((#REF!/100)*#REF!)+((#REF!/100)*#REF!)+((#REF!/100)*#REF!) ->  | G4: =((#REF!/100)*#REF!)+((#REF!/100)*#REF!)+((#REF!/100)*#REF!)+((#REF!/100)*#REF!)+((#REF!/100)*#REF!)+((#REF!/100)*#REF!)+((#REF!/100)*#REF!)+((#REF!/100)*#REF!)+((#REF!/100)*#REF!)+((#REF!/100)*#REF!)+((#REF!/100)*#REF!)+((#REF!/100)*#REF!) ->  | H4: =((#REF!/100)*#REF!)+((#REF!/100)*#REF!)+((#REF!/100)*#REF!)+((#REF!/100)*#REF!)+((#REF!/100)*#REF!)+((#REF!/100)*#REF!)+((#REF!/100)*#REF!)+((#REF!/100)*#REF!)+((#REF!/100)*#REF!)+((#REF!/100)*#REF!)+((#REF!/100)*#REF!)+((#REF!/100)*#REF!) ->  | I4: =((#REF!/100)*#REF!)+((#REF!/100)*#REF!)+((#REF!/100)*#REF!)+((#REF!/100)*#REF!)+((#REF!/100)*#REF!)+((#REF!/100)*#REF!)+((#REF!/100)*#REF!)+((#REF!/100)*#REF!)+((#REF!/100)*#REF!)+((#REF!/100)*#REF!)+((#REF!/100)*#REF!)+((#REF!/100)*#REF!) ->  | J4: =((#REF!/100)*#REF!)+((#REF!/100)*#REF!)+((#REF!/100)*#REF!)+((#REF!/100)*#REF!)+((#REF!/100)*#REF!)+((#REF!/100)*#REF!)+((#REF!/100)*#REF!)+((#REF!/100)*#REF!)+((#REF!/100)*#REF!)+((#REF!/100)*#REF!)+((#REF!/100)*#REF!)+((#REF!/100)*#REF!) ->  | K4: =((#REF!/100)*#REF!)+((#REF!/100)*#REF!)+((#REF!/100)*#REF!)+((#REF!/100)*#REF!)+((#REF!/100)*#REF!)+((#REF!/100)*#REF!)+((#REF!/100)*#REF!)+((#REF!/100)*#REF!)+((#REF!/100)*#REF!)+((#REF!/100)*#REF!)+((#REF!/100)*#REF!)+((#REF!/100)*#REF!) ->  | L4: 0.11 | M4: =((#REF!/100)*#REF!)+((#REF!/100)*#REF!)+((#REF!/100)*#REF!)+((#REF!/100)*#REF!)+((#REF!/100)*#REF!)+((#REF!/100)*#REF!)+((#REF!/100)*#REF!)+((#REF!/100)*#REF!)+((#REF!/100)*#REF!)+((#REF!/100)*#REF!)+((#REF!/100)*#REF!)+((#REF!/100)*#REF!) ->  | N4: =((#REF!/100)*#REF!)+((#REF!/100)*#REF!)+((#REF!/100)*#REF!)+((#REF!/100)*#REF!)+((#REF!/100)*#REF!)+((#REF!/100)*#REF!)+((#REF!/100)*#REF!)+((#REF!/100)*#REF!)+((#REF!/100)*#REF!)+((#REF!/100)*#REF!)+((#REF!/100)*#REF!)+((#REF!/100)*#REF!) ->  | O4: =((#REF!/100)*#REF!)+((#REF!/100)*#REF!)+((#REF!/100)*#REF!)+((#REF!/100)*#REF!)+((#REF!/100)*#REF!)+((#REF!/100)*#REF!)+((#REF!/100)*#REF!)+((#REF!/100)*#REF!)+((#REF!/100)*#REF!)+((#REF!/100)*#REF!)+((#REF!/100)*#REF!)+((#REF!/100)*#REF!) ->  | R4: =((#REF!/100)*#REF!)+((#REF!/100)*#REF!)+((#REF!/100)*#REF!)+((#REF!/100)*#REF!)+((#REF!/100)*#REF!)+((#REF!/100)*#REF!)+((#REF!/100)*#REF!)+((#REF!/100)*#REF!)+((#REF!/100)*#REF!)+((#REF!/100)*#REF!)+((#REF!/100)*#REF!)+((#REF!/100)*#REF!) ->  | S4: =((#REF!/100)*#REF!)+((#REF!/100)*#REF!)+((#REF!/100)*#REF!)+((#REF!/100)*#REF!)+((#REF!/100)*#REF!)+((#REF!/100)*#REF!)+((#REF!/100)*#REF!)+((#REF!/100)*#REF!)+((#REF!/100)*#REF!)+((#REF!/100)*#REF!)+((#REF!/100)*#REF!)+((#REF!/100)*#REF!) -> 
A5: Cooked FBR (+ retention factor) | B5: =B4 ->  | L5: 0.11 | R5: =R4 -> 
A7: Daily Nutrient Values for select populations | B7: Energy (kcal, or calories) | C7: Protein (g) | D7: Total fat (g) | E7: Saturated Fat (g) | F7: Monounsaturated fat (g) | G7: Polyunsaturated fat (g) | H7: Carbohydrate (g) | I7: Fiber (g) | J7: Sugar (g) | K7: Calcium [Ca] (mg) | L7: Iron [Fe] (mg) | M7: Magnesium [Mg] (mg) | N7: Phosphorus [P] (mg) | O7: Potassium [K] (mg) | R7: Sodium [Na] (mg) | S7: Zinc [Zn] (mg)
A8: Men, Adult, RDA (2000 calorie diet) | B8: 2400 | C8: =(B8*0.15)/4 -> 90 | D8: =(B8*0.35)/9 -> 93.33333333 | E8: =(B8*0.1)/9 -> 26.66666667 | F8: =((D8-E8)*0.6) -> 40 | G8: =((D8-E8)*0.4) -> 26.66666667 | H8: =(B8*0.5)/4 -> 300 | I8: 38 | J8: 36 | K8: 1000 | L8: 8 | M8: 420 | N8: 1250 | O8: 3400 | R8: 2000 | S8: 11
A9: Men, Adult, % Daily Value | B9: =B$5/B8 ->  | L9: 0.01375 | R9: =R$5/R8 -> 
B10: Energy (kcal, or calories) | C10: Protein (g) | D10: Total fat (g) | E10: Saturated Fat (g) | F10: Monounsaturated fat (g) | G10: Polyunsaturated fat (g) | H10: Carbohydrate (g) | I10: Fiber (g) | J10: Sugar (g) | K10: Calcium [Ca] (mg) | L10: Iron [Fe] (mg) | M10: Magnesium [Mg] (mg) | N10: Phosphorus [P] (mg) | O10: Potassium [K] (mg) | R10: Sodium [Na] (mg) | S10: Zinc [Zn] (mg)
A11: Women, Adult, RDA (2000 calorie diet) | B11: 2000 | C11: =(B11*0.15)/4 -> 75 | D11: =(B11*0.35)/9 -> 77.77777778 | E11: =(B11*0.1)/9 -> 22.22222222 | F11: =((D11-E11)*0.6) -> 33.33333333 | G11: =((D11-E11)*0.4) -> 22.22222222 | H11: =(B11*0.5)/4 -> 250 | I11: 25 | J11: 25 | K11: 1000 | L11: 18 | M11: 320 | N11: 1250 | O11: 2600 | R11: 2000 | S11: 8
A12: Women, Adult, % Daily Value | B12: =B$5/B11 ->  | L12: 0.006111111111 | R12: =R$5/R11 -> 
B13: Energy (kcal, or calories) | C13: Protein (g) | D13: Total fat (g) | E13: Saturated Fat (g) | F13: Monounsaturated fat (g) | G13: Polyunsaturated fat (g) | H13: Carbohydrate (g) | I13: Fiber (g) | J13: Sugar (g) | K13: Calcium [Ca] (mg) | L13: Iron [Fe] (mg) | M13: Magnesium [Mg] (mg) | N13: Phosphorus [P] (mg) | O13: Potassium [K] (mg) | R13: Sodium [Na] (mg) | S13: Zinc [Zn] (mg)
A14: PLW, Adult, RDA | B14: 2200 | C14: =(B14*0.15)/4 -> 82.5 | D14: =(B14*0.35)/9 -> 85.55555556 | E14: =(B14*0.1)/9 -> 24.44444444 | F14: =((D14-E14)*0.6) -> 36.66666667 | G14: =((D14-E14)*0.4) -> 24.44444444 | H14: =(B14*0.5)/4 -> 275 | I14: 29 | J14: 28 | K14: 1000 | L14: 27 | M14: 350 | N14: 700 | O14: 2900 | R14: 2000 | S14: 11
A15: PLW, Adult, % Daily Value | B15: =B$5/B14 ->  | L15: 0.004074074074 | R15: =R$5/R14 -> 
B16: Energy (kcal, or calories) | C16: Protein (g) | D16: Total fat (g) | E16: Saturated Fat (g) | F16: Monounsaturated fat (g) | G16: Polyunsaturated fat (g) | H16: Carbohydrate (g) | I16: Fiber (g) | J16: Sugar (g) | K16: Calcium [Ca] (mg) | L16: Iron [Fe] (mg) | M16: Magnesium [Mg] (mg) | N16: Phosphorus [P] (mg) | O16: Potassium [K] (mg) | R16: Sodium [Na] (mg) | S16: Zinc [Zn] (mg)
A17: Teens (14-18 years), RDA | B17: 2000 | C17: =(B17*0.15)/4 -> 75 | D17: =(B17*0.35)/9 -> 77.77777778 | E17: =(B17*0.1)/9 -> 22.22222222 | F17: =((D17-E17)*0.6) -> 33.33333333 | G17: =((D17-E17)*0.4) -> 22.22222222 | H17: =(B17*0.5)/4 -> 250 | I17: 26 | J17: 25 | K17: 1300 | L17: 13 | M17: 380 | N17: 1250 | O17: 2600 | R17: 2000 | S17: 10
A18: Teens (14-18 years), % Daily Value | B18: =B$5/B17 ->  | L18: 0.008461538462 | R18: =R$5/R17 -> 
B19: Energy (kcal, or calories) | C19: Protein (g) | D19: Total fat (g) | E19: Saturated Fat (g) | F19: Monounsaturated fat (g) | G19: Polyunsaturated fat (g) | H19: Carbohydrate (g) | I19: Fiber (g) | J19: Sugar (g) | K19: Calcium [Ca] (mg) | L19: Iron [Fe] (mg) | M19: Magnesium [Mg] (mg) | N19: Phosphorus [P] (mg) | O19: Potassium [K] (mg) | R19: Sodium [Na] (mg) | S19: Zinc [Zn] (mg)
A20: Children (4-8 years), RDA | B20: 1400 | C20: =(B20*0.15)/4 -> 52.5 | D20: =(B20*0.35)/9 -> 54.44444444 | E20: =(B20*0.1)/9 -> 15.55555556 | F20: =((D20-E20)*0.6) -> 23.33333333 | G20: =((D20-E20)*0.4) -> 15.55555556 | H20: =(B20*0.5)/4 -> 175 | I20: 25 | J20: 20 | K20: 1000 | L20: 10 | M20: 130 | N20: 500 | O20: 2300 | R20: 1200 | S20: 5
A21: Children (4-8 years), % Daily Value | B21: =B$5/B20 ->  | L21: 0.011 | R21: =R$5/R20 -> 
B22: Energy (kcal, or calories) | C22: Protein (g) | D22: Total fat (g) | E22: Saturated Fat (g) | F22: Monounsaturated fat (g) | G22: Polyunsaturated fat (g) | H22: Carbohydrate (g) | I22: Fiber (g) | J22: Sugar (g) | K22: Calcium [Ca] (mg) | L22: Iron [Fe] (mg) | M22: Magnesium [Mg] (mg) | N22: Phosphorus [P] (mg) | O22: Potassium [K] (mg) | R22: Sodium [Na] (mg) | S22: Zinc [Zn] (mg)
A23: Children (1-3 years), RDA | B23: 1200 | C23: =(B23*0.15)/4 -> 45 | D23: =(B23*0.35)/9 -> 46.66666667 | E23: =(B23*0.1)/9 -> 13.33333333 | F23: =((D23-E23)*0.6) -> 20 | G23: =((D23-E23)*0.4) -> 13.33333333 | H23: =(B23*0.5)/4 -> 150 | I23: 19 | J23: =(B23*0.06)/4 -> 18 | K23: 700 | L23: 7 | M23: 80 | N23: 460 | O23: 2000 | R23: 800 | S23: 3
A24: Children (1-3 years), % Daily Value | B24: =B$5/B23 ->  | L24: 0.01571428571 | R24: =R$5/R23 -> 
B25: Energy (kcal, or calories) | C25: Protein (g) | D25: Total fat (g) | E25: Saturated Fat (g) | F25: Monounsaturated fat (g) | G25: Polyunsaturated fat (g) | H25: Carbohydrate (g) | I25: Fiber (g) | J25: Sugar (g) | K25: Calcium [Ca] (mg) | L25: Iron [Fe] (mg) | M25: Magnesium [Mg] (mg) | N25: Phosphorus [P] (mg) | O25: Potassium [K] (mg) | R25: Sodium [Na] (mg) | S25: Zinc [Zn] (mg)
A26: Infant (6-12 months), RDA | B26: 1000 | C26: =(B26*0.15)/4 -> 37.5 | D26: =(B26*0.35)/9 -> 38.88888889 | E26: NA | F26: NA | G26: NA | H26: =(B26*0.5)/4 -> 125 | I26: NA | J26: NA | K26: 260 | L26: 11 | M26: 75 | N26: 275 | O26: 860 | R26: 400 | S26: 3
A27: Infant (6-12 months), % Daily Value | B27: =B$5/B26 ->  | E27: na | F27: na | G27: na | H27: =H$5/H26 ->  | I27: na | J27: na | K27: =K$5/K26 ->  | L27: 0.01 | R27: =R$5/R26 -> 
E28: = > 25% daily value | H28: = > 30% daily value, nutrient to limit (saturated fat, sugar, sodium)
A29: Sustainability Factors (based on Step 2) | B29: Crop Yield | C29: Profitability | D29: Ease of processing | E29: Affordability | F29: Accessibility | G29: Security | H29: Ease of production | I29: Consumer preference | J29: Women's workload | K29: Drought resilience | L29: Heat tolerance | M29: Agrochemical inputs
A31: Annual Seasonality Score (based on Step 3)
A33: =_xlfn.CONCAT('3B-4B) Nutr Calc (6-11)'!F40, " - Summary Dashboard") -> 
A34: Nutrient Composition | D34: Daily Nutrient Values for select populations | E34: % Daily Values (DV) of Nutrients for select populations | L34: =L33 -> 0 | N34: =N33 -> 0 | O34: 0 | R34: =R33 -> 0 | S34: 0
A35: Nutrients | B35: Raw FBR / EFB Ingredients | C35: Cooked FBR (w/ retention factor) | D35: Men, Adult, RDA (2000 calorie diet) | E35: Men, Adult, % DV | F35: Women, Adult, RDA (2000 calorie diet) | G35: Women, Adult, % DV | H35: PLW, Adult, RDA | I35: PLW, Adult, % DV | J35: Teens (14-18 years), RDA | K35: Teens (14-18 years), % DV | L35: Children (2-5 years), WHO | M35: Children (2-5 years), % DV | N35: Children (1-3 years), RDA | O35: Children (2-3 years), % DV | P35: Infant (12-24 months), % RDA | Q35: Infant (12-24 months), % DV | R35: Infant (6-12 months), RDA | S35: Infant (6-12 months), % DV
A36: Energy (kcal, or calories) | B36: =SUM(('3B-4B) Nutr Calc (6-11)'!C19/100)*('3B-4B) Nutr Calc (6-11)'!F$42),SUM('3B-4B) Nutr Calc (6-11)'!D19/100)*('3B-4B) Nutr Calc (6-11)'!F$43),SUM('3B-4B) Nutr Calc (6-11)'!E19/100)*('3B-4B) Nutr Calc (6-11)'!F$44),SUM('3B-4B) Nutr Calc (6-11)'!F19/100)*('3B-4B) Nutr Calc (6-11)'!F$45),SUM('3B-4B) Nutr Calc (6-11)'!G19/100)*('3B-4B) Nutr Calc (6-11)'!F$46),SUM('3B-4B) Nutr Calc (6-11)'!H19/100)*('3B-4B) Nutr Calc (6-11)'!F$47),SUM('3B-4B) Nutr Calc (6-11)'!I19/100)*('3B-4B) Nutr Calc (6-11)'!F$48),SUM('3B-4B) Nutr Calc (6-11)'!J19/100)*('3B-4B) Nutr Calc (6-11)'!F$49),SUM('3B-4B) Nutr Calc (6-11)'!K19/100)*('3B-4B) Nutr Calc (6-11)'!F$50),SUM('3B-4B) Nutr Calc (6-11)'!L19/100)*('3B-4B) Nutr Calc (6-11)'!F$51),SUM('3B-4B) Nutr Calc (6-11)'!M19/100)*('3B-4B) Nutr Calc (6-11)'!F52),SUM('3B-4B) Nutr Calc (6-11)'!N19/100)*('3B-4B) Nutr Calc (6-11)'!F53),SUM('3B-4B) Nutr Calc (6-11)'!O19/100)*('3B-4B) Nutr Calc (6-11)'!F54)) ->  | C36: =B36 ->  | D36: 2400 | E36: =$C36/D36 ->  | F36: 2000 | G36: =$C36/F36 ->  | H36: 2200 | I36: =$C36/H36 ->  | J36: 2000 | K36: =$C36/J36 ->  | L36: 1100 | M36: =$C36/L36 ->  | N36: 1200 | O36: =$C36/N36 ->  | P36: 1000 | Q36: =$C36/P36 ->  | R36: 800 | S36: =$C36/R36 -> 
A37: Protein (g) | B37: =SUM(('3B-4B) Nutr Calc (6-11)'!C20/100)*('3B-4B) Nutr Calc (6-11)'!F$42),SUM('3B-4B) Nutr Calc (6-11)'!D20/100)*('3B-4B) Nutr Calc (6-11)'!F$43),SUM('3B-4B) Nutr Calc (6-11)'!E20/100)*('3B-4B) Nutr Calc (6-11)'!F$44),SUM('3B-4B) Nutr Calc (6-11)'!F20/100)*('3B-4B) Nutr Calc (6-11)'!F$45),SUM('3B-4B) Nutr Calc (6-11)'!G20/100)*('3B-4B) Nutr Calc (6-11)'!F$46),SUM('3B-4B) Nutr Calc (6-11)'!H20/100)*('3B-4B) Nutr Calc (6-11)'!F$47),SUM('3B-4B) Nutr Calc (6-11)'!I20/100)*('3B-4B) Nutr Calc (6-11)'!F$48),SUM('3B-4B) Nutr Calc (6-11)'!J20/100)*('3B-4B) Nutr Calc (6-11)'!F$49),SUM('3B-4B) Nutr Calc (6-11)'!K20/100)*('3B-4B) Nutr Calc (6-11)'!F$50),SUM('3B-4B) Nutr Calc (6-11)'!L20/100)*('3B-4B) Nutr Calc (6-11)'!F$51),SUM('3B-4B) Nutr Calc (6-11)'!M20/100)*('3B-4B) Nutr Calc (6-11)'!F52),SUM('3B-4B) Nutr Calc (6-11)'!N20/100)*('3B-4B) Nutr Calc (6-11)'!F53),SUM('3B-4B) Nutr Calc (6-11)'!O20/100)*('3B-4B) Nutr Calc (6-11)'!F54)) -> 0 | C37: 0 | D37: =(D36*0.15)/4 -> 90 | E37: 0 | F37: 75 | G37: 0 | H37: =(H36*0.15)/4 -> 82.5 | I37: 0 | J37: =(J36*0.15)/4 -> 75 | K37: 0 | L37: =(L36*0.15)/4 -> 41.25 | M37: =$C37/L37 -> 0 | N37: =(N36*0.15)/4 -> 45 | O37: 0 | P37: =(P36*0.15)/4 -> 37.5 | Q37: 0 | R37: =(R36*0.15)/4 -> 30 | S37: 0
A38: Total fat (g) | B38: =SUM(('3B-4B) Nutr Calc (6-11)'!C21/100)*('3B-4B) Nutr Calc (6-11)'!F$42),SUM('3B-4B) Nutr Calc (6-11)'!D21/100)*('3B-4B) Nutr Calc (6-11)'!F$43),SUM('3B-4B) Nutr Calc (6-11)'!E21/100)*('3B-4B) Nutr Calc (6-11)'!F$44),SUM('3B-4B) Nutr Calc (6-11)'!F21/100)*('3B-4B) Nutr Calc (6-11)'!F$45),SUM('3B-4B) Nutr Calc (6-11)'!G21/100)*('3B-4B) Nutr Calc (6-11)'!F$46),SUM('3B-4B) Nutr Calc (6-11)'!H21/100)*('3B-4B) Nutr Calc (6-11)'!F$47),SUM('3B-4B) Nutr Calc (6-11)'!I21/100)*('3B-4B) Nutr Calc (6-11)'!F$48),SUM('3B-4B) Nutr Calc (6-11)'!J21/100)*('3B-4B) Nutr Calc (6-11)'!F$49),SUM('3B-4B) Nutr Calc (6-11)'!K21/100)*('3B-4B) Nutr Calc (6-11)'!F$50),SUM('3B-4B) Nutr Calc (6-11)'!L21/100)*('3B-4B) Nutr Calc (6-11)'!F$51),,SUM('3B-4B) Nutr Calc (6-11)'!M22/100)*('3B-4B) Nutr Calc (6-11)'!F52),SUM('3B-4B) Nutr Calc (6-11)'!N22/100)*('3B-4B) Nutr Calc (6-11)'!F53),SUM('3B-4B) Nutr Calc (6-11)'!O22/100)*('3B-4B) Nutr Calc (6-11)'!F54)) -> 0 | C38: 0 | D38: =(D36*0.35)/9 -> 93.33333333 | E38: 0 | F38: 77.77777778 | G38: 0 | H38: =(H36*0.35)/9 -> 85.55555556 | I38: 0 | J38: =(J36*0.35)/9 -> 77.77777778 | K38: 0 | L38: =(L36*0.35)/9 -> 42.77777778 | M38: 0 | N38: =(N36*0.35)/9 -> 46.66666667 | O38: 0 | P38: =(P36*0.35)/9 -> 38.88888889 | Q38: 0 | R38: =(R36*0.35)/9 -> 31.11111111 | S38: 0
A39: Carbohydrate (g) | B39: =SUM(('3B-4B) Nutr Calc (6-11)'!C22/100)*('3B-4B) Nutr Calc (6-11)'!F$42),SUM('3B-4B) Nutr Calc (6-11)'!D22/100)*('3B-4B) Nutr Calc (6-11)'!F$43),SUM('3B-4B) Nutr Calc (6-11)'!E22/100)*('3B-4B) Nutr Calc (6-11)'!F$44),SUM('3B-4B) Nutr Calc (6-11)'!F22/100)*('3B-4B) Nutr Calc (6-11)'!F$45),SUM('3B-4B) Nutr Calc (6-11)'!G22/100)*('3B-4B) Nutr Calc (6-11)'!F$46),SUM('3B-4B) Nutr Calc (6-11)'!H22/100)*('3B-4B) Nutr Calc (6-11)'!F$47),SUM('3B-4B) Nutr Calc (6-11)'!I22/100)*('3B-4B) Nutr Calc (6-11)'!F$48),SUM('3B-4B) Nutr Calc (6-11)'!J22/100)*('3B-4B) Nutr Calc (6-11)'!F$49),SUM('3B-4B) Nutr Calc (6-11)'!K22/100)*('3B-4B) Nutr Calc (6-11)'!F$50),SUM('3B-4B) Nutr Calc (6-11)'!L22/100)*('3B-4B) Nutr Calc (6-11)'!F$51),SUM('3B-4B) Nutr Calc (6-11)'!M23/100)*('3B-4B) Nutr Calc (6-11)'!E52),SUM('3B-4B) Nutr Calc (6-11)'!N23/100)*('3B-4B) Nutr Calc (6-11)'!E53),SUM('3B-4B) Nutr Calc (6-11)'!O23/100)*('3B-4B) Nutr Calc (6-11)'!E54)) -> 0 | C39: 0 | D39: =(D36*0.5)/4 -> 300 | E39: 0 | F39: 250 | G39: 0 | H39: =(H36*0.5)/4 -> 275 | I39: 0 | J39: =(J36*0.5)/4 -> 250 | K39: 0 | L39: =(L36*0.5)/4 -> 137.5 | M39: 0 | N39: =(N36*0.5)/4 -> 150 | O39: 0 | P39: =(P36*0.5)/4 -> 125 | Q39: 0 | R39: =(R36*0.5)/4 -> 100 | S39: 0
A40: Fiber (g) | B40: =SUM(('3B-4B) Nutr Calc (6-11)'!C23/100)*('3B-4B) Nutr Calc (6-11)'!F$42),SUM('3B-4B) Nutr Calc (6-11)'!D23/100)*('3B-4B) Nutr Calc (6-11)'!F$43),SUM('3B-4B) Nutr Calc (6-11)'!E23/100)*('3B-4B) Nutr Calc (6-11)'!F$44),SUM('3B-4B) Nutr Calc (6-11)'!F23/100)*('3B-4B) Nutr Calc (6-11)'!F$45),SUM('3B-4B) Nutr Calc (6-11)'!G23/100)*('3B-4B) Nutr Calc (6-11)'!F$46),SUM('3B-4B) Nutr Calc (6-11)'!H23/100)*('3B-4B) Nutr Calc (6-11)'!F$47),SUM('3B-4B) Nutr Calc (6-11)'!I23/100)*('3B-4B) Nutr Calc (6-11)'!F$48),SUM('3B-4B) Nutr Calc (6-11)'!J23/100)*('3B-4B) Nutr Calc (6-11)'!F$49),SUM('3B-4B) Nutr Calc (6-11)'!K23/100)*('3B-4B) Nutr Calc (6-11)'!F$50),SUM('3B-4B) Nutr Calc (6-11)'!L23/100)*('3B-4B) Nutr Calc (6-11)'!F$51),SUM('3B-4B) Nutr Calc (6-11)'!M24/100)*('3B-4B) Nutr Calc (6-11)'!F52),SUM('3B-4B) Nutr Calc (6-11)'!N24/100)*('3B-4B) Nutr Calc (6-11)'!F53),SUM('3B-4B) Nutr Calc (6-11)'!O24/100)*('3B-4B) Nutr Calc (6-11)'!F54)) -> 0 | C40: 0 | D40: 38 | E40: 0 | F40: 25 | G40: 0 | H40: 29 | I40: 0 | J40: 26 | K40: 0 | L40: 25 | M40: 0 | N40: 19 | O40: 0 | P40: 17 | Q40: 0 | R40: NA | S40: NA
A41: Sugar (g) | B41: =SUM(('3B-4B) Nutr Calc (6-11)'!C24/100)*('3B-4B) Nutr Calc (6-11)'!F$42),SUM('3B-4B) Nutr Calc (6-11)'!D24/100)*('3B-4B) Nutr Calc (6-11)'!F$43),SUM('3B-4B) Nutr Calc (6-11)'!E24/100)*('3B-4B) Nutr Calc (6-11)'!F$44),SUM('3B-4B) Nutr Calc (6-11)'!F24/100)*('3B-4B) Nutr Calc (6-11)'!F$45),SUM('3B-4B) Nutr Calc (6-11)'!G24/100)*('3B-4B) Nutr Calc (6-11)'!F$46),SUM('3B-4B) Nutr Calc (6-11)'!H24/100)*('3B-4B) Nutr Calc (6-11)'!F$47),SUM('3B-4B) Nutr Calc (6-11)'!I24/100)*('3B-4B) Nutr Calc (6-11)'!F$48),SUM('3B-4B) Nutr Calc (6-11)'!J24/100)*('3B-4B) Nutr Calc (6-11)'!F$49),SUM('3B-4B) Nutr Calc (6-11)'!K24/100)*('3B-4B) Nutr Calc (6-11)'!F$50),SUM('3B-4B) Nutr Calc (6-11)'!L24/100)*('3B-4B) Nutr Calc (6-11)'!F$51),SUM('3B-4B) Nutr Calc (6-11)'!M24/100)*('3B-4B) Nutr Calc (6-11)'!F52),SUM('3B-4B) Nutr Calc (6-11)'!N24/100)*('3B-4B) Nutr Calc (6-11)'!F53),SUM('3B-4B) Nutr Calc (6-11)'!O24/100)*('3B-4B) Nutr Calc (6-11)'!F54)) -> 0 | C41: 0 | D41: 36 | E41: 0 | F41: 25 | G41: 0 | H41: 28 | I41: 0 | J41: 25 | K41: 0 | L41: 20 | M41: 0 | N41: =(N36*0.06)/4 -> 18 | O41: 0 | P41: NA | Q41: NA | R41: NA | S41: NA
A42: Calcium [Ca] (mg) | B42: =SUM(('3B-4B) Nutr Calc (6-11)'!C25/100)*('3B-4B) Nutr Calc (6-11)'!F$42),SUM('3B-4B) Nutr Calc (6-11)'!D25/100)*('3B-4B) Nutr Calc (6-11)'!F$43),SUM('3B-4B) Nutr Calc (6-11)'!E25/100)*('3B-4B) Nutr Calc (6-11)'!F$44),SUM('3B-4B) Nutr Calc (6-11)'!F25/100)*('3B-4B) Nutr Calc (6-11)'!F$45),SUM('3B-4B) Nutr Calc (6-11)'!G25/100)*('3B-4B) Nutr Calc (6-11)'!F$46),SUM('3B-4B) Nutr Calc (6-11)'!H25/100)*('3B-4B) Nutr Calc (6-11)'!F$47),SUM('3B-4B) Nutr Calc (6-11)'!I25/100)*('3B-4B) Nutr Calc (6-11)'!F$48),SUM('3B-4B) Nutr Calc (6-11)'!J25/100)*('3B-4B) Nutr Calc (6-11)'!F$49),SUM('3B-4B) Nutr Calc (6-11)'!K25/100)*('3B-4B) Nutr Calc (6-11)'!F$50),SUM('3B-4B) Nutr Calc (6-11)'!L25/100)*('3B-4B) Nutr Calc (6-11)'!F$51),SUM('3B-4B) Nutr Calc (6-11)'!M25/100)*('3B-4B) Nutr Calc (6-11)'!F52),SUM('3B-4B) Nutr Calc (6-11)'!N25/100)*('3B-4B) Nutr Calc (6-11)'!F53),SUM('3B-4B) Nutr Calc (6-11)'!O25/100)*('3B-4B) Nutr Calc (6-11)'!F54)) -> 0 | C42: 0 | D42: 1000 | E42: 0 | F42: 1000 | G42: 0 | H42: 1000 | I42: 0 | J42: 1300 | K42: 0 | L42: 1200 | M42: 0 | N42: 700 | O42: 0 | P42: 400 | Q42: =$C42/P42 -> 0 | R42: 260 | S42: =$C42/R42 -> 0
A43: Iron [Fe] (mg) | B43: =SUM(('3B-4B) Nutr Calc (6-11)'!C26/100)*('3B-4B) Nutr Calc (6-11)'!F$42),SUM('3B-4B) Nutr Calc (6-11)'!D26/100)*('3B-4B) Nutr Calc (6-11)'!F$43),SUM('3B-4B) Nutr Calc (6-11)'!E26/100)*('3B-4B) Nutr Calc (6-11)'!F$44),SUM('3B-4B) Nutr Calc (6-11)'!F26/100)*('3B-4B) Nutr Calc (6-11)'!F$45),SUM('3B-4B) Nutr Calc (6-11)'!G26/100)*('3B-4B) Nutr Calc (6-11)'!F$46),SUM('3B-4B) Nutr Calc (6-11)'!H26/100)*('3B-4B) Nutr Calc (6-11)'!F$47),SUM('3B-4B) Nutr Calc (6-11)'!I26/100)*('3B-4B) Nutr Calc (6-11)'!F$48),SUM('3B-4B) Nutr Calc (6-11)'!J26/100)*('3B-4B) Nutr Calc (6-11)'!F$49),SUM('3B-4B) Nutr Calc (6-11)'!K26/100)*('3B-4B) Nutr Calc (6-11)'!F$50),SUM('3B-4B) Nutr Calc (6-11)'!L26/100)*('3B-4B) Nutr Calc (6-11)'!F$51),SUM('3B-4B) Nutr Calc (6-11)'!M26/100)*('3B-4B) Nutr Calc (6-11)'!F52),SUM('3B-4B) Nutr Calc (6-11)'!N26/100)*('3B-4B) Nutr Calc (6-11)'!F53),SUM('3B-4B) Nutr Calc (6-11)'!O26/100)*('3B-4B) Nutr Calc (6-11)'!F54)) -> 0 | C43: 0 | D43: 8 | E43: 0 | F43: 18 | G43: 0 | H43: 27 | I43: 0 | J43: 13 | K43: 0 | L43: 22 | M43: 0 | N43: 7 | O43: 0 | P43: 7 | Q43: 0 | R43: 11 | S43: 0
A44: Magnesium [Mg] (mg) | B44: =SUM(('3B-4B) Nutr Calc (6-11)'!C27/100)*('3B-4B) Nutr Calc (6-11)'!F$42),SUM('3B-4B) Nutr Calc (6-11)'!D27/100)*('3B-4B) Nutr Calc (6-11)'!F$43),SUM('3B-4B) Nutr Calc (6-11)'!E27/100)*('3B-4B) Nutr Calc (6-11)'!F$44),SUM('3B-4B) Nutr Calc (6-11)'!F27/100)*('3B-4B) Nutr Calc (6-11)'!F$45),SUM('3B-4B) Nutr Calc (6-11)'!G27/100)*('3B-4B) Nutr Calc (6-11)'!F$46),SUM('3B-4B) Nutr Calc (6-11)'!H27/100)*('3B-4B) Nutr Calc (6-11)'!F$47),SUM('3B-4B) Nutr Calc (6-11)'!I27/100)*('3B-4B) Nutr Calc (6-11)'!F$48),SUM('3B-4B) Nutr Calc (6-11)'!J27/100)*('3B-4B) Nutr Calc (6-11)'!F$49),SUM('3B-4B) Nutr Calc (6-11)'!K27/100)*('3B-4B) Nutr Calc (6-11)'!F$50),SUM('3B-4B) Nutr Calc (6-11)'!L27/100)*('3B-4B) Nutr Calc (6-11)'!F$51),SUM('3B-4B) Nutr Calc (6-11)'!M27/100)*('3B-4B) Nutr Calc (6-11)'!F52),SUM('3B-4B) Nutr Calc (6-11)'!N27/100)*('3B-4B) Nutr Calc (6-11)'!F53),SUM('3B-4B) Nutr Calc (6-11)'!O27/100)*('3B-4B) Nutr Calc (6-11)'!F54)) -> 0 | C44: 0 | D44: 420 | E44: 0 | F44: 320 | G44: 0 | H44: 350 | I44: 0 | J44: 380 | K44: 0 | L44: =(280+420)/2 -> 350 | M44: 0 | N44: 80 | O44: 0 | P44: 65 | Q44: 0 | R44: 75 | S44: 0
A45: Potassium [K] (mg) | B45: =SUM(('3B-4B) Nutr Calc (6-11)'!C28/100)*('3B-4B) Nutr Calc (6-11)'!F$42),SUM('3B-4B) Nutr Calc (6-11)'!D28/100)*('3B-4B) Nutr Calc (6-11)'!F$43),SUM('3B-4B) Nutr Calc (6-11)'!E28/100)*('3B-4B) Nutr Calc (6-11)'!F$44),SUM('3B-4B) Nutr Calc (6-11)'!F28/100)*('3B-4B) Nutr Calc (6-11)'!F$45),SUM('3B-4B) Nutr Calc (6-11)'!G28/100)*('3B-4B) Nutr Calc (6-11)'!F$46),SUM('3B-4B) Nutr Calc (6-11)'!H28/100)*('3B-4B) Nutr Calc (6-11)'!F$47),SUM('3B-4B) Nutr Calc (6-11)'!I28/100)*('3B-4B) Nutr Calc (6-11)'!F$48),SUM('3B-4B) Nutr Calc (6-11)'!J28/100)*('3B-4B) Nutr Calc (6-11)'!F$49),SUM('3B-4B) Nutr Calc (6-11)'!K28/100)*('3B-4B) Nutr Calc (6-11)'!F$50),SUM('3B-4B) Nutr Calc (6-11)'!L28/100)*('3B-4B) Nutr Calc (6-11)'!F$51),SUM('3B-4B) Nutr Calc (6-11)'!M28/100)*('3B-4B) Nutr Calc (6-11)'!F52),SUM('3B-4B) Nutr Calc (6-11)'!N28/100)*('3B-4B) Nutr Calc (6-11)'!F53),SUM('3B-4B) Nutr Calc (6-11)'!O28/100)*('3B-4B) Nutr Calc (6-11)'!F54)) -> 0 | C45: 0 | D45: 3400 | E45: 0 | F45: 2600 | G45: 0 | H45: 2900 | I45: 0 | J45: 2600 | K45: 0 | L45: =(1500+2200)/2 -> 1850 | M45: 0 | N45: 2000 | O45: 0 | P45: 900 | Q45: 0 | R45: 860 | S45: 0
A46: Sodium [Na] (mg) | B46: =SUM(('3B-4B) Nutr Calc (6-11)'!C29/100)*('3B-4B) Nutr Calc (6-11)'!F$42),SUM('3B-4B) Nutr Calc (6-11)'!D29/100)*('3B-4B) Nutr Calc (6-11)'!F$43),SUM('3B-4B) Nutr Calc (6-11)'!E29/100)*('3B-4B) Nutr Calc (6-11)'!F$44),SUM('3B-4B) Nutr Calc (6-11)'!F29/100)*('3B-4B) Nutr Calc (6-11)'!F$45),SUM('3B-4B) Nutr Calc (6-11)'!G29/100)*('3B-4B) Nutr Calc (6-11)'!F$46),SUM('3B-4B) Nutr Calc (6-11)'!H29/100)*('3B-4B) Nutr Calc (6-11)'!F$47),SUM('3B-4B) Nutr Calc (6-11)'!I29/100)*('3B-4B) Nutr Calc (6-11)'!F$48),SUM('3B-4B) Nutr Calc (6-11)'!J29/100)*('3B-4B) Nutr Calc (6-11)'!F$49),SUM('3B-4B) Nutr Calc (6-11)'!K29/100)*('3B-4B) Nutr Calc (6-11)'!F$50),SUM('3B-4B) Nutr Calc (6-11)'!L29/100)*('3B-4B) Nutr Calc (6-11)'!F$51),SUM('3B-4B) Nutr Calc (6-11)'!M29/100)*('3B-4B) Nutr Calc (6-11)'!F52),SUM('3B-4B) Nutr Calc (6-11)'!N29/100)*('3B-4B) Nutr Calc (6-11)'!F53),SUM('3B-4B) Nutr Calc (6-11)'!O29/100)*('3B-4B) Nutr Calc (6-11)'!F54)) -> 0 | C46: 0 | D46: 2000 | E46: 0 | F46: 2000 | G46: 0 | H46: 2000 | I46: 0 | J46: 2000 | K46: 0 | L46: 1200 | M46: 0 | N46: 800 | O46: 0 | P46: 600 | Q46: 0 | R46: 400 | S46: 0
A47: Zinc [Zn] (mg) | B47: =SUM(('3B-4B) Nutr Calc (6-11)'!C30/100)*('3B-4B) Nutr Calc (6-11)'!F$42),SUM('3B-4B) Nutr Calc (6-11)'!D30/100)*('3B-4B) Nutr Calc (6-11)'!F$43),SUM('3B-4B) Nutr Calc (6-11)'!E30/100)*('3B-4B) Nutr Calc (6-11)'!F$44),SUM('3B-4B) Nutr Calc (6-11)'!F30/100)*('3B-4B) Nutr Calc (6-11)'!F$45),SUM('3B-4B) Nutr Calc (6-11)'!G30/100)*('3B-4B) Nutr Calc (6-11)'!F$46),SUM('3B-4B) Nutr Calc (6-11)'!H30/100)*('3B-4B) Nutr Calc (6-11)'!F$47),SUM('3B-4B) Nutr Calc (6-11)'!I30/100)*('3B-4B) Nutr Calc (6-11)'!F$48),SUM('3B-4B) Nutr Calc (6-11)'!J30/100)*('3B-4B) Nutr Calc (6-11)'!F$49),SUM('3B-4B) Nutr Calc (6-11)'!K30/100)*('3B-4B) Nutr Calc (6-11)'!F$50),SUM('3B-4B) Nutr Calc (6-11)'!L30/100)*('3B-4B) Nutr Calc (6-11)'!F$51),SUM('3B-4B) Nutr Calc (6-11)'!M30/100)*('3B-4B) Nutr Calc (6-11)'!F52),SUM('3B-4B) Nutr Calc (6-11)'!N30/100)*('3B-4B) Nutr Calc (6-11)'!F53),SUM('3B-4B) Nutr Calc (6-11)'!O30/100)*('3B-4B) Nutr Calc (6-11)'!F54)) -> 0 | C47: 0 | D47: 11 | E47: 0 | F47: 8 | G47: 0 | H47: 11 | I47: 0 | J47: 10 | K47: 0 | L47: =(20+35)/2 -> 27.5 | M47: 0 | N47: 3 | O47: 0 | P47: 2.5 | Q47: 0 | R47: 3 | S47: 0
A48: Vitamin A RAE (mcg) | B48: =SUM(('3B-4B) Nutr Calc (6-11)'!C31/100)*('3B-4B) Nutr Calc (6-11)'!F$42),SUM('3B-4B) Nutr Calc (6-11)'!D31/100)*('3B-4B) Nutr Calc (6-11)'!F$43),SUM('3B-4B) Nutr Calc (6-11)'!E31/100)*('3B-4B) Nutr Calc (6-11)'!F$44),SUM('3B-4B) Nutr Calc (6-11)'!F31/100)*('3B-4B) Nutr Calc (6-11)'!F$45),SUM('3B-4B) Nutr Calc (6-11)'!G31/100)*('3B-4B) Nutr Calc (6-11)'!F$46),SUM('3B-4B) Nutr Calc (6-11)'!H31/100)*('3B-4B) Nutr Calc (6-11)'!F$47),SUM('3B-4B) Nutr Calc (6-11)'!I31/100)*('3B-4B) Nutr Calc (6-11)'!F$48),SUM('3B-4B) Nutr Calc (6-11)'!J31/100)*('3B-4B) Nutr Calc (6-11)'!F$49),SUM('3B-4B) Nutr Calc (6-11)'!K31/100)*('3B-4B) Nutr Calc (6-11)'!F$50),SUM('3B-4B) Nutr Calc (6-11)'!L31/100)*('3B-4B) Nutr Calc (6-11)'!F$51),SUM('3B-4B) Nutr Calc (6-11)'!M31/100)*('3B-4B) Nutr Calc (6-11)'!F52),SUM('3B-4B) Nutr Calc (6-11)'!N31/100)*('3B-4B) Nutr Calc (6-11)'!F53),SUM('3B-4B) Nutr Calc (6-11)'!O31/100)*('3B-4B) Nutr Calc (6-11)'!F54)) -> 0 | C48: =((IF('3B-4B) Nutr Calc (6-11)'!F41="Boiled (<10 min)",0.8,IF('3B-4B) Nutr Calc (6-11)'!F41="Boiled (>10 min)",0.75,IF('3B-4B) Nutr Calc (6-11)'!F41="Steamed",0.9,IF('3B-4B) Nutr Calc (6-11)'!F41="Fried",0.9,IF('3B-4B) Nutr Calc (6-11)'!F41="Baked",0.9,IF('3B-4B) Nutr Calc (6-11)'!F41="Raw (no cooking)",1,IF('3B-4B) Nutr Calc (6-11)'!F41="Other cooking method",1))))))))*B48) -> 0 | D48: 900 | E48: 0 | F48: 700 | G48: 0 | H48: 1300 | I48: 0 | J48: 700 | K48: 0 | L48: =2500*0.3 -> 750 | M48: 0 | N48: 300 | O48: 0 | P48: 210 | Q48: 0 | R48: 500 | S48: 0
A49: Thiamine [Vitamin B1] (mg) | B49: =SUM(('3B-4B) Nutr Calc (6-11)'!C32/100)*('3B-4B) Nutr Calc (6-11)'!F$42),SUM('3B-4B) Nutr Calc (6-11)'!D32/100)*('3B-4B) Nutr Calc (6-11)'!F$43),SUM('3B-4B) Nutr Calc (6-11)'!E32/100)*('3B-4B) Nutr Calc (6-11)'!F$44),SUM('3B-4B) Nutr Calc (6-11)'!F32/100)*('3B-4B) Nutr Calc (6-11)'!F$45),SUM('3B-4B) Nutr Calc (6-11)'!G32/100)*('3B-4B) Nutr Calc (6-11)'!F$46),SUM('3B-4B) Nutr Calc (6-11)'!H32/100)*('3B-4B) Nutr Calc (6-11)'!F$47),SUM('3B-4B) Nutr Calc (6-11)'!I32/100)*('3B-4B) Nutr Calc (6-11)'!F$48),SUM('3B-4B) Nutr Calc (6-11)'!J32/100)*('3B-4B) Nutr Calc (6-11)'!F$49),SUM('3B-4B) Nutr Calc (6-11)'!K32/100)*('3B-4B) Nutr Calc (6-11)'!F$50),SUM('3B-4B) Nutr Calc (6-11)'!L32/100)*('3B-4B) Nutr Calc (6-11)'!F$51),SUM('3B-4B) Nutr Calc (6-11)'!M32/100)*('3B-4B) Nutr Calc (6-11)'!F$52),SUM('3B-4B) Nutr Calc (6-11)'!N32/100)*('3B-4B) Nutr Calc (6-11)'!F$53),SUM('3B-4B) Nutr Calc (6-11)'!O32/100)*('3B-4B) Nutr Calc (6-11)'!F$54)) -> 0 | C49: =((IF('3B-4B) Nutr Calc (6-11)'!F41="Boiled (<10 min)",0.75,IF('3B-4B) Nutr Calc (6-11)'!F41="Boiled (>10 min)",0.65,IF('3B-4B) Nutr Calc (6-11)'!F41="Steamed",0.8,IF('3B-4B) Nutr Calc (6-11)'!F41="Fried",0.8,IF('3B-4B) Nutr Calc (6-11)'!F41="Baked",0.85,IF('3B-4B) Nutr Calc (6-11)'!F41="Raw (no cooking)",1,IF('3B-4B) Nutr Calc (6-11)'!F41="Other cooking method",1))))))))*B49) -> 0 | D49: 1.2 | E49: 0 | F49: 1.1 | G49: 0 | H49: 1.4 | I49: 0 | J49: 1.2 | K49: 0 | L49: 1 | M49: 0 | N49: 0.5 | O49: 0 | P49: 0.4 | Q49: 0 | R49: 0.3 | S49: 0
A50: Riboflavin [Vitamin B2] (mg) | B50: =SUM(('3B-4B) Nutr Calc (6-11)'!C33/100)*('3B-4B) Nutr Calc (6-11)'!F$42),SUM('3B-4B) Nutr Calc (6-11)'!D33/100)*('3B-4B) Nutr Calc (6-11)'!F$43),SUM('3B-4B) Nutr Calc (6-11)'!E33/100)*('3B-4B) Nutr Calc (6-11)'!F$44),SUM('3B-4B) Nutr Calc (6-11)'!F33/100)*('3B-4B) Nutr Calc (6-11)'!F$45),SUM('3B-4B) Nutr Calc (6-11)'!G33/100)*('3B-4B) Nutr Calc (6-11)'!F$46),SUM('3B-4B) Nutr Calc (6-11)'!H33/100)*('3B-4B) Nutr Calc (6-11)'!F$47),SUM('3B-4B) Nutr Calc (6-11)'!I33/100)*('3B-4B) Nutr Calc (6-11)'!F$48),SUM('3B-4B) Nutr Calc (6-11)'!J33/100)*('3B-4B) Nutr Calc (6-11)'!F$49),SUM('3B-4B) Nutr Calc (6-11)'!K33/100)*('3B-4B) Nutr Calc (6-11)'!F$50),SUM('3B-4B) Nutr Calc (6-11)'!L33/100)*('3B-4B) Nutr Calc (6-11)'!F$51),SUM('3B-4B) Nutr Calc (6-11)'!M33/100)*('3B-4B) Nutr Calc (6-11)'!F$52),SUM('3B-4B) Nutr Calc (6-11)'!N33/100)*('3B-4B) Nutr Calc (6-11)'!F$53),SUM('3B-4B) Nutr Calc (6-11)'!O33/100)*('3B-4B) Nutr Calc (6-11)'!F$54)) -> 0 | C50: =((IF('3B-4B) Nutr Calc (6-11)'!F41="Boiled (<10 min)",0.75,IF('3B-4B) Nutr Calc (6-11)'!F41="Boiled (>10 min)",0.65,IF('3B-4B) Nutr Calc (6-11)'!F41="Steamed",0.9,IF('3B-4B) Nutr Calc (6-11)'!F41="Fried",0.9,IF('3B-4B) Nutr Calc (6-11)'!F41="Baked",0.9,IF('3B-4B) Nutr Calc (6-11)'!F41="Raw (no cooking)",1,IF('3B-4B) Nutr Calc (6-11)'!F41="Other cooking method",1))))))))*B50) -> 0 | D50: 1.3 | E50: 0 | F50: 1.1 | G50: 0 | H50: 1.5 | I50: 0 | J50: 1.15 | K50: 0 | L50: 4 | M50: 0 | N50: 0.5 | O50: 0 | P50: 0.4 | Q50: 0 | R50: 0.4 | S50: 0
A51: Niacin Equiv [Vitamin B3] (mg) | B51: =SUM(('3B-4B) Nutr Calc (6-11)'!C34/100)*('3B-4B) Nutr Calc (6-11)'!F$42),SUM('3B-4B) Nutr Calc (6-11)'!D34/100)*('3B-4B) Nutr Calc (6-11)'!F$43),SUM('3B-4B) Nutr Calc (6-11)'!E34/100)*('3B-4B) Nutr Calc (6-11)'!F$44),SUM('3B-4B) Nutr Calc (6-11)'!F34/100)*('3B-4B) Nutr Calc (6-11)'!F$45),SUM('3B-4B) Nutr Calc (6-11)'!G34/100)*('3B-4B) Nutr Calc (6-11)'!F$46),SUM('3B-4B) Nutr Calc (6-11)'!H34/100)*('3B-4B) Nutr Calc (6-11)'!F$47),SUM('3B-4B) Nutr Calc (6-11)'!I34/100)*('3B-4B) Nutr Calc (6-11)'!F$48),SUM('3B-4B) Nutr Calc (6-11)'!J34/100)*('3B-4B) Nutr Calc (6-11)'!F$49),SUM('3B-4B) Nutr Calc (6-11)'!K34/100)*('3B-4B) Nutr Calc (6-11)'!F$50),SUM('3B-4B) Nutr Calc (6-11)'!L34/100)*('3B-4B) Nutr Calc (6-11)'!F$51),SUM('3B-4B) Nutr Calc (6-11)'!M34/100)*('3B-4B) Nutr Calc (6-11)'!F$52),SUM('3B-4B) Nutr Calc (6-11)'!N34/100)*('3B-4B) Nutr Calc (6-11)'!FF$53),SUM('3B-4B) Nutr Calc (6-11)'!O34/100)*('3B-4B) Nutr Calc (6-11)'!F$54)) -> 0 | C51: =((IF('3B-4B) Nutr Calc (6-11)'!F41="Boiled (<10 min)",0.8,IF('3B-4B) Nutr Calc (6-11)'!F41="Boiled (>10 min)",0.75,IF('3B-4B) Nutr Calc (6-11)'!F41="Steamed",0.9,IF('3B-4B) Nutr Calc (6-11)'!F41="Fried",0.9,IF('3B-4B) Nutr Calc (6-11)'!F41="Baked",0.9,IF('3B-4B) Nutr Calc (6-11)'!F41="Raw (no cooking)",1,IF('3B-4B) Nutr Calc (6-11)'!F41="Other cooking method",1))))))))*B51) -> 0 | D51: 16 | E51: 0 | F51: 14 | G51: 0 | H51: 18 | I51: 0 | J51: 15 | K51: 0 | L51: 8 | M51: 0 | N51: 6 | O51: 0 | P51: 5 | Q51: 0 | R51: 4 | S51: 0
A52: Folate DFE (mcg) | B52: =SUM(('3B-4B) Nutr Calc (6-11)'!C35/100)*('3B-4B) Nutr Calc (6-11)'!F$42),SUM('3B-4B) Nutr Calc (6-11)'!D35/100)*('3B-4B) Nutr Calc (6-11)'!F$43),SUM('3B-4B) Nutr Calc (6-11)'!E35/100)*('3B-4B) Nutr Calc (6-11)'!F$44),SUM('3B-4B) Nutr Calc (6-11)'!F35/100)*('3B-4B) Nutr Calc (6-11)'!F$45),SUM('3B-4B) Nutr Calc (6-11)'!G35/100)*('3B-4B) Nutr Calc (6-11)'!F$46),SUM('3B-4B) Nutr Calc (6-11)'!H35/100)*('3B-4B) Nutr Calc (6-11)'!F$47),SUM('3B-4B) Nutr Calc (6-11)'!I35/100)*('3B-4B) Nutr Calc (6-11)'!F$48),SUM('3B-4B) Nutr Calc (6-11)'!J35/100)*('3B-4B) Nutr Calc (6-11)'!F$49),SUM('3B-4B) Nutr Calc (6-11)'!K35/100)*('3B-4B) Nutr Calc (6-11)'!F$50),SUM('3B-4B) Nutr Calc (6-11)'!L35/100)*('3B-4B) Nutr Calc (6-11)'!F$51),SUM('3B-4B) Nutr Calc (6-11)'!M31/100)*('3B-4B) Nutr Calc (6-11)'!F52),SUM('3B-4B) Nutr Calc (6-11)'!N31/100)*('3B-4B) Nutr Calc (6-11)'!F53),SUM('3B-4B) Nutr Calc (6-11)'!O31/100)*('3B-4B) Nutr Calc (6-11)'!F54)) -> 0 | C52: =((IF('3B-4B) Nutr Calc (6-11)'!F41="Boiled (<10 min)",0.8,IF('3B-4B) Nutr Calc (6-11)'!F41="Boiled (>10 min)",0.7,IF('3B-4B) Nutr Calc (6-11)'!F41="Steamed",0.85,IF('3B-4B) Nutr Calc (6-11)'!F41="Fried",0.85,IF('3B-4B) Nutr Calc (6-11)'!F41="Baked",0.9,IF('3B-4B) Nutr Calc (6-11)'!F41="Raw (no cooking)",1,IF('3B-4B) Nutr Calc (6-11)'!F41="Other cooking method",1))))))))*B52) -> 0 | D52: 400 | E52: 0 | F52: 400 | G52: 0 | H52: 600 | I52: 0 | J52: 400 | K52: 0 | L52: 200 | M52: 0 | N52: 150 | O52: 0 | P52: 120 | Q52: 0 | R52: 80 | S52: 0
A53: Vitamin B12 (mcg) | B53: =SUM(('3B-4B) Nutr Calc (6-11)'!C36/100)*('3B-4B) Nutr Calc (6-11)'!F$42),SUM('3B-4B) Nutr Calc (6-11)'!D36/100)*('3B-4B) Nutr Calc (6-11)'!F$43),SUM('3B-4B) Nutr Calc (6-11)'!E36/100)*('3B-4B) Nutr Calc (6-11)'!F$44),SUM('3B-4B) Nutr Calc (6-11)'!F36/100)*('3B-4B) Nutr Calc (6-11)'!F$45),SUM('3B-4B) Nutr Calc (6-11)'!G36/100)*('3B-4B) Nutr Calc (6-11)'!F$46),SUM('3B-4B) Nutr Calc (6-11)'!H36/100)*('3B-4B) Nutr Calc (6-11)'!F$47),SUM('3B-4B) Nutr Calc (6-11)'!I36/100)*('3B-4B) Nutr Calc (6-11)'!F$48),SUM('3B-4B) Nutr Calc (6-11)'!J36/100)*('3B-4B) Nutr Calc (6-11)'!F$49),SUM('3B-4B) Nutr Calc (6-11)'!K36/100)*('3B-4B) Nutr Calc (6-11)'!F$50),SUM('3B-4B) Nutr Calc (6-11)'!L36/100)*('3B-4B) Nutr Calc (6-11)'!F$51),SUM('3B-4B) Nutr Calc (6-11)'!M36/100)*('3B-4B) Nutr Calc (6-11)'!F52),SUM('3B-4B) Nutr Calc (6-11)'!N36/100)*('3B-4B) Nutr Calc (6-11)'!F53),SUM('3B-4B) Nutr Calc (6-11)'!O36/100)*('3B-4B) Nutr Calc (6-11)'!F54)) -> 0 | C53: =((IF('3B-4B) Nutr Calc (6-11)'!F41="Boiled (<10 min)",0.9,IF('3B-4B) Nutr Calc (6-11)'!F41="Boiled (>10 min)",0.8,IF('3B-4B) Nutr Calc (6-11)'!F41="Steamed",0.9,IF('3B-4B) Nutr Calc (6-11)'!F41="Fried",0.9,IF('3B-4B) Nutr Calc (6-11)'!F41="Baked",0.9,IF('3B-4B) Nutr Calc (6-11)'!F41="Raw (no cooking)",1,IF('3B-4B) Nutr Calc (6-11)'!F41="Other cooking method",1))))))))*B53) -> 0 | D53: 2.4 | E53: 0 | F53: 2.4 | G53: 0 | H53: 2.8 | I53: 0 | J53: 2.4 | K53: 0 | L53: 5 | M53: 0 | N53: 0.9 | O53: 0 | P53: 0.7 | Q53: 0 | R53: 0.5 | S53: 0
A54: Vitamin C (mg) | B54: =SUM(('3B-4B) Nutr Calc (6-11)'!C37/100)*('3B-4B) Nutr Calc (6-11)'!F$42),SUM('3B-4B) Nutr Calc (6-11)'!D37/100)*('3B-4B) Nutr Calc (6-11)'!F$43),SUM('3B-4B) Nutr Calc (6-11)'!E37/100)*('3B-4B) Nutr Calc (6-11)'!F$44),SUM('3B-4B) Nutr Calc (6-11)'!F37/100)*('3B-4B) Nutr Calc (6-11)'!F$45),SUM('3B-4B) Nutr Calc (6-11)'!G37/100)*('3B-4B) Nutr Calc (6-11)'!F$46),SUM('3B-4B) Nutr Calc (6-11)'!H37/100)*('3B-4B) Nutr Calc (6-11)'!F$47),SUM('3B-4B) Nutr Calc (6-11)'!I37/100)*('3B-4B) Nutr Calc (6-11)'!F$48),SUM('3B-4B) Nutr Calc (6-11)'!J37/100)*('3B-4B) Nutr Calc (6-11)'!F$49),SUM('3B-4B) Nutr Calc (6-11)'!K37/100)*('3B-4B) Nutr Calc (6-11)'!F$50),SUM('3B-4B) Nutr Calc (6-11)'!L37/100)*('3B-4B) Nutr Calc (6-11)'!F$51),SUM('3B-4B) Nutr Calc (6-11)'!M37/100)*('3B-4B) Nutr Calc (6-11)'!F52),SUM('3B-4B) Nutr Calc (6-11)'!N37/100)*('3B-4B) Nutr Calc (6-11)'!F53),SUM('3B-4B) Nutr Calc (6-11)'!O37/100)*('3B-4B) Nutr Calc (6-11)'!F54)) -> 0 | C54: =((IF('3B-4B) Nutr Calc (6-11)'!F41="Boiled (<10 min)",0.8,IF('3B-4B) Nutr Calc (6-11)'!F41="Boiled (>10 min)",0.6,IF('3B-4B) Nutr Calc (6-11)'!F41="Steamed",0.8,IF('3B-4B) Nutr Calc (6-11)'!F41="Fried",0.8,IF('3B-4B) Nutr Calc (6-11)'!F41="Baked",0.8,IF('3B-4B) Nutr Calc (6-11)'!F41="Raw (no cooking)",1,IF('3B-4B) Nutr Calc (6-11)'!F41="Other cooking method",1))))))))*B54) -> 0 | D54: 90 | E54: 0 | F54: 75 | G54: 0 | H54: 120 | I54: 0 | J54: 70 | K54: 0 | L54: 150 | M54: 0 | N54: 15 | O54: 0 | P54: 13 | Q54: 0 | R54: 50 | S54: 0
R56: = >30% DV | S56: = >30% DV
